Workbook

Sheet Input Figures for CA
A1: Hydro Ottawa Limited EB-2019-0261 Interrogatory Response IRR OEB-156 Attachment A ORIGINAL
A2: Demand Factor Calculations
B3: Figures used in CA model based on historic loads scaled by 2021 monthly consumption forecasts
B4: See '2021 (Monthly Scaling)' tab. Results using annual scaling factors included for reference
E6: Residential | F6: GS < 50 kW | G6: GS > 50 < 1500 | H6: GS > 1500 < 5000 | J6: LU | K6: Street Lighting | L6: Sentinel Lighting | M6: USL | P6: standby
B7: 1 CP
B8: Transformation CP | E8: ='2021 (Monthly Scaling)'!D85 -> 498427.5281 | F8: ='2021 (Monthly Scaling)'!E85 -> 117727.2685 | G8: ='2021 (Monthly Scaling)'!F85 -> 464151.5762 | H8: ='2021 (Monthly Scaling)'!G85 -> 110158.6105 | J8: ='2021 (Monthly Scaling)'!I85 -> 84758.81115 | K8: ='2021 (Monthly Scaling)'!J85 -> 0 | L8: ='2021 (Monthly Scaling)'!K85 -> 0 | M8: ='2021 (Monthly Scaling)'!L85 -> 1382.698588 | P8: ='2021 (Monthly Scaling)'!O85 -> 412.16
B9: Bulk Delivery CP | E9: ='2021 (Monthly Scaling)'!D86 -> 498427.5281 | F9: ='2021 (Monthly Scaling)'!E86 -> 117727.2685 | G9: ='2021 (Monthly Scaling)'!F86 -> 464151.5762 | H9: ='2021 (Monthly Scaling)'!G86 -> 110158.6105 | J9: ='2021 (Monthly Scaling)'!I86 -> 84758.81115 | K9: ='2021 (Monthly Scaling)'!J86 -> 0 | L9: ='2021 (Monthly Scaling)'!K86 -> 0 | M9: ='2021 (Monthly Scaling)'!L86 -> 1382.698588 | P9: ='2021 (Monthly Scaling)'!O86 -> 412.16
B10: Total Sytem CP | E10: ='2021 (Monthly Scaling)'!D87 -> 498427.5281 | F10: ='2021 (Monthly Scaling)'!E87 -> 117727.2685 | G10: ='2021 (Monthly Scaling)'!F87 -> 464151.5762 | H10: ='2021 (Monthly Scaling)'!G87 -> 110158.6105 | J10: ='2021 (Monthly Scaling)'!I87 -> 84758.81115 | K10: ='2021 (Monthly Scaling)'!J87 -> 0 | L10: ='2021 (Monthly Scaling)'!K87 -> 0 | M10: ='2021 (Monthly Scaling)'!L87 -> 1382.698588 | P10: ='2021 (Monthly Scaling)'!O87 -> 412.16
B12: 4 CP
B13: Transformation CP | E13: ='2021 (Monthly Scaling)'!D90 -> 1917196.897 | F13: ='2021 (Monthly Scaling)'!E90 -> 489888.8451 | G13: ='2021 (Monthly Scaling)'!F90 -> 1842289.702 | H13: ='2021 (Monthly Scaling)'!G90 -> 384636.4161 | J13: ='2021 (Monthly Scaling)'!I90 -> 304601.3136 | K13: ='2021 (Monthly Scaling)'!J90 -> 5807.978316 | L13: ='2021 (Monthly Scaling)'!K90 -> 8.005189141 | M13: ='2021 (Monthly Scaling)'!L90 -> 5845.326847 | P13: ='2021 (Monthly Scaling)'!O90 -> 412.16
B14: Bulk Delivery CP | E14: ='2021 (Monthly Scaling)'!D91 -> 1917196.897 | F14: ='2021 (Monthly Scaling)'!E91 -> 489888.8451 | G14: ='2021 (Monthly Scaling)'!F91 -> 1842289.702 | H14: ='2021 (Monthly Scaling)'!G91 -> 384636.4161 | J14: ='2021 (Monthly Scaling)'!I91 -> 304601.3136 | K14: ='2021 (Monthly Scaling)'!J91 -> 5807.978316 | L14: ='2021 (Monthly Scaling)'!K91 -> 8.005189141 | M14: ='2021 (Monthly Scaling)'!L91 -> 5845.326847 | P14: ='2021 (Monthly Scaling)'!O91 -> 412.16
B15: Total Sytem CP | E15: ='2021 (Monthly Scaling)'!D92 -> 1917196.897 | F15: ='2021 (Monthly Scaling)'!E92 -> 489888.8451 | G15: ='2021 (Monthly Scaling)'!F92 -> 1842289.702 | H15: ='2021 (Monthly Scaling)'!G92 -> 384636.4161 | J15: ='2021 (Monthly Scaling)'!I92 -> 304601.3136 | K15: ='2021 (Monthly Scaling)'!J92 -> 5807.978316 | L15: ='2021 (Monthly Scaling)'!K92 -> 8.005189141 | M15: ='2021 (Monthly Scaling)'!L92 -> 5845.326847 | P15: ='2021 (Monthly Scaling)'!O92 -> 412.16
B17: 12 CP
B18: Transformation CP | E18: ='2021 (Monthly Scaling)'!D95 -> 4905357.122 | F18: ='2021 (Monthly Scaling)'!E95 -> 1316880.87 | G18: ='2021 (Monthly Scaling)'!F95 -> 5119658.944 | H18: ='2021 (Monthly Scaling)'!G95 -> 1090578.128 | J18: ='2021 (Monthly Scaling)'!I95 -> 884826.9452 | K18: ='2021 (Monthly Scaling)'!J95 -> 31331.10085 | L18: ='2021 (Monthly Scaling)'!K95 -> 52.51056614 | M18: ='2021 (Monthly Scaling)'!L95 -> 18342.25477 | P18: ='2021 (Monthly Scaling)'!O95 -> 641.92
B19: Bulk Delivery CP | E19: ='2021 (Monthly Scaling)'!D96 -> 4905357.122 | F19: ='2021 (Monthly Scaling)'!E96 -> 1316880.87 | G19: ='2021 (Monthly Scaling)'!F96 -> 5119658.944 | H19: ='2021 (Monthly Scaling)'!G96 -> 1090578.128 | J19: ='2021 (Monthly Scaling)'!I96 -> 884826.9452 | K19: ='2021 (Monthly Scaling)'!J96 -> 31331.10085 | L19: ='2021 (Monthly Scaling)'!K96 -> 52.51056614 | M19: ='2021 (Monthly Scaling)'!L96 -> 18342.25477 | P19: ='2021 (Monthly Scaling)'!O96 -> 641.92
B20: Total Sytem CP | E20: ='2021 (Monthly Scaling)'!D97 -> 4905357.122 | F20: ='2021 (Monthly Scaling)'!E97 -> 1316880.87 | G20: ='2021 (Monthly Scaling)'!F97 -> 5119658.944 | H20: ='2021 (Monthly Scaling)'!G97 -> 1090578.128 | J20: ='2021 (Monthly Scaling)'!I97 -> 884826.9452 | K20: ='2021 (Monthly Scaling)'!J97 -> 31331.10085 | L20: ='2021 (Monthly Scaling)'!K97 -> 52.51056614 | M20: ='2021 (Monthly Scaling)'!L97 -> 18342.25477 | P20: ='2021 (Monthly Scaling)'!O97 -> 641.92
B23: 1NCP
B24: Classification NCP from Load Data Provider | E24: ='2021 (Monthly Scaling)'!D101 -> 575660.2603 | F24: ='2021 (Monthly Scaling)'!E101 -> 145496.2031 | G24: ='2021 (Monthly Scaling)'!F101 -> 498153.4509 | H24: ='2021 (Monthly Scaling)'!G101 -> 125654.3803 | J24: ='2021 (Monthly Scaling)'!I101 -> 95229.08061 | K24: ='2021 (Monthly Scaling)'!J101 -> 6443.865297 | L24: ='2021 (Monthly Scaling)'!K101 -> 15.09041083 | M24: ='2021 (Monthly Scaling)'!L101 -> 1896.188748 | P24: ='2021 (Monthly Scaling)'!O101 -> 1152
B25: Primary NCP | E25: ='2021 (Monthly Scaling)'!D102 -> 575660.2603 | F25: ='2021 (Monthly Scaling)'!E102 -> 145496.2031 | G25: ='2021 (Monthly Scaling)'!F102 -> 498153.4509 | H25: ='2021 (Monthly Scaling)'!G102 -> 125654.3803 | J25: ='2021 (Monthly Scaling)'!I102 -> 95229.08061 | K25: ='2021 (Monthly Scaling)'!J102 -> 6443.865297 | L25: ='2021 (Monthly Scaling)'!K102 -> 15.09041083 | M25: ='2021 (Monthly Scaling)'!L102 -> 1896.188748 | P25: ='2021 (Monthly Scaling)'!O102 -> 1152
B26: Line Transformer NCP | E26: ='2021 (Monthly Scaling)'!D103 -> 575660.2603 | F26: ='2021 (Monthly Scaling)'!E103 -> 145496.2031 | G26: ='2021 (Monthly Scaling)'!F103 -> 433393.2663 | H26: ='2021 (Monthly Scaling)'!G103 -> 55287.36542 | J26: ='2021 (Monthly Scaling)'!I103 -> 44757.20417 | K26: ='2021 (Monthly Scaling)'!J103 -> 6443.865297 | L26: ='2021 (Monthly Scaling)'!K103 -> 15.09041083 | M26: ='2021 (Monthly Scaling)'!L103 -> 1896.188748 | P26: ='2021 (Monthly Scaling)'!O103 -> 0
B27: Secondary NCP | E27: ='2021 (Monthly Scaling)'!D104 -> 575660.2603 | F27: ='2021 (Monthly Scaling)'!E104 -> 145496.2031 | G27: ='2021 (Monthly Scaling)'!F104 -> 249077.7087 | H27: ='2021 (Monthly Scaling)'!G104 -> 0 | J27: ='2021 (Monthly Scaling)'!I104 -> 0 | K27: ='2021 (Monthly Scaling)'!J104 -> 6443.865297 | L27: ='2021 (Monthly Scaling)'!K104 -> 15.09041083 | M27: ='2021 (Monthly Scaling)'!L104 -> 1896.188748 | P27: ='2021 (Monthly Scaling)'!O104 -> 0
E28: ='2021 (Monthly Scaling)'!D105 -> 0 | F28: ='2021 (Monthly Scaling)'!E105 -> 0 | G28: ='2021 (Monthly Scaling)'!F105 -> 0 | H28: ='2021 (Monthly Scaling)'!G105 -> 0 | J28: ='2021 (Monthly Scaling)'!I105 -> 0 | K28: ='2021 (Monthly Scaling)'!J105 -> 0 | L28: ='2021 (Monthly Scaling)'!K105 -> 0 | M28: ='2021 (Monthly Scaling)'!L105 -> 0 | P28: ='2021 (Monthly Scaling)'!O105 -> 0
B29: 4 NCP | E29: ='2021 (Monthly Scaling)'!D106 -> 0 | F29: ='2021 (Monthly Scaling)'!E106 -> 0 | G29: ='2021 (Monthly Scaling)'!F106 -> 0 | H29: ='2021 (Monthly Scaling)'!G106 -> 0 | J29: ='2021 (Monthly Scaling)'!I106 -> 0 | K29: ='2021 (Monthly Scaling)'!J106 -> 0 | L29: ='2021 (Monthly Scaling)'!K106 -> 0 | M29: ='2021 (Monthly Scaling)'!L106 -> 0 | P29: ='2021 (Monthly Scaling)'!O106 -> 0
B30: Classification NCP from Load Data Provider | E30: ='2021 (Monthly Scaling)'!D107 -> 2133287.038 | F30: ='2021 (Monthly Scaling)'!E107 -> 561643.6751 | G30: ='2021 (Monthly Scaling)'!F107 -> 1967131.341 | H30: ='2021 (Monthly Scaling)'!G107 -> 486541.2626 | J30: ='2021 (Monthly Scaling)'!I107 -> 374663.7536 | K30: ='2021 (Monthly Scaling)'!J107 -> 23997.89741 | L30: ='2021 (Monthly Scaling)'!K107 -> 58.18901517 | M30: ='2021 (Monthly Scaling)'!L107 -> 7491.830214 | P30: ='2021 (Monthly Scaling)'!O107 -> 3835.84
B31: Primary NCP | E31: ='2021 (Monthly Scaling)'!D108 -> 2133287.038 | F31: ='2021 (Monthly Scaling)'!E108 -> 561643.6751 | G31: ='2021 (Monthly Scaling)'!F108 -> 1967131.341 | H31: ='2021 (Monthly Scaling)'!G108 -> 486541.2626 | J31: ='2021 (Monthly Scaling)'!I108 -> 374663.7536 | K31: ='2021 (Monthly Scaling)'!J108 -> 23997.89741 | L31: ='2021 (Monthly Scaling)'!K108 -> 58.18901517 | M31: ='2021 (Monthly Scaling)'!L108 -> 7491.830214 | P31: ='2021 (Monthly Scaling)'!O108 -> 3835.84
B32: Line Transformer NCP | E32: ='2021 (Monthly Scaling)'!D109 -> 2133287.038 | F32: ='2021 (Monthly Scaling)'!E109 -> 561643.6751 | G32: ='2021 (Monthly Scaling)'!F109 -> 1711403.335 | H32: ='2021 (Monthly Scaling)'!G109 -> 214078.0071 | J32: ='2021 (Monthly Scaling)'!I109 -> 176092.4108 | K32: ='2021 (Monthly Scaling)'!J109 -> 23997.89741 | L32: ='2021 (Monthly Scaling)'!K109 -> 58.18901517 | M32: ='2021 (Monthly Scaling)'!L109 -> 7491.830214 | P32: ='2021 (Monthly Scaling)'!O109 -> 0
B33: Secondary NCP | E33: ='2021 (Monthly Scaling)'!D110 -> 2133287.038 | F33: ='2021 (Monthly Scaling)'!E110 -> 561643.6751 | G33: ='2021 (Monthly Scaling)'!F110 -> 983566.1703 | H33: ='2021 (Monthly Scaling)'!G110 -> 0 | J33: ='2021 (Monthly Scaling)'!I110 -> 0 | K33: ='2021 (Monthly Scaling)'!J110 -> 23997.89741 | L33: ='2021 (Monthly Scaling)'!K110 -> 58.18901517 | M33: ='2021 (Monthly Scaling)'!L110 -> 7491.830214 | P33: ='2021 (Monthly Scaling)'!O110 -> 0
E34: ='2021 (Monthly Scaling)'!D111 -> 0 | F34: ='2021 (Monthly Scaling)'!E111 -> 0 | G34: ='2021 (Monthly Scaling)'!F111 -> 0 | H34: ='2021 (Monthly Scaling)'!G111 -> 0 | J34: ='2021 (Monthly Scaling)'!I111 -> 0 | K34: ='2021 (Monthly Scaling)'!J111 -> 0 | L34: ='2021 (Monthly Scaling)'!K111 -> 0 | M34: ='2021 (Monthly Scaling)'!L111 -> 0 | P34: ='2021 (Monthly Scaling)'!O111 -> 0
B35: 12 NCP | E35: ='2021 (Monthly Scaling)'!D112 -> 0 | F35: ='2021 (Monthly Scaling)'!E112 -> 0 | G35: ='2021 (Monthly Scaling)'!F112 -> 0 | H35: ='2021 (Monthly Scaling)'!G112 -> 0 | J35: ='2021 (Monthly Scaling)'!I112 -> 0 | K35: ='2021 (Monthly Scaling)'!J112 -> 0 | L35: ='2021 (Monthly Scaling)'!K112 -> 0 | M35: ='2021 (Monthly Scaling)'!L112 -> 0 | P35: ='2021 (Monthly Scaling)'!O112 -> 0
B36: Classification NCP from Load Data Provider | E36: ='2021 (Monthly Scaling)'!D113 -> 5508979.449 | F36: ='2021 (Monthly Scaling)'!E113 -> 1531293.405 | G36: ='2021 (Monthly Scaling)'!F113 -> 5508528.842 | H36: ='2021 (Monthly Scaling)'!G113 -> 1295931.68 | J36: ='2021 (Monthly Scaling)'!I113 -> 1012783.152 | K36: ='2021 (Monthly Scaling)'!J113 -> 62127.99518 | L36: ='2021 (Monthly Scaling)'!K113 -> 142.1980863 | M36: ='2021 (Monthly Scaling)'!L113 -> 21161.41895 | P36: ='2021 (Monthly Scaling)'!O113 -> 7656.96
B37: Primary NCP | E37: ='2021 (Monthly Scaling)'!D114 -> 5508979.449 | F37: ='2021 (Monthly Scaling)'!E114 -> 1531293.405 | G37: ='2021 (Monthly Scaling)'!F114 -> 5508528.842 | H37: ='2021 (Monthly Scaling)'!G114 -> 1295931.68 | J37: ='2021 (Monthly Scaling)'!I114 -> 1012783.152 | K37: ='2021 (Monthly Scaling)'!J114 -> 62127.99518 | L37: ='2021 (Monthly Scaling)'!K114 -> 142.1980863 | M37: ='2021 (Monthly Scaling)'!L114 -> 21161.41895 | P37: ='2021 (Monthly Scaling)'!O114 -> 7656.96
B38: Line Transformer NCP | E38: ='2021 (Monthly Scaling)'!D115 -> 5508979.449 | F38: ='2021 (Monthly Scaling)'!E115 -> 1531293.405 | G38: ='2021 (Monthly Scaling)'!F115 -> 4792420.502 | H38: ='2021 (Monthly Scaling)'!G115 -> 570209.9391 | J38: ='2021 (Monthly Scaling)'!I115 -> 476008.1188 | K38: ='2021 (Monthly Scaling)'!J115 -> 62127.99518 | L38: ='2021 (Monthly Scaling)'!K115 -> 142.1980863 | M38: ='2021 (Monthly Scaling)'!L115 -> 21161.41895 | P38: ='2021 (Monthly Scaling)'!O115 -> 0
B39: Secondary NCP | E39: ='2021 (Monthly Scaling)'!D116 -> 5508979.449 | F39: ='2021 (Monthly Scaling)'!E116 -> 1531293.405 | G39: ='2021 (Monthly Scaling)'!F116 -> 2754264.92 | H39: ='2021 (Monthly Scaling)'!G116 -> 0 | J39: ='2021 (Monthly Scaling)'!I116 -> 0 | K39: ='2021 (Monthly Scaling)'!J116 -> 62127.99518 | L39: ='2021 (Monthly Scaling)'!K116 -> 142.1980863 | M39: ='2021 (Monthly Scaling)'!L116 -> 21161.41895 | P39: ='2021 (Monthly Scaling)'!O116 -> 0

Sheet Hourly load shapes by class
A1: ALL UNITS IN GWh | F1: EB-2015-0004 Load data | V1: Historic Scaled to Forecast | Y1: 2021 (Annual Scaling) | AG1: Historic Scaled to Forecast | AJ1: 2021 (Monthly Scaling)
A2: Year | B2: Month | C2: Day | D2: Hour (EST) | F2: Year | G2: Month | H2: Day | I2: Hour (EST) | J2: Residential | K2: GS > 50 < 1500 | L2: Street Lighting | M2: GS < 50 kW | N2: GS > 1500 < 5000 | O2: LU | P2: Sentinel Lighting | Q2: USL | R2: standby | S2: TOTAL LDC sales | V2: Residential | W2: GS < 50 kW | X2: GS > 50 < 1500 | Y2: GS > 1500 < 5000 | Z2: LU | AA2: Street Lighting | AB2: Sentinel Lighting | AC2: USL | AD2: standby | AE2: TOTAL LDC sales | AG2: Residential | AH2: GS > 50 < 1500 | AI2: Street Lighting | AJ2: GS < 50 kW | AK2: GS > 1500 < 5000 | AL2: LU | AM2: Sentinel Lighting | AN2: USL | AO2: standby | AP2: TOTAL LDC sales | AS2: Residential | AT2: GS > 50 < 1500 | AU2: Street Lighting | AV2: GS < 50 kW | AW2: GS > 1500 < 5000 | AX2: LU | AY2: Sentinel Lighting | AZ2: USL | BA2: standby
A3: 2006 | B3: 1 | C3: 1 | D3: 1 | F3: 2013 | G3: 1 | H3: 1 | I3: 1 | J3: 0.2488666008 | K3: 0.3390469415 | L3: 0.008418087479 | M3: 0.1122816024 | N3: 0.080095 | O3: 0.061427 | P3: 1.713756668e-05 | Q3: 0.002178785549 | R3: 0 | S3: 0.8523311552 | V3: =$J3*$AS$6 -> 0.2356155687 | W3: =$M3*$AV$6 -> 0.09834316291 | X3: =$K3*$AT$6 -> 0.2999344415 | Y3: =$N3*$AW$6 -> 0.06313062305 | Z3: =$O3*$AX$6 -> 0.05662566488 | AA3: =$L3*$AU$6 -> 0.004707927806 | AB3: =$P3*$AY$6 -> 8.576988365e-06 | AC3: =$Q3*$AZ$6 -> 0.0015925556 | AD3: =$R3*$BA$6 -> 0 | AE3: =SUM(V3:AD3) -> 0.7599585214 | AG3: =J3*VLOOKUP($B3,$AR$36:$AZ$47,MATCH(AG$2,$AS$2:$BA$2,0)+1,FALSE) -> 0.2387744467 | AH3: =K3*VLOOKUP($B3,$AR$36:$AZ$47,MATCH(AH$2,$AS$2:$BA$2,0)+1,FALSE) -> 0.2864755077 | AI3: =L3*VLOOKUP($B3,$AR$36:$AZ$47,MATCH(AI$2,$AS$2:$BA$2,0)+1,FALSE) -> 0.00622283391 | AJ3: =M3*VLOOKUP($B3,$AR$36:$AZ$47,MATCH(AJ$2,$AS$2:$BA$2,0)+1,FALSE) -> 0.09652166228 | AK3: =N3*VLOOKUP($B3,$AR$36:$AZ$47,MATCH(AK$2,$AS$2:$BA$2,0)+1,FALSE) -> 0.06264535365 | AL3: =O3*VLOOKUP($B3,$AR$36:$AZ$47,MATCH(AL$2,$AS$2:$BA$2,0)+1,FALSE) -> 0.05443796532 | AM3: =P3*VLOOKUP($B3,$AR$36:$AZ$47,MATCH(AM$2,$AS$2:$BA$2,0)+1,FALSE) -> 8.576988365e-06 | AN3: =Q3*VLOOKUP($B3,$AR$36:$AZ$47,MATCH(AN$2,$AS$2:$BA$2,0)+1,FALSE) -> 0.001665079838 | AO3: =R3*VLOOKUP($B3,$AR$36:$BA$47,MATCH(AO$2,$AS$2:$BA$2,0)+1,FALSE) -> 0 | AP3: =SUM(AG3:AO3) -> 0.7467514264 | AR3: Historic kwh | AS3: =SUM(J3:J8762)*1000000 -> 2379642296 | AT3: 3185145846 | AU3: 39528783.69 | AV3: 799065588.2 | AW3: 866432084.2 | AX3: 622986675 | AY3: 93910.07654 | AZ3: 18608983.59 | BA3: 423090.24
A4: 2006 | B4: 1 | C4: 1 | D4: 2 | F4: 2013 | G4: 1 | H4: 1 | I4: 2 | J4: 0.2313166649 | K4: 0.3295062045 | L4: 0.008418087479 | M4: 0.1040851409 | N4: 0.0802514 | O4: 0.061637 | P4: 1.713756668e-05 | Q4: 0.002178785549 | R4: 0 | S4: 0.8174104208 | V4: 0.2190000883 | W4: 0.09116419565 | X4: 0.2914943251 | Y4: 0.06325389703 | Z4: 0.05681925059 | AA4: 0.004707927806 | AB4: 8.576988365e-06 | AC4: 0.0015925556 | AD4: =$R4*$BA$6 -> 0 | AE4: 0.7280408171 | AG4: =J4*VLOOKUP($B4,$AR$36:$AZ$47,MATCH(AG$2,$AS$2:$BA$2,0)+1,FALSE) -> 0.2219362039 | AH4: =K4*VLOOKUP($B4,$AR$36:$AZ$47,MATCH(AH$2,$AS$2:$BA$2,0)+1,FALSE) -> 0.278414124 | AI4: =L4*VLOOKUP($B4,$AR$36:$AZ$47,MATCH(AI$2,$AS$2:$BA$2,0)+1,FALSE) -> 0.00622283391 | AJ4: =M4*VLOOKUP($B4,$AR$36:$AZ$47,MATCH(AJ$2,$AS$2:$BA$2,0)+1,FALSE) -> 0.08947566301 | AK4: =N4*VLOOKUP($B4,$AR$36:$AZ$47,MATCH(AK$2,$AS$2:$BA$2,0)+1,FALSE) -> 0.06276768005 | AL4: =O4*VLOOKUP($B4,$AR$36:$AZ$47,MATCH(AL$2,$AS$2:$BA$2,0)+1,FALSE) -> 0.05462407196 | AM4: =P4*VLOOKUP($B4,$AR$36:$AZ$47,MATCH(AM$2,$AS$2:$BA$2,0)+1,FALSE) -> 8.576988365e-06 | AN4: =Q4*VLOOKUP($B4,$AR$36:$AZ$47,MATCH(AN$2,$AS$2:$BA$2,0)+1,FALSE) -> 0.001665079838 | AO4: =R4*VLOOKUP($B4,$AR$36:$BA$47,MATCH(AO$2,$AS$2:$BA$2,0)+1,FALSE) -> 0 | AP4: =SUM(AG4:AO4) -> 0.7151142337
A5: 2006 | B5: 1 | C5: 1 | D5: 3 | F5: 2013 | G5: 1 | H5: 1 | I5: 3 | J5: 0.2157142412 | K5: 0.3261457456 | L5: 0.008418087479 | M5: 0.1032234691 | N5: 0.0802889 | O5: 0.061638 | P5: 1.713756668e-05 | Q5: 0.002178785549 | R5: 0 | S5: 0.7976243665 | V5: 0.2042284239 | W5: 0.0904094903 | X5: 0.2885215292 | Y5: 0.06328345441 | Z5: 0.05682017243 | AA5: 0.004707927806 | AB5: 8.576988365e-06 | AC5: 0.0015925556 | AD5: 0 | AE5: 0.7095721306 | AG5: =J5*VLOOKUP($B5,$AR$36:$AZ$47,MATCH(AG$2,$AS$2:$BA$2,0)+1,FALSE) -> 0.2069664971 | AH5: =K5*VLOOKUP($B5,$AR$36:$AZ$47,MATCH(AH$2,$AS$2:$BA$2,0)+1,FALSE) -> 0.2755747261 | AI5: =L5*VLOOKUP($B5,$AR$36:$AZ$47,MATCH(AI$2,$AS$2:$BA$2,0)+1,FALSE) -> 0.00622283391 | AJ5: =M5*VLOOKUP($B5,$AR$36:$AZ$47,MATCH(AJ$2,$AS$2:$BA$2,0)+1,FALSE) -> 0.08873493622 | AK5: =N5*VLOOKUP($B5,$AR$36:$AZ$47,MATCH(AK$2,$AS$2:$BA$2,0)+1,FALSE) -> 0.06279701023 | AL5: =O5*VLOOKUP($B5,$AR$36:$AZ$47,MATCH(AL$2,$AS$2:$BA$2,0)+1,FALSE) -> 0.05462495819 | AM5: =P5*VLOOKUP($B5,$AR$36:$AZ$47,MATCH(AM$2,$AS$2:$BA$2,0)+1,FALSE) -> 8.576988365e-06 | AN5: =Q5*VLOOKUP($B5,$AR$36:$AZ$47,MATCH(AN$2,$AS$2:$BA$2,0)+1,FALSE) -> 0.001665079838 | AO5: =R5*VLOOKUP($B5,$AR$36:$BA$47,MATCH(AO$2,$AS$2:$BA$2,0)+1,FALSE) -> 0 | AP5: =SUM(AG5:AO5) -> 0.6965946186 | AR5: 2021 Forecast | AS5: 2252937000 | AT5: 2817707000 | AU5: 22107000 | AV5: 699871000 | AW5: 682919000 | AX5: 574292000 | AY5: 47000 | AZ5: 13602000 | BC5: =SUM(AS5:AZ5) -> 7063482000
A6: 2006 | B6: 1 | C6: 1 | D6: 4 | F6: 2013 | G6: 1 | H6: 1 | I6: 4 | J6: 0.214583 | K6: 0.3245537337 | L6: 0.008418087479 | M6: 0.1010575191 | N6: 0.0818001 | O6: 0.061535 | P6: 1.713756668e-05 | Q6: 0.002178785549 | R6: 0 | S6: 0.7941433634 | V6: 0.2031574162 | W6: 0.08851241751 | X6: 0.287113172 | Y6: 0.06447457742 | Z6: 0.05672522325 | AA6: 0.004707927806 | AB6: 8.576988365e-06 | AC6: 0.0015925556 | AD6: 0 | AE6: 0.7062918668 | AG6: =J6*VLOOKUP($B6,$AR$36:$AZ$47,MATCH(AG$2,$AS$2:$BA$2,0)+1,FALSE) -> 0.2058811305 | AH6: =K6*VLOOKUP($B6,$AR$36:$AZ$47,MATCH(AH$2,$AS$2:$BA$2,0)+1,FALSE) -> 0.274229566 | AI6: =L6*VLOOKUP($B6,$AR$36:$AZ$47,MATCH(AI$2,$AS$2:$BA$2,0)+1,FALSE) -> 0.00622283391 | AJ6: =M6*VLOOKUP($B6,$AR$36:$AZ$47,MATCH(AJ$2,$AS$2:$BA$2,0)+1,FALSE) -> 0.0868730008 | AK6: =N6*VLOOKUP($B6,$AR$36:$AZ$47,MATCH(AK$2,$AS$2:$BA$2,0)+1,FALSE) -> 0.06397897737 | AL6: =O6*VLOOKUP($B6,$AR$36:$AZ$47,MATCH(AL$2,$AS$2:$BA$2,0)+1,FALSE) -> 0.05453367731 | AM6: =P6*VLOOKUP($B6,$AR$36:$AZ$47,MATCH(AM$2,$AS$2:$BA$2,0)+1,FALSE) -> 8.576988365e-06 | AN6: =Q6*VLOOKUP($B6,$AR$36:$AZ$47,MATCH(AN$2,$AS$2:$BA$2,0)+1,FALSE) -> 0.001665079838 | AO6: =R6*VLOOKUP($B6,$AR$36:$BA$47,MATCH(AO$2,$AS$2:$BA$2,0)+1,FALSE) -> 0 | AP6: 0.6933928427 | AR6: Factor | AS6: =AS$5/AS$3 -> 0.9467544779 | AT6: 0.8846398677 | AU6: 0.5592633502 | AV6: 0.8758617694 | AW6: 0.7881968044 | AX6: 0.9218367311 | AY6: 0.5004787743 | AZ6: 0.730937288 | BA6: 1
A7: 2006 | B7: 1 | C7: 1 | D7: 5 | F7: 2013 | G7: 1 | H7: 1 | I7: 5 | J7: 0.2172206303 | K7: 0.3236735785 | L7: 0.008418087479 | M7: 0.09779924387 | N7: 0.083517 | O7: 0.061775 | P7: 1.713756668e-05 | Q7: 0.002178785549 | R7: 0 | S7: 0.7945994633 | V7: 0.2056546044 | W7: 0.08565861879 | X7: 0.2863345517 | Y7: 0.06582783251 | Z7: 0.05694646406 | AA7: 0.004707927806 | AB7: 8.576988365e-06 | AC7: 0.0015925556 | AD7: 0 | AE7: 0.7067311319 | AG7: =J7*VLOOKUP($B7,$AR$36:$AZ$47,MATCH(AG$2,$AS$2:$BA$2,0)+1,FALSE) -> 0.2084117983 | AH7: =K7*VLOOKUP($B7,$AR$36:$AZ$47,MATCH(AH$2,$AS$2:$BA$2,0)+1,FALSE) -> 0.2734858846 | AI7: =L7*VLOOKUP($B7,$AR$36:$AZ$47,MATCH(AI$2,$AS$2:$BA$2,0)+1,FALSE) -> 0.00622283391 | AJ7: =M7*VLOOKUP($B7,$AR$36:$AZ$47,MATCH(AJ$2,$AS$2:$BA$2,0)+1,FALSE) -> 0.0840720598 | AK7: =N7*VLOOKUP($B7,$AR$36:$AZ$47,MATCH(AK$2,$AS$2:$BA$2,0)+1,FALSE) -> 0.06532183033 | AL7: =O7*VLOOKUP($B7,$AR$36:$AZ$47,MATCH(AL$2,$AS$2:$BA$2,0)+1,FALSE) -> 0.05474637062 | AM7: =P7*VLOOKUP($B7,$AR$36:$AZ$47,MATCH(AM$2,$AS$2:$BA$2,0)+1,FALSE) -> 8.576988365e-06 | AN7: =Q7*VLOOKUP($B7,$AR$36:$AZ$47,MATCH(AN$2,$AS$2:$BA$2,0)+1,FALSE) -> 0.001665079838 | AO7: =R7*VLOOKUP($B7,$AR$36:$BA$47,MATCH(AO$2,$AS$2:$BA$2,0)+1,FALSE) -> 0 | AP7: 0.6939344344
A8: 2006 | B8: 1 | C8: 1 | D8: 6 | F8: 2013 | G8: 1 | H8: 1 | I8: 6 | J8: 0.2218855971 | K8: 0.3311408142 | L8: 0.008418087479 | M8: 0.09855675327 | N8: 0.0845369 | O8: 0.062955 | P8: 1.713756668e-05 | Q8: 0.002178785549 | R8: 0 | S8: 0.8096890751 | V8: 0.2100711826 | W8: 0.08632209231 | X8: 0.292940366 | Y8: 0.06663171443 | Z8: 0.05803423141 | AA8: 0.004707927806 | AB8: 8.576988365e-06 | AC8: 0.0015925556 | AD8: 0 | AE8: 0.7203086472 | AG8: =J8*VLOOKUP($B8,$AR$36:$AZ$47,MATCH(AG$2,$AS$2:$BA$2,0)+1,FALSE) -> 0.2128875892 | AH8: =K8*VLOOKUP($B8,$AR$36:$AZ$47,MATCH(AH$2,$AS$2:$BA$2,0)+1,FALSE) -> 0.2797952768 | AI8: =L8*VLOOKUP($B8,$AR$36:$AZ$47,MATCH(AI$2,$AS$2:$BA$2,0)+1,FALSE) -> 0.00622283391 | AJ8: =M8*VLOOKUP($B8,$AR$36:$AZ$47,MATCH(AJ$2,$AS$2:$BA$2,0)+1,FALSE) -> 0.08472324455 | AK8: =N8*VLOOKUP($B8,$AR$36:$AZ$47,MATCH(AK$2,$AS$2:$BA$2,0)+1,FALSE) -> 0.06611953301 | AL8: =O8*VLOOKUP($B8,$AR$36:$AZ$47,MATCH(AL$2,$AS$2:$BA$2,0)+1,FALSE) -> 0.0557921127 | AM8: =P8*VLOOKUP($B8,$AR$36:$AZ$47,MATCH(AM$2,$AS$2:$BA$2,0)+1,FALSE) -> 8.576988365e-06 | AN8: =Q8*VLOOKUP($B8,$AR$36:$AZ$47,MATCH(AN$2,$AS$2:$BA$2,0)+1,FALSE) -> 0.001665079838 | AO8: =R8*VLOOKUP($B8,$AR$36:$BA$47,MATCH(AO$2,$AS$2:$BA$2,0)+1,FALSE) -> 0 | AP8: 0.707214247
A9: 2006 | B9: 1 | C9: 1 | D9: 7 | F9: 2013 | G9: 1 | H9: 1 | I9: 7 | J9: 0.2380743373 | K9: 0.341718023 | L9: 0.008418087479 | M9: 0.09750465862 | N9: 0.0900845 | O9: 0.066627 | P9: 1.713756668e-05 | Q9: 0.002178785549 | R9: 0 | S9: 0.8446225295 | V9: 0.2253979449 | W9: 0.08540060283 | X9: 0.3022973867 | Y9: 0.07100431503 | Z9: 0.06141921588 | AA9: 0.004707927806 | AB9: 8.576988365e-06 | AC9: 0.0015925556 | AD9: 0 | AE9: 0.7518285257 | AG9: =J9*VLOOKUP($B9,$AR$36:$AZ$47,MATCH(AG$2,$AS$2:$BA$2,0)+1,FALSE) -> 0.2284198361 | AH9: =K9*VLOOKUP($B9,$AR$36:$AZ$47,MATCH(AH$2,$AS$2:$BA$2,0)+1,FALSE) -> 0.2887324206 | AI9: =L9*VLOOKUP($B9,$AR$36:$AZ$47,MATCH(AI$2,$AS$2:$BA$2,0)+1,FALSE) -> 0.00622283391 | AJ9: =M9*VLOOKUP($B9,$AR$36:$AZ$47,MATCH(AJ$2,$AS$2:$BA$2,0)+1,FALSE) -> 0.08381882278 | AK9: =N9*VLOOKUP($B9,$AR$36:$AZ$47,MATCH(AK$2,$AS$2:$BA$2,0)+1,FALSE) -> 0.07045852251 | AL9: =O9*VLOOKUP($B9,$AR$36:$AZ$47,MATCH(AL$2,$AS$2:$BA$2,0)+1,FALSE) -> 0.05904632028 | AM9: =P9*VLOOKUP($B9,$AR$36:$AZ$47,MATCH(AM$2,$AS$2:$BA$2,0)+1,FALSE) -> 8.576988365e-06 | AN9: =Q9*VLOOKUP($B9,$AR$36:$AZ$47,MATCH(AN$2,$AS$2:$BA$2,0)+1,FALSE) -> 0.001665079838 | AO9: =R9*VLOOKUP($B9,$AR$36:$BA$47,MATCH(AO$2,$AS$2:$BA$2,0)+1,FALSE) -> 0 | AP9: 0.738372413
A10: 2006 | B10: 1 | C10: 1 | D10: 8 | F10: 2013 | G10: 1 | H10: 1 | I10: 8 | J10: 0.2705912037 | K10: 0.3512248262 | L10: 0.005331455403 | M10: 0.0946107547 | N10: 0.0919607 | O10: 0.068381 | P10: 1.085379223e-05 | Q10: 0.002056339251 | R10: 0 | S10: 0.884167133 | V10: 0.2561834338 | W10: 0.08286594302 | X10: 0.3107074838 | Y10: 0.07248312987 | Z10: 0.06303611751 | AA10: 0.00298168761 | AB10: 5.432092631e-06 | AC10: 0.001503055035 | AD10: 0 | AE10: 0.7897662827 | AG10: =J10*VLOOKUP($B10,$AR$36:$AZ$47,MATCH(AG$2,$AS$2:$BA$2,0)+1,FALSE) -> 0.2596180634 | AH10: =K10*VLOOKUP($B10,$AR$36:$AZ$47,MATCH(AH$2,$AS$2:$BA$2,0)+1,FALSE) -> 0.2967651322 | AI10: =L10*VLOOKUP($B10,$AR$36:$AZ$47,MATCH(AI$2,$AS$2:$BA$2,0)+1,FALSE) -> 0.003941128143 | AJ10: =M10*VLOOKUP($B10,$AR$36:$AZ$47,MATCH(AJ$2,$AS$2:$BA$2,0)+1,FALSE) -> 0.08133110965 | AK10: =N10*VLOOKUP($B10,$AR$36:$AZ$47,MATCH(AK$2,$AS$2:$BA$2,0)+1,FALSE) -> 0.07192597007 | AL10: =O10*VLOOKUP($B10,$AR$36:$AZ$47,MATCH(AL$2,$AS$2:$BA$2,0)+1,FALSE) -> 0.06060075385 | AM10: =P10*VLOOKUP($B10,$AR$36:$AZ$47,MATCH(AM$2,$AS$2:$BA$2,0)+1,FALSE) -> 5.432092631e-06 | AN10: =Q10*VLOOKUP($B10,$AR$36:$AZ$47,MATCH(AN$2,$AS$2:$BA$2,0)+1,FALSE) -> 0.001571503459 | AO10: =R10*VLOOKUP($B10,$AR$36:$BA$47,MATCH(AO$2,$AS$2:$BA$2,0)+1,FALSE) -> 0 | AP10: 0.7757590928 | AR10: 1 | AS10: =SUMIF($B:$B,$AR10,J:J)*1000000 -> 231420678.9 | AT10: =SUMIF($B:$B,$AR10,K:K)*1000000 -> 312541609.7 | AU10: =SUMIF($B:$B,$AR10,L:L)*1000000 -> 3841877.959 | AV10: =SUMIF($B:$B,$AR10,M:M)*1000000 -> 78437562.15 | AW10: =SUMIF($B:$B,$AR10,N:N)*1000000 -> 74683738.9 | AX10: =SUMIF($B:$B,$AR10,O:O)*1000000 -> 54020318 | AY10: =SUMIF($B:$B,$AR10,P:P)*1000000 -> 7893.908905 | AZ10: =SUMIF($B:$B,$AR10,Q:Q)*1000000 -> 1536199.151 | BA10: =SUMIF($B:$B,$AR10,R:R)*1000000 -> 7559.36
A11: 2006 | B11: 1 | C11: 1 | D11: 9 | F11: 2013 | G11: 1 | H11: 1 | I11: 9 | J11: 0.3017204051 | K11: 0.363610537 | L11: 0 | M11: 0.09822114355 | N11: 0.0916444 | O11: 0.067813 | P11: 0 | Q11: 0.0018448411 | R11: 0 | S11: 0.9248543268 | V11: 0.2856551446 | W11: 0.08602814459 | X11: 0.3216643774 | Y11: 0.07223382322 | Z11: 0.06251251425 | AA11: 0 | AB11: 0 | AC11: 0.00134846315 | AD11: 0 | AE11: 0.8294424672 | AG11: =J11*VLOOKUP($B11,$AR$36:$AZ$47,MATCH(AG$2,$AS$2:$BA$2,0)+1,FALSE) -> 0.289484899 | AH11: =K11*VLOOKUP($B11,$AR$36:$AZ$47,MATCH(AH$2,$AS$2:$BA$2,0)+1,FALSE) -> 0.307230358 | AI11: =L11*VLOOKUP($B11,$AR$36:$AZ$47,MATCH(AI$2,$AS$2:$BA$2,0)+1,FALSE) -> 0 | AJ11: =M11*VLOOKUP($B11,$AR$36:$AZ$47,MATCH(AJ$2,$AS$2:$BA$2,0)+1,FALSE) -> 0.08443474129 | AK11: =N11*VLOOKUP($B11,$AR$36:$AZ$47,MATCH(AK$2,$AS$2:$BA$2,0)+1,FALSE) -> 0.07167857978 | AL11: =O11*VLOOKUP($B11,$AR$36:$AZ$47,MATCH(AL$2,$AS$2:$BA$2,0)+1,FALSE) -> 0.06009737969 | AM11: =P11*VLOOKUP($B11,$AR$36:$AZ$47,MATCH(AM$2,$AS$2:$BA$2,0)+1,FALSE) -> 0 | AN11: =Q11*VLOOKUP($B11,$AR$36:$AZ$47,MATCH(AN$2,$AS$2:$BA$2,0)+1,FALSE) -> 0.001409871532 | AO11: =R11*VLOOKUP($B11,$AR$36:$BA$47,MATCH(AO$2,$AS$2:$BA$2,0)+1,FALSE) -> 0 | AP11: 0.8143358292 | AR11: 2 | AS11: 199095006.1 | AT11: 266848741.2 | AU11: 3348197.978 | AV11: 66395271.18 | AW11: 67231664.9 | AX11: 48719658 | AY11: 7782.281405 | AZ11: 1519562.465 | BA11: 150.4
A12: 2006 | B12: 1 | C12: 1 | D12: 10 | F12: 2013 | G12: 1 | H12: 1 | I12: 10 | J12: 0.3398414549 | K12: 0.3687116919 | L12: 0 | M12: 0.09145262324 | N12: 0.0909129 | O12: 0.067681 | P12: 0 | Q12: 0.0018448411 | R12: 0 | S12: 0.9604445112 | V12: 0.3217464192 | W12: 0.08009985641 | X12: 0.3261770624 | Y12: 0.07165725726 | Z12: 0.0623908318 | AA12: 0 | AB12: 0 | AC12: 0.00134846315 | AD12: 0 | AE12: 0.8634198902 | AG12: =J12*VLOOKUP($B12,$AR$36:$AZ$47,MATCH(AG$2,$AS$2:$BA$2,0)+1,FALSE) -> 0.3260600463 | AH12: =K12*VLOOKUP($B12,$AR$36:$AZ$47,MATCH(AH$2,$AS$2:$BA$2,0)+1,FALSE) -> 0.3115405456 | AI12: =L12*VLOOKUP($B12,$AR$36:$AZ$47,MATCH(AI$2,$AS$2:$BA$2,0)+1,FALSE) -> 0 | AJ12: =M12*VLOOKUP($B12,$AR$36:$AZ$47,MATCH(AJ$2,$AS$2:$BA$2,0)+1,FALSE) -> 0.07861625617 | AK12: =N12*VLOOKUP($B12,$AR$36:$AZ$47,MATCH(AK$2,$AS$2:$BA$2,0)+1,FALSE) -> 0.07110644574 | AL12: =O12*VLOOKUP($B12,$AR$36:$AZ$47,MATCH(AL$2,$AS$2:$BA$2,0)+1,FALSE) -> 0.05998039838 | AM12: =P12*VLOOKUP($B12,$AR$36:$AZ$47,MATCH(AM$2,$AS$2:$BA$2,0)+1,FALSE) -> 0 | AN12: =Q12*VLOOKUP($B12,$AR$36:$AZ$47,MATCH(AN$2,$AS$2:$BA$2,0)+1,FALSE) -> 0.001409871532 | AO12: =R12*VLOOKUP($B12,$AR$36:$BA$47,MATCH(AO$2,$AS$2:$BA$2,0)+1,FALSE) -> 0 | AP12: 0.8487135637 | AR12: 3 | AS12: 206105545.1 | AT12: 272509785.8 | AU12: 3393711.247 | AV12: 69321886.41 | AW12: 70809335.9 | AX12: 52674209 | AY12: 7851.600972 | AZ12: 1538004.674 | BA12: 21568.32
A13: 2006 | B13: 1 | C13: 1 | D13: 11 | F13: 2013 | G13: 1 | H13: 1 | I13: 11 | J13: 0.3304256796 | K13: 0.3853805835 | L13: 0 | M13: 0.1038283133 | N13: 0.0899043 | O13: 0.067655 | P13: 0 | Q13: 0.0018448411 | R13: 0 | S13: 0.9790387175 | V13: 0.3128319917 | W13: 0.09093925024 | X13: 0.3409230284 | Y13: 0.07086228196 | Z13: 0.06236686404 | AA13: 0 | AB13: 0 | AC13: 0.00134846315 | AD13: 0 | AE13: 0.8792718795 | AG13: =J13*VLOOKUP($B13,$AR$36:$AZ$47,MATCH(AG$2,$AS$2:$BA$2,0)+1,FALSE) -> 0.3170261038 | AH13: =K13*VLOOKUP($B13,$AR$36:$AZ$47,MATCH(AH$2,$AS$2:$BA$2,0)+1,FALSE) -> 0.3256248171 | AI13: =L13*VLOOKUP($B13,$AR$36:$AZ$47,MATCH(AI$2,$AS$2:$BA$2,0)+1,FALSE) -> 0 | AJ13: =M13*VLOOKUP($B13,$AR$36:$AZ$47,MATCH(AJ$2,$AS$2:$BA$2,0)+1,FALSE) -> 0.08925488402 | AK13: =N13*VLOOKUP($B13,$AR$36:$AZ$47,MATCH(AK$2,$AS$2:$BA$2,0)+1,FALSE) -> 0.07031758122 | AL13: =O13*VLOOKUP($B13,$AR$36:$AZ$47,MATCH(AL$2,$AS$2:$BA$2,0)+1,FALSE) -> 0.0599573566 | AM13: =P13*VLOOKUP($B13,$AR$36:$AZ$47,MATCH(AM$2,$AS$2:$BA$2,0)+1,FALSE) -> 0 | AN13: =Q13*VLOOKUP($B13,$AR$36:$AZ$47,MATCH(AN$2,$AS$2:$BA$2,0)+1,FALSE) -> 0.001409871532 | AO13: =R13*VLOOKUP($B13,$AR$36:$BA$47,MATCH(AO$2,$AS$2:$BA$2,0)+1,FALSE) -> 0 | AP13: 0.8635906142 | AR13: 4 | AS13: 178365764.7 | AT13: 241811390.5 | AU13: 2974730.232 | AV13: 59725491.47 | AW13: 68729643.3 | AX13: 51136567 | AY13: 7795.969458 | AZ13: 1535557.346 | BA13: 15043.84
A14: 2006 | B14: 1 | C14: 1 | D14: 12 | F14: 2013 | G14: 1 | H14: 1 | I14: 12 | J14: 0.3392615468 | K14: 0.3918176485 | L14: 0 | M14: 0.1060464224 | N14: 0.0895762 | O14: 0.067484 | P14: 0 | Q14: 0.0018448411 | R14: 0 | S14: 0.9960306588 | V14: 0.3211973886 | W14: 0.09288200714 | X14: 0.3466175127 | Y14: 0.07060367459 | Z14: 0.06220922996 | AA14: 0 | AB14: 0 | AC14: 0.00134846315 | AD14: 0 | AE14: 0.8948582762 | AG14: =J14*VLOOKUP($B14,$AR$36:$AZ$47,MATCH(AG$2,$AS$2:$BA$2,0)+1,FALSE) -> 0.3255036549 | AH14: =K14*VLOOKUP($B14,$AR$36:$AZ$47,MATCH(AH$2,$AS$2:$BA$2,0)+1,FALSE) -> 0.3310637733 | AI14: =L14*VLOOKUP($B14,$AR$36:$AZ$47,MATCH(AI$2,$AS$2:$BA$2,0)+1,FALSE) -> 0 | AJ14: =M14*VLOOKUP($B14,$AR$36:$AZ$47,MATCH(AJ$2,$AS$2:$BA$2,0)+1,FALSE) -> 0.0911616574 | AK14: =N14*VLOOKUP($B14,$AR$36:$AZ$47,MATCH(AK$2,$AS$2:$BA$2,0)+1,FALSE) -> 0.0700609617 | AL14: =O14*VLOOKUP($B14,$AR$36:$AZ$47,MATCH(AL$2,$AS$2:$BA$2,0)+1,FALSE) -> 0.05980581262 | AM14: =P14*VLOOKUP($B14,$AR$36:$AZ$47,MATCH(AM$2,$AS$2:$BA$2,0)+1,FALSE) -> 0 | AN14: =Q14*VLOOKUP($B14,$AR$36:$AZ$47,MATCH(AN$2,$AS$2:$BA$2,0)+1,FALSE) -> 0.001409871532 | AO14: =R14*VLOOKUP($B14,$AR$36:$BA$47,MATCH(AO$2,$AS$2:$BA$2,0)+1,FALSE) -> 0 | AP14: 0.8790057314 | AR14: 5 | AS14: 180789046.7 | AT14: 242485499.6 | AU14: 2991509.809 | AV14: 61146017.29 | AW14: 72511622.1 | AX14: 54181758 | AY14: 7824.341235 | AZ14: 1546707.028 | BA14: 27366.4 | BB14: Monthly Historic
A15: 2006 | B15: 1 | C15: 1 | D15: 13 | F15: 2013 | G15: 1 | H15: 1 | I15: 13 | J15: 0.3242436248 | K15: 0.4001900976 | L15: 0 | M15: 0.1187100526 | N15: 0.089578 | O15: 0.067535 | P15: 0 | Q15: 0.0018448411 | R15: 0 | S15: 1.002101616 | V15: 0.3069791037 | W15: 0.1039735967 | X15: 0.354024115 | Y15: 0.07060509334 | Z15: 0.06225624363 | AA15: 0 | AB15: 0 | AC15: 0.00134846315 | AD15: 0 | AE15: 0.8991866156 | AG15: =J15*VLOOKUP($B15,$AR$36:$AZ$47,MATCH(AG$2,$AS$2:$BA$2,0)+1,FALSE) -> 0.3110947466 | AH15: =K15*VLOOKUP($B15,$AR$36:$AZ$47,MATCH(AH$2,$AS$2:$BA$2,0)+1,FALSE) -> 0.3381380197 | AI15: =L15*VLOOKUP($B15,$AR$36:$AZ$47,MATCH(AI$2,$AS$2:$BA$2,0)+1,FALSE) -> 0 | AJ15: =M15*VLOOKUP($B15,$AR$36:$AZ$47,MATCH(AJ$2,$AS$2:$BA$2,0)+1,FALSE) -> 0.1020478098 | AK15: =N15*VLOOKUP($B15,$AR$36:$AZ$47,MATCH(AK$2,$AS$2:$BA$2,0)+1,FALSE) -> 0.07006236955 | AL15: =O15*VLOOKUP($B15,$AR$36:$AZ$47,MATCH(AL$2,$AS$2:$BA$2,0)+1,FALSE) -> 0.05985100995 | AM15: =P15*VLOOKUP($B15,$AR$36:$AZ$47,MATCH(AM$2,$AS$2:$BA$2,0)+1,FALSE) -> 0 | AN15: =Q15*VLOOKUP($B15,$AR$36:$AZ$47,MATCH(AN$2,$AS$2:$BA$2,0)+1,FALSE) -> 0.001409871532 | AO15: =R15*VLOOKUP($B15,$AR$36:$BA$47,MATCH(AO$2,$AS$2:$BA$2,0)+1,FALSE) -> 0 | AP15: 0.8826038272 | AR15: 6 | AS15: 196523013.1 | AT15: 258326477.8 | AU15: 3225389.63 | AV15: 65238989.43 | AW15: 70859580.3 | AX15: 53999473 | AY15: 7789.628652 | AZ15: 1544656.779 | BA15: 28504.96
A16: 2006 | B16: 1 | C16: 1 | D16: 14 | F16: 2013 | G16: 1 | H16: 1 | I16: 14 | J16: 0.3200274369 | K16: 0.397298993 | L16: 0 | M16: 0.1140923496 | N16: 0.0891076 | O16: 0.06764 | P16: 0 | Q16: 0.0018448411 | R16: 0 | S16: 0.9900112206 | V16: 0.302987409 | W16: 0.09992912721 | X16: 0.3514665286 | Y16: 0.07023432557 | Z16: 0.06235303649 | AA16: 0 | AB16: 0 | AC16: 0.00134846315 | AD16: 0 | AE16: 0.88831889 | AG16: =J16*VLOOKUP($B16,$AR$36:$AZ$47,MATCH(AG$2,$AS$2:$BA$2,0)+1,FALSE) -> 0.3070495356 | AH16: =K16*VLOOKUP($B16,$AR$36:$AZ$47,MATCH(AH$2,$AS$2:$BA$2,0)+1,FALSE) -> 0.3356951996 | AI16: =L16*VLOOKUP($B16,$AR$36:$AZ$47,MATCH(AI$2,$AS$2:$BA$2,0)+1,FALSE) -> 0 | AJ16: =M16*VLOOKUP($B16,$AR$36:$AZ$47,MATCH(AJ$2,$AS$2:$BA$2,0)+1,FALSE) -> 0.09807825153 | AK16: =N16*VLOOKUP($B16,$AR$36:$AZ$47,MATCH(AK$2,$AS$2:$BA$2,0)+1,FALSE) -> 0.06969445177 | AL16: =O16*VLOOKUP($B16,$AR$36:$AZ$47,MATCH(AL$2,$AS$2:$BA$2,0)+1,FALSE) -> 0.05994406327 | AM16: =P16*VLOOKUP($B16,$AR$36:$AZ$47,MATCH(AM$2,$AS$2:$BA$2,0)+1,FALSE) -> 0 | AN16: =Q16*VLOOKUP($B16,$AR$36:$AZ$47,MATCH(AN$2,$AS$2:$BA$2,0)+1,FALSE) -> 0.001409871532 | AO16: =R16*VLOOKUP($B16,$AR$36:$BA$47,MATCH(AO$2,$AS$2:$BA$2,0)+1,FALSE) -> 0 | AP16: 0.8718713733 | AR16: 7 | AS16: 206078982.6 | AT16: 278979385.8 | AU16: 3431708.974 | AV16: 69987191.49 | AW16: 80021077.8 | AX16: 58779060 | AY16: 7809.271193 | AZ16: 1552684.703 | BA16: 251190.72
A17: 2006 | B17: 1 | C17: 1 | D17: 15 | F17: 2013 | G17: 1 | H17: 1 | I17: 15 | J17: 0.3381651019 | K17: 0.3886232548 | L17: 0 | M17: 0.09948855706 | N17: 0.0892859 | O17: 0.067844 | P17: 0 | Q17: 0.0018448411 | R17: 0 | S17: 0.9852516549 | V17: 0.3201593245 | W17: 0.08713822363 | X17: 0.3437916247 | Y17: 0.07037486106 | Z17: 0.06254109118 | AA17: 0 | AB17: 0 | AC17: 0.00134846315 | AD17: 0 | AE17: 0.8853535883 | AG17: =J17*VLOOKUP($B17,$AR$36:$AZ$47,MATCH(AG$2,$AS$2:$BA$2,0)+1,FALSE) -> 0.3244516735 | AH17: =K17*VLOOKUP($B17,$AR$36:$AZ$47,MATCH(AH$2,$AS$2:$BA$2,0)+1,FALSE) -> 0.3283646911 | AI17: =L17*VLOOKUP($B17,$AR$36:$AZ$47,MATCH(AI$2,$AS$2:$BA$2,0)+1,FALSE) -> 0 | AJ17: =M17*VLOOKUP($B17,$AR$36:$AZ$47,MATCH(AJ$2,$AS$2:$BA$2,0)+1,FALSE) -> 0.08552425957 | AK17: =N17*VLOOKUP($B17,$AR$36:$AZ$47,MATCH(AK$2,$AS$2:$BA$2,0)+1,FALSE) -> 0.069833907 | AL17: =O17*VLOOKUP($B17,$AR$36:$AZ$47,MATCH(AL$2,$AS$2:$BA$2,0)+1,FALSE) -> 0.06012485258 | AM17: =P17*VLOOKUP($B17,$AR$36:$AZ$47,MATCH(AM$2,$AS$2:$BA$2,0)+1,FALSE) -> 0 | AN17: =Q17*VLOOKUP($B17,$AR$36:$AZ$47,MATCH(AN$2,$AS$2:$BA$2,0)+1,FALSE) -> 0.001409871532 | AO17: =R17*VLOOKUP($B17,$AR$36:$BA$47,MATCH(AO$2,$AS$2:$BA$2,0)+1,FALSE) -> 0 | AP17: 0.8697092554 | AR17: 8 | AS17: 199282760.5 | AT17: 265813683 | AU17: 3322549.45 | AV17: 66627309.17 | AW17: 76647625.9 | AX17: 55107537 | AY17: 7833.726627 | AZ17: 1560853.167 | BA17: 27161.6
A18: 2006 | B18: 1 | C18: 1 | D18: 16 | F18: 2013 | G18: 1 | H18: 1 | I18: 16 | J18: 0.3488144217 | K18: 0.393394904 | L18: 0 | M18: 0.1048701646 | N18: 0.0896763 | O18: 0.067657 | P18: 0 | Q18: 0.0018448411 | R18: 0 | S18: 1.006257631 | V18: 0.3302416157 | W18: 0.09185176789 | X18: 0.3480128158 | Y18: 0.07068257309 | Z18: 0.06236870772 | AA18: 0 | AB18: 0 | AC18: 0.00134846315 | AD18: 0 | AE18: 0.9045059434 | AG18: =J18*VLOOKUP($B18,$AR$36:$AZ$47,MATCH(AG$2,$AS$2:$BA$2,0)+1,FALSE) -> 0.3346691371 | AH18: =K18*VLOOKUP($B18,$AR$36:$AZ$47,MATCH(AH$2,$AS$2:$BA$2,0)+1,FALSE) -> 0.332396465 | AI18: =L18*VLOOKUP($B18,$AR$36:$AZ$47,MATCH(AI$2,$AS$2:$BA$2,0)+1,FALSE) -> 0 | AJ18: =M18*VLOOKUP($B18,$AR$36:$AZ$47,MATCH(AJ$2,$AS$2:$BA$2,0)+1,FALSE) -> 0.09015050012 | AK18: =N18*VLOOKUP($B18,$AR$36:$AZ$47,MATCH(AK$2,$AS$2:$BA$2,0)+1,FALSE) -> 0.07013925373 | AL18: =O18*VLOOKUP($B18,$AR$36:$AZ$47,MATCH(AL$2,$AS$2:$BA$2,0)+1,FALSE) -> 0.05995912904 | AM18: =P18*VLOOKUP($B18,$AR$36:$AZ$47,MATCH(AM$2,$AS$2:$BA$2,0)+1,FALSE) -> 0 | AN18: =Q18*VLOOKUP($B18,$AR$36:$AZ$47,MATCH(AN$2,$AS$2:$BA$2,0)+1,FALSE) -> 0.001409871532 | AO18: =R18*VLOOKUP($B18,$AR$36:$BA$47,MATCH(AO$2,$AS$2:$BA$2,0)+1,FALSE) -> 0 | AP18: 0.8887243566 | AR18: 9 | AS18: 181234271.5 | AT18: 240974493.1 | AU18: 3026618.362 | AV18: 60041612.08 | AW18: 69539334.1 | AX18: 47265597 | AY18: 7818.616675 | AZ18: 1559177.941 | BA18: 2688.64
A19: 2006 | B19: 1 | C19: 1 | D19: 17 | F19: 2013 | G19: 1 | H19: 1 | I19: 17 | J19: 0.3968355519 | K19: 0.3966914995 | L19: 0.002946330617 | M19: 0.1051916034 | N19: 0.0914758 | O19: 0.067858 | P19: 5.998148338e-06 | Q19: 0.001961721657 | R19: 0 | S19: 1.062966505 | V19: 0.3757058358 | W19: 0.09213330391 | X19: 0.3509291156 | Y19: 0.07210093324 | Z19: 0.0625539969 | AA19: 0.001647774732 | AB19: 3.001945928e-06 | AC19: 0.001433895508 | AD19: 0 | AE19: 0.9565078576 | AG19: =J19*VLOOKUP($B19,$AR$36:$AZ$47,MATCH(AG$2,$AS$2:$BA$2,0)+1,FALSE) -> 0.3807428921 | AH19: =K19*VLOOKUP($B19,$AR$36:$AZ$47,MATCH(AH$2,$AS$2:$BA$2,0)+1,FALSE) -> 0.335181902 | AI19: =L19*VLOOKUP($B19,$AR$36:$AZ$47,MATCH(AI$2,$AS$2:$BA$2,0)+1,FALSE) -> 0.002177991868 | AJ19: =M19*VLOOKUP($B19,$AR$36:$AZ$47,MATCH(AJ$2,$AS$2:$BA$2,0)+1,FALSE) -> 0.09042682156 | AK19: =N19*VLOOKUP($B19,$AR$36:$AZ$47,MATCH(AK$2,$AS$2:$BA$2,0)+1,FALSE) -> 0.07154671129 | AL19: =O19*VLOOKUP($B19,$AR$36:$AZ$47,MATCH(AL$2,$AS$2:$BA$2,0)+1,FALSE) -> 0.06013725969 | AM19: =P19*VLOOKUP($B19,$AR$36:$AZ$47,MATCH(AM$2,$AS$2:$BA$2,0)+1,FALSE) -> 3.001945928e-06 | AN19: =Q19*VLOOKUP($B19,$AR$36:$AZ$47,MATCH(AN$2,$AS$2:$BA$2,0)+1,FALSE) -> 0.001499194439 | AO19: =R19*VLOOKUP($B19,$AR$36:$BA$47,MATCH(AO$2,$AS$2:$BA$2,0)+1,FALSE) -> 0 | AP19: 0.9417157749 | AR19: 10 | AS19: 184611816.6 | AT19: 249423267 | AU19: 3071337.598 | AV19: 62564310.09 | AW19: 71195701.7 | AX19: 48442879 | AY19: 7857.615448 | AZ19: 1570711.956 | BA19: 9842.24
A20: 2006 | B20: 1 | C20: 1 | D20: 18 | F20: 2013 | G20: 1 | H20: 1 | I20: 18 | J20: 0.4609263956 | K20: 0.3983720396 | L20: 0.008418087479 | M20: 0.1080573242 | N20: 0.0923018 | O20: 0.068024 | P20: 1.713756668e-05 | Q20: 0.002178785549 | R20: 0 | S20: 1.13829557 | V20: 0.4363841291 | W20: 0.09464327921 | X20: 0.3524157884 | Y20: 0.0727519838 | Z20: 0.0627070218 | AA20: 0.004707927806 | AB20: 8.576988365e-06 | AC20: 0.0015925556 | AD20: 0 | AE20: 1.025211263 | AG20: =J20*VLOOKUP($B20,$AR$36:$AZ$47,MATCH(AG$2,$AS$2:$BA$2,0)+1,FALSE) -> 0.4422346942 | AH20: =K20*VLOOKUP($B20,$AR$36:$AZ$47,MATCH(AH$2,$AS$2:$BA$2,0)+1,FALSE) -> 0.3366018634 | AI20: =L20*VLOOKUP($B20,$AR$36:$AZ$47,MATCH(AI$2,$AS$2:$BA$2,0)+1,FALSE) -> 0.00622283391 | AJ20: =M20*VLOOKUP($B20,$AR$36:$AZ$47,MATCH(AJ$2,$AS$2:$BA$2,0)+1,FALSE) -> 0.09289030739 | AK20: =N20*VLOOKUP($B20,$AR$36:$AZ$47,MATCH(AK$2,$AS$2:$BA$2,0)+1,FALSE) -> 0.07219275739 | AL20: =O20*VLOOKUP($B20,$AR$36:$AZ$47,MATCH(AL$2,$AS$2:$BA$2,0)+1,FALSE) -> 0.06028437256 | AM20: =P20*VLOOKUP($B20,$AR$36:$AZ$47,MATCH(AM$2,$AS$2:$BA$2,0)+1,FALSE) -> 8.576988365e-06 | AN20: =Q20*VLOOKUP($B20,$AR$36:$AZ$47,MATCH(AN$2,$AS$2:$BA$2,0)+1,FALSE) -> 0.001665079838 | AO20: =R20*VLOOKUP($B20,$AR$36:$BA$47,MATCH(AO$2,$AS$2:$BA$2,0)+1,FALSE) -> 0 | AP20: 1.012100486 | AR20: 11 | AS20: 194481092.1 | AT20: 259539524 | AU20: 3236229.655 | AV20: 65186150.74 | AW20: 70169897.2 | AX20: 49298397 | AY20: 7822.186614 | AZ20: 1568620.342 | BA20: 0
A21: 2006 | B21: 1 | C21: 1 | D21: 19 | F21: 2013 | G21: 1 | H21: 1 | I21: 19 | J21: 0.4893314591 | K21: 0.3891222774 | L21: 0.008418087479 | M21: 0.1116353152 | N21: 0.0880063 | O21: 0.066448 | P21: 1.713756668e-05 | Q21: 0.002178785549 | R21: 0 | S21: 1.155157362 | V21: 0.4632767501 | W21: 0.09777710473 | X21: 0.34423308 | Y21: 0.06936628443 | Z21: 0.06125420711 | AA21: 0.004707927806 | AB21: 8.576988365e-06 | AC21: 0.0015925556 | AD21: 0 | AE21: 1.042216487 | AG21: =J21*VLOOKUP($B21,$AR$36:$AZ$47,MATCH(AG$2,$AS$2:$BA$2,0)+1,FALSE) -> 0.4694878623 | AH21: =K21*VLOOKUP($B21,$AR$36:$AZ$47,MATCH(AH$2,$AS$2:$BA$2,0)+1,FALSE) -> 0.328786337 | AI21: =L21*VLOOKUP($B21,$AR$36:$AZ$47,MATCH(AI$2,$AS$2:$BA$2,0)+1,FALSE) -> 0.00622283391 | AJ21: =M21*VLOOKUP($B21,$AR$36:$AZ$47,MATCH(AJ$2,$AS$2:$BA$2,0)+1,FALSE) -> 0.09596608855 | AK21: =N21*VLOOKUP($B21,$AR$36:$AZ$47,MATCH(AK$2,$AS$2:$BA$2,0)+1,FALSE) -> 0.06883308305 | AL21: =O21*VLOOKUP($B21,$AR$36:$AZ$47,MATCH(AL$2,$AS$2:$BA$2,0)+1,FALSE) -> 0.05888768652 | AM21: =P21*VLOOKUP($B21,$AR$36:$AZ$47,MATCH(AM$2,$AS$2:$BA$2,0)+1,FALSE) -> 8.576988365e-06 | AN21: =Q21*VLOOKUP($B21,$AR$36:$AZ$47,MATCH(AN$2,$AS$2:$BA$2,0)+1,FALSE) -> 0.001665079838 | AO21: =R21*VLOOKUP($B21,$AR$36:$BA$47,MATCH(AO$2,$AS$2:$BA$2,0)+1,FALSE) -> 0 | AP21: 1.029857548 | AR21: 12 | AS21: 221654318.3 | AT21: 295891988.7 | AU21: 3664922.803 | AV21: 74393796.73 | AW21: 74032862.1 | AX21: 49361222 | AY21: 7830.929358 | AZ21: 1576248.041 | BA21: 32013.76
A22: 2006 | B22: 1 | C22: 1 | D22: 20 | F22: 2013 | G22: 1 | H22: 1 | I22: 20 | J22: 0.4517945684 | K22: 0.3793697661 | L22: 0.008418087479 | M22: 0.1135297001 | N22: 0.0865709 | O22: 0.06536 | P22: 1.713756668e-05 | Q22: 0.002178785549 | R22: 0 | S22: 1.107238945 | V22: 0.4277385307 | W22: 0.09943632398 | X22: 0.3356056197 | Y22: 0.06823490673 | Z22: 0.06025124874 | AA22: 0.004707927806 | AB22: 8.576988365e-06 | AC22: 0.0015925556 | AD22: 0 | AE22: 0.9975756903 | AG22: =J22*VLOOKUP($B22,$AR$36:$AZ$47,MATCH(AG$2,$AS$2:$BA$2,0)+1,FALSE) -> 0.433473185 | AH22: =K22*VLOOKUP($B22,$AR$36:$AZ$47,MATCH(AH$2,$AS$2:$BA$2,0)+1,FALSE) -> 0.320546016 | AI22: =L22*VLOOKUP($B22,$AR$36:$AZ$47,MATCH(AI$2,$AS$2:$BA$2,0)+1,FALSE) -> 0.00622283391 | AJ22: =M22*VLOOKUP($B22,$AR$36:$AZ$47,MATCH(AJ$2,$AS$2:$BA$2,0)+1,FALSE) -> 0.09759457594 | AK22: =N22*VLOOKUP($B22,$AR$36:$AZ$47,MATCH(AK$2,$AS$2:$BA$2,0)+1,FALSE) -> 0.06771040197 | AL22: =O22*VLOOKUP($B22,$AR$36:$AZ$47,MATCH(AL$2,$AS$2:$BA$2,0)+1,FALSE) -> 0.05792347687 | AM22: =P22*VLOOKUP($B22,$AR$36:$AZ$47,MATCH(AM$2,$AS$2:$BA$2,0)+1,FALSE) -> 8.576988365e-06 | AN22: =Q22*VLOOKUP($B22,$AR$36:$AZ$47,MATCH(AN$2,$AS$2:$BA$2,0)+1,FALSE) -> 0.001665079838 | AO22: =R22*VLOOKUP($B22,$AR$36:$BA$47,MATCH(AO$2,$AS$2:$BA$2,0)+1,FALSE) -> 0 | AP22: 0.9851441466
A23: 2006 | B23: 1 | C23: 1 | D23: 21 | F23: 2013 | G23: 1 | H23: 1 | I23: 21 | J23: 0.4353584533 | K23: 0.3743121784 | L23: 0.008418087479 | M23: 0.114927806 | N23: 0.0860857 | O23: 0.065105 | P23: 1.713756668e-05 | Q23: 0.002178785549 | R23: 0 | S23: 1.086403148 | V23: 0.4121775651 | W23: 0.1006608715 | X23: 0.331131476 | Y23: 0.06785247364 | Z23: 0.06001618038 | AA23: 0.004707927806 | AB23: 8.576988365e-06 | AC23: 0.0015925556 | AD23: 0 | AE23: 0.9781476271 | AG23: =J23*VLOOKUP($B23,$AR$36:$AZ$47,MATCH(AG$2,$AS$2:$BA$2,0)+1,FALSE) -> 0.4177035949 | AH23: =K23*VLOOKUP($B23,$AR$36:$AZ$47,MATCH(AH$2,$AS$2:$BA$2,0)+1,FALSE) -> 0.3162726402 | AI23: =L23*VLOOKUP($B23,$AR$36:$AZ$47,MATCH(AI$2,$AS$2:$BA$2,0)+1,FALSE) -> 0.00622283391 | AJ23: =M23*VLOOKUP($B23,$AR$36:$AZ$47,MATCH(AJ$2,$AS$2:$BA$2,0)+1,FALSE) -> 0.09879644256 | AK23: =N23*VLOOKUP($B23,$AR$36:$AZ$47,MATCH(AK$2,$AS$2:$BA$2,0)+1,FALSE) -> 0.06733090855 | AL23: =O23*VLOOKUP($B23,$AR$36:$AZ$47,MATCH(AL$2,$AS$2:$BA$2,0)+1,FALSE) -> 0.05769749023 | AM23: =P23*VLOOKUP($B23,$AR$36:$AZ$47,MATCH(AM$2,$AS$2:$BA$2,0)+1,FALSE) -> 8.576988365e-06 | AN23: =Q23*VLOOKUP($B23,$AR$36:$AZ$47,MATCH(AN$2,$AS$2:$BA$2,0)+1,FALSE) -> 0.001665079838 | AO23: =R23*VLOOKUP($B23,$AR$36:$BA$47,MATCH(AO$2,$AS$2:$BA$2,0)+1,FALSE) -> 0 | AP23: 0.9656975672 | AR23: =AR10 -> 1 | AS23: 222036000 | AT23: 264080000 | AU23: 2840000 | AV23: 67428000 | AW23: 58413000 | AX23: 47874000 | AY23: 0 | AZ23: 1174000
A24: 2006 | B24: 1 | C24: 1 | D24: 22 | F24: 2013 | G24: 1 | H24: 1 | I24: 22 | J24: 0.398847508 | K24: 0.362941808 | L24: 0.008418087479 | M24: 0.1082548496 | N24: 0.0854277 | O24: 0.064568 | P24: 1.713756668e-05 | Q24: 0.002178785549 | R24: 0 | S24: 1.030653876 | V24: 0.3776106642 | W24: 0.09481628413 | X24: 0.321072793 | Y24: 0.06733384015 | Z24: 0.05952115405 | AA24: 0.004707927806 | AB24: 8.576988365e-06 | AC24: 0.0015925556 | AD24: 0 | AE24: 0.9266637959 | AG24: =J24*VLOOKUP($B24,$AR$36:$AZ$47,MATCH(AG$2,$AS$2:$BA$2,0)+1,FALSE) -> 0.3826732585 | AH24: =K24*VLOOKUP($B24,$AR$36:$AZ$47,MATCH(AH$2,$AS$2:$BA$2,0)+1,FALSE) -> 0.3066653197 | AI24: =L24*VLOOKUP($B24,$AR$36:$AZ$47,MATCH(AI$2,$AS$2:$BA$2,0)+1,FALSE) -> 0.00622283391 | AJ24: =M24*VLOOKUP($B24,$AR$36:$AZ$47,MATCH(AJ$2,$AS$2:$BA$2,0)+1,FALSE) -> 0.09306010794 | AK24: =N24*VLOOKUP($B24,$AR$36:$AZ$47,MATCH(AK$2,$AS$2:$BA$2,0)+1,FALSE) -> 0.06681626166 | AL24: =O24*VLOOKUP($B24,$AR$36:$AZ$47,MATCH(AL$2,$AS$2:$BA$2,0)+1,FALSE) -> 0.05722158896 | AM24: =P24*VLOOKUP($B24,$AR$36:$AZ$47,MATCH(AM$2,$AS$2:$BA$2,0)+1,FALSE) -> 8.576988365e-06 | AN24: =Q24*VLOOKUP($B24,$AR$36:$AZ$47,MATCH(AN$2,$AS$2:$BA$2,0)+1,FALSE) -> 0.001665079838 | AO24: =R24*VLOOKUP($B24,$AR$36:$BA$47,MATCH(AO$2,$AS$2:$BA$2,0)+1,FALSE) -> 0 | AP24: 0.9143330274 | AR24: =AR11 -> 2 | AS24: 194335000 | AT24: 240013000 | AU24: 2280000 | AV24: 61219000 | AW24: 53122000 | AX24: 42822000 | AY24: 0 | AZ24: 1172000
A25: 2006 | B25: 1 | C25: 1 | D25: 23 | F25: 2013 | G25: 1 | H25: 1 | I25: 23 | J25: 0.3320931163 | K25: 0.3615806057 | L25: 0.008418087479 | M25: 0.1122883901 | N25: 0.0843296 | O25: 0.063258 | P25: 1.713756668e-05 | Q25: 0.002178785549 | R25: 0 | S25: 0.9641637227 | V25: 0.314410645 | W25: 0.098349108 | X25: 0.3198686192 | Y25: 0.06646832124 | Z25: 0.05831354794 | AA25: 0.004707927806 | AB25: 8.576988365e-06 | AC25: 0.0015925556 | AD25: 0 | AE25: 0.8637193017 | AG25: =J25*VLOOKUP($B25,$AR$36:$AZ$47,MATCH(AG$2,$AS$2:$BA$2,0)+1,FALSE) -> 0.3186259219 | AH25: =K25*VLOOKUP($B25,$AR$36:$AZ$47,MATCH(AH$2,$AS$2:$BA$2,0)+1,FALSE) -> 0.3055151807 | AI25: =L25*VLOOKUP($B25,$AR$36:$AZ$47,MATCH(AI$2,$AS$2:$BA$2,0)+1,FALSE) -> 0.00622283391 | AJ25: =M25*VLOOKUP($B25,$AR$36:$AZ$47,MATCH(AJ$2,$AS$2:$BA$2,0)+1,FALSE) -> 0.09652749725 | AK25: =N25*VLOOKUP($B25,$AR$36:$AZ$47,MATCH(AK$2,$AS$2:$BA$2,0)+1,FALSE) -> 0.06595739578 | AL25: =O25*VLOOKUP($B25,$AR$36:$AZ$47,MATCH(AL$2,$AS$2:$BA$2,0)+1,FALSE) -> 0.056060638 | AM25: =P25*VLOOKUP($B25,$AR$36:$AZ$47,MATCH(AM$2,$AS$2:$BA$2,0)+1,FALSE) -> 8.576988365e-06 | AN25: =Q25*VLOOKUP($B25,$AR$36:$AZ$47,MATCH(AN$2,$AS$2:$BA$2,0)+1,FALSE) -> 0.001665079838 | AO25: =R25*VLOOKUP($B25,$AR$36:$BA$47,MATCH(AO$2,$AS$2:$BA$2,0)+1,FALSE) -> 0 | AP25: 0.8505831243 | AR25: 3 | AS25: 188420000 | AT25: 245062000 | AU25: 2008000 | AV25: 61603000 | AW25: 56806000 | AX25: 47722000 | AY25: 0 | AZ25: 1059000
A26: 2006 | B26: 1 | C26: 1 | D26: 24 | F26: 2013 | G26: 1 | H26: 1 | I26: 24 | J26: 0.2347178082 | K26: 0.3688803238 | L26: 0.008418087479 | M26: 0.1333091091 | N26: 0.0835273 | O26: 0.06256 | P26: 1.713756668e-05 | Q26: 0.002178785549 | R26: 0 | S26: 0.8936085517 | V26: 0.2222201359 | W26: 0.1167603522 | X26: 0.3263262409 | Y26: 0.06583595094 | Z26: 0.0576701059 | AA26: 0.004707927806 | AB26: 8.576988365e-06 | AC26: 0.0015925556 | AD26: 0 | AE26: 0.7951218462 | AG26: =J26*VLOOKUP($B26,$AR$36:$AZ$47,MATCH(AG$2,$AS$2:$BA$2,0)+1,FALSE) -> 0.2251994225 | AH26: =K26*VLOOKUP($B26,$AR$36:$AZ$47,MATCH(AH$2,$AS$2:$BA$2,0)+1,FALSE) -> 0.31168303 | AI26: =L26*VLOOKUP($B26,$AR$36:$AZ$47,MATCH(AI$2,$AS$2:$BA$2,0)+1,FALSE) -> 0.00622283391 | AJ26: =M26*VLOOKUP($B26,$AR$36:$AZ$47,MATCH(AJ$2,$AS$2:$BA$2,0)+1,FALSE) -> 0.1145977305 | AK26: =N26*VLOOKUP($B26,$AR$36:$AZ$47,MATCH(AK$2,$AS$2:$BA$2,0)+1,FALSE) -> 0.06532988635 | AL26: =O26*VLOOKUP($B26,$AR$36:$AZ$47,MATCH(AL$2,$AS$2:$BA$2,0)+1,FALSE) -> 0.05544205497 | AM26: =P26*VLOOKUP($B26,$AR$36:$AZ$47,MATCH(AM$2,$AS$2:$BA$2,0)+1,FALSE) -> 8.576988365e-06 | AN26: =Q26*VLOOKUP($B26,$AR$36:$AZ$47,MATCH(AN$2,$AS$2:$BA$2,0)+1,FALSE) -> 0.001665079838 | AO26: =R26*VLOOKUP($B26,$AR$36:$BA$47,MATCH(AO$2,$AS$2:$BA$2,0)+1,FALSE) -> 0 | AP26: 0.7801486151 | AR26: 4 | AS26: 158765000 | AT26: 219272000 | AU26: 1586000 | AV26: 54109000 | AW26: 53713000 | AX26: 46055000 | AY26: 0 | AZ26: 1162000
A27: 2006 | B27: 1 | C27: 2 | D27: 1 | F27: 2013 | G27: 1 | H27: 2 | I27: 1 | J27: 0.2464490832 | K27: 0.3924425156 | L27: 0.008418087479 | M27: 0.1126592681 | N27: 0.0833713 | O27: 0.062484 | P27: 1.713756668e-05 | Q27: 0.002178785549 | R27: 0 | S27: 0.9080201775 | V27: 0.2333267731 | W27: 0.0986739459 | X27: 0.347170295 | Y27: 0.06571299224 | Z27: 0.05760004631 | AA27: 0.004707927806 | AB27: 8.576988365e-06 | AC27: 0.0015925556 | AD27: 0 | AE27: 0.808793113 | AG27: =J27*VLOOKUP($B27,$AR$36:$AZ$47,MATCH(AG$2,$AS$2:$BA$2,0)+1,FALSE) -> 0.2364549655 | AH27: =K27*VLOOKUP($B27,$AR$36:$AZ$47,MATCH(AH$2,$AS$2:$BA$2,0)+1,FALSE) -> 0.3315917506 | AI27: =L27*VLOOKUP($B27,$AR$36:$AZ$47,MATCH(AI$2,$AS$2:$BA$2,0)+1,FALSE) -> 0.00622283391 | AJ27: =M27*VLOOKUP($B27,$AR$36:$AZ$47,MATCH(AJ$2,$AS$2:$BA$2,0)+1,FALSE) -> 0.09684631854 | AK27: =N27*VLOOKUP($B27,$AR$36:$AZ$47,MATCH(AK$2,$AS$2:$BA$2,0)+1,FALSE) -> 0.06520787281 | AL27: =O27*VLOOKUP($B27,$AR$36:$AZ$47,MATCH(AL$2,$AS$2:$BA$2,0)+1,FALSE) -> 0.05537470209 | AM27: =P27*VLOOKUP($B27,$AR$36:$AZ$47,MATCH(AM$2,$AS$2:$BA$2,0)+1,FALSE) -> 8.576988365e-06 | AN27: =Q27*VLOOKUP($B27,$AR$36:$AZ$47,MATCH(AN$2,$AS$2:$BA$2,0)+1,FALSE) -> 0.001665079838 | AO27: =R27*VLOOKUP($B27,$AR$36:$BA$47,MATCH(AO$2,$AS$2:$BA$2,0)+1,FALSE) -> 0 | AP27: 0.7933721003 | AR27: 5 | AS27: 154321000 | AT27: 215726000 | AU27: 1101000 | AV27: 52456000 | AW27: 55456000 | AX27: 48373000 | AY27: 0 | AZ27: 1125000 | BB27: 2021 Load Forecast (Monthly)
A28: 2006 | B28: 1 | C28: 2 | D28: 2 | F28: 2013 | G28: 1 | H28: 2 | I28: 2 | J28: 0.2357351305 | K28: 0.3832723867 | L28: 0.008418087479 | M28: 0.1074919888 | N28: 0.0828932 | O28: 0.062268 | P28: 1.713756668e-05 | Q28: 0.002178785549 | R28: 0 | S28: 0.8822747166 | V28: 0.2231832904 | W28: 0.09414812351 | X28: 0.3390580335 | Y28: 0.06533615535 | Z28: 0.05740092957 | AA28: 0.004707927806 | AB28: 8.576988365e-06 | AC28: 0.0015925556 | AD28: 0 | AE28: 0.7854355927 | AG28: =J28*VLOOKUP($B28,$AR$36:$AZ$47,MATCH(AG$2,$AS$2:$BA$2,0)+1,FALSE) -> 0.2261754899 | AH28: =K28*VLOOKUP($B28,$AR$36:$AZ$47,MATCH(AH$2,$AS$2:$BA$2,0)+1,FALSE) -> 0.3238435099 | AI28: =L28*VLOOKUP($B28,$AR$36:$AZ$47,MATCH(AI$2,$AS$2:$BA$2,0)+1,FALSE) -> 0.00622283391 | AJ28: =M28*VLOOKUP($B28,$AR$36:$AZ$47,MATCH(AJ$2,$AS$2:$BA$2,0)+1,FALSE) -> 0.09240432291 | AK28: =N28*VLOOKUP($B28,$AR$36:$AZ$47,MATCH(AK$2,$AS$2:$BA$2,0)+1,FALSE) -> 0.06483393257 | AL28: =O28*VLOOKUP($B28,$AR$36:$AZ$47,MATCH(AL$2,$AS$2:$BA$2,0)+1,FALSE) -> 0.05518327811 | AM28: =P28*VLOOKUP($B28,$AR$36:$AZ$47,MATCH(AM$2,$AS$2:$BA$2,0)+1,FALSE) -> 8.576988365e-06 | AN28: =Q28*VLOOKUP($B28,$AR$36:$AZ$47,MATCH(AN$2,$AS$2:$BA$2,0)+1,FALSE) -> 0.001665079838 | AO28: =R28*VLOOKUP($B28,$AR$36:$BA$47,MATCH(AO$2,$AS$2:$BA$2,0)+1,FALSE) -> 0 | AP28: 0.7703370242 | AR28: 6 | AS28: 186705000 | AT28: 224516000 | AU28: 975000 | AV28: 54971000 | AW28: 57670000 | AX28: 48727000 | AY28: 0 | AZ28: 1157000
A29: 2006 | B29: 1 | C29: 2 | D29: 3 | F29: 2013 | G29: 1 | H29: 2 | I29: 3 | J29: 0.2291534056 | K29: 0.3805699443 | L29: 0.008418087479 | M29: 0.1084650323 | N29: 0.0826575 | O29: 0.062208 | P29: 1.713756668e-05 | Q29: 0.002178785549 | R29: 0 | S29: 0.8736678928 | V29: 0.2169520129 | W29: 0.09500037513 | X29: 0.3366673452 | Y29: 0.06515037736 | Z29: 0.05734561937 | AA29: 0.004707927806 | AB29: 8.576988365e-06 | AC29: 0.0015925556 | AD29: 0 | AE29: 0.7774247903 | AG29: =J29*VLOOKUP($B29,$AR$36:$AZ$47,MATCH(AG$2,$AS$2:$BA$2,0)+1,FALSE) -> 0.2198606702 | AH29: =K29*VLOOKUP($B29,$AR$36:$AZ$47,MATCH(AH$2,$AS$2:$BA$2,0)+1,FALSE) -> 0.3215600988 | AI29: =L29*VLOOKUP($B29,$AR$36:$AZ$47,MATCH(AI$2,$AS$2:$BA$2,0)+1,FALSE) -> 0.00622283391 | AJ29: =M29*VLOOKUP($B29,$AR$36:$AZ$47,MATCH(AJ$2,$AS$2:$BA$2,0)+1,FALSE) -> 0.09324078922 | AK29: =N29*VLOOKUP($B29,$AR$36:$AZ$47,MATCH(AK$2,$AS$2:$BA$2,0)+1,FALSE) -> 0.06464958261 | AL29: =O29*VLOOKUP($B29,$AR$36:$AZ$47,MATCH(AL$2,$AS$2:$BA$2,0)+1,FALSE) -> 0.05513010479 | AM29: =P29*VLOOKUP($B29,$AR$36:$AZ$47,MATCH(AM$2,$AS$2:$BA$2,0)+1,FALSE) -> 8.576988365e-06 | AN29: =Q29*VLOOKUP($B29,$AR$36:$AZ$47,MATCH(AN$2,$AS$2:$BA$2,0)+1,FALSE) -> 0.001665079838 | AO29: =R29*VLOOKUP($B29,$AR$36:$BA$47,MATCH(AO$2,$AS$2:$BA$2,0)+1,FALSE) -> 0 | AP29: 0.7623377363 | AR29: 7 | AS29: 226524000 | AT29: 249390000 | AU29: 1096000 | AV29: 61520000 | AW29: 63883000 | AX29: 52777000 | AY29: 0 | AZ29: 1143000
A30: 2006 | B30: 1 | C30: 2 | D30: 4 | F30: 2013 | G30: 1 | H30: 2 | I30: 4 | J30: 0.2311946032 | K30: 0.3809097032 | L30: 0.008418087479 | M30: 0.1084237695 | N30: 0.0831818 | O30: 0.062356 | P30: 1.713756668e-05 | Q30: 0.002178785549 | R30: 0 | S30: 0.8766798865 | V30: 0.2188845259 | W30: 0.09496423462 | X30: 0.3369679095 | Y30: 0.06556362894 | Z30: 0.0574820512 | AA30: 0.004707927806 | AB30: 8.576988365e-06 | AC30: 0.0015925556 | AD30: 0 | AE30: 0.7801714105 | AG30: =J30*VLOOKUP($B30,$AR$36:$AZ$47,MATCH(AG$2,$AS$2:$BA$2,0)+1,FALSE) -> 0.2218190922 | AH30: =K30*VLOOKUP($B30,$AR$36:$AZ$47,MATCH(AH$2,$AS$2:$BA$2,0)+1,FALSE) -> 0.3218471759 | AI30: =L30*VLOOKUP($B30,$AR$36:$AZ$47,MATCH(AI$2,$AS$2:$BA$2,0)+1,FALSE) -> 0.00622283391 | AJ30: =M30*VLOOKUP($B30,$AR$36:$AZ$47,MATCH(AJ$2,$AS$2:$BA$2,0)+1,FALSE) -> 0.0932053181 | AK30: =N30*VLOOKUP($B30,$AR$36:$AZ$47,MATCH(AK$2,$AS$2:$BA$2,0)+1,FALSE) -> 0.06505965763 | AL30: =O30*VLOOKUP($B30,$AR$36:$AZ$47,MATCH(AL$2,$AS$2:$BA$2,0)+1,FALSE) -> 0.05526126566 | AM30: =P30*VLOOKUP($B30,$AR$36:$AZ$47,MATCH(AM$2,$AS$2:$BA$2,0)+1,FALSE) -> 8.576988365e-06 | AN30: =Q30*VLOOKUP($B30,$AR$36:$AZ$47,MATCH(AN$2,$AS$2:$BA$2,0)+1,FALSE) -> 0.001665079838 | AO30: =R30*VLOOKUP($B30,$AR$36:$BA$47,MATCH(AO$2,$AS$2:$BA$2,0)+1,FALSE) -> 0 | AP30: 0.7650890002 | AR30: 8 | AS30: 207661000 | AT30: 239387000 | AU30: 1347000 | AV30: 58755000 | AW30: 61536000 | AX30: 51545000 | AY30: 0 | AZ30: 1131000
A31: 2006 | B31: 1 | C31: 2 | D31: 5 | F31: 2013 | G31: 1 | H31: 2 | I31: 5 | J31: 0.2402127708 | K31: 0.3862867461 | L31: 0.008418087479 | M31: 0.1078762707 | N31: 0.0850912 | O31: 0.062594 | P31: 1.713756668e-05 | Q31: 0.002178785549 | R31: 0 | S31: 0.8926749982 | V31: 0.2274225164 | W31: 0.09448470133 | X31: 0.341724656 | Y31: 0.06706861192 | Z31: 0.05770144835 | AA31: 0.004707927806 | AB31: 8.576988365e-06 | AC31: 0.0015925556 | AD31: 0 | AE31: 0.7947109944 | AG31: =J31*VLOOKUP($B31,$AR$36:$AZ$47,MATCH(AG$2,$AS$2:$BA$2,0)+1,FALSE) -> 0.2304715508 | AH31: =K31*VLOOKUP($B31,$AR$36:$AZ$47,MATCH(AH$2,$AS$2:$BA$2,0)+1,FALSE) -> 0.3263904733 | AI31: =L31*VLOOKUP($B31,$AR$36:$AZ$47,MATCH(AI$2,$AS$2:$BA$2,0)+1,FALSE) -> 0.00622283391 | AJ31: =M31*VLOOKUP($B31,$AR$36:$AZ$47,MATCH(AJ$2,$AS$2:$BA$2,0)+1,FALSE) -> 0.09273466667 | AK31: =N31*VLOOKUP($B31,$AR$36:$AZ$47,MATCH(AK$2,$AS$2:$BA$2,0)+1,FALSE) -> 0.06655307218 | AL31: =O31*VLOOKUP($B31,$AR$36:$AZ$47,MATCH(AL$2,$AS$2:$BA$2,0)+1,FALSE) -> 0.05547218652 | AM31: =P31*VLOOKUP($B31,$AR$36:$AZ$47,MATCH(AM$2,$AS$2:$BA$2,0)+1,FALSE) -> 8.576988365e-06 | AN31: =Q31*VLOOKUP($B31,$AR$36:$AZ$47,MATCH(AN$2,$AS$2:$BA$2,0)+1,FALSE) -> 0.001665079838 | AO31: =R31*VLOOKUP($B31,$AR$36:$BA$47,MATCH(AO$2,$AS$2:$BA$2,0)+1,FALSE) -> 0 | AP31: 0.7795184402 | AR31: 9 | AS31: 164634000 | AT31: 214185000 | AU31: 1684000 | AV31: 52104000 | AW31: 55052000 | AX31: 47265000 | AY31: 0 | AZ31: 1116000
A32: 2006 | B32: 1 | C32: 2 | D32: 6 | F32: 2013 | G32: 1 | H32: 2 | I32: 6 | J32: 0.2620286812 | K32: 0.4062004898 | L32: 0.008418087479 | M32: 0.1075749071 | N32: 0.0885942 | O32: 0.065666 | P32: 1.713756668e-05 | Q32: 0.002178785549 | R32: 0 | S32: 0.9406782887 | V32: 0.2480768273 | W32: 0.09422074845 | X32: 0.3593411475 | Y32: 0.06982966533 | Z32: 0.06053333078 | AA32: 0.004707927806 | AB32: 8.576988365e-06 | AC32: 0.0015925556 | AD32: 0 | AE32: 0.8383107798 | AG32: =J32*VLOOKUP($B32,$AR$36:$AZ$47,MATCH(AG$2,$AS$2:$BA$2,0)+1,FALSE) -> 0.2514027724 | AH32: =K32*VLOOKUP($B32,$AR$36:$AZ$47,MATCH(AH$2,$AS$2:$BA$2,0)+1,FALSE) -> 0.3432164615 | AI32: =L32*VLOOKUP($B32,$AR$36:$AZ$47,MATCH(AI$2,$AS$2:$BA$2,0)+1,FALSE) -> 0.00622283391 | AJ32: =M32*VLOOKUP($B32,$AR$36:$AZ$47,MATCH(AJ$2,$AS$2:$BA$2,0)+1,FALSE) -> 0.09247560269 | AK32: =N32*VLOOKUP($B32,$AR$36:$AZ$47,MATCH(AK$2,$AS$2:$BA$2,0)+1,FALSE) -> 0.06929290205 | AL32: =O32*VLOOKUP($B32,$AR$36:$AZ$47,MATCH(AL$2,$AS$2:$BA$2,0)+1,FALSE) -> 0.05819466083 | AM32: =P32*VLOOKUP($B32,$AR$36:$AZ$47,MATCH(AM$2,$AS$2:$BA$2,0)+1,FALSE) -> 8.576988365e-06 | AN32: =Q32*VLOOKUP($B32,$AR$36:$AZ$47,MATCH(AN$2,$AS$2:$BA$2,0)+1,FALSE) -> 0.001665079838 | AO32: =R32*VLOOKUP($B32,$AR$36:$BA$47,MATCH(AO$2,$AS$2:$BA$2,0)+1,FALSE) -> 0 | AP32: 0.8224788901 | AR32: 10 | AS32: 165818000 | AT32: 220170000 | AU32: 2178000 | AV32: 53840000 | AW32: 54979000 | AX32: 47632000 | AY32: 0 | AZ32: 1125000
A33: 2006 | B33: 1 | C33: 2 | D33: 7 | F33: 2013 | G33: 1 | H33: 2 | I33: 7 | J33: 0.3019024692 | K33: 0.453381709 | L33: 0.008418087479 | M33: 0.1166164521 | N33: 0.1003631 | O33: 0.070529 | P33: 1.713756668e-05 | Q33: 0.002178785549 | R33: 0 | S33: 1.053406741 | V33: 0.2858275146 | W33: 0.102139892 | X33: 0.4010795351 | Y33: 0.0791058747 | Z33: 0.06501622281 | AA33: 0.004707927806 | AB33: 8.576988365e-06 | AC33: 0.0015925556 | AD33: 0 | AE33: 0.9394780996 | AG33: =J33*VLOOKUP($B33,$AR$36:$AZ$47,MATCH(AG$2,$AS$2:$BA$2,0)+1,FALSE) -> 0.2896595799 | AH33: =K33*VLOOKUP($B33,$AR$36:$AZ$47,MATCH(AH$2,$AS$2:$BA$2,0)+1,FALSE) -> 0.3830819257 | AI33: =L33*VLOOKUP($B33,$AR$36:$AZ$47,MATCH(AI$2,$AS$2:$BA$2,0)+1,FALSE) -> 0.00622283391 | AJ33: =M33*VLOOKUP($B33,$AR$36:$AZ$47,MATCH(AJ$2,$AS$2:$BA$2,0)+1,FALSE) -> 0.1002480688 | AK33: =N33*VLOOKUP($B33,$AR$36:$AZ$47,MATCH(AK$2,$AS$2:$BA$2,0)+1,FALSE) -> 0.07849780751 | AL33: =O33*VLOOKUP($B33,$AR$36:$AZ$47,MATCH(AL$2,$AS$2:$BA$2,0)+1,FALSE) -> 0.06250435893 | AM33: =P33*VLOOKUP($B33,$AR$36:$AZ$47,MATCH(AM$2,$AS$2:$BA$2,0)+1,FALSE) -> 8.576988365e-06 | AN33: =Q33*VLOOKUP($B33,$AR$36:$AZ$47,MATCH(AN$2,$AS$2:$BA$2,0)+1,FALSE) -> 0.001665079838 | AO33: =R33*VLOOKUP($B33,$AR$36:$BA$47,MATCH(AO$2,$AS$2:$BA$2,0)+1,FALSE) -> 0 | AP33: 0.9218882317 | AR33: 11 | AS33: 172468000 | AT33: 230007000 | AU33: 2387000 | AV33: 57201000 | AW33: 54568000 | AX33: 45925000 | AY33: 0 | AZ33: 1106000
A34: 2006 | B34: 1 | C34: 2 | D34: 8 | F34: 2013 | G34: 1 | H34: 2 | I34: 8 | J34: 0.3388310987 | K34: 0.5073727536 | L34: 0.005331455403 | M34: 0.1303630461 | N34: 0.1087932 | O34: 0.07523 | P34: 1.085379223e-05 | Q34: 0.002056339251 | R34: 0 | S34: 1.167988747 | V34: 0.3207898599 | W34: 0.1141800083 | X34: 0.4488421656 | Y34: 0.08575045258 | Z34: 0.06934977728 | AA34: 0.00298168761 | AB34: 5.432092631e-06 | AC34: 0.001503055035 | AD34: 0 | AE34: 1.043402438 | AG34: =J34*VLOOKUP($B34,$AR$36:$AZ$47,MATCH(AG$2,$AS$2:$BA$2,0)+1,FALSE) -> 0.3250906625 | AH34: =K34*VLOOKUP($B34,$AR$36:$AZ$47,MATCH(AH$2,$AS$2:$BA$2,0)+1,FALSE) -> 0.4287013077 | AI34: =L34*VLOOKUP($B34,$AR$36:$AZ$47,MATCH(AI$2,$AS$2:$BA$2,0)+1,FALSE) -> 0.003941128143 | AJ34: =M34*VLOOKUP($B34,$AR$36:$AZ$47,MATCH(AJ$2,$AS$2:$BA$2,0)+1,FALSE) -> 0.1120651794 | AK34: =N34*VLOOKUP($B34,$AR$36:$AZ$47,MATCH(AK$2,$AS$2:$BA$2,0)+1,FALSE) -> 0.08509131017 | AL34: =O34*VLOOKUP($B34,$AR$36:$AZ$47,MATCH(AL$2,$AS$2:$BA$2,0)+1,FALSE) -> 0.06667048906 | AM34: =P34*VLOOKUP($B34,$AR$36:$AZ$47,MATCH(AM$2,$AS$2:$BA$2,0)+1,FALSE) -> 5.432092631e-06 | AN34: =Q34*VLOOKUP($B34,$AR$36:$AZ$47,MATCH(AN$2,$AS$2:$BA$2,0)+1,FALSE) -> 0.001571503459 | AO34: =R34*VLOOKUP($B34,$AR$36:$BA$47,MATCH(AO$2,$AS$2:$BA$2,0)+1,FALSE) -> 0 | AP34: 1.023137012 | AR34: 12 | AS34: 211250000 | AT34: 255899000 | AU34: 2625000 | AV34: 64665000 | AW34: 57721000 | AX34: 47575000 | AY34: 0 | AZ34: 1132000
A35: 2006 | B35: 1 | C35: 2 | D35: 9 | F35: 2013 | G35: 1 | H35: 2 | I35: 9 | J35: 0.3046629755 | K35: 0.5382390317 | L35: 0 | M35: 0.1385447567 | N35: 0.1122572 | O35: 0.076987 | P35: 0 | Q35: 0.0018448411 | R35: 0 | S35: 1.172535805 | V35: 0.2884410363 | W35: 0.1213460557 | X35: 0.4761477058 | Y35: 0.08848076631 | Z35: 0.07096944442 | AA35: 0 | AB35: 0 | AC35: 0.00134846315 | AD35: 0 | AE35: 1.046733472 | AG35: =J35*VLOOKUP($B35,$AR$36:$AZ$47,MATCH(AG$2,$AS$2:$BA$2,0)+1,FALSE) -> 0.2923081409 | AH35: =K35*VLOOKUP($B35,$AR$36:$AZ$47,MATCH(AH$2,$AS$2:$BA$2,0)+1,FALSE) -> 0.4547815685 | AI35: =L35*VLOOKUP($B35,$AR$36:$AZ$47,MATCH(AI$2,$AS$2:$BA$2,0)+1,FALSE) -> 0 | AJ35: =M35*VLOOKUP($B35,$AR$36:$AZ$47,MATCH(AJ$2,$AS$2:$BA$2,0)+1,FALSE) -> 0.1190984982 | AK35: =N35*VLOOKUP($B35,$AR$36:$AZ$47,MATCH(AK$2,$AS$2:$BA$2,0)+1,FALSE) -> 0.08780063666 | AL35: =O35*VLOOKUP($B35,$AR$36:$AZ$47,MATCH(AL$2,$AS$2:$BA$2,0)+1,FALSE) -> 0.0682275813 | AM35: =P35*VLOOKUP($B35,$AR$36:$AZ$47,MATCH(AM$2,$AS$2:$BA$2,0)+1,FALSE) -> 0 | AN35: =Q35*VLOOKUP($B35,$AR$36:$AZ$47,MATCH(AN$2,$AS$2:$BA$2,0)+1,FALSE) -> 0.001409871532 | AO35: =R35*VLOOKUP($B35,$AR$36:$BA$47,MATCH(AO$2,$AS$2:$BA$2,0)+1,FALSE) -> 0 | AP35: 1.023626297
A36: 2006 | B36: 1 | C36: 2 | D36: 10 | F36: 2013 | G36: 1 | H36: 2 | I36: 10 | J36: 0.2830700149 | K36: 0.551371747 | L36: 0 | M36: 0.1394332963 | N36: 0.1152389 | O36: 0.079068 | P36: 0 | Q36: 0.0018448411 | R36: 0 | S36: 1.170026799 | V36: 0.2679978042 | W36: 0.1221242937 | X36: 0.4877654293 | Y36: 0.09083093272 | Z36: 0.07288778665 | AA36: 0 | AB36: 0 | AC36: 0.00134846315 | AD36: 0 | AE36: 1.04295471 | AG36: =J36*VLOOKUP($B36,$AR$36:$AZ$47,MATCH(AG$2,$AS$2:$BA$2,0)+1,FALSE) -> 0.2715908281 | AH36: =K36*VLOOKUP($B36,$AR$36:$AZ$47,MATCH(AH$2,$AS$2:$BA$2,0)+1,FALSE) -> 0.4658779709 | AI36: =L36*VLOOKUP($B36,$AR$36:$AZ$47,MATCH(AI$2,$AS$2:$BA$2,0)+1,FALSE) -> 0 | AJ36: =M36*VLOOKUP($B36,$AR$36:$AZ$47,MATCH(AJ$2,$AS$2:$BA$2,0)+1,FALSE) -> 0.1198623217 | AK36: =N36*VLOOKUP($B36,$AR$36:$AZ$47,MATCH(AK$2,$AS$2:$BA$2,0)+1,FALSE) -> 0.09013273793 | AL36: =O36*VLOOKUP($B36,$AR$36:$AZ$47,MATCH(AL$2,$AS$2:$BA$2,0)+1,FALSE) -> 0.0700718095 | AM36: =P36*VLOOKUP($B36,$AR$36:$AZ$47,MATCH(AM$2,$AS$2:$BA$2,0)+1,FALSE) -> 0 | AN36: =Q36*VLOOKUP($B36,$AR$36:$AZ$47,MATCH(AN$2,$AS$2:$BA$2,0)+1,FALSE) -> 0.001409871532 | AO36: =R36*VLOOKUP($B36,$AR$36:$BA$47,MATCH(AO$2,$AS$2:$BA$2,0)+1,FALSE) -> 0 | AP36: 1.01894554 | AR36: =AR10 -> 1 | AS36: =AS23/AS10 -> 0.9594475352 | AT36: =AT23/AT10 -> 0.8449434949 | AU36: =AU23/AU10 -> 0.7392218156 | AV36: 0.8596391595 | AW36: 0.7821381315 | AX36: 0.8862221063 | AY36: =$AY$6 -> 0.5004787743 | AZ36: 0.7642238307 | BA36: 1
A37: 2006 | B37: 1 | C37: 2 | D37: 11 | F37: 2013 | G37: 1 | H37: 2 | I37: 11 | J37: 0.2733185867 | K37: 0.553195663 | L37: 0 | M37: 0.1409407701 | N37: 0.115644 | O37: 0.080142 | P37: 0 | Q37: 0.0018448411 | R37: 0 | S37: 1.165085861 | V37: 0.2587655959 | W37: 0.1234446323 | X37: 0.4893789381 | Y37: 0.09115023125 | Z37: 0.0738778393 | AA37: 0 | AB37: 0 | AC37: 0.00134846315 | AD37: 0 | AE37: 1.0379657 | AG37: =J37*VLOOKUP($B37,$AR$36:$AZ$47,MATCH(AG$2,$AS$2:$BA$2,0)+1,FALSE) -> 0.2622348444 | AH37: =K37*VLOOKUP($B37,$AR$36:$AZ$47,MATCH(AH$2,$AS$2:$BA$2,0)+1,FALSE) -> 0.4674190768 | AI37: =L37*VLOOKUP($B37,$AR$36:$AZ$47,MATCH(AI$2,$AS$2:$BA$2,0)+1,FALSE) -> 0 | AJ37: =M37*VLOOKUP($B37,$AR$36:$AZ$47,MATCH(AJ$2,$AS$2:$BA$2,0)+1,FALSE) -> 0.1211582051 | AK37: =N37*VLOOKUP($B37,$AR$36:$AZ$47,MATCH(AK$2,$AS$2:$BA$2,0)+1,FALSE) -> 0.09044958208 | AL37: =O37*VLOOKUP($B37,$AR$36:$AZ$47,MATCH(AL$2,$AS$2:$BA$2,0)+1,FALSE) -> 0.07102361204 | AM37: =P37*VLOOKUP($B37,$AR$36:$AZ$47,MATCH(AM$2,$AS$2:$BA$2,0)+1,FALSE) -> 0 | AN37: =Q37*VLOOKUP($B37,$AR$36:$AZ$47,MATCH(AN$2,$AS$2:$BA$2,0)+1,FALSE) -> 0.001409871532 | AO37: =R37*VLOOKUP($B37,$AR$36:$BA$47,MATCH(AO$2,$AS$2:$BA$2,0)+1,FALSE) -> 0 | AP37: 1.013695192 | AR37: =AR11 -> 2 | AS37: =AS24/AS11 -> 0.9760917854 | AT37: 0.8994346345 | AU37: 0.6809633168 | AV37: 0.9220385565 | AW37: 0.7901336384 | AX37: 0.8789470566 | AY37: 0.5004787743 | AZ37: 0.7712746446 | BA37: 1
A38: 2006 | B38: 1 | C38: 2 | D38: 12 | F38: 2013 | G38: 1 | H38: 2 | I38: 12 | J38: 0.2754722933 | K38: 0.5459944342 | L38: 0 | M38: 0.1327212378 | N38: 0.1159605 | O38: 0.080861 | P38: 0 | Q38: 0.0018448411 | R38: 0 | S38: 1.152854306 | V38: 0.2608046272 | W38: 0.1162454581 | X38: 0.4830084441 | Y38: 0.09139969554 | Z38: 0.07454063991 | AA38: 0 | AB38: 0 | AC38: 0.00134846315 | AD38: 0 | AE38: 1.027347328 | AG38: =J38*VLOOKUP($B38,$AR$36:$AZ$47,MATCH(AG$2,$AS$2:$BA$2,0)+1,FALSE) -> 0.2643012128 | AH38: =K38*VLOOKUP($B38,$AR$36:$AZ$47,MATCH(AH$2,$AS$2:$BA$2,0)+1,FALSE) -> 0.4613344455 | AI38: =L38*VLOOKUP($B38,$AR$36:$AZ$47,MATCH(AI$2,$AS$2:$BA$2,0)+1,FALSE) -> 0 | AJ38: =M38*VLOOKUP($B38,$AR$36:$AZ$47,MATCH(AJ$2,$AS$2:$BA$2,0)+1,FALSE) -> 0.1140923733 | AK38: =N38*VLOOKUP($B38,$AR$36:$AZ$47,MATCH(AK$2,$AS$2:$BA$2,0)+1,FALSE) -> 0.0906971288 | AL38: =O38*VLOOKUP($B38,$AR$36:$AZ$47,MATCH(AL$2,$AS$2:$BA$2,0)+1,FALSE) -> 0.07166080574 | AM38: =P38*VLOOKUP($B38,$AR$36:$AZ$47,MATCH(AM$2,$AS$2:$BA$2,0)+1,FALSE) -> 0 | AN38: =Q38*VLOOKUP($B38,$AR$36:$AZ$47,MATCH(AN$2,$AS$2:$BA$2,0)+1,FALSE) -> 0.001409871532 | AO38: =R38*VLOOKUP($B38,$AR$36:$BA$47,MATCH(AO$2,$AS$2:$BA$2,0)+1,FALSE) -> 0 | AP38: 1.003495838 | AR38: 3 | AS38: =AS25/AS12 -> 0.9141918037 | AT38: 0.8992777977 | AU38: 0.5916826312 | AV38: 0.8886515239 | AW38: 0.8022388472 | AX38: 0.9059841791 | AY38: 0.5004787743 | AZ38: 0.6885544742 | BA38: 1
A39: 2006 | B39: 1 | C39: 2 | D39: 13 | F39: 2013 | G39: 1 | H39: 2 | I39: 13 | J39: 0.2762280887 | K39: 0.5406784616 | L39: 0 | M39: 0.1298342962 | N39: 0.1155276 | O39: 0.080138 | P39: 0 | Q39: 0.0018448411 | R39: 0 | S39: 1.144251288 | V39: 0.2615201799 | W39: 0.1137168964 | X39: 0.4783057227 | Y39: 0.09105848514 | Z39: 0.07387415196 | AA39: 0 | AB39: 0 | AC39: 0.00134846315 | AD39: 0 | AE39: 1.019823899 | AG39: =J39*VLOOKUP($B39,$AR$36:$AZ$47,MATCH(AG$2,$AS$2:$BA$2,0)+1,FALSE) -> 0.2650263588 | AH39: =K39*VLOOKUP($B39,$AR$36:$AZ$47,MATCH(AH$2,$AS$2:$BA$2,0)+1,FALSE) -> 0.456842749 | AI39: =L39*VLOOKUP($B39,$AR$36:$AZ$47,MATCH(AI$2,$AS$2:$BA$2,0)+1,FALSE) -> 0 | AJ39: =M39*VLOOKUP($B39,$AR$36:$AZ$47,MATCH(AJ$2,$AS$2:$BA$2,0)+1,FALSE) -> 0.1116106452 | AK39: =N39*VLOOKUP($B39,$AR$36:$AZ$47,MATCH(AK$2,$AS$2:$BA$2,0)+1,FALSE) -> 0.09035854121 | AL39: =O39*VLOOKUP($B39,$AR$36:$AZ$47,MATCH(AL$2,$AS$2:$BA$2,0)+1,FALSE) -> 0.07102006715 | AM39: =P39*VLOOKUP($B39,$AR$36:$AZ$47,MATCH(AM$2,$AS$2:$BA$2,0)+1,FALSE) -> 0 | AN39: =Q39*VLOOKUP($B39,$AR$36:$AZ$47,MATCH(AN$2,$AS$2:$BA$2,0)+1,FALSE) -> 0.001409871532 | AO39: =R39*VLOOKUP($B39,$AR$36:$BA$47,MATCH(AO$2,$AS$2:$BA$2,0)+1,FALSE) -> 0 | AP39: 0.9962682329 | AR39: 4 | AS39: =AS26/AS13 -> 0.8901091543 | AT39: 0.9067893763 | AU39: 0.5331575896 | AV39: 0.9059615697 | AW39: 0.7815114035 | AX39: 0.9006275294 | AY39: 0.5004787743 | AZ39: 0.7567284953 | BA39: 1
A40: 2006 | B40: 1 | C40: 2 | D40: 14 | F40: 2013 | G40: 1 | H40: 2 | I40: 14 | J40: 0.2723956611 | K40: 0.5366550624 | L40: 0 | M40: 0.1252465637 | N40: 0.1161341 | O40: 0.080128 | P40: 0 | Q40: 0.0018448411 | R40: 0 | S40: 1.132404228 | V40: 0.2578918119 | W40: 0.1096986769 | X40: 0.4747464634 | Y40: 0.0915365265 | Z40: 0.07386493359 | AA40: 0 | AB40: 0 | AC40: 0.00134846315 | AD40: 0 | AE40: 1.009086875 | AG40: =J40*VLOOKUP($B40,$AR$36:$AZ$47,MATCH(AG$2,$AS$2:$BA$2,0)+1,FALSE) -> 0.2613493456 | AH40: =K40*VLOOKUP($B40,$AR$36:$AZ$47,MATCH(AH$2,$AS$2:$BA$2,0)+1,FALSE) -> 0.453443204 | AI40: =L40*VLOOKUP($B40,$AR$36:$AZ$47,MATCH(AI$2,$AS$2:$BA$2,0)+1,FALSE) -> 0 | AJ40: =M40*VLOOKUP($B40,$AR$36:$AZ$47,MATCH(AJ$2,$AS$2:$BA$2,0)+1,FALSE) -> 0.1076668508 | AK40: =N40*VLOOKUP($B40,$AR$36:$AZ$47,MATCH(AK$2,$AS$2:$BA$2,0)+1,FALSE) -> 0.09083290798 | AL40: =O40*VLOOKUP($B40,$AR$36:$AZ$47,MATCH(AL$2,$AS$2:$BA$2,0)+1,FALSE) -> 0.07101120493 | AM40: =P40*VLOOKUP($B40,$AR$36:$AZ$47,MATCH(AM$2,$AS$2:$BA$2,0)+1,FALSE) -> 0 | AN40: =Q40*VLOOKUP($B40,$AR$36:$AZ$47,MATCH(AN$2,$AS$2:$BA$2,0)+1,FALSE) -> 0.001409871532 | AO40: =R40*VLOOKUP($B40,$AR$36:$BA$47,MATCH(AO$2,$AS$2:$BA$2,0)+1,FALSE) -> 0 | AP40: 0.9857133848 | AR40: 5 | AS40: =AS27/AS14 -> 0.8535970669 | AT40: 0.8896449493 | AU40: 0.3680415812 | AV40: 0.8578808943 | AW40: 0.7647877457 | AX40: 0.8927912601 | AY40: 0.5004787743 | AZ40: 0.7273517087 | BA40: 1
A41: 2006 | B41: 1 | C41: 2 | D41: 15 | F41: 2013 | G41: 1 | H41: 2 | I41: 15 | J41: 0.2819952872 | K41: 0.5259091481 | L41: 0 | M41: 0.1178174343 | N41: 0.1154217 | O41: 0.079494 | P41: 0 | Q41: 0.0018448411 | R41: 0 | S41: 1.122482411 | V41: 0.2669803009 | W41: 0.1031917865 | X41: 0.4652401992 | Y41: 0.0909750151 | Z41: 0.0732804891 | AA41: 0 | AB41: 0 | AC41: 0.00134846315 | AD41: 0 | AE41: 1.001016254 | AG41: =J41*VLOOKUP($B41,$AR$36:$AZ$47,MATCH(AG$2,$AS$2:$BA$2,0)+1,FALSE) -> 0.2705596833 | AH41: =K41*VLOOKUP($B41,$AR$36:$AZ$47,MATCH(AH$2,$AS$2:$BA$2,0)+1,FALSE) -> 0.4443635136 | AI41: =L41*VLOOKUP($B41,$AR$36:$AZ$47,MATCH(AI$2,$AS$2:$BA$2,0)+1,FALSE) -> 0 | AJ41: =M41*VLOOKUP($B41,$AR$36:$AZ$47,MATCH(AJ$2,$AS$2:$BA$2,0)+1,FALSE) -> 0.1012804802 | AK41: =N41*VLOOKUP($B41,$AR$36:$AZ$47,MATCH(AK$2,$AS$2:$BA$2,0)+1,FALSE) -> 0.09027571278 | AL41: =O41*VLOOKUP($B41,$AR$36:$AZ$47,MATCH(AL$2,$AS$2:$BA$2,0)+1,FALSE) -> 0.07044934012 | AM41: =P41*VLOOKUP($B41,$AR$36:$AZ$47,MATCH(AM$2,$AS$2:$BA$2,0)+1,FALSE) -> 0 | AN41: =Q41*VLOOKUP($B41,$AR$36:$AZ$47,MATCH(AN$2,$AS$2:$BA$2,0)+1,FALSE) -> 0.001409871532 | AO41: =R41*VLOOKUP($B41,$AR$36:$BA$47,MATCH(AO$2,$AS$2:$BA$2,0)+1,FALSE) -> 0 | AP41: 0.9783386016 | AR41: 6 | AS41: =AS28/AS15 -> 0.9500414074 | AT41: 0.8691172577 | AU41: 0.3022890602 | AV41: 0.8426096185 | AW41: 0.8138631326 | AX41: 0.9023606582 | AY41: 0.5004787743 | AZ41: 0.7490337114 | BA41: 1 | BB41: Monthly Scaling Factors
A42: 2006 | B42: 1 | C42: 2 | D42: 16 | F42: 2013 | G42: 1 | H42: 2 | I42: 16 | J42: 0.3068130859 | K42: 0.5198895586 | L42: 0 | M42: 0.115966764 | N42: 0.1150083 | O42: 0.078273 | P42: 0 | Q42: 0.0018448411 | R42: 0 | S42: 1.13779555 | V42: 0.2904766629 | W42: 0.1015708551 | X42: 0.4599150303 | Y42: 0.09064917454 | Z42: 0.07215492645 | AA42: 0 | AB42: 0 | AC42: 0.00134846315 | AD42: 0 | AE42: 1.016115113 | AG42: =J42*VLOOKUP($B42,$AR$36:$AZ$47,MATCH(AG$2,$AS$2:$BA$2,0)+1,FALSE) -> 0.294371059 | AH42: =K42*VLOOKUP($B42,$AR$36:$AZ$47,MATCH(AH$2,$AS$2:$BA$2,0)+1,FALSE) -> 0.4392773006 | AI42: =L42*VLOOKUP($B42,$AR$36:$AZ$47,MATCH(AI$2,$AS$2:$BA$2,0)+1,FALSE) -> 0 | AJ42: =M42*VLOOKUP($B42,$AR$36:$AZ$47,MATCH(AJ$2,$AS$2:$BA$2,0)+1,FALSE) -> 0.09968957151 | AK42: =N42*VLOOKUP($B42,$AR$36:$AZ$47,MATCH(AK$2,$AS$2:$BA$2,0)+1,FALSE) -> 0.08995237687 | AL42: =O42*VLOOKUP($B42,$AR$36:$AZ$47,MATCH(AL$2,$AS$2:$BA$2,0)+1,FALSE) -> 0.06936726293 | AM42: =P42*VLOOKUP($B42,$AR$36:$AZ$47,MATCH(AM$2,$AS$2:$BA$2,0)+1,FALSE) -> 0 | AN42: =Q42*VLOOKUP($B42,$AR$36:$AZ$47,MATCH(AN$2,$AS$2:$BA$2,0)+1,FALSE) -> 0.001409871532 | AO42: =R42*VLOOKUP($B42,$AR$36:$BA$47,MATCH(AO$2,$AS$2:$BA$2,0)+1,FALSE) -> 0 | AP42: 0.9940674425 | AR42: 7 | AS42: =AS29/AS16 -> 1.099209619 | AT42: 0.8939370171 | AU42: 0.3193744016 | AV42: 0.8790179844 | AW42: 0.7983271627 | AX42: 0.8978877852 | AY42: 0.5004787743 | AZ42: 0.736144304 | BA42: 1
A43: 2006 | B43: 1 | C43: 2 | D43: 17 | F43: 2013 | G43: 1 | H43: 2 | I43: 17 | J43: 0.3578268124 | K43: 0.5238694436 | L43: 0.002665727702 | M43: 0.1243793411 | N43: 0.1135343 | O43: 0.077043 | P43: 5.426896115e-06 | Q43: 0.001950590175 | R43: 0 | S43: 1.201274642 | V43: 0.338774137 | W43: 0.1089391098 | X43: 0.4634357953 | Y43: 0.08948737245 | Z43: 0.07102106727 | AA43: 0.001490843805 | AB43: 2.716046316e-06 | AC43: 0.001425759093 | AD43: 0 | AE43: 1.074576801 | AG43: =J43*VLOOKUP($B43,$AR$36:$AZ$47,MATCH(AG$2,$AS$2:$BA$2,0)+1,FALSE) -> 0.3433160532 | AH43: =K43*VLOOKUP($B43,$AR$36:$AZ$47,MATCH(AH$2,$AS$2:$BA$2,0)+1,FALSE) -> 0.4426400785 | AI43: =L43*VLOOKUP($B43,$AR$36:$AZ$47,MATCH(AI$2,$AS$2:$BA$2,0)+1,FALSE) -> 0.001970564071 | AJ43: =M43*VLOOKUP($B43,$AR$36:$AZ$47,MATCH(AJ$2,$AS$2:$BA$2,0)+1,FALSE) -> 0.1069213523 | AK43: =N43*VLOOKUP($B43,$AR$36:$AZ$47,MATCH(AK$2,$AS$2:$BA$2,0)+1,FALSE) -> 0.08879950527 | AL43: =O43*VLOOKUP($B43,$AR$36:$AZ$47,MATCH(AL$2,$AS$2:$BA$2,0)+1,FALSE) -> 0.06827720973 | AM43: =P43*VLOOKUP($B43,$AR$36:$AZ$47,MATCH(AM$2,$AS$2:$BA$2,0)+1,FALSE) -> 2.716046316e-06 | AN43: =Q43*VLOOKUP($B43,$AR$36:$AZ$47,MATCH(AN$2,$AS$2:$BA$2,0)+1,FALSE) -> 0.001490687496 | AO43: =R43*VLOOKUP($B43,$AR$36:$BA$47,MATCH(AO$2,$AS$2:$BA$2,0)+1,FALSE) -> 0 | AP43: 1.053418167 | AR43: 8 | AS43: =AS30/AS17 -> 1.042041968 | AT43: 0.9005819313 | AU43: 0.4054115734 | AV43: 0.8818456085 | AW43: 0.8028428706 | AX43: 0.935352999 | AY43: 0.5004787743 | AZ43: 0.7246037129 | BA43: 1
A44: 2006 | B44: 1 | C44: 2 | D44: 18 | F44: 2013 | G44: 1 | H44: 2 | I44: 18 | J44: 0.4269791443 | K44: 0.5322114866 | L44: 0.008418087479 | M44: 0.1412207416 | N44: 0.111599 | O44: 0.076067 | P44: 1.713756668e-05 | Q44: 0.002178785549 | R44: 0 | S44: 1.298691383 | V44: 0.4042444169 | W44: 0.1236898487 | X44: 0.4708154991 | Y44: 0.08796197517 | Z44: 0.07012135462 | AA44: 0.004707927806 | AB44: 8.576988365e-06 | AC44: 0.0015925556 | AD44: 0 | AE44: 1.163142155 | AG44: =J44*VLOOKUP($B44,$AR$36:$AZ$47,MATCH(AG$2,$AS$2:$BA$2,0)+1,FALSE) -> 0.4096640876 | AH44: =K44*VLOOKUP($B44,$AR$36:$AZ$47,MATCH(AH$2,$AS$2:$BA$2,0)+1,FALSE) -> 0.4496886335 | AI44: =L44*VLOOKUP($B44,$AR$36:$AZ$47,MATCH(AI$2,$AS$2:$BA$2,0)+1,FALSE) -> 0.00622283391 | AJ44: =M44*VLOOKUP($B44,$AR$36:$AZ$47,MATCH(AJ$2,$AS$2:$BA$2,0)+1,FALSE) -> 0.1213988797 | AK44: =N44*VLOOKUP($B44,$AR$36:$AZ$47,MATCH(AK$2,$AS$2:$BA$2,0)+1,FALSE) -> 0.08728583334 | AL44: =O44*VLOOKUP($B44,$AR$36:$AZ$47,MATCH(AL$2,$AS$2:$BA$2,0)+1,FALSE) -> 0.06741225696 | AM44: =P44*VLOOKUP($B44,$AR$36:$AZ$47,MATCH(AM$2,$AS$2:$BA$2,0)+1,FALSE) -> 8.576988365e-06 | AN44: =Q44*VLOOKUP($B44,$AR$36:$AZ$47,MATCH(AN$2,$AS$2:$BA$2,0)+1,FALSE) -> 0.001665079838 | AO44: =R44*VLOOKUP($B44,$AR$36:$BA$47,MATCH(AO$2,$AS$2:$BA$2,0)+1,FALSE) -> 0 | AP44: 1.143346182 | AR44: 9 | AS44: =AS31/AS18 -> 0.9084043465 | AT44: 0.8888285116 | AU44: 0.5563965452 | AV44: 0.867798152 | AW44: 0.7916670574 | AX44: 0.9999873692 | AY44: 0.5004787743 | AZ44: 0.7157617939 | BA44: 1
A45: 2006 | B45: 1 | C45: 2 | D45: 19 | F45: 2013 | G45: 1 | H45: 2 | I45: 19 | J45: 0.4710125695 | K45: 0.5023815889 | L45: 0.008418087479 | M45: 0.1256118043 | N45: 0.1032021 | O45: 0.071157 | P45: 1.713756668e-05 | Q45: 0.002178785549 | R45: 0 | S45: 1.283979073 | V45: 0.4459332593 | W45: 0.1100185771 | X45: 0.4444267823 | Y45: 0.08134356543 | Z45: 0.06559513627 | AA45: 0.004707927806 | AB45: 8.576988365e-06 | AC45: 0.0015925556 | AD45: 0 | AE45: 1.153626381 | AG45: =J45*VLOOKUP($B45,$AR$36:$AZ$47,MATCH(AG$2,$AS$2:$BA$2,0)+1,FALSE) -> 0.4519118488 | AH45: =K45*VLOOKUP($B45,$AR$36:$AZ$47,MATCH(AH$2,$AS$2:$BA$2,0)+1,FALSE) -> 0.4244840555 | AI45: =L45*VLOOKUP($B45,$AR$36:$AZ$47,MATCH(AI$2,$AS$2:$BA$2,0)+1,FALSE) -> 0.00622283391 | AJ45: =M45*VLOOKUP($B45,$AR$36:$AZ$47,MATCH(AJ$2,$AS$2:$BA$2,0)+1,FALSE) -> 0.1079808258 | AK45: =N45*VLOOKUP($B45,$AR$36:$AZ$47,MATCH(AK$2,$AS$2:$BA$2,0)+1,FALSE) -> 0.08071829767 | AL45: =O45*VLOOKUP($B45,$AR$36:$AZ$47,MATCH(AL$2,$AS$2:$BA$2,0)+1,FALSE) -> 0.06306090642 | AM45: =P45*VLOOKUP($B45,$AR$36:$AZ$47,MATCH(AM$2,$AS$2:$BA$2,0)+1,FALSE) -> 8.576988365e-06 | AN45: =Q45*VLOOKUP($B45,$AR$36:$AZ$47,MATCH(AN$2,$AS$2:$BA$2,0)+1,FALSE) -> 0.001665079838 | AO45: =R45*VLOOKUP($B45,$AR$36:$BA$47,MATCH(AO$2,$AS$2:$BA$2,0)+1,FALSE) -> 0 | AP45: 1.136052425 | AR45: 10 | AS45: =AS32/AS19 -> 0.8981981927 | AT45: 0.8827163666 | AU45: 0.7091372832 | AV45: 0.8605545226 | AW45: 0.772223585 | AX45: 0.9832611311 | AY45: 0.5004787743 | AZ45: 0.7162357143 | BA45: 1
A46: 2006 | B46: 1 | C46: 2 | D46: 20 | F46: 2013 | G46: 1 | H46: 2 | I46: 20 | J46: 0.4713815473 | K46: 0.4858921078 | L46: 0.008418087479 | M46: 0.1197004001 | N46: 0.0986615 | O46: 0.069863 | P46: 1.713756668e-05 | Q46: 0.002178785549 | R46: 0 | S46: 1.256112566 | V46: 0.4462825907 | W46: 0.1048410042 | X46: 0.4298395299 | Y46: 0.07776467902 | Z46: 0.06440227954 | AA46: 0.004707927806 | AB46: 8.576988365e-06 | AC46: 0.0015925556 | AD46: 0 | AE46: 1.129439144 | AG46: =J46*VLOOKUP($B46,$AR$36:$AZ$47,MATCH(AG$2,$AS$2:$BA$2,0)+1,FALSE) -> 0.4522658637 | AH46: =K46*VLOOKUP($B46,$AR$36:$AZ$47,MATCH(AH$2,$AS$2:$BA$2,0)+1,FALSE) -> 0.4105513757 | AI46: =L46*VLOOKUP($B46,$AR$36:$AZ$47,MATCH(AI$2,$AS$2:$BA$2,0)+1,FALSE) -> 0.00622283391 | AJ46: =M46*VLOOKUP($B46,$AR$36:$AZ$47,MATCH(AJ$2,$AS$2:$BA$2,0)+1,FALSE) -> 0.1028991513 | AK46: =N46*VLOOKUP($B46,$AR$36:$AZ$47,MATCH(AK$2,$AS$2:$BA$2,0)+1,FALSE) -> 0.07716692127 | AL46: =O46*VLOOKUP($B46,$AR$36:$AZ$47,MATCH(AL$2,$AS$2:$BA$2,0)+1,FALSE) -> 0.06191413501 | AM46: =P46*VLOOKUP($B46,$AR$36:$AZ$47,MATCH(AM$2,$AS$2:$BA$2,0)+1,FALSE) -> 8.576988365e-06 | AN46: =Q46*VLOOKUP($B46,$AR$36:$AZ$47,MATCH(AN$2,$AS$2:$BA$2,0)+1,FALSE) -> 0.001665079838 | AO46: =R46*VLOOKUP($B46,$AR$36:$BA$47,MATCH(AO$2,$AS$2:$BA$2,0)+1,FALSE) -> 0 | AP46: 1.112693938 | AR46: 11 | AS46: =AS33/AS20 -> 0.886811145 | AT46: 0.8862118433 | AU46: 0.737586715 | AV46: 0.8775023429 | AW46: 0.7776554075 | AX46: 0.9315718724 | AY46: 0.5004787743 | AZ46: 0.7050781953 | BA46: 1
A47: 2006 | B47: 1 | C47: 2 | D47: 21 | F47: 2013 | G47: 1 | H47: 2 | I47: 21 | J47: 0.4411442145 | K47: 0.481144809 | L47: 0.008418087479 | M47: 0.1289303352 | N47: 0.0969718 | O47: 0.06898 | P47: 1.713756668e-05 | Q47: 0.002178785549 | R47: 0 | S47: 1.227785169 | V47: 0.4176552605 | W47: 0.1129251515 | X47: 0.4256398802 | Y47: 0.07643286288 | Z47: 0.06358829771 | AA47: 0.004707927806 | AB47: 8.576988365e-06 | AC47: 0.0015925556 | AD47: 0 | AE47: 1.102550513 | AG47: =J47*VLOOKUP($B47,$AR$36:$AZ$47,MATCH(AG$2,$AS$2:$BA$2,0)+1,FALSE) -> 0.4232547292 | AH47: =K47*VLOOKUP($B47,$AR$36:$AZ$47,MATCH(AH$2,$AS$2:$BA$2,0)+1,FALSE) -> 0.4065401765 | AI47: =L47*VLOOKUP($B47,$AR$36:$AZ$47,MATCH(AI$2,$AS$2:$BA$2,0)+1,FALSE) -> 0.00622283391 | AJ47: =M47*VLOOKUP($B47,$AR$36:$AZ$47,MATCH(AJ$2,$AS$2:$BA$2,0)+1,FALSE) -> 0.110833565 | AK47: =N47*VLOOKUP($B47,$AR$36:$AZ$47,MATCH(AK$2,$AS$2:$BA$2,0)+1,FALSE) -> 0.07584534246 | AL47: =O47*VLOOKUP($B47,$AR$36:$AZ$47,MATCH(AL$2,$AS$2:$BA$2,0)+1,FALSE) -> 0.06113160089 | AM47: =P47*VLOOKUP($B47,$AR$36:$AZ$47,MATCH(AM$2,$AS$2:$BA$2,0)+1,FALSE) -> 8.576988365e-06 | AN47: =Q47*VLOOKUP($B47,$AR$36:$AZ$47,MATCH(AN$2,$AS$2:$BA$2,0)+1,FALSE) -> 0.001665079838 | AO47: =R47*VLOOKUP($B47,$AR$36:$BA$47,MATCH(AO$2,$AS$2:$BA$2,0)+1,FALSE) -> 0 | AP47: 1.085501905 | AR47: 12 | AS47: =AS34/AS21 -> 0.9530606109 | AT47: 0.8648392313 | AU47: 0.7162497387 | AV47: 0.8692256994 | AW47: 0.779667277 | AX47: 0.9638132541 | AY47: 0.5004787743 | AZ47: 0.7181610831 | BA47: 1
A48: 2006 | B48: 1 | C48: 2 | D48: 22 | F48: 2013 | G48: 1 | H48: 2 | I48: 22 | J48: 0.4000817584 | K48: 0.4619667209 | L48: 0.008418087479 | M48: 0.134319575 | N48: 0.0949887 | O48: 0.068045 | P48: 1.713756668e-05 | Q48: 0.002178785549 | R48: 0 | S48: 1.170015765 | V48: 0.3787791963 | W48: 0.1176453806 | X48: 0.4086741788 | Y48: 0.07486978979 | Z48: 0.06272638037 | AA48: 0.004707927806 | AB48: 8.576988365e-06 | AC48: 0.0015925556 | AD48: 0 | AE48: 1.049003986 | AG48: =J48*VLOOKUP($B48,$AR$36:$AZ$47,MATCH(AG$2,$AS$2:$BA$2,0)+1,FALSE) -> 0.3838574569 | AH48: =K48*VLOOKUP($B48,$AR$36:$AZ$47,MATCH(AH$2,$AS$2:$BA$2,0)+1,FALSE) -> 0.3903357756 | AI48: =L48*VLOOKUP($B48,$AR$36:$AZ$47,MATCH(AI$2,$AS$2:$BA$2,0)+1,FALSE) -> 0.00622283391 | AJ48: =M48*VLOOKUP($B48,$AR$36:$AZ$47,MATCH(AJ$2,$AS$2:$BA$2,0)+1,FALSE) -> 0.1154663666 | AK48: =N48*VLOOKUP($B48,$AR$36:$AZ$47,MATCH(AK$2,$AS$2:$BA$2,0)+1,FALSE) -> 0.07429428434 | AL48: =O48*VLOOKUP($B48,$AR$36:$AZ$47,MATCH(AL$2,$AS$2:$BA$2,0)+1,FALSE) -> 0.06030298322 | AM48: =P48*VLOOKUP($B48,$AR$36:$AZ$47,MATCH(AM$2,$AS$2:$BA$2,0)+1,FALSE) -> 8.576988365e-06 | AN48: =Q48*VLOOKUP($B48,$AR$36:$AZ$47,MATCH(AN$2,$AS$2:$BA$2,0)+1,FALSE) -> 0.001665079838 | AO48: =R48*VLOOKUP($B48,$AR$36:$BA$47,MATCH(AO$2,$AS$2:$BA$2,0)+1,FALSE) -> 0 | AP48: 1.032153357
A49: 2006 | B49: 1 | C49: 2 | D49: 23 | F49: 2013 | G49: 1 | H49: 2 | I49: 23 | J49: 0.351399832 | K49: 0.4363158784 | L49: 0.008418087479 | M49: 0.1300107888 | N49: 0.0928527 | O49: 0.066752 | P49: 1.713756668e-05 | Q49: 0.002178785549 | R49: 0 | S49: 1.08794521 | V49: 0.3326893645 | W49: 0.1138714795 | X49: 0.3859824209 | Y49: 0.07318620142 | Z49: 0.06153444547 | AA49: 0.004707927806 | AB49: 8.576988365e-06 | AC49: 0.0015925556 | AD49: 0 | AE49: 0.9735729722 | AG49: =J49*VLOOKUP($B49,$AR$36:$AZ$47,MATCH(AG$2,$AS$2:$BA$2,0)+1,FALSE) -> 0.3371497027 | AH49: =K49*VLOOKUP($B49,$AR$36:$AZ$47,MATCH(AH$2,$AS$2:$BA$2,0)+1,FALSE) -> 0.3686622632 | AI49: =L49*VLOOKUP($B49,$AR$36:$AZ$47,MATCH(AI$2,$AS$2:$BA$2,0)+1,FALSE) -> 0.00622283391 | AJ49: =M49*VLOOKUP($B49,$AR$36:$AZ$47,MATCH(AJ$2,$AS$2:$BA$2,0)+1,FALSE) -> 0.1117623652 | AK49: =N49*VLOOKUP($B49,$AR$36:$AZ$47,MATCH(AK$2,$AS$2:$BA$2,0)+1,FALSE) -> 0.07262363729 | AL49: =O49*VLOOKUP($B49,$AR$36:$AZ$47,MATCH(AL$2,$AS$2:$BA$2,0)+1,FALSE) -> 0.05915709804 | AM49: =P49*VLOOKUP($B49,$AR$36:$AZ$47,MATCH(AM$2,$AS$2:$BA$2,0)+1,FALSE) -> 8.576988365e-06 | AN49: =Q49*VLOOKUP($B49,$AR$36:$AZ$47,MATCH(AN$2,$AS$2:$BA$2,0)+1,FALSE) -> 0.001665079838 | AO49: =R49*VLOOKUP($B49,$AR$36:$BA$47,MATCH(AO$2,$AS$2:$BA$2,0)+1,FALSE) -> 0 | AP49: 0.9572515571
A50: 2006 | B50: 1 | C50: 2 | D50: 24 | F50: 2013 | G50: 1 | H50: 2 | I50: 24 | J50: 0.2530951868 | K50: 0.4300116641 | L50: 0.008418087479 | M50: 0.1444620718 | N50: 0.0917343 | O50: 0.065802 | P50: 1.713756668e-05 | Q50: 0.002178785549 | R50: 0 | S50: 0.9957192334 | V50: 0.2396190014 | W50: 0.1265288059 | X50: 0.3804054617 | Y50: 0.07230468211 | Z50: 0.06065870058 | AA50: 0.004707927806 | AB50: 8.576988365e-06 | AC50: 0.0015925556 | AD50: 0 | AE50: 0.8858257121 | AG50: =J50*VLOOKUP($B50,$AR$36:$AZ$47,MATCH(AG$2,$AS$2:$BA$2,0)+1,FALSE) -> 0.2428315531 | AH50: =K50*VLOOKUP($B50,$AR$36:$AZ$47,MATCH(AH$2,$AS$2:$BA$2,0)+1,FALSE) -> 0.3633355583 | AI50: =L50*VLOOKUP($B50,$AR$36:$AZ$47,MATCH(AI$2,$AS$2:$BA$2,0)+1,FALSE) -> 0.00622283391 | AJ50: =M50*VLOOKUP($B50,$AR$36:$AZ$47,MATCH(AJ$2,$AS$2:$BA$2,0)+1,FALSE) -> 0.124185254 | AK50: =N50*VLOOKUP($B50,$AR$36:$AZ$47,MATCH(AK$2,$AS$2:$BA$2,0)+1,FALSE) -> 0.071748894 | AL50: =O50*VLOOKUP($B50,$AR$36:$AZ$47,MATCH(AL$2,$AS$2:$BA$2,0)+1,FALSE) -> 0.05831518704 | AM50: =P50*VLOOKUP($B50,$AR$36:$AZ$47,MATCH(AM$2,$AS$2:$BA$2,0)+1,FALSE) -> 8.576988365e-06 | AN50: =Q50*VLOOKUP($B50,$AR$36:$AZ$47,MATCH(AN$2,$AS$2:$BA$2,0)+1,FALSE) -> 0.001665079838 | AO50: =R50*VLOOKUP($B50,$AR$36:$BA$47,MATCH(AO$2,$AS$2:$BA$2,0)+1,FALSE) -> 0 | AP50: 0.8683129373
A51: 2006 | B51: 1 | C51: 3 | D51: 1 | F51: 2013 | G51: 1 | H51: 3 | I51: 1 | J51: 0.238678944 | K51: 0.3542884884 | L51: 0.008418087479 | M51: 0.09418934747 | N51: 0.0909379 | O51: 0.064745 | P51: 1.713756668e-05 | Q51: 0.002178785549 | R51: 0 | S51: 0.8534536904 | V51: 0.225970359 | W51: 0.08249684853 | X51: 0.3134177215 | Y51: 0.07167696218 | Z51: 0.05968431915 | AA51: 0.004707927806 | AB51: 8.576988365e-06 | AC51: 0.0015925556 | AD51: 0 | AE51: 0.7595552708 | AG51: =J51*VLOOKUP($B51,$AR$36:$AZ$47,MATCH(AG$2,$AS$2:$BA$2,0)+1,FALSE) -> 0.2289999245 | AH51: =K51*VLOOKUP($B51,$AR$36:$AZ$47,MATCH(AH$2,$AS$2:$BA$2,0)+1,FALSE) -> 0.2993537536 | AI51: =L51*VLOOKUP($B51,$AR$36:$AZ$47,MATCH(AI$2,$AS$2:$BA$2,0)+1,FALSE) -> 0.00622283391 | AJ51: =M51*VLOOKUP($B51,$AR$36:$AZ$47,MATCH(AJ$2,$AS$2:$BA$2,0)+1,FALSE) -> 0.08096885149 | AK51: =N51*VLOOKUP($B51,$AR$36:$AZ$47,MATCH(AK$2,$AS$2:$BA$2,0)+1,FALSE) -> 0.07112599919 | AL51: =O51*VLOOKUP($B51,$AR$36:$AZ$47,MATCH(AL$2,$AS$2:$BA$2,0)+1,FALSE) -> 0.05737845027 | AM51: =P51*VLOOKUP($B51,$AR$36:$AZ$47,MATCH(AM$2,$AS$2:$BA$2,0)+1,FALSE) -> 8.576988365e-06 | AN51: =Q51*VLOOKUP($B51,$AR$36:$AZ$47,MATCH(AN$2,$AS$2:$BA$2,0)+1,FALSE) -> 0.001665079838 | AO51: =R51*VLOOKUP($B51,$AR$36:$BA$47,MATCH(AO$2,$AS$2:$BA$2,0)+1,FALSE) -> 0 | AP51: 0.7457234698
A52: 2006 | B52: 1 | C52: 3 | D52: 2 | F52: 2013 | G52: 1 | H52: 3 | I52: 2 | J52: 0.2268864693 | K52: 0.3438570935 | L52: 0.008418087479 | M52: 0.08698559493 | N52: 0.0903161 | O52: 0.064159 | P52: 1.713756668e-05 | Q52: 0.002178785549 | R52: 0 | S52: 0.8228182683 | V52: 0.2148057808 | W52: 0.07618735709 | X52: 0.3041896937 | Y52: 0.07118686141 | Z52: 0.05914412283 | AA52: 0.004707927806 | AB52: 8.576988365e-06 | AC52: 0.0015925556 | AD52: 0 | AE52: 0.7318228762 | AG52: =J52*VLOOKUP($B52,$AR$36:$AZ$47,MATCH(AG$2,$AS$2:$BA$2,0)+1,FALSE) -> 0.2176856637 | AH52: =K52*VLOOKUP($B52,$AR$36:$AZ$47,MATCH(AH$2,$AS$2:$BA$2,0)+1,FALSE) -> 0.2905398143 | AI52: =L52*VLOOKUP($B52,$AR$36:$AZ$47,MATCH(AI$2,$AS$2:$BA$2,0)+1,FALSE) -> 0.00622283391 | AJ52: =M52*VLOOKUP($B52,$AR$36:$AZ$47,MATCH(AJ$2,$AS$2:$BA$2,0)+1,FALSE) -> 0.07477622371 | AK52: =N52*VLOOKUP($B52,$AR$36:$AZ$47,MATCH(AK$2,$AS$2:$BA$2,0)+1,FALSE) -> 0.0706396657 | AL52: =O52*VLOOKUP($B52,$AR$36:$AZ$47,MATCH(AL$2,$AS$2:$BA$2,0)+1,FALSE) -> 0.05685912412 | AM52: =P52*VLOOKUP($B52,$AR$36:$AZ$47,MATCH(AM$2,$AS$2:$BA$2,0)+1,FALSE) -> 8.576988365e-06 | AN52: =Q52*VLOOKUP($B52,$AR$36:$AZ$47,MATCH(AN$2,$AS$2:$BA$2,0)+1,FALSE) -> 0.001665079838 | AO52: =R52*VLOOKUP($B52,$AR$36:$BA$47,MATCH(AO$2,$AS$2:$BA$2,0)+1,FALSE) -> 0 | AP52: 0.7183969823
A53: 2006 | B53: 1 | C53: 3 | D53: 3 | F53: 2013 | G53: 1 | H53: 3 | I53: 3 | J53: 0.2210892204 | K53: 0.3412574859 | L53: 0.008418087479 | M53: 0.08865656592 | N53: 0.0891964 | O53: 0.063722 | P53: 1.713756668e-05 | Q53: 0.002178785549 | R53: 0 | S53: 0.8145356828 | V53: 0.2093172094 | W53: 0.0776508967 | X53: 0.3018899772 | Y53: 0.07030431744 | Z53: 0.05874128018 | AA53: 0.004707927806 | AB53: 8.576988365e-06 | AC53: 0.0015925556 | AD53: 0 | AE53: 0.7242127413 | AG53: =J53*VLOOKUP($B53,$AR$36:$AZ$47,MATCH(AG$2,$AS$2:$BA$2,0)+1,FALSE) -> 0.2121235076 | AH53: =K53*VLOOKUP($B53,$AR$36:$AZ$47,MATCH(AH$2,$AS$2:$BA$2,0)+1,FALSE) -> 0.2883432928 | AI53: =L53*VLOOKUP($B53,$AR$36:$AZ$47,MATCH(AI$2,$AS$2:$BA$2,0)+1,FALSE) -> 0.00622283391 | AJ53: =M53*VLOOKUP($B53,$AR$36:$AZ$47,MATCH(AJ$2,$AS$2:$BA$2,0)+1,FALSE) -> 0.07621265581 | AK53: =N53*VLOOKUP($B53,$AR$36:$AZ$47,MATCH(AK$2,$AS$2:$BA$2,0)+1,FALSE) -> 0.06976390564 | AL53: =O53*VLOOKUP($B53,$AR$36:$AZ$47,MATCH(AL$2,$AS$2:$BA$2,0)+1,FALSE) -> 0.05647184506 | AM53: =P53*VLOOKUP($B53,$AR$36:$AZ$47,MATCH(AM$2,$AS$2:$BA$2,0)+1,FALSE) -> 8.576988365e-06 | AN53: =Q53*VLOOKUP($B53,$AR$36:$AZ$47,MATCH(AN$2,$AS$2:$BA$2,0)+1,FALSE) -> 0.001665079838 | AO53: =R53*VLOOKUP($B53,$AR$36:$BA$47,MATCH(AO$2,$AS$2:$BA$2,0)+1,FALSE) -> 0 | AP53: 0.7108116976
A54: 2006 | B54: 1 | C54: 3 | D54: 4 | F54: 2013 | G54: 1 | H54: 3 | I54: 4 | J54: 0.2221974568 | K54: 0.3400278051 | L54: 0.008418087479 | M54: 0.0862581378 | N54: 0.0892968 | O54: 0.063748 | P54: 1.713756668e-05 | Q54: 0.002178785549 | R54: 0 | S54: 0.8121422103 | V54: 0.2103664372 | W54: 0.0755502052 | X54: 0.3008021525 | Y54: 0.0703834524 | Z54: 0.05876524793 | AA54: 0.004707927806 | AB54: 8.576988365e-06 | AC54: 0.0015925556 | AD54: 0 | AE54: 0.7221765557 | AG54: =J54*VLOOKUP($B54,$AR$36:$AZ$47,MATCH(AG$2,$AS$2:$BA$2,0)+1,FALSE) -> 0.2131868023 | AH54: =K54*VLOOKUP($B54,$AR$36:$AZ$47,MATCH(AH$2,$AS$2:$BA$2,0)+1,FALSE) -> 0.287304282 | AI54: =L54*VLOOKUP($B54,$AR$36:$AZ$47,MATCH(AI$2,$AS$2:$BA$2,0)+1,FALSE) -> 0.00622283391 | AJ54: =M54*VLOOKUP($B54,$AR$36:$AZ$47,MATCH(AJ$2,$AS$2:$BA$2,0)+1,FALSE) -> 0.07415087308 | AK54: =N54*VLOOKUP($B54,$AR$36:$AZ$47,MATCH(AK$2,$AS$2:$BA$2,0)+1,FALSE) -> 0.0698424323 | AL54: =O54*VLOOKUP($B54,$AR$36:$AZ$47,MATCH(AL$2,$AS$2:$BA$2,0)+1,FALSE) -> 0.05649488683 | AM54: =P54*VLOOKUP($B54,$AR$36:$AZ$47,MATCH(AM$2,$AS$2:$BA$2,0)+1,FALSE) -> 8.576988365e-06 | AN54: =Q54*VLOOKUP($B54,$AR$36:$AZ$47,MATCH(AN$2,$AS$2:$BA$2,0)+1,FALSE) -> 0.001665079838 | AO54: =R54*VLOOKUP($B54,$AR$36:$BA$47,MATCH(AO$2,$AS$2:$BA$2,0)+1,FALSE) -> 0 | AP54: 0.7088757672
A55: 2006 | B55: 1 | C55: 3 | D55: 5 | F55: 2013 | G55: 1 | H55: 3 | I55: 5 | J55: 0.2320916892 | K55: 0.3453052651 | L55: 0.008418087479 | M55: 0.08574471242 | N55: 0.0918435 | O55: 0.064017 | P55: 1.713756668e-05 | Q55: 0.002178785549 | R55: 0 | S55: 0.8296161773 | V55: 0.219733846 | W55: 0.07510051554 | X55: 0.3054708041 | Y55: 0.07239075321 | Z55: 0.05901322201 | AA55: 0.004707927806 | AB55: 8.576988365e-06 | AC55: 0.0015925556 | AD55: 0 | AE55: 0.7380182012 | AG55: =J55*VLOOKUP($B55,$AR$36:$AZ$47,MATCH(AG$2,$AS$2:$BA$2,0)+1,FALSE) -> 0.2226797991 | AH55: =K55*VLOOKUP($B55,$AR$36:$AZ$47,MATCH(AH$2,$AS$2:$BA$2,0)+1,FALSE) -> 0.2917634375 | AI55: =L55*VLOOKUP($B55,$AR$36:$AZ$47,MATCH(AI$2,$AS$2:$BA$2,0)+1,FALSE) -> 0.00622283391 | AJ55: =M55*VLOOKUP($B55,$AR$36:$AZ$47,MATCH(AJ$2,$AS$2:$BA$2,0)+1,FALSE) -> 0.07370951252 | AK55: =N55*VLOOKUP($B55,$AR$36:$AZ$47,MATCH(AK$2,$AS$2:$BA$2,0)+1,FALSE) -> 0.07183430348 | AL55: =O55*VLOOKUP($B55,$AR$36:$AZ$47,MATCH(AL$2,$AS$2:$BA$2,0)+1,FALSE) -> 0.05673328058 | AM55: =P55*VLOOKUP($B55,$AR$36:$AZ$47,MATCH(AM$2,$AS$2:$BA$2,0)+1,FALSE) -> 8.576988365e-06 | AN55: =Q55*VLOOKUP($B55,$AR$36:$AZ$47,MATCH(AN$2,$AS$2:$BA$2,0)+1,FALSE) -> 0.001665079838 | AO55: =R55*VLOOKUP($B55,$AR$36:$BA$47,MATCH(AO$2,$AS$2:$BA$2,0)+1,FALSE) -> 0 | AP55: 0.724616824
A56: 2006 | B56: 1 | C56: 3 | D56: 6 | F56: 2013 | G56: 1 | H56: 3 | I56: 6 | J56: 0.2534469254 | K56: 0.3648607764 | L56: 0.008418087479 | M56: 0.08446270906 | N56: 0.0956296 | O56: 0.066702 | P56: 1.713756668e-05 | Q56: 0.002178785549 | R56: 0 | S56: 0.8757160215 | V56: 0.2399520116 | W56: 0.07397765781 | X56: 0.3227703889 | Y56: 0.07537494513 | Z56: 0.06148835364 | AA56: 0.004707927806 | AB56: 8.576988365e-06 | AC56: 0.0015925556 | AD56: 0 | AE56: 0.7798724175 | AG56: =J56*VLOOKUP($B56,$AR$36:$AZ$47,MATCH(AG$2,$AS$2:$BA$2,0)+1,FALSE) -> 0.2431690279 | AH56: =K56*VLOOKUP($B56,$AR$36:$AZ$47,MATCH(AH$2,$AS$2:$BA$2,0)+1,FALSE) -> 0.3082867395 | AI56: =L56*VLOOKUP($B56,$AR$36:$AZ$47,MATCH(AI$2,$AS$2:$BA$2,0)+1,FALSE) -> 0.00622283391 | AJ56: =M56*VLOOKUP($B56,$AR$36:$AZ$47,MATCH(AJ$2,$AS$2:$BA$2,0)+1,FALSE) -> 0.07260745223 | AK56: =N56*VLOOKUP($B56,$AR$36:$AZ$47,MATCH(AK$2,$AS$2:$BA$2,0)+1,FALSE) -> 0.07479555666 | AL56: =O56*VLOOKUP($B56,$AR$36:$AZ$47,MATCH(AL$2,$AS$2:$BA$2,0)+1,FALSE) -> 0.05911278693 | AM56: =P56*VLOOKUP($B56,$AR$36:$AZ$47,MATCH(AM$2,$AS$2:$BA$2,0)+1,FALSE) -> 8.576988365e-06 | AN56: =Q56*VLOOKUP($B56,$AR$36:$AZ$47,MATCH(AN$2,$AS$2:$BA$2,0)+1,FALSE) -> 0.001665079838 | AO56: =R56*VLOOKUP($B56,$AR$36:$BA$47,MATCH(AO$2,$AS$2:$BA$2,0)+1,FALSE) -> 0 | AP56: 0.765868054
A57: 2006 | B57: 1 | C57: 3 | D57: 7 | F57: 2013 | G57: 1 | H57: 3 | I57: 7 | J57: 0.2934858084 | K57: 0.4124064307 | L57: 0.008418087479 | M57: 0.09201133474 | N57: 0.1063048 | O57: 0.072573 | P57: 1.713756668e-05 | Q57: 0.002178785549 | R57: 0 | S57: 0.9873953844 | V57: 0.2778590033 | W57: 0.08058921045 | X57: 0.3648311703 | Y57: 0.08378910365 | Z57: 0.06690045709 | AA57: 0.004707927806 | AB57: 8.576988365e-06 | AC57: 0.0015925556 | AD57: 0 | AE57: 0.8802780052 | AG57: =J57*VLOOKUP($B57,$AR$36:$AZ$47,MATCH(AG$2,$AS$2:$BA$2,0)+1,FALSE) -> 0.2815842354 | AH57: =K57*VLOOKUP($B57,$AR$36:$AZ$47,MATCH(AH$2,$AS$2:$BA$2,0)+1,FALSE) -> 0.3484601309 | AI57: =L57*VLOOKUP($B57,$AR$36:$AZ$47,MATCH(AI$2,$AS$2:$BA$2,0)+1,FALSE) -> 0.00622283391 | AJ57: =M57*VLOOKUP($B57,$AR$36:$AZ$47,MATCH(AJ$2,$AS$2:$BA$2,0)+1,FALSE) -> 0.07909654646 | AK57: =N57*VLOOKUP($B57,$AR$36:$AZ$47,MATCH(AK$2,$AS$2:$BA$2,0)+1,FALSE) -> 0.08314503765 | AL57: =O57*VLOOKUP($B57,$AR$36:$AZ$47,MATCH(AL$2,$AS$2:$BA$2,0)+1,FALSE) -> 0.06431579692 | AM57: =P57*VLOOKUP($B57,$AR$36:$AZ$47,MATCH(AM$2,$AS$2:$BA$2,0)+1,FALSE) -> 8.576988365e-06 | AN57: =Q57*VLOOKUP($B57,$AR$36:$AZ$47,MATCH(AN$2,$AS$2:$BA$2,0)+1,FALSE) -> 0.001665079838 | AO57: =R57*VLOOKUP($B57,$AR$36:$BA$47,MATCH(AO$2,$AS$2:$BA$2,0)+1,FALSE) -> 0 | AP57: 0.8644982381
A58: 2006 | B58: 1 | C58: 3 | D58: 8 | F58: 2013 | G58: 1 | H58: 3 | I58: 8 | J58: 0.3310025667 | K58: 0.4664318438 | L58: 0.005331455403 | M58: 0.109355104 | N58: 0.1138474 | O58: 0.077591 | P58: 1.085379223e-05 | Q58: 0.002056339251 | R58: 0 | S58: 1.105626563 | V58: 0.3133781622 | W58: 0.09577995485 | X58: 0.4126242046 | Y58: 0.08973415687 | Z58: 0.0715262338 | AA58: 0.00298168761 | AB58: 5.432092631e-06 | AC58: 0.001503055035 | AD58: 0 | AE58: 0.9875328871 | AG58: =J58*VLOOKUP($B58,$AR$36:$AZ$47,MATCH(AG$2,$AS$2:$BA$2,0)+1,FALSE) -> 0.3175795967 | AH58: =K58*VLOOKUP($B58,$AR$36:$AZ$47,MATCH(AH$2,$AS$2:$BA$2,0)+1,FALSE) -> 0.3941085522 | AI58: =L58*VLOOKUP($B58,$AR$36:$AZ$47,MATCH(AI$2,$AS$2:$BA$2,0)+1,FALSE) -> 0.003941128143 | AJ58: =M58*VLOOKUP($B58,$AR$36:$AZ$47,MATCH(AJ$2,$AS$2:$BA$2,0)+1,FALSE) -> 0.09400592966 | AK58: =N58*VLOOKUP($B58,$AR$36:$AZ$47,MATCH(AK$2,$AS$2:$BA$2,0)+1,FALSE) -> 0.08904439272 | AL58: =O58*VLOOKUP($B58,$AR$36:$AZ$47,MATCH(AL$2,$AS$2:$BA$2,0)+1,FALSE) -> 0.06876285945 | AM58: =P58*VLOOKUP($B58,$AR$36:$AZ$47,MATCH(AM$2,$AS$2:$BA$2,0)+1,FALSE) -> 5.432092631e-06 | AN58: =Q58*VLOOKUP($B58,$AR$36:$AZ$47,MATCH(AN$2,$AS$2:$BA$2,0)+1,FALSE) -> 0.001571503459 | AO58: =R58*VLOOKUP($B58,$AR$36:$BA$47,MATCH(AO$2,$AS$2:$BA$2,0)+1,FALSE) -> 0 | AP58: 0.9690193945
A59: 2006 | B59: 1 | C59: 3 | D59: 9 | F59: 2013 | G59: 1 | H59: 3 | I59: 9 | J59: 0.2991165164 | K59: 0.50029713 | L59: 0 | M59: 0.1211963673 | N59: 0.1178564 | O59: 0.079518 | P59: 0 | Q59: 0.0018448411 | R59: 0 | S59: 1.119829255 | V59: 0.2831899013 | W59: 0.1061512647 | X59: 0.4425827869 | Y59: 0.09289403786 | Z59: 0.07330261318 | AA59: 0 | AB59: 0 | AC59: 0.00134846315 | AD59: 0 | AE59: 0.9994690671 | AG59: =J59*VLOOKUP($B59,$AR$36:$AZ$47,MATCH(AG$2,$AS$2:$BA$2,0)+1,FALSE) -> 0.2869866044 | AH59: =K59*VLOOKUP($B59,$AR$36:$AZ$47,MATCH(AH$2,$AS$2:$BA$2,0)+1,FALSE) -> 0.4227228055 | AI59: =L59*VLOOKUP($B59,$AR$36:$AZ$47,MATCH(AI$2,$AS$2:$BA$2,0)+1,FALSE) -> 0 | AJ59: =M59*VLOOKUP($B59,$AR$36:$AZ$47,MATCH(AJ$2,$AS$2:$BA$2,0)+1,FALSE) -> 0.1041851433 | AK59: =N59*VLOOKUP($B59,$AR$36:$AZ$47,MATCH(AK$2,$AS$2:$BA$2,0)+1,FALSE) -> 0.09217998449 | AL59: =O59*VLOOKUP($B59,$AR$36:$AZ$47,MATCH(AL$2,$AS$2:$BA$2,0)+1,FALSE) -> 0.07047060945 | AM59: =P59*VLOOKUP($B59,$AR$36:$AZ$47,MATCH(AM$2,$AS$2:$BA$2,0)+1,FALSE) -> 0 | AN59: =Q59*VLOOKUP($B59,$AR$36:$AZ$47,MATCH(AN$2,$AS$2:$BA$2,0)+1,FALSE) -> 0.001409871532 | AO59: =R59*VLOOKUP($B59,$AR$36:$BA$47,MATCH(AO$2,$AS$2:$BA$2,0)+1,FALSE) -> 0 | AP59: 0.9779550187
A60: 2006 | B60: 1 | C60: 3 | D60: 10 | F60: 2013 | G60: 1 | H60: 3 | I60: 10 | J60: 0.2799043435 | K60: 0.5158940804 | L60: 0 | M60: 0.1259515561 | N60: 0.1200931 | O60: 0.080846 | P60: 0 | Q60: 0.0018448411 | R60: 0 | S60: 1.124533921 | V60: 0.2650006906 | W60: 0.1103161528 | X60: 0.4563804711 | Y60: 0.09465699765 | Z60: 0.07452681236 | AA60: 0 | AB60: 0 | AC60: 0.00134846315 | AD60: 0 | AE60: 1.002229588 | AG60: =J60*VLOOKUP($B60,$AR$36:$AZ$47,MATCH(AG$2,$AS$2:$BA$2,0)+1,FALSE) -> 0.2685535325 | AH60: =K60*VLOOKUP($B60,$AR$36:$AZ$47,MATCH(AH$2,$AS$2:$BA$2,0)+1,FALSE) -> 0.4359013473 | AI60: =L60*VLOOKUP($B60,$AR$36:$AZ$47,MATCH(AI$2,$AS$2:$BA$2,0)+1,FALSE) -> 0 | AJ60: =M60*VLOOKUP($B60,$AR$36:$AZ$47,MATCH(AJ$2,$AS$2:$BA$2,0)+1,FALSE) -> 0.1082728899 | AK60: =N60*VLOOKUP($B60,$AR$36:$AZ$47,MATCH(AK$2,$AS$2:$BA$2,0)+1,FALSE) -> 0.09392939285 | AL60: =O60*VLOOKUP($B60,$AR$36:$AZ$47,MATCH(AL$2,$AS$2:$BA$2,0)+1,FALSE) -> 0.0716475124 | AM60: =P60*VLOOKUP($B60,$AR$36:$AZ$47,MATCH(AM$2,$AS$2:$BA$2,0)+1,FALSE) -> 0 | AN60: =Q60*VLOOKUP($B60,$AR$36:$AZ$47,MATCH(AN$2,$AS$2:$BA$2,0)+1,FALSE) -> 0.001409871532 | AO60: =R60*VLOOKUP($B60,$AR$36:$BA$47,MATCH(AO$2,$AS$2:$BA$2,0)+1,FALSE) -> 0 | AP60: 0.9797145464
A61: 2006 | B61: 1 | C61: 3 | D61: 11 | F61: 2013 | G61: 1 | H61: 3 | I61: 11 | J61: 0.2673773251 | K61: 0.51574293 | L61: 0 | M61: 0.1251783694 | N61: 0.1208663 | O61: 0.081839 | P61: 0 | Q61: 0.0018448411 | R61: 0 | S61: 1.112848766 | V61: 0.2531406798 | W61: 0.1096389481 | X61: 0.4562467573 | Y61: 0.09526643142 | Z61: 0.07544219624 | AA61: 0 | AB61: 0 | AC61: 0.00134846315 | AD61: 0 | AE61: 0.991083476 | AG61: =J61*VLOOKUP($B61,$AR$36:$AZ$47,MATCH(AG$2,$AS$2:$BA$2,0)+1,FALSE) -> 0.2565345155 | AH61: =K61*VLOOKUP($B61,$AR$36:$AZ$47,MATCH(AH$2,$AS$2:$BA$2,0)+1,FALSE) -> 0.4357736337 | AI61: =L61*VLOOKUP($B61,$AR$36:$AZ$47,MATCH(AI$2,$AS$2:$BA$2,0)+1,FALSE) -> 0 | AJ61: =M61*VLOOKUP($B61,$AR$36:$AZ$47,MATCH(AJ$2,$AS$2:$BA$2,0)+1,FALSE) -> 0.1076082282 | AK61: =N61*VLOOKUP($B61,$AR$36:$AZ$47,MATCH(AK$2,$AS$2:$BA$2,0)+1,FALSE) -> 0.09453414205 | AL61: =O61*VLOOKUP($B61,$AR$36:$AZ$47,MATCH(AL$2,$AS$2:$BA$2,0)+1,FALSE) -> 0.07252753096 | AM61: =P61*VLOOKUP($B61,$AR$36:$AZ$47,MATCH(AM$2,$AS$2:$BA$2,0)+1,FALSE) -> 0 | AN61: =Q61*VLOOKUP($B61,$AR$36:$AZ$47,MATCH(AN$2,$AS$2:$BA$2,0)+1,FALSE) -> 0.001409871532 | AO61: =R61*VLOOKUP($B61,$AR$36:$BA$47,MATCH(AO$2,$AS$2:$BA$2,0)+1,FALSE) -> 0 | AP61: 0.968387922
A62: 2006 | B62: 1 | C62: 3 | D62: 12 | F62: 2013 | G62: 1 | H62: 3 | I62: 12 | J62: 0.2723004006 | K62: 0.5112727162 | L62: 0 | M62: 0.1206312174 | N62: 0.1208922 | O62: 0.081852 | P62: 0 | Q62: 0.0018448411 | R62: 0 | S62: 1.108793375 | V62: 0.2578016236 | W62: 0.1056562715 | X62: 0.452292228 | Y62: 0.09528684572 | Z62: 0.07545418011 | AA62: 0 | AB62: 0 | AC62: 0.00134846315 | AD62: 0 | AE62: 0.9878396121 | AG62: =J62*VLOOKUP($B62,$AR$36:$AZ$47,MATCH(AG$2,$AS$2:$BA$2,0)+1,FALSE) -> 0.2612579482 | AH62: =K62*VLOOKUP($B62,$AR$36:$AZ$47,MATCH(AH$2,$AS$2:$BA$2,0)+1,FALSE) -> 0.4319965557 | AI62: =L62*VLOOKUP($B62,$AR$36:$AZ$47,MATCH(AI$2,$AS$2:$BA$2,0)+1,FALSE) -> 0 | AJ62: =M62*VLOOKUP($B62,$AR$36:$AZ$47,MATCH(AJ$2,$AS$2:$BA$2,0)+1,FALSE) -> 0.1036993183 | AK62: =N62*VLOOKUP($B62,$AR$36:$AZ$47,MATCH(AK$2,$AS$2:$BA$2,0)+1,FALSE) -> 0.09455439943 | AL62: =O62*VLOOKUP($B62,$AR$36:$AZ$47,MATCH(AL$2,$AS$2:$BA$2,0)+1,FALSE) -> 0.07253905184 | AM62: =P62*VLOOKUP($B62,$AR$36:$AZ$47,MATCH(AM$2,$AS$2:$BA$2,0)+1,FALSE) -> 0 | AN62: =Q62*VLOOKUP($B62,$AR$36:$AZ$47,MATCH(AN$2,$AS$2:$BA$2,0)+1,FALSE) -> 0.001409871532 | AO62: =R62*VLOOKUP($B62,$AR$36:$BA$47,MATCH(AO$2,$AS$2:$BA$2,0)+1,FALSE) -> 0 | AP62: 0.965457145
A63: 2006 | B63: 1 | C63: 3 | D63: 13 | F63: 2013 | G63: 1 | H63: 3 | I63: 13 | J63: 0.2736795118 | K63: 0.507477969 | L63: 0 | M63: 0.119255877 | N63: 0.1206227 | O63: 0.081345 | P63: 0 | Q63: 0.0018448411 | R63: 0 | S63: 1.104225899 | V63: 0.2591073033 | W63: 0.1044516635 | X63: 0.4489352434 | Y63: 0.09507442668 | Z63: 0.07498680889 | AA63: 0 | AB63: 0 | AC63: 0.00134846315 | AD63: 0 | AE63: 0.9839039088 | AG63: =J63*VLOOKUP($B63,$AR$36:$AZ$47,MATCH(AG$2,$AS$2:$BA$2,0)+1,FALSE) -> 0.262581133 | AH63: =K63*VLOOKUP($B63,$AR$36:$AZ$47,MATCH(AH$2,$AS$2:$BA$2,0)+1,FALSE) -> 0.4287902087 | AI63: =L63*VLOOKUP($B63,$AR$36:$AZ$47,MATCH(AI$2,$AS$2:$BA$2,0)+1,FALSE) -> 0 | AJ63: =M63*VLOOKUP($B63,$AR$36:$AZ$47,MATCH(AJ$2,$AS$2:$BA$2,0)+1,FALSE) -> 0.1025170219 | AK63: =N63*VLOOKUP($B63,$AR$36:$AZ$47,MATCH(AK$2,$AS$2:$BA$2,0)+1,FALSE) -> 0.0943436132 | AL63: =O63*VLOOKUP($B63,$AR$36:$AZ$47,MATCH(AL$2,$AS$2:$BA$2,0)+1,FALSE) -> 0.07208973724 | AM63: =P63*VLOOKUP($B63,$AR$36:$AZ$47,MATCH(AM$2,$AS$2:$BA$2,0)+1,FALSE) -> 0 | AN63: =Q63*VLOOKUP($B63,$AR$36:$AZ$47,MATCH(AN$2,$AS$2:$BA$2,0)+1,FALSE) -> 0.001409871532 | AO63: =R63*VLOOKUP($B63,$AR$36:$BA$47,MATCH(AO$2,$AS$2:$BA$2,0)+1,FALSE) -> 0 | AP63: 0.9617315856
A64: 2006 | B64: 1 | C64: 3 | D64: 14 | F64: 2013 | G64: 1 | H64: 3 | I64: 14 | J64: 0.2681426366 | K64: 0.5024094049 | L64: 0 | M64: 0.113061662 | N64: 0.1203901 | O64: 0.080888 | P64: 0 | Q64: 0.0018448411 | R64: 0 | S64: 1.086736645 | V64: 0.253865242 | W64: 0.09902638737 | X64: 0.4444513895 | Y64: 0.0948910921 | Z64: 0.07456552951 | AA64: 0 | AB64: 0 | AC64: 0.00134846315 | AD64: 0 | AE64: 0.9681481036 | AG64: =J64*VLOOKUP($B64,$AR$36:$AZ$47,MATCH(AG$2,$AS$2:$BA$2,0)+1,FALSE) -> 0.2572687918 | AH64: =K64*VLOOKUP($B64,$AR$36:$AZ$47,MATCH(AH$2,$AS$2:$BA$2,0)+1,FALSE) -> 0.4245075585 | AI64: =L64*VLOOKUP($B64,$AR$36:$AZ$47,MATCH(AI$2,$AS$2:$BA$2,0)+1,FALSE) -> 0 | AJ64: =M64*VLOOKUP($B64,$AR$36:$AZ$47,MATCH(AJ$2,$AS$2:$BA$2,0)+1,FALSE) -> 0.09719223212 | AK64: =N64*VLOOKUP($B64,$AR$36:$AZ$47,MATCH(AK$2,$AS$2:$BA$2,0)+1,FALSE) -> 0.09416168787 | AL64: =O64*VLOOKUP($B64,$AR$36:$AZ$47,MATCH(AL$2,$AS$2:$BA$2,0)+1,FALSE) -> 0.07168473373 | AM64: =P64*VLOOKUP($B64,$AR$36:$AZ$47,MATCH(AM$2,$AS$2:$BA$2,0)+1,FALSE) -> 0 | AN64: =Q64*VLOOKUP($B64,$AR$36:$AZ$47,MATCH(AN$2,$AS$2:$BA$2,0)+1,FALSE) -> 0.001409871532 | AO64: =R64*VLOOKUP($B64,$AR$36:$BA$47,MATCH(AO$2,$AS$2:$BA$2,0)+1,FALSE) -> 0 | AP64: 0.9462248755
A65: 2006 | B65: 1 | C65: 3 | D65: 15 | F65: 2013 | G65: 1 | H65: 3 | I65: 15 | J65: 0.2756143238 | K65: 0.4896228978 | L65: 0 | M65: 0.1022168298 | N65: 0.1195634 | O65: 0.080222 | P65: 0 | Q65: 0.0018448411 | R65: 0 | S65: 1.069084292 | V65: 0.2609390953 | W65: 0.08952781339 | X65: 0.4331399355 | Y65: 0.0942394898 | Z65: 0.07395158624 | AA65: 0 | AB65: 0 | AC65: 0.00134846315 | AD65: 0 | AE65: 0.9531463834 | AG65: =J65*VLOOKUP($B65,$AR$36:$AZ$47,MATCH(AG$2,$AS$2:$BA$2,0)+1,FALSE) -> 0.2644374837 | AH65: =K65*VLOOKUP($B65,$AR$36:$AZ$47,MATCH(AH$2,$AS$2:$BA$2,0)+1,FALSE) -> 0.4137036824 | AI65: =L65*VLOOKUP($B65,$AR$36:$AZ$47,MATCH(AI$2,$AS$2:$BA$2,0)+1,FALSE) -> 0 | AJ65: =M65*VLOOKUP($B65,$AR$36:$AZ$47,MATCH(AJ$2,$AS$2:$BA$2,0)+1,FALSE) -> 0.08786958963 | AK65: =N65*VLOOKUP($B65,$AR$36:$AZ$47,MATCH(AK$2,$AS$2:$BA$2,0)+1,FALSE) -> 0.09351509428 | AL65: =O65*VLOOKUP($B65,$AR$36:$AZ$47,MATCH(AL$2,$AS$2:$BA$2,0)+1,FALSE) -> 0.07109450981 | AM65: =P65*VLOOKUP($B65,$AR$36:$AZ$47,MATCH(AM$2,$AS$2:$BA$2,0)+1,FALSE) -> 0 | AN65: =Q65*VLOOKUP($B65,$AR$36:$AZ$47,MATCH(AN$2,$AS$2:$BA$2,0)+1,FALSE) -> 0.001409871532 | AO65: =R65*VLOOKUP($B65,$AR$36:$BA$47,MATCH(AO$2,$AS$2:$BA$2,0)+1,FALSE) -> 0 | AP65: 0.9320302314
A66: 2006 | B66: 1 | C66: 3 | D66: 16 | F66: 2013 | G66: 1 | H66: 3 | I66: 16 | J66: 0.3038966901 | K66: 0.4867438502 | L66: 0 | M66: 0.103461045 | N66: 0.1181627 | O66: 0.079144 | P66: 0 | Q66: 0.0018448411 | R66: 0 | S66: 1.093253126 | V66: 0.2877155521 | W66: 0.09061757391 | X66: 0.4305930152 | Y66: 0.09313546254 | Z66: 0.07295784625 | AA66: 0 | AB66: 0 | AC66: 0.00134846315 | AD66: 0 | AE66: 0.9763679132 | AG66: =J66*VLOOKUP($B66,$AR$36:$AZ$47,MATCH(AG$2,$AS$2:$BA$2,0)+1,FALSE) -> 0.2915729302 | AH66: =K66*VLOOKUP($B66,$AR$36:$AZ$47,MATCH(AH$2,$AS$2:$BA$2,0)+1,FALSE) -> 0.4112710499 | AI66: =L66*VLOOKUP($B66,$AR$36:$AZ$47,MATCH(AI$2,$AS$2:$BA$2,0)+1,FALSE) -> 0 | AJ66: =M66*VLOOKUP($B66,$AR$36:$AZ$47,MATCH(AJ$2,$AS$2:$BA$2,0)+1,FALSE) -> 0.08893916574 | AK66: =N66*VLOOKUP($B66,$AR$36:$AZ$47,MATCH(AK$2,$AS$2:$BA$2,0)+1,FALSE) -> 0.0924195534 | AL66: =O66*VLOOKUP($B66,$AR$36:$AZ$47,MATCH(AL$2,$AS$2:$BA$2,0)+1,FALSE) -> 0.07013916238 | AM66: =P66*VLOOKUP($B66,$AR$36:$AZ$47,MATCH(AM$2,$AS$2:$BA$2,0)+1,FALSE) -> 0 | AN66: =Q66*VLOOKUP($B66,$AR$36:$AZ$47,MATCH(AN$2,$AS$2:$BA$2,0)+1,FALSE) -> 0.001409871532 | AO66: =R66*VLOOKUP($B66,$AR$36:$BA$47,MATCH(AO$2,$AS$2:$BA$2,0)+1,FALSE) -> 0 | AP66: 0.9557517332
A67: 2006 | B67: 1 | C67: 3 | D67: 17 | F67: 2013 | G67: 1 | H67: 3 | I67: 17 | J67: 0.3520120387 | K67: 0.4877934294 | L67: 0.002665727702 | M67: 0.1065398351 | N67: 0.1163421 | O67: 0.077805 | P67: 5.426896115e-06 | Q67: 0.001950590175 | R67: 0 | S67: 1.145114148 | V67: =$J67*$AS$6 -> 0.3332689739 | W67: =$M67*$AV$6 -> 0.09331416851 | X67: =$K67*$AT$6 -> 0.4315215148 | Y67: =$N67*$AW$6 -> 0.09170047144 | Z67: =$O67*$AX$6 -> 0.07172350686 | AA67: =$L67*$AU$6 -> 0.001490843805 | AB67: =$P67*$AY$6 -> 2.716046316e-06 | AC67: =$Q67*$AZ$6 -> 0.001425759093 | AD67: 0 | AE67: =SUM(V67:AD67) -> 1.024447954 | AG67: =J67*VLOOKUP($B67,$AR$36:$AZ$47,MATCH(AG$2,$AS$2:$BA$2,0)+1,FALSE) -> 0.3377370828 | AH67: =K67*VLOOKUP($B67,$AR$36:$AZ$47,MATCH(AH$2,$AS$2:$BA$2,0)+1,FALSE) -> 0.412157885 | AI67: =L67*VLOOKUP($B67,$AR$36:$AZ$47,MATCH(AI$2,$AS$2:$BA$2,0)+1,FALSE) -> 0.001970564071 | AJ67: =M67*VLOOKUP($B67,$AR$36:$AZ$47,MATCH(AJ$2,$AS$2:$BA$2,0)+1,FALSE) -> 0.09158581432 | AK67: =N67*VLOOKUP($B67,$AR$36:$AZ$47,MATCH(AK$2,$AS$2:$BA$2,0)+1,FALSE) -> 0.09099559271 | AL67: =O67*VLOOKUP($B67,$AR$36:$AZ$47,MATCH(AL$2,$AS$2:$BA$2,0)+1,FALSE) -> 0.06895251098 | AM67: =P67*VLOOKUP($B67,$AR$36:$AZ$47,MATCH(AM$2,$AS$2:$BA$2,0)+1,FALSE) -> 2.716046316e-06 | AN67: =Q67*VLOOKUP($B67,$AR$36:$AZ$47,MATCH(AN$2,$AS$2:$BA$2,0)+1,FALSE) -> 0.001490687496 | AO67: =R67*VLOOKUP($B67,$AR$36:$BA$47,MATCH(AO$2,$AS$2:$BA$2,0)+1,FALSE) -> 0 | AP67: 1.004892853
A68: 2006 | B68: 1 | C68: 3 | D68: 18 | F68: 2013 | G68: 1 | H68: 3 | I68: 18 | J68: 0.4216251543 | K68: 0.4928951678 | L68: 0.008418087479 | M68: 0.1209324208 | N68: 0.1138351 | O68: 0.076629 | P68: 1.713756668e-05 | Q68: 0.002178785549 | R68: 0 | S68: 1.236530853 | V68: 0.3991755028 | W68: 0.105920084 | X68: 0.4360347161 | Y68: 0.08972446205 | Z68: 0.07063942687 | AA68: 0.004707927806 | AB68: 8.576988365e-06 | AC68: 0.0015925556 | AD68: =$R68*$BA$6 -> 0 | AE68: 1.107803252 | AG68: =J68*VLOOKUP($B68,$AR$36:$AZ$47,MATCH(AG$2,$AS$2:$BA$2,0)+1,FALSE) -> 0.404527215 | AH68: =K68*VLOOKUP($B68,$AR$36:$AZ$47,MATCH(AH$2,$AS$2:$BA$2,0)+1,FALSE) -> 0.4164685657 | AI68: =L68*VLOOKUP($B68,$AR$36:$AZ$47,MATCH(AI$2,$AS$2:$BA$2,0)+1,FALSE) -> 0.00622283391 | AJ68: =M68*VLOOKUP($B68,$AR$36:$AZ$47,MATCH(AJ$2,$AS$2:$BA$2,0)+1,FALSE) -> 0.1039582446 | AK68: =N68*VLOOKUP($B68,$AR$36:$AZ$47,MATCH(AK$2,$AS$2:$BA$2,0)+1,FALSE) -> 0.08903477242 | AL68: =O68*VLOOKUP($B68,$AR$36:$AZ$47,MATCH(AL$2,$AS$2:$BA$2,0)+1,FALSE) -> 0.06791031378 | AM68: =P68*VLOOKUP($B68,$AR$36:$AZ$47,MATCH(AM$2,$AS$2:$BA$2,0)+1,FALSE) -> 8.576988365e-06 | AN68: =Q68*VLOOKUP($B68,$AR$36:$AZ$47,MATCH(AN$2,$AS$2:$BA$2,0)+1,FALSE) -> 0.001665079838 | AO68: =R68*VLOOKUP($B68,$AR$36:$BA$47,MATCH(AO$2,$AS$2:$BA$2,0)+1,FALSE) -> 0 | AP68: =SUM(AG68:AO68) -> 1.089795602
A69: 2006 | B69: 1 | C69: 3 | D69: 19 | F69: 2013 | G69: 1 | H69: 3 | I69: 19 | J69: 0.4652717217 | K69: 0.461226685 | L69: 0.008418087479 | M69: 0.1021183028 | N69: 0.1057514 | O69: 0.072392 | P69: 1.713756668e-05 | Q69: 0.002178785549 | R69: 0 | S69: 1.21737412 | V69: 0.4404980859 | W69: 0.08944151739 | X69: 0.4080195136 | Y69: 0.08335291554 | Z69: 0.06673360464 | AA69: 0.004707927806 | AB69: 8.576988365e-06 | AC69: 0.0015925556 | AD69: 0 | AE69: 1.094354698 | AG69: =J69*VLOOKUP($B69,$AR$36:$AZ$47,MATCH(AG$2,$AS$2:$BA$2,0)+1,FALSE) -> 0.4464038065 | AH69: =K69*VLOOKUP($B69,$AR$36:$AZ$47,MATCH(AH$2,$AS$2:$BA$2,0)+1,FALSE) -> 0.3897104872 | AI69: =L69*VLOOKUP($B69,$AR$36:$AZ$47,MATCH(AI$2,$AS$2:$BA$2,0)+1,FALSE) -> 0.00622283391 | AJ69: =M69*VLOOKUP($B69,$AR$36:$AZ$47,MATCH(AJ$2,$AS$2:$BA$2,0)+1,FALSE) -> 0.087784892 | AK69: =N69*VLOOKUP($B69,$AR$36:$AZ$47,MATCH(AK$2,$AS$2:$BA$2,0)+1,FALSE) -> 0.0827122024 | AL69: =O69*VLOOKUP($B69,$AR$36:$AZ$47,MATCH(AL$2,$AS$2:$BA$2,0)+1,FALSE) -> 0.06415539072 | AM69: =P69*VLOOKUP($B69,$AR$36:$AZ$47,MATCH(AM$2,$AS$2:$BA$2,0)+1,FALSE) -> 8.576988365e-06 | AN69: =Q69*VLOOKUP($B69,$AR$36:$AZ$47,MATCH(AN$2,$AS$2:$BA$2,0)+1,FALSE) -> 0.001665079838 | AO69: =R69*VLOOKUP($B69,$AR$36:$BA$47,MATCH(AO$2,$AS$2:$BA$2,0)+1,FALSE) -> 0 | AP69: 1.07866327
A70: 2006 | B70: 1 | C70: 3 | D70: 20 | F70: 2013 | G70: 1 | H70: 3 | I70: 20 | J70: 0.4649180484 | K70: 0.4448872862 | L70: 0.008418087479 | M70: 0.09650032755 | N70: 0.1019007 | O70: 0.070098 | P70: 1.713756668e-05 | Q70: 0.002178785549 | R70: 0 | S70: 1.188918373 | V70: 0.4401632442 | W70: 0.08452094764 | X70: 0.39356503 | Y70: 0.08031780611 | Z70: 0.06461891118 | AA70: 0.004707927806 | AB70: 8.576988365e-06 | AC70: 0.0015925556 | AD70: 0 | AE70: 1.069495 | AG70: =J70*VLOOKUP($B70,$AR$36:$AZ$47,MATCH(AG$2,$AS$2:$BA$2,0)+1,FALSE) -> 0.4460644756 | AH70: =K70*VLOOKUP($B70,$AR$36:$AZ$47,MATCH(AH$2,$AS$2:$BA$2,0)+1,FALSE) -> 0.3759046184 | AI70: =L70*VLOOKUP($B70,$AR$36:$AZ$47,MATCH(AI$2,$AS$2:$BA$2,0)+1,FALSE) -> 0.00622283391 | AJ70: =M70*VLOOKUP($B70,$AR$36:$AZ$47,MATCH(AJ$2,$AS$2:$BA$2,0)+1,FALSE) -> 0.08295546046 | AK70: =N70*VLOOKUP($B70,$AR$36:$AZ$47,MATCH(AK$2,$AS$2:$BA$2,0)+1,FALSE) -> 0.0797004231 | AL70: =O70*VLOOKUP($B70,$AR$36:$AZ$47,MATCH(AL$2,$AS$2:$BA$2,0)+1,FALSE) -> 0.06212239721 | AM70: =P70*VLOOKUP($B70,$AR$36:$AZ$47,MATCH(AM$2,$AS$2:$BA$2,0)+1,FALSE) -> 8.576988365e-06 | AN70: =Q70*VLOOKUP($B70,$AR$36:$AZ$47,MATCH(AN$2,$AS$2:$BA$2,0)+1,FALSE) -> 0.001665079838 | AO70: =R70*VLOOKUP($B70,$AR$36:$BA$47,MATCH(AO$2,$AS$2:$BA$2,0)+1,FALSE) -> 0 | AP70: 1.054643866
A71: 2006 | B71: 1 | C71: 3 | D71: 21 | F71: 2013 | G71: 1 | H71: 3 | I71: 21 | J71: 0.4358870467 | K71: 0.4423477431 | L71: 0.008418087479 | M71: 0.1092370995 | N71: 0.0990295 | O71: 0.06866 | P71: 1.713756668e-05 | Q71: 0.002178785549 | R71: 0 | S71: 1.1657754 | V71: 0.4126780133 | W71: 0.09567659928 | X71: 0.3913184489 | Y71: 0.07805473544 | Z71: 0.06329330996 | AA71: 0.004707927806 | AB71: 8.576988365e-06 | AC71: 0.0015925556 | AD71: 0 | AE71: 1.047330167 | AG71: =J71*VLOOKUP($B71,$AR$36:$AZ$47,MATCH(AG$2,$AS$2:$BA$2,0)+1,FALSE) -> 0.4182107526 | AH71: =K71*VLOOKUP($B71,$AR$36:$AZ$47,MATCH(AH$2,$AS$2:$BA$2,0)+1,FALSE) -> 0.373758848 | AI71: =L71*VLOOKUP($B71,$AR$36:$AZ$47,MATCH(AI$2,$AS$2:$BA$2,0)+1,FALSE) -> 0.00622283391 | AJ71: =M71*VLOOKUP($B71,$AR$36:$AZ$47,MATCH(AJ$2,$AS$2:$BA$2,0)+1,FALSE) -> 0.09390448842 | AK71: =N71*VLOOKUP($B71,$AR$36:$AZ$47,MATCH(AK$2,$AS$2:$BA$2,0)+1,FALSE) -> 0.0774547481 | AL71: =O71*VLOOKUP($B71,$AR$36:$AZ$47,MATCH(AL$2,$AS$2:$BA$2,0)+1,FALSE) -> 0.06084800982 | AM71: =P71*VLOOKUP($B71,$AR$36:$AZ$47,MATCH(AM$2,$AS$2:$BA$2,0)+1,FALSE) -> 8.576988365e-06 | AN71: =Q71*VLOOKUP($B71,$AR$36:$AZ$47,MATCH(AN$2,$AS$2:$BA$2,0)+1,FALSE) -> 0.001665079838 | AO71: =R71*VLOOKUP($B71,$AR$36:$BA$47,MATCH(AO$2,$AS$2:$BA$2,0)+1,FALSE) -> 0 | AP71: 1.032073338
A72: 2006 | B72: 1 | C72: 3 | D72: 22 | F72: 2013 | G72: 1 | H72: 3 | I72: 22 | J72: 0.3865495089 | K72: 0.4188057182 | L72: 0.008418087479 | M72: 0.1062058376 | N72: 0.0960082 | O72: 0.067954 | P72: 1.713756668e-05 | Q72: 0.002178785549 | R72: 0 | S72: 1.086137275 | V72: 0.3659674785 | W72: 0.09302163288 | X72: 0.3704922351 | Y72: 0.07567335644 | Z72: 0.06264249323 | AA72: 0.004707927806 | AB72: 8.576988365e-06 | AC72: 0.0015925556 | AD72: 0 | AE72: 0.9741062565 | AG72: =J72*VLOOKUP($B72,$AR$36:$AZ$47,MATCH(AG$2,$AS$2:$BA$2,0)+1,FALSE) -> 0.3708739735 | AH72: =K72*VLOOKUP($B72,$AR$36:$AZ$47,MATCH(AH$2,$AS$2:$BA$2,0)+1,FALSE) -> 0.3538671672 | AI72: =L72*VLOOKUP($B72,$AR$36:$AZ$47,MATCH(AI$2,$AS$2:$BA$2,0)+1,FALSE) -> 0.00622283391 | AJ72: =M72*VLOOKUP($B72,$AR$36:$AZ$47,MATCH(AJ$2,$AS$2:$BA$2,0)+1,FALSE) -> 0.091298697 | AK72: =N72*VLOOKUP($B72,$AR$36:$AZ$47,MATCH(AK$2,$AS$2:$BA$2,0)+1,FALSE) -> 0.07509167416 | AL72: =O72*VLOOKUP($B72,$AR$36:$AZ$47,MATCH(AL$2,$AS$2:$BA$2,0)+1,FALSE) -> 0.06022233701 | AM72: =P72*VLOOKUP($B72,$AR$36:$AZ$47,MATCH(AM$2,$AS$2:$BA$2,0)+1,FALSE) -> 8.576988365e-06 | AN72: =Q72*VLOOKUP($B72,$AR$36:$AZ$47,MATCH(AN$2,$AS$2:$BA$2,0)+1,FALSE) -> 0.001665079838 | AO72: =R72*VLOOKUP($B72,$AR$36:$BA$47,MATCH(AO$2,$AS$2:$BA$2,0)+1,FALSE) -> 0 | AP72: 0.9592503396
A73: 2006 | B73: 1 | C73: 3 | D73: 23 | F73: 2013 | G73: 1 | H73: 3 | I73: 23 | J73: 0.342526373 | K73: 0.3962043885 | L73: 0.008418087479 | M73: 0.1082617015 | N73: 0.0931725 | O73: 0.066235 | P73: 1.713756668e-05 | Q73: 0.002178785549 | R73: 0 | S73: 1.017013974 | V73: 0.3242883775 | W73: 0.0948222854 | X73: 0.3504981978 | Y73: 0.07343826676 | Z73: 0.06105785588 | AA73: 0.004707927806 | AB73: 8.576988365e-06 | AC73: 0.0015925556 | AD73: 0 | AE73: 0.9104140437 | AG73: =J73*VLOOKUP($B73,$AR$36:$AZ$47,MATCH(AG$2,$AS$2:$BA$2,0)+1,FALSE) -> 0.3286360843 | AH73: =K73*VLOOKUP($B73,$AR$36:$AZ$47,MATCH(AH$2,$AS$2:$BA$2,0)+1,FALSE) -> 0.3347703207 | AI73: =L73*VLOOKUP($B73,$AR$36:$AZ$47,MATCH(AI$2,$AS$2:$BA$2,0)+1,FALSE) -> 0.00622283391 | AJ73: =M73*VLOOKUP($B73,$AR$36:$AZ$47,MATCH(AJ$2,$AS$2:$BA$2,0)+1,FALSE) -> 0.09306599804 | AK73: =N73*VLOOKUP($B73,$AR$36:$AZ$47,MATCH(AK$2,$AS$2:$BA$2,0)+1,FALSE) -> 0.07287376506 | AL73: =O73*VLOOKUP($B73,$AR$36:$AZ$47,MATCH(AL$2,$AS$2:$BA$2,0)+1,FALSE) -> 0.05869892121 | AM73: =P73*VLOOKUP($B73,$AR$36:$AZ$47,MATCH(AM$2,$AS$2:$BA$2,0)+1,FALSE) -> 8.576988365e-06 | AN73: =Q73*VLOOKUP($B73,$AR$36:$AZ$47,MATCH(AN$2,$AS$2:$BA$2,0)+1,FALSE) -> 0.001665079838 | AO73: =R73*VLOOKUP($B73,$AR$36:$BA$47,MATCH(AO$2,$AS$2:$BA$2,0)+1,FALSE) -> 0 | AP73: 0.8959415801
A74: 2006 | B74: 1 | C74: 3 | D74: 24 | F74: 2013 | G74: 1 | H74: 3 | I74: 24 | J74: 0.2424514453 | K74: 0.3890082367 | L74: 0.008418087479 | M74: 0.1213966045 | N74: 0.0907968 | O74: 0.065243 | P74: 1.713756668e-05 | Q74: 0.002178785549 | R74: 0 | S74: 0.9195100971 | V74: 0.2295419915 | W74: 0.1063266449 | X74: 0.344132195 | Y74: 0.07156574761 | Z74: 0.06014339385 | AA74: 0.004707927806 | AB74: 8.576988365e-06 | AC74: 0.0015925556 | AD74: 0 | AE74: 0.8180190332 | AG74: =J74*VLOOKUP($B74,$AR$36:$AZ$47,MATCH(AG$2,$AS$2:$BA$2,0)+1,FALSE) -> 0.2326194416 | AH74: =K74*VLOOKUP($B74,$AR$36:$AZ$47,MATCH(AH$2,$AS$2:$BA$2,0)+1,FALSE) -> 0.328689979 | AI74: =L74*VLOOKUP($B74,$AR$36:$AZ$47,MATCH(AI$2,$AS$2:$BA$2,0)+1,FALSE) -> 0.00622283391 | AJ74: =M74*VLOOKUP($B74,$AR$36:$AZ$47,MATCH(AJ$2,$AS$2:$BA$2,0)+1,FALSE) -> 0.1043572751 | AK74: =N74*VLOOKUP($B74,$AR$36:$AZ$47,MATCH(AK$2,$AS$2:$BA$2,0)+1,FALSE) -> 0.0710156395 | AL74: =O74*VLOOKUP($B74,$AR$36:$AZ$47,MATCH(AL$2,$AS$2:$BA$2,0)+1,FALSE) -> 0.05781978888 | AM74: =P74*VLOOKUP($B74,$AR$36:$AZ$47,MATCH(AM$2,$AS$2:$BA$2,0)+1,FALSE) -> 8.576988365e-06 | AN74: =Q74*VLOOKUP($B74,$AR$36:$AZ$47,MATCH(AN$2,$AS$2:$BA$2,0)+1,FALSE) -> 0.001665079838 | AO74: =R74*VLOOKUP($B74,$AR$36:$BA$47,MATCH(AO$2,$AS$2:$BA$2,0)+1,FALSE) -> 0 | AP74: 0.8023986148
A75: 2006 | B75: 1 | C75: 4 | D75: 1 | F75: 2013 | G75: 1 | H75: 4 | I75: 1 | J75: 0.23357302 | K75: 0.3441065574 | L75: 0.008418087479 | M75: 0.09220782371 | N75: 0.0900369 | O75: 0.064176 | P75: 1.713756668e-05 | Q75: 0.002178785549 | R75: 0 | S75: 0.8347143116 | V75: 0.2211363026 | W75: 0.08076130763 | X75: 0.3044103794 | Y75: 0.07096679686 | Z75: 0.05915979405 | AA75: 0.004707927806 | AB75: 8.576988365e-06 | AC75: 0.0015925556 | AD75: 0 | AE75: 0.7427436409 | AG75: =J75*VLOOKUP($B75,$AR$36:$AZ$47,MATCH(AG$2,$AS$2:$BA$2,0)+1,FALSE) -> 0.2241010583 | AH75: =K75*VLOOKUP($B75,$AR$36:$AZ$47,MATCH(AH$2,$AS$2:$BA$2,0)+1,FALSE) -> 0.2907505972 | AI75: =L75*VLOOKUP($B75,$AR$36:$AZ$47,MATCH(AI$2,$AS$2:$BA$2,0)+1,FALSE) -> 0.00622283391 | AJ75: =M75*VLOOKUP($B75,$AR$36:$AZ$47,MATCH(AJ$2,$AS$2:$BA$2,0)+1,FALSE) -> 0.07926545607 | AK75: =N75*VLOOKUP($B75,$AR$36:$AZ$47,MATCH(AK$2,$AS$2:$BA$2,0)+1,FALSE) -> 0.07042129274 | AL75: =O75*VLOOKUP($B75,$AR$36:$AZ$47,MATCH(AL$2,$AS$2:$BA$2,0)+1,FALSE) -> 0.05687418989 | AM75: =P75*VLOOKUP($B75,$AR$36:$AZ$47,MATCH(AM$2,$AS$2:$BA$2,0)+1,FALSE) -> 8.576988365e-06 | AN75: =Q75*VLOOKUP($B75,$AR$36:$AZ$47,MATCH(AN$2,$AS$2:$BA$2,0)+1,FALSE) -> 0.001665079838 | AO75: =R75*VLOOKUP($B75,$AR$36:$BA$47,MATCH(AO$2,$AS$2:$BA$2,0)+1,FALSE) -> 0 | AP75: 0.7293090849
A76: 2006 | B76: 1 | C76: 4 | D76: 2 | F76: 2013 | G76: 1 | H76: 4 | I76: 2 | J76: 0.2194254915 | K76: 0.3349100888 | L76: 0.008418087479 | M76: 0.08650273743 | N76: 0.0892632 | O76: 0.063933 | P76: 1.713756668e-05 | Q76: 0.002178785549 | R76: 0 | S76: 0.8046485283 | V76: 0.2077420667 | W76: 0.07576444067 | X76: 0.2962748166 | Y76: 0.07035696899 | Z76: 0.05893578773 | AA76: 0.004707927806 | AB76: 8.576988365e-06 | AC76: 0.0015925556 | AD76: 0 | AE76: 0.7153831411 | AG76: =J76*VLOOKUP($B76,$AR$36:$AZ$47,MATCH(AG$2,$AS$2:$BA$2,0)+1,FALSE) -> 0.210527247 | AH76: =K76*VLOOKUP($B76,$AR$36:$AZ$47,MATCH(AH$2,$AS$2:$BA$2,0)+1,FALSE) -> 0.2829801009 | AI76: =L76*VLOOKUP($B76,$AR$36:$AZ$47,MATCH(AI$2,$AS$2:$BA$2,0)+1,FALSE) -> 0.00622283391 | AJ76: =M76*VLOOKUP($B76,$AR$36:$AZ$47,MATCH(AJ$2,$AS$2:$BA$2,0)+1,FALSE) -> 0.0743611405 | AK76: =N76*VLOOKUP($B76,$AR$36:$AZ$47,MATCH(AK$2,$AS$2:$BA$2,0)+1,FALSE) -> 0.06981615246 | AL76: =O76*VLOOKUP($B76,$AR$36:$AZ$47,MATCH(AL$2,$AS$2:$BA$2,0)+1,FALSE) -> 0.05665883792 | AM76: =P76*VLOOKUP($B76,$AR$36:$AZ$47,MATCH(AM$2,$AS$2:$BA$2,0)+1,FALSE) -> 8.576988365e-06 | AN76: =Q76*VLOOKUP($B76,$AR$36:$AZ$47,MATCH(AN$2,$AS$2:$BA$2,0)+1,FALSE) -> 0.001665079838 | AO76: =R76*VLOOKUP($B76,$AR$36:$BA$47,MATCH(AO$2,$AS$2:$BA$2,0)+1,FALSE) -> 0 | AP76: 0.7022399695
A77: 2006 | B77: 1 | C77: 4 | D77: 3 | F77: 2013 | G77: 1 | H77: 4 | I77: 3 | J77: 0.2168017012 | K77: 0.3316699111 | L77: 0.008418087479 | M77: 0.08631009579 | N77: 0.089083 | O77: 0.063866 | P77: 1.713756668e-05 | Q77: 0.002178785549 | R77: 0 | S77: 0.7983447187 | V77: 0.2052579815 | W77: 0.07559571322 | X77: 0.2934084263 | Y77: 0.07021493593 | Z77: 0.05887402467 | AA77: 0.004707927806 | AB77: 8.576988365e-06 | AC77: 0.0015925556 | AD77: 0 | AE77: 0.7096601419 | AG77: =J77*VLOOKUP($B77,$AR$36:$AZ$47,MATCH(AG$2,$AS$2:$BA$2,0)+1,FALSE) -> 0.2080098579 | AH77: =K77*VLOOKUP($B77,$AR$36:$AZ$47,MATCH(AH$2,$AS$2:$BA$2,0)+1,FALSE) -> 0.2802423338 | AI77: =L77*VLOOKUP($B77,$AR$36:$AZ$47,MATCH(AI$2,$AS$2:$BA$2,0)+1,FALSE) -> 0.00622283391 | AJ77: =M77*VLOOKUP($B77,$AR$36:$AZ$47,MATCH(AJ$2,$AS$2:$BA$2,0)+1,FALSE) -> 0.0741955382 | AK77: =N77*VLOOKUP($B77,$AR$36:$AZ$47,MATCH(AK$2,$AS$2:$BA$2,0)+1,FALSE) -> 0.06967521117 | AL77: =O77*VLOOKUP($B77,$AR$36:$AZ$47,MATCH(AL$2,$AS$2:$BA$2,0)+1,FALSE) -> 0.05659946104 | AM77: =P77*VLOOKUP($B77,$AR$36:$AZ$47,MATCH(AM$2,$AS$2:$BA$2,0)+1,FALSE) -> 8.576988365e-06 | AN77: =Q77*VLOOKUP($B77,$AR$36:$AZ$47,MATCH(AN$2,$AS$2:$BA$2,0)+1,FALSE) -> 0.001665079838 | AO77: =R77*VLOOKUP($B77,$AR$36:$BA$47,MATCH(AO$2,$AS$2:$BA$2,0)+1,FALSE) -> 0 | AP77: 0.6966188928
A78: 2006 | B78: 1 | C78: 4 | D78: 4 | F78: 2013 | G78: 1 | H78: 4 | I78: 4 | J78: 0.2175566543 | K78: 0.3306695746 | L78: 0.008418087479 | M78: 0.08452619474 | N78: 0.0887604 | O78: 0.063913 | P78: 1.713756668e-05 | Q78: 0.002178785549 | R78: 0 | S78: 0.7960398342 | V78: 0.2059727366 | W78: 0.07403326249 | X78: 0.2925234888 | Y78: 0.06996066364 | Z78: 0.05891735099 | AA78: 0.004707927806 | AB78: 8.576988365e-06 | AC78: 0.0015925556 | AD78: 0 | AE78: 0.7077165629 | AG78: =J78*VLOOKUP($B78,$AR$36:$AZ$47,MATCH(AG$2,$AS$2:$BA$2,0)+1,FALSE) -> 0.2087341957 | AH78: =K78*VLOOKUP($B78,$AR$36:$AZ$47,MATCH(AH$2,$AS$2:$BA$2,0)+1,FALSE) -> 0.2793971061 | AI78: =L78*VLOOKUP($B78,$AR$36:$AZ$47,MATCH(AI$2,$AS$2:$BA$2,0)+1,FALSE) -> 0.00622283391 | AJ78: =M78*VLOOKUP($B78,$AR$36:$AZ$47,MATCH(AJ$2,$AS$2:$BA$2,0)+1,FALSE) -> 0.072662027 | AK78: =N78*VLOOKUP($B78,$AR$36:$AZ$47,MATCH(AK$2,$AS$2:$BA$2,0)+1,FALSE) -> 0.06942289341 | AL78: =O78*VLOOKUP($B78,$AR$36:$AZ$47,MATCH(AL$2,$AS$2:$BA$2,0)+1,FALSE) -> 0.05664111348 | AM78: =P78*VLOOKUP($B78,$AR$36:$AZ$47,MATCH(AM$2,$AS$2:$BA$2,0)+1,FALSE) -> 8.576988365e-06 | AN78: =Q78*VLOOKUP($B78,$AR$36:$AZ$47,MATCH(AN$2,$AS$2:$BA$2,0)+1,FALSE) -> 0.001665079838 | AO78: =R78*VLOOKUP($B78,$AR$36:$BA$47,MATCH(AO$2,$AS$2:$BA$2,0)+1,FALSE) -> 0 | AP78: 0.6947538264
A79: 2006 | B79: 1 | C79: 4 | D79: 5 | F79: 2013 | G79: 1 | H79: 4 | I79: 5 | J79: 0.2256345318 | K79: 0.3367343394 | L79: 0.008418087479 | M79: 0.08536594855 | N79: 0.0896086 | O79: 0.064243 | P79: 1.713756668e-05 | Q79: 0.002178785549 | R79: 0 | S79: 0.8122004304 | V79: 0.2136205034 | W79: 0.07476877074 | X79: 0.2978886215 | Y79: 0.07062921217 | Z79: 0.05922155712 | AA79: 0.004707927806 | AB79: 8.576988365e-06 | AC79: 0.0015925556 | AD79: 0 | AE79: 0.7224377253 | AG79: =J79*VLOOKUP($B79,$AR$36:$AZ$47,MATCH(AG$2,$AS$2:$BA$2,0)+1,FALSE) -> 0.2164844954 | AH79: =K79*VLOOKUP($B79,$AR$36:$AZ$47,MATCH(AH$2,$AS$2:$BA$2,0)+1,FALSE) -> 0.2845214896 | AI79: =L79*VLOOKUP($B79,$AR$36:$AZ$47,MATCH(AI$2,$AS$2:$BA$2,0)+1,FALSE) -> 0.00622283391 | AJ79: =M79*VLOOKUP($B79,$AR$36:$AZ$47,MATCH(AJ$2,$AS$2:$BA$2,0)+1,FALSE) -> 0.07338391226 | AK79: =N79*VLOOKUP($B79,$AR$36:$AZ$47,MATCH(AK$2,$AS$2:$BA$2,0)+1,FALSE) -> 0.07008630297 | AL79: =O79*VLOOKUP($B79,$AR$36:$AZ$47,MATCH(AL$2,$AS$2:$BA$2,0)+1,FALSE) -> 0.05693356677 | AM79: =P79*VLOOKUP($B79,$AR$36:$AZ$47,MATCH(AM$2,$AS$2:$BA$2,0)+1,FALSE) -> 8.576988365e-06 | AN79: =Q79*VLOOKUP($B79,$AR$36:$AZ$47,MATCH(AN$2,$AS$2:$BA$2,0)+1,FALSE) -> 0.001665079838 | AO79: =R79*VLOOKUP($B79,$AR$36:$BA$47,MATCH(AO$2,$AS$2:$BA$2,0)+1,FALSE) -> 0 | AP79: 0.7093062578
A80: 2006 | B80: 1 | C80: 4 | D80: 6 | F80: 2013 | G80: 1 | H80: 4 | I80: 6 | J80: 0.2468884273 | K80: 0.3547143763 | L80: 0.008418087479 | M80: 0.08226836911 | N80: 0.093119 | O80: 0.066099 | P80: 1.713756668e-05 | Q80: 0.002178785549 | R80: 0 | S80: 0.8537031833 | V80: 0.2337427241 | W80: 0.07205571933 | X80: 0.3137944789 | Y80: 0.07339609823 | Z80: 0.06093248609 | AA80: 0.004707927806 | AB80: 8.576988365e-06 | AC80: 0.0015925556 | AD80: 0 | AE80: 0.7602305671 | AG80: =J80*VLOOKUP($B80,$AR$36:$AZ$47,MATCH(AG$2,$AS$2:$BA$2,0)+1,FALSE) -> 0.236876493 | AH80: =K80*VLOOKUP($B80,$AR$36:$AZ$47,MATCH(AH$2,$AS$2:$BA$2,0)+1,FALSE) -> 0.2997136048 | AI80: =L80*VLOOKUP($B80,$AR$36:$AZ$47,MATCH(AI$2,$AS$2:$BA$2,0)+1,FALSE) -> 0.00622283391 | AJ80: =M80*VLOOKUP($B80,$AR$36:$AZ$47,MATCH(AJ$2,$AS$2:$BA$2,0)+1,FALSE) -> 0.07072111167 | AK80: =N80*VLOOKUP($B80,$AR$36:$AZ$47,MATCH(AK$2,$AS$2:$BA$2,0)+1,FALSE) -> 0.07283192067 | AL80: =O80*VLOOKUP($B80,$AR$36:$AZ$47,MATCH(AL$2,$AS$2:$BA$2,0)+1,FALSE) -> 0.058578395 | AM80: =P80*VLOOKUP($B80,$AR$36:$AZ$47,MATCH(AM$2,$AS$2:$BA$2,0)+1,FALSE) -> 8.576988365e-06 | AN80: =Q80*VLOOKUP($B80,$AR$36:$AZ$47,MATCH(AN$2,$AS$2:$BA$2,0)+1,FALSE) -> 0.001665079838 | AO80: =R80*VLOOKUP($B80,$AR$36:$BA$47,MATCH(AO$2,$AS$2:$BA$2,0)+1,FALSE) -> 0 | AP80: 0.7466180159
A81: 2006 | B81: 1 | C81: 4 | D81: 7 | F81: 2013 | G81: 1 | H81: 4 | I81: 7 | J81: 0.2816463082 | K81: 0.3971730952 | L81: 0.008418087479 | M81: 0.08433240627 | N81: 0.1045498 | O81: 0.071626 | P81: 1.713756668e-05 | Q81: 0.002178785549 | R81: 0 | S81: 0.9499416203 | V81: 0.2666499035 | W81: 0.07386353057 | X81: 0.3513551544 | Y81: 0.08240581826 | Z81: 0.0660274777 | AA81: 0.004707927806 | AB81: 8.576988365e-06 | AC81: 0.0015925556 | AD81: 0 | AE81: 0.8466109449 | AG81: =J81*VLOOKUP($B81,$AR$36:$AZ$47,MATCH(AG$2,$AS$2:$BA$2,0)+1,FALSE) -> 0.2702248562 | AH81: =K81*VLOOKUP($B81,$AR$36:$AZ$47,MATCH(AH$2,$AS$2:$BA$2,0)+1,FALSE) -> 0.3355888232 | AI81: =L81*VLOOKUP($B81,$AR$36:$AZ$47,MATCH(AI$2,$AS$2:$BA$2,0)+1,FALSE) -> 0.00622283391 | AJ81: =M81*VLOOKUP($B81,$AR$36:$AZ$47,MATCH(AJ$2,$AS$2:$BA$2,0)+1,FALSE) -> 0.07249543884 | AK81: =N81*VLOOKUP($B81,$AR$36:$AZ$47,MATCH(AK$2,$AS$2:$BA$2,0)+1,FALSE) -> 0.08177238523 | AL81: =O81*VLOOKUP($B81,$AR$36:$AZ$47,MATCH(AL$2,$AS$2:$BA$2,0)+1,FALSE) -> 0.06347654458 | AM81: =P81*VLOOKUP($B81,$AR$36:$AZ$47,MATCH(AM$2,$AS$2:$BA$2,0)+1,FALSE) -> 8.576988365e-06 | AN81: =Q81*VLOOKUP($B81,$AR$36:$AZ$47,MATCH(AN$2,$AS$2:$BA$2,0)+1,FALSE) -> 0.001665079838 | AO81: =R81*VLOOKUP($B81,$AR$36:$BA$47,MATCH(AO$2,$AS$2:$BA$2,0)+1,FALSE) -> 0 | AP81: 0.8314545388
A82: 2006 | B82: 1 | C82: 4 | D82: 8 | F82: 2013 | G82: 1 | H82: 4 | I82: 8 | J82: 0.3099120997 | K82: 0.4496076809 | L82: 0.005331455403 | M82: 0.09851408004 | N82: 0.1113358 | O82: 0.076864 | P82: 1.085379223e-05 | Q82: 0.002056339251 | R82: 0 | S82: 1.053632309 | V82: 0.2934106682 | W82: 0.08628471646 | X82: 0.3977408794 | Y82: 0.08775452178 | Z82: 0.0708560585 | AA82: 0.00298168761 | AB82: 5.432092631e-06 | AC82: 0.001503055035 | AD82: 0 | AE82: 0.940537019 | AG82: =J82*VLOOKUP($B82,$AR$36:$AZ$47,MATCH(AG$2,$AS$2:$BA$2,0)+1,FALSE) -> 0.2973444002 | AH82: =K82*VLOOKUP($B82,$AR$36:$AZ$47,MATCH(AH$2,$AS$2:$BA$2,0)+1,FALSE) -> 0.3798930853 | AI82: =L82*VLOOKUP($B82,$AR$36:$AZ$47,MATCH(AI$2,$AS$2:$BA$2,0)+1,FALSE) -> 0.003941128143 | AJ82: =M82*VLOOKUP($B82,$AR$36:$AZ$47,MATCH(AJ$2,$AS$2:$BA$2,0)+1,FALSE) -> 0.08468656097 | AK82: =N82*VLOOKUP($B82,$AR$36:$AZ$47,MATCH(AK$2,$AS$2:$BA$2,0)+1,FALSE) -> 0.08707997459 | AL82: =O82*VLOOKUP($B82,$AR$36:$AZ$47,MATCH(AL$2,$AS$2:$BA$2,0)+1,FALSE) -> 0.06811857598 | AM82: =P82*VLOOKUP($B82,$AR$36:$AZ$47,MATCH(AM$2,$AS$2:$BA$2,0)+1,FALSE) -> 5.432092631e-06 | AN82: =Q82*VLOOKUP($B82,$AR$36:$AZ$47,MATCH(AN$2,$AS$2:$BA$2,0)+1,FALSE) -> 0.001571503459 | AO82: =R82*VLOOKUP($B82,$AR$36:$BA$47,MATCH(AO$2,$AS$2:$BA$2,0)+1,FALSE) -> 0 | AP82: 0.9226406607
A83: 2006 | B83: 1 | C83: 4 | D83: 9 | F83: 2013 | G83: 1 | H83: 4 | I83: 9 | J83: 0.2940526708 | K83: 0.4796373818 | L83: 0 | M83: 0.1058236554 | N83: 0.1147768 | O83: 0.079289 | P83: 0 | Q83: 0.0018448411 | R83: 0 | S83: 1.075424349 | V83: 0.2783956828 | W83: 0.09268689405 | X83: 0.42430635 | Y83: 0.09046670698 | Z83: 0.07309151257 | AA83: 0 | AB83: 0 | AC83: 0.00134846315 | AD83: 0 | AE83: 0.9602956096 | AG83: =J83*VLOOKUP($B83,$AR$36:$AZ$47,MATCH(AG$2,$AS$2:$BA$2,0)+1,FALSE) -> 0.2821281102 | AH83: =K83*VLOOKUP($B83,$AR$36:$AZ$47,MATCH(AH$2,$AS$2:$BA$2,0)+1,FALSE) -> 0.4052664857 | AI83: =L83*VLOOKUP($B83,$AR$36:$AZ$47,MATCH(AI$2,$AS$2:$BA$2,0)+1,FALSE) -> 0 | AJ83: =M83*VLOOKUP($B83,$AR$36:$AZ$47,MATCH(AJ$2,$AS$2:$BA$2,0)+1,FALSE) -> 0.09097015817 | AK83: =N83*VLOOKUP($B83,$AR$36:$AZ$47,MATCH(AK$2,$AS$2:$BA$2,0)+1,FALSE) -> 0.0897713119 | AL83: =O83*VLOOKUP($B83,$AR$36:$AZ$47,MATCH(AL$2,$AS$2:$BA$2,0)+1,FALSE) -> 0.07026766459 | AM83: =P83*VLOOKUP($B83,$AR$36:$AZ$47,MATCH(AM$2,$AS$2:$BA$2,0)+1,FALSE) -> 0 | AN83: =Q83*VLOOKUP($B83,$AR$36:$AZ$47,MATCH(AN$2,$AS$2:$BA$2,0)+1,FALSE) -> 0.001409871532 | AO83: =R83*VLOOKUP($B83,$AR$36:$BA$47,MATCH(AO$2,$AS$2:$BA$2,0)+1,FALSE) -> 0 | AP83: 0.9398136021
A84: 2006 | B84: 1 | C84: 4 | D84: 10 | F84: 2013 | G84: 1 | H84: 4 | I84: 10 | J84: 0.2862618566 | K84: 0.4924037741 | L84: 0 | M84: 0.1076651259 | N84: 0.1165148 | O84: 0.079774 | P84: 0 | Q84: 0.0018448411 | R84: 0 | S84: 1.084464398 | V84: 0.2710196946 | W84: 0.09429976764 | X84: 0.4356000096 | Y84: 0.09183659303 | Z84: 0.07353860339 | AA84: 0 | AB84: 0 | AC84: 0.00134846315 | AD84: 0 | AE84: 0.9676431313 | AG84: =J84*VLOOKUP($B84,$AR$36:$AZ$47,MATCH(AG$2,$AS$2:$BA$2,0)+1,FALSE) -> 0.2746532327 | AH84: =K84*VLOOKUP($B84,$AR$36:$AZ$47,MATCH(AH$2,$AS$2:$BA$2,0)+1,FALSE) -> 0.4160533658 | AI84: =L84*VLOOKUP($B84,$AR$36:$AZ$47,MATCH(AI$2,$AS$2:$BA$2,0)+1,FALSE) -> 0 | AJ84: =M84*VLOOKUP($B84,$AR$36:$AZ$47,MATCH(AJ$2,$AS$2:$BA$2,0)+1,FALSE) -> 0.0925531583 | AK84: =N84*VLOOKUP($B84,$AR$36:$AZ$47,MATCH(AK$2,$AS$2:$BA$2,0)+1,FALSE) -> 0.09113066797 | AL84: =O84*VLOOKUP($B84,$AR$36:$AZ$47,MATCH(AL$2,$AS$2:$BA$2,0)+1,FALSE) -> 0.07069748231 | AM84: =P84*VLOOKUP($B84,$AR$36:$AZ$47,MATCH(AM$2,$AS$2:$BA$2,0)+1,FALSE) -> 0 | AN84: =Q84*VLOOKUP($B84,$AR$36:$AZ$47,MATCH(AN$2,$AS$2:$BA$2,0)+1,FALSE) -> 0.001409871532 | AO84: =R84*VLOOKUP($B84,$AR$36:$BA$47,MATCH(AO$2,$AS$2:$BA$2,0)+1,FALSE) -> 0 | AP84: 0.9464977786
A85: 2006 | B85: 1 | C85: 4 | D85: 11 | F85: 2013 | G85: 1 | H85: 4 | I85: 11 | J85: 0.272047089 | K85: 0.4902602297 | L85: 0 | M85: 0.1031109955 | N85: 0.1167657 | O85: 0.080194 | P85: 0 | Q85: 0.0018448411 | R85: 0 | S85: 1.064222855 | V85: 0.2575617997 | W85: 0.09031097892 | X85: 0.4337037447 | Y85: 0.0920343516 | Z85: 0.07392577481 | AA85: 0 | AB85: 0 | AC85: 0.00134846315 | AD85: 0 | AE85: 0.948885113 | AG85: =J85*VLOOKUP($B85,$AR$36:$AZ$47,MATCH(AG$2,$AS$2:$BA$2,0)+1,FALSE) -> 0.261014909 | AH85: =K85*VLOOKUP($B85,$AR$36:$AZ$47,MATCH(AH$2,$AS$2:$BA$2,0)+1,FALSE) -> 0.4142421919 | AI85: =L85*VLOOKUP($B85,$AR$36:$AZ$47,MATCH(AI$2,$AS$2:$BA$2,0)+1,FALSE) -> 0 | AJ85: =M85*VLOOKUP($B85,$AR$36:$AZ$47,MATCH(AJ$2,$AS$2:$BA$2,0)+1,FALSE) -> 0.08863824947 | AK85: =N85*VLOOKUP($B85,$AR$36:$AZ$47,MATCH(AK$2,$AS$2:$BA$2,0)+1,FALSE) -> 0.09132690643 | AL85: =O85*VLOOKUP($B85,$AR$36:$AZ$47,MATCH(AL$2,$AS$2:$BA$2,0)+1,FALSE) -> 0.07106969559 | AM85: =P85*VLOOKUP($B85,$AR$36:$AZ$47,MATCH(AM$2,$AS$2:$BA$2,0)+1,FALSE) -> 0 | AN85: =Q85*VLOOKUP($B85,$AR$36:$AZ$47,MATCH(AN$2,$AS$2:$BA$2,0)+1,FALSE) -> 0.001409871532 | AO85: =R85*VLOOKUP($B85,$AR$36:$BA$47,MATCH(AO$2,$AS$2:$BA$2,0)+1,FALSE) -> 0 | AP85: 0.9277018239
A86: 2006 | B86: 1 | C86: 4 | D86: 12 | F86: 2013 | G86: 1 | H86: 4 | I86: 12 | J86: 0.2780895405 | K86: 0.4854703679 | L86: 0 | M86: 0.09757218848 | N86: 0.1166584 | O86: 0.080114 | P86: 0 | Q86: 0.0018448411 | R86: 0 | S86: 1.059749338 | V86: 0.2632825177 | W86: 0.08545974964 | X86: 0.429466442 | Y86: 0.09194977809 | Z86: 0.07385202788 | AA86: 0 | AB86: 0 | AC86: 0.00134846315 | AD86: 0 | AE86: 0.9453589785 | AG86: =J86*VLOOKUP($B86,$AR$36:$AZ$47,MATCH(AG$2,$AS$2:$BA$2,0)+1,FALSE) -> 0.2668123242 | AH86: =K86*VLOOKUP($B86,$AR$36:$AZ$47,MATCH(AH$2,$AS$2:$BA$2,0)+1,FALSE) -> 0.4101950293 | AI86: =L86*VLOOKUP($B86,$AR$36:$AZ$47,MATCH(AI$2,$AS$2:$BA$2,0)+1,FALSE) -> 0 | AJ86: =M86*VLOOKUP($B86,$AR$36:$AZ$47,MATCH(AJ$2,$AS$2:$BA$2,0)+1,FALSE) -> 0.08387687409 | AK86: =N86*VLOOKUP($B86,$AR$36:$AZ$47,MATCH(AK$2,$AS$2:$BA$2,0)+1,FALSE) -> 0.091242983 | AL86: =O86*VLOOKUP($B86,$AR$36:$AZ$47,MATCH(AL$2,$AS$2:$BA$2,0)+1,FALSE) -> 0.07099879782 | AM86: =P86*VLOOKUP($B86,$AR$36:$AZ$47,MATCH(AM$2,$AS$2:$BA$2,0)+1,FALSE) -> 0 | AN86: =Q86*VLOOKUP($B86,$AR$36:$AZ$47,MATCH(AN$2,$AS$2:$BA$2,0)+1,FALSE) -> 0.001409871532 | AO86: =R86*VLOOKUP($B86,$AR$36:$BA$47,MATCH(AO$2,$AS$2:$BA$2,0)+1,FALSE) -> 0 | AP86: 0.9245358799
A87: 2006 | B87: 1 | C87: 4 | D87: 13 | F87: 2013 | G87: 1 | H87: 4 | I87: 13 | J87: 0.2598685212 | K87: 0.4889850266 | L87: 0 | M87: 0.1068200025 | N87: 0.1164083 | O87: 0.080532 | P87: 0 | Q87: 0.0018448411 | R87: 0 | S87: 1.054458691 | V87: 0.2460316862 | W87: 0.09355955642 | X87: 0.4325756492 | Y87: 0.09175265007 | Z87: 0.07423735563 | AA87: 0 | AB87: 0 | AC87: 0.00134846315 | AD87: 0 | AE87: 0.9395053606 | AG87: =J87*VLOOKUP($B87,$AR$36:$AZ$47,MATCH(AG$2,$AS$2:$BA$2,0)+1,FALSE) -> 0.2493302122 | AH87: =K87*VLOOKUP($B87,$AR$36:$AZ$47,MATCH(AH$2,$AS$2:$BA$2,0)+1,FALSE) -> 0.4131647173 | AI87: =L87*VLOOKUP($B87,$AR$36:$AZ$47,MATCH(AI$2,$AS$2:$BA$2,0)+1,FALSE) -> 0 | AJ87: =M87*VLOOKUP($B87,$AR$36:$AZ$47,MATCH(AJ$2,$AS$2:$BA$2,0)+1,FALSE) -> 0.09182665719 | AK87: =N87*VLOOKUP($B87,$AR$36:$AZ$47,MATCH(AK$2,$AS$2:$BA$2,0)+1,FALSE) -> 0.09104737026 | AL87: =O87*VLOOKUP($B87,$AR$36:$AZ$47,MATCH(AL$2,$AS$2:$BA$2,0)+1,FALSE) -> 0.07136923866 | AM87: =P87*VLOOKUP($B87,$AR$36:$AZ$47,MATCH(AM$2,$AS$2:$BA$2,0)+1,FALSE) -> 0 | AN87: =Q87*VLOOKUP($B87,$AR$36:$AZ$47,MATCH(AN$2,$AS$2:$BA$2,0)+1,FALSE) -> 0.001409871532 | AO87: =R87*VLOOKUP($B87,$AR$36:$BA$47,MATCH(AO$2,$AS$2:$BA$2,0)+1,FALSE) -> 0 | AP87: 0.9181480671
A88: 2006 | B88: 1 | C88: 4 | D88: 14 | F88: 2013 | G88: 1 | H88: 4 | I88: 14 | J88: 0.2447304197 | K88: 0.4895087808 | L88: 0 | M88: 0.1091186284 | N88: 0.1166011 | O88: 0.080466 | P88: 0 | Q88: 0.0018448411 | R88: 0 | S88: 1.04226977 | V88: 0.2316996207 | W88: 0.09557283491 | X88: 0.433038983 | Y88: 0.09190461441 | Z88: 0.0741765144 | AA88: 0 | AB88: 0 | AC88: 0.00134846315 | AD88: 0 | AE88: 0.9277410306 | AG88: =J88*VLOOKUP($B88,$AR$36:$AZ$47,MATCH(AG$2,$AS$2:$BA$2,0)+1,FALSE) -> 0.2348059979 | AH88: =K88*VLOOKUP($B88,$AR$36:$AZ$47,MATCH(AH$2,$AS$2:$BA$2,0)+1,FALSE) -> 0.41360726 | AI88: =L88*VLOOKUP($B88,$AR$36:$AZ$47,MATCH(AI$2,$AS$2:$BA$2,0)+1,FALSE) -> 0 | AJ88: =M88*VLOOKUP($B88,$AR$36:$AZ$47,MATCH(AJ$2,$AS$2:$BA$2,0)+1,FALSE) -> 0.09380264597 | AK88: =N88*VLOOKUP($B88,$AR$36:$AZ$47,MATCH(AK$2,$AS$2:$BA$2,0)+1,FALSE) -> 0.09119816649 | AL88: =O88*VLOOKUP($B88,$AR$36:$AZ$47,MATCH(AL$2,$AS$2:$BA$2,0)+1,FALSE) -> 0.071310748 | AM88: =P88*VLOOKUP($B88,$AR$36:$AZ$47,MATCH(AM$2,$AS$2:$BA$2,0)+1,FALSE) -> 0 | AN88: =Q88*VLOOKUP($B88,$AR$36:$AZ$47,MATCH(AN$2,$AS$2:$BA$2,0)+1,FALSE) -> 0.001409871532 | AO88: =R88*VLOOKUP($B88,$AR$36:$BA$47,MATCH(AO$2,$AS$2:$BA$2,0)+1,FALSE) -> 0 | AP88: 0.9061346899
A89: 2006 | B89: 1 | C89: 4 | D89: 15 | F89: 2013 | G89: 1 | H89: 4 | I89: 15 | J89: 0.2576375451 | K89: 0.4762378129 | L89: 0 | M89: 0.09818437362 | N89: 0.1154797 | O89: 0.080271 | P89: 0 | Q89: 0.0018448411 | R89: 0 | S89: 1.029655273 | V89: 0.2439194995 | W89: 0.08599593921 | X89: 0.4212989558 | Y89: 0.09102073051 | Z89: 0.07399675624 | AA89: 0 | AB89: 0 | AC89: 0.00134846315 | AD89: 0 | AE89: 0.9175803444 | AG89: =J89*VLOOKUP($B89,$AR$36:$AZ$47,MATCH(AG$2,$AS$2:$BA$2,0)+1,FALSE) -> 0.2471897076 | AH89: =K89*VLOOKUP($B89,$AR$36:$AZ$47,MATCH(AH$2,$AS$2:$BA$2,0)+1,FALSE) -> 0.402394042 | AI89: =L89*VLOOKUP($B89,$AR$36:$AZ$47,MATCH(AI$2,$AS$2:$BA$2,0)+1,FALSE) -> 0 | AJ89: =M89*VLOOKUP($B89,$AR$36:$AZ$47,MATCH(AJ$2,$AS$2:$BA$2,0)+1,FALSE) -> 0.08440313241 | AK89: =N89*VLOOKUP($B89,$AR$36:$AZ$47,MATCH(AK$2,$AS$2:$BA$2,0)+1,FALSE) -> 0.09032107679 | AL89: =O89*VLOOKUP($B89,$AR$36:$AZ$47,MATCH(AL$2,$AS$2:$BA$2,0)+1,FALSE) -> 0.07113793469 | AM89: =P89*VLOOKUP($B89,$AR$36:$AZ$47,MATCH(AM$2,$AS$2:$BA$2,0)+1,FALSE) -> 0 | AN89: =Q89*VLOOKUP($B89,$AR$36:$AZ$47,MATCH(AN$2,$AS$2:$BA$2,0)+1,FALSE) -> 0.001409871532 | AO89: =R89*VLOOKUP($B89,$AR$36:$BA$47,MATCH(AO$2,$AS$2:$BA$2,0)+1,FALSE) -> 0 | AP89: 0.8968557651
A90: 2006 | B90: 1 | C90: 4 | D90: 16 | F90: 2013 | G90: 1 | H90: 4 | I90: 16 | J90: 0.2811275128 | K90: 0.4668530364 | L90: 0 | M90: 0.09237312647 | N90: 0.1139207 | O90: 0.078201 | P90: 0 | Q90: 0.0018448411 | R90: 0 | S90: 1.034320217 | V90: 0.2661587316 | W90: 0.08090609 | X90: 0.4129968083 | Y90: 0.0897919317 | Z90: 0.07208855421 | AA90: 0 | AB90: 0 | AC90: 0.00134846315 | AD90: 0 | AE90: 0.923290579 | AG90: =J90*VLOOKUP($B90,$AR$36:$AZ$47,MATCH(AG$2,$AS$2:$BA$2,0)+1,FALSE) -> 0.2697270992 | AH90: =K90*VLOOKUP($B90,$AR$36:$AZ$47,MATCH(AH$2,$AS$2:$BA$2,0)+1,FALSE) -> 0.3944644362 | AI90: =L90*VLOOKUP($B90,$AR$36:$AZ$47,MATCH(AI$2,$AS$2:$BA$2,0)+1,FALSE) -> 0 | AJ90: =M90*VLOOKUP($B90,$AR$36:$AZ$47,MATCH(AJ$2,$AS$2:$BA$2,0)+1,FALSE) -> 0.0794075568 | AK90: =N90*VLOOKUP($B90,$AR$36:$AZ$47,MATCH(AK$2,$AS$2:$BA$2,0)+1,FALSE) -> 0.08910172344 | AL90: =O90*VLOOKUP($B90,$AR$36:$AZ$47,MATCH(AL$2,$AS$2:$BA$2,0)+1,FALSE) -> 0.06930345493 | AM90: =P90*VLOOKUP($B90,$AR$36:$AZ$47,MATCH(AM$2,$AS$2:$BA$2,0)+1,FALSE) -> 0 | AN90: =Q90*VLOOKUP($B90,$AR$36:$AZ$47,MATCH(AN$2,$AS$2:$BA$2,0)+1,FALSE) -> 0.001409871532 | AO90: =R90*VLOOKUP($B90,$AR$36:$BA$47,MATCH(AO$2,$AS$2:$BA$2,0)+1,FALSE) -> 0 | AP90: 0.9034141421
A91: 2006 | B91: 1 | C91: 4 | D91: 17 | F91: 2013 | G91: 1 | H91: 4 | I91: 17 | J91: 0.3180166031 | K91: 0.4681071649 | L91: 0.002525426244 | M91: 0.09882215087 | N91: 0.1118197 | O91: 0.076892 | P91: 5.141270004e-06 | Q91: 0.001945024434 | R91: 0 | S91: 1.078133211 | V91: 0.3010836431 | W91: 0.08655454392 | X91: 0.4141062604 | Y91: 0.08813593021 | Z91: 0.07088186993 | AA91: 0.001412378342 | AB91: 2.57309651e-06 | AC91: 0.001421690885 | AD91: 0 | AE91: 0.9635988898 | AG91: =J91*VLOOKUP($B91,$AR$36:$AZ$47,MATCH(AG$2,$AS$2:$BA$2,0)+1,FALSE) -> 0.305120246 | AH91: =K91*VLOOKUP($B91,$AR$36:$AZ$47,MATCH(AH$2,$AS$2:$BA$2,0)+1,FALSE) -> 0.3955241039 | AI91: =L91*VLOOKUP($B91,$AR$36:$AZ$47,MATCH(AI$2,$AS$2:$BA$2,0)+1,FALSE) -> 0.001866850173 | AJ91: =M91*VLOOKUP($B91,$AR$36:$AZ$47,MATCH(AJ$2,$AS$2:$BA$2,0)+1,FALSE) -> 0.08495139072 | AK91: =N91*VLOOKUP($B91,$AR$36:$AZ$47,MATCH(AK$2,$AS$2:$BA$2,0)+1,FALSE) -> 0.08745845123 | AL91: =O91*VLOOKUP($B91,$AR$36:$AZ$47,MATCH(AL$2,$AS$2:$BA$2,0)+1,FALSE) -> 0.0681433902 | AM91: =P91*VLOOKUP($B91,$AR$36:$AZ$47,MATCH(AM$2,$AS$2:$BA$2,0)+1,FALSE) -> 2.57309651e-06 | AN91: =Q91*VLOOKUP($B91,$AR$36:$AZ$47,MATCH(AN$2,$AS$2:$BA$2,0)+1,FALSE) -> 0.001486434024 | AO91: =R91*VLOOKUP($B91,$AR$36:$BA$47,MATCH(AO$2,$AS$2:$BA$2,0)+1,FALSE) -> 0 | AP91: 0.9445534393
A92: 2006 | B92: 1 | C92: 4 | D92: 18 | F92: 2013 | G92: 1 | H92: 4 | I92: 18 | J92: 0.3870233018 | K92: 0.4611986051 | L92: 0.008418087479 | M92: 0.0959673943 | N92: 0.1089469 | O92: 0.074548 | P92: 1.713756668e-05 | Q92: 0.002178785549 | R92: 0 | S92: 1.138298212 | V92: 0.366416044 | W92: 0.08405417178 | X92: 0.407994673 | Y92: 0.08587159843 | Z92: 0.06872108463 | AA92: 0.004707927806 | AB92: 8.576988365e-06 | AC92: 0.0015925556 | AD92: 0 | AE92: 1.019366632 | AG92: =J92*VLOOKUP($B92,$AR$36:$AZ$47,MATCH(AG$2,$AS$2:$BA$2,0)+1,FALSE) -> 0.3713285529 | AH92: =K92*VLOOKUP($B92,$AR$36:$AZ$47,MATCH(AH$2,$AS$2:$BA$2,0)+1,FALSE) -> 0.3896867612 | AI92: =L92*VLOOKUP($B92,$AR$36:$AZ$47,MATCH(AI$2,$AS$2:$BA$2,0)+1,FALSE) -> 0.00622283391 | AJ92: =M92*VLOOKUP($B92,$AR$36:$AZ$47,MATCH(AJ$2,$AS$2:$BA$2,0)+1,FALSE) -> 0.08249733017 | AK92: =N92*VLOOKUP($B92,$AR$36:$AZ$47,MATCH(AK$2,$AS$2:$BA$2,0)+1,FALSE) -> 0.0852115248 | AL92: =O92*VLOOKUP($B92,$AR$36:$AZ$47,MATCH(AL$2,$AS$2:$BA$2,0)+1,FALSE) -> 0.06606608558 | AM92: =P92*VLOOKUP($B92,$AR$36:$AZ$47,MATCH(AM$2,$AS$2:$BA$2,0)+1,FALSE) -> 8.576988365e-06 | AN92: =Q92*VLOOKUP($B92,$AR$36:$AZ$47,MATCH(AN$2,$AS$2:$BA$2,0)+1,FALSE) -> 0.001665079838 | AO92: =R92*VLOOKUP($B92,$AR$36:$BA$47,MATCH(AO$2,$AS$2:$BA$2,0)+1,FALSE) -> 0 | AP92: 1.002686745
A93: 2006 | B93: 1 | C93: 4 | D93: 19 | F93: 2013 | G93: 1 | H93: 4 | I93: 19 | J93: 0.4209784827 | K93: 0.4513740471 | L93: 0.008418087479 | M93: 0.1068064691 | N93: 0.098318 | O93: 0.069831 | P93: 1.713756668e-05 | Q93: 0.002178785549 | R93: 0 | S93: 1.15792201 | V93: 0.3985632636 | W93: 0.09354770299 | X93: 0.3993034773 | Y93: 0.07749393342 | Z93: 0.06437278077 | AA93: 0.004707927806 | AB93: 8.576988365e-06 | AC93: 0.0015925556 | AD93: 0 | AE93: 1.039590219 | AG93: =J93*VLOOKUP($B93,$AR$36:$AZ$47,MATCH(AG$2,$AS$2:$BA$2,0)+1,FALSE) -> 0.4039067676 | AH93: =K93*VLOOKUP($B93,$AR$36:$AZ$47,MATCH(AH$2,$AS$2:$BA$2,0)+1,FALSE) -> 0.3813855649 | AI93: =L93*VLOOKUP($B93,$AR$36:$AZ$47,MATCH(AI$2,$AS$2:$BA$2,0)+1,FALSE) -> 0.00622283391 | AJ93: =M93*VLOOKUP($B93,$AR$36:$AZ$47,MATCH(AJ$2,$AS$2:$BA$2,0)+1,FALSE) -> 0.0918150233 | AK93: =N93*VLOOKUP($B93,$AR$36:$AZ$47,MATCH(AK$2,$AS$2:$BA$2,0)+1,FALSE) -> 0.07689825682 | AL93: =O93*VLOOKUP($B93,$AR$36:$AZ$47,MATCH(AL$2,$AS$2:$BA$2,0)+1,FALSE) -> 0.0618857759 | AM93: =P93*VLOOKUP($B93,$AR$36:$AZ$47,MATCH(AM$2,$AS$2:$BA$2,0)+1,FALSE) -> 8.576988365e-06 | AN93: =Q93*VLOOKUP($B93,$AR$36:$AZ$47,MATCH(AN$2,$AS$2:$BA$2,0)+1,FALSE) -> 0.001665079838 | AO93: =R93*VLOOKUP($B93,$AR$36:$BA$47,MATCH(AO$2,$AS$2:$BA$2,0)+1,FALSE) -> 0 | AP93: 1.023787879
A94: 2006 | B94: 1 | C94: 4 | D94: 20 | F94: 2013 | G94: 1 | H94: 4 | I94: 20 | J94: 0.4243097499 | K94: 0.4260264347 | L94: 0.008418087479 | M94: 0.08807038497 | N94: 0.0943035 | O94: 0.067866 | P94: 1.713756668e-05 | Q94: 0.002178785549 | R94: 0 | S94: 1.11119008 | V94: 0.4017171558 | W94: 0.07713748321 | X94: 0.3768799688 | Y94: 0.07432971734 | Z94: 0.06256137159 | AA94: 0.004707927806 | AB94: 8.576988365e-06 | AC94: 0.0015925556 | AD94: 0 | AE94: 0.9989347571 | AG94: =J94*VLOOKUP($B94,$AR$36:$AZ$47,MATCH(AG$2,$AS$2:$BA$2,0)+1,FALSE) -> 0.4071029437 | AH94: =K94*VLOOKUP($B94,$AR$36:$AZ$47,MATCH(AH$2,$AS$2:$BA$2,0)+1,FALSE) -> 0.3599682646 | AI94: =L94*VLOOKUP($B94,$AR$36:$AZ$47,MATCH(AI$2,$AS$2:$BA$2,0)+1,FALSE) -> 0.00622283391 | AJ94: =M94*VLOOKUP($B94,$AR$36:$AZ$47,MATCH(AJ$2,$AS$2:$BA$2,0)+1,FALSE) -> 0.07570875171 | AK94: =N94*VLOOKUP($B94,$AR$36:$AZ$47,MATCH(AK$2,$AS$2:$BA$2,0)+1,FALSE) -> 0.07375836329 | AL94: =O94*VLOOKUP($B94,$AR$36:$AZ$47,MATCH(AL$2,$AS$2:$BA$2,0)+1,FALSE) -> 0.06014434946 | AM94: =P94*VLOOKUP($B94,$AR$36:$AZ$47,MATCH(AM$2,$AS$2:$BA$2,0)+1,FALSE) -> 8.576988365e-06 | AN94: =Q94*VLOOKUP($B94,$AR$36:$AZ$47,MATCH(AN$2,$AS$2:$BA$2,0)+1,FALSE) -> 0.001665079838 | AO94: =R94*VLOOKUP($B94,$AR$36:$BA$47,MATCH(AO$2,$AS$2:$BA$2,0)+1,FALSE) -> 0 | AP94: 0.9845791636
A95: 2006 | B95: 1 | C95: 4 | D95: 21 | F95: 2013 | G95: 1 | H95: 4 | I95: 21 | J95: 0.3982332328 | K95: 0.4273589768 | L95: 0.008418087479 | M95: 0.10495491 | N95: 0.0920696 | O95: 0.067257 | P95: 1.713756668e-05 | Q95: 0.002178785549 | R95: 0 | S95: 1.10048773 | V95: 0.3770290964 | W95: 0.09192599319 | X95: 0.3780587887 | Y95: 0.0725689645 | Z95: 0.06199997302 | AA95: 0.004707927806 | AB95: 8.576988365e-06 | AC95: 0.0015925556 | AD95: 0 | AE95: 0.9878918762 | AG95: =J95*VLOOKUP($B95,$AR$36:$AZ$47,MATCH(AG$2,$AS$2:$BA$2,0)+1,FALSE) -> 0.3820838936 | AH95: =K95*VLOOKUP($B95,$AR$36:$AZ$47,MATCH(AH$2,$AS$2:$BA$2,0)+1,FALSE) -> 0.3610941874 | AI95: =L95*VLOOKUP($B95,$AR$36:$AZ$47,MATCH(AI$2,$AS$2:$BA$2,0)+1,FALSE) -> 0.00622283391 | AJ95: =M95*VLOOKUP($B95,$AR$36:$AZ$47,MATCH(AJ$2,$AS$2:$BA$2,0)+1,FALSE) -> 0.09022335063 | AK95: =N95*VLOOKUP($B95,$AR$36:$AZ$47,MATCH(AK$2,$AS$2:$BA$2,0)+1,FALSE) -> 0.07201114492 | AL95: =O95*VLOOKUP($B95,$AR$36:$AZ$47,MATCH(AL$2,$AS$2:$BA$2,0)+1,FALSE) -> 0.0596046402 | AM95: =P95*VLOOKUP($B95,$AR$36:$AZ$47,MATCH(AM$2,$AS$2:$BA$2,0)+1,FALSE) -> 8.576988365e-06 | AN95: =Q95*VLOOKUP($B95,$AR$36:$AZ$47,MATCH(AN$2,$AS$2:$BA$2,0)+1,FALSE) -> 0.001665079838 | AO95: =R95*VLOOKUP($B95,$AR$36:$BA$47,MATCH(AO$2,$AS$2:$BA$2,0)+1,FALSE) -> 0 | AP95: 0.9729137075
A96: 2006 | B96: 1 | C96: 4 | D96: 22 | F96: 2013 | G96: 1 | H96: 4 | I96: 22 | J96: 0.362580995 | K96: 0.3951896002 | L96: 0.008418087479 | M96: 0.09421829814 | N96: 0.0891921 | O96: 0.066144 | P96: 1.713756668e-05 | Q96: 0.002178785549 | R96: 0 | S96: 1.017939004 | V96: 0.3432751806 | W96: 0.08252220532 | X96: 0.3496004756 | Y96: 0.0703009282 | Z96: 0.06097396874 | AA96: 0.004707927806 | AB96: 8.576988365e-06 | AC96: 0.0015925556 | AD96: 0 | AE96: 0.9129818189 | AG96: =J96*VLOOKUP($B96,$AR$36:$AZ$47,MATCH(AG$2,$AS$2:$BA$2,0)+1,FALSE) -> 0.347877442 | AH96: =K96*VLOOKUP($B96,$AR$36:$AZ$47,MATCH(AH$2,$AS$2:$BA$2,0)+1,FALSE) -> 0.3339128819 | AI96: =L96*VLOOKUP($B96,$AR$36:$AZ$47,MATCH(AI$2,$AS$2:$BA$2,0)+1,FALSE) -> 0.00622283391 | AJ96: =M96*VLOOKUP($B96,$AR$36:$AZ$47,MATCH(AJ$2,$AS$2:$BA$2,0)+1,FALSE) -> 0.08099373862 | AK96: =N96*VLOOKUP($B96,$AR$36:$AZ$47,MATCH(AK$2,$AS$2:$BA$2,0)+1,FALSE) -> 0.06976054244 | AL96: =O96*VLOOKUP($B96,$AR$36:$AZ$47,MATCH(AL$2,$AS$2:$BA$2,0)+1,FALSE) -> 0.058618275 | AM96: =P96*VLOOKUP($B96,$AR$36:$AZ$47,MATCH(AM$2,$AS$2:$BA$2,0)+1,FALSE) -> 8.576988365e-06 | AN96: =Q96*VLOOKUP($B96,$AR$36:$AZ$47,MATCH(AN$2,$AS$2:$BA$2,0)+1,FALSE) -> 0.001665079838 | AO96: =R96*VLOOKUP($B96,$AR$36:$BA$47,MATCH(AO$2,$AS$2:$BA$2,0)+1,FALSE) -> 0 | AP96: 0.8990593707
A97: 2006 | B97: 1 | C97: 4 | D97: 23 | F97: 2013 | G97: 1 | H97: 4 | I97: 23 | J97: 0.3280329368 | K97: 0.3846181333 | L97: 0.008418087479 | M97: 0.1032713182 | N97: 0.0860788 | O97: 0.064109 | P97: 1.713756668e-05 | Q97: 0.002178785549 | R97: 0 | S97: 0.9767241989 | V97: 0.3105666518 | W97: 0.09045139947 | X97: 0.3402485346 | Y97: 0.06784703509 | Z97: 0.05909803099 | AA97: 0.004707927806 | AB97: 8.576988365e-06 | AC97: 0.0015925556 | AD97: 0 | AE97: 0.8745207123 | AG97: =J97*VLOOKUP($B97,$AR$36:$AZ$47,MATCH(AG$2,$AS$2:$BA$2,0)+1,FALSE) -> 0.3147303926 | AH97: =K97*VLOOKUP($B97,$AR$36:$AZ$47,MATCH(AH$2,$AS$2:$BA$2,0)+1,FALSE) -> 0.3249805898 | AI97: =L97*VLOOKUP($B97,$AR$36:$AZ$47,MATCH(AI$2,$AS$2:$BA$2,0)+1,FALSE) -> 0.00622283391 | AJ97: =M97*VLOOKUP($B97,$AR$36:$AZ$47,MATCH(AJ$2,$AS$2:$BA$2,0)+1,FALSE) -> 0.08877606916 | AK97: =N97*VLOOKUP($B97,$AR$36:$AZ$47,MATCH(AK$2,$AS$2:$BA$2,0)+1,FALSE) -> 0.0673255118 | AL97: =O97*VLOOKUP($B97,$AR$36:$AZ$47,MATCH(AL$2,$AS$2:$BA$2,0)+1,FALSE) -> 0.05681481301 | AM97: =P97*VLOOKUP($B97,$AR$36:$AZ$47,MATCH(AM$2,$AS$2:$BA$2,0)+1,FALSE) -> 8.576988365e-06 | AN97: =Q97*VLOOKUP($B97,$AR$36:$AZ$47,MATCH(AN$2,$AS$2:$BA$2,0)+1,FALSE) -> 0.001665079838 | AO97: =R97*VLOOKUP($B97,$AR$36:$BA$47,MATCH(AO$2,$AS$2:$BA$2,0)+1,FALSE) -> 0 | AP97: 0.8605238671
A98: 2006 | B98: 1 | C98: 4 | D98: 24 | F98: 2013 | G98: 1 | H98: 4 | I98: 24 | J98: 0.2319594031 | K98: 0.3775972832 | L98: 0.008418087479 | M98: 0.1225541483 | N98: 0.0844132 | O98: 0.062744 | P98: 1.713756668e-05 | Q98: 0.002178785549 | R98: 0 | S98: 0.8898820452 | V98: 0.2196086036 | W98: 0.1073404932 | X98: 0.3340376106 | Y98: 0.06653421449 | Z98: 0.05783972386 | AA98: 0.004707927806 | AB98: 8.576988365e-06 | AC98: 0.0015925556 | AD98: 0 | AE98: 0.7916697061 | AG98: =J98*VLOOKUP($B98,$AR$36:$AZ$47,MATCH(AG$2,$AS$2:$BA$2,0)+1,FALSE) -> 0.2225528776 | AH98: =K98*VLOOKUP($B98,$AR$36:$AZ$47,MATCH(AH$2,$AS$2:$BA$2,0)+1,FALSE) -> 0.3190483681 | AI98: =L98*VLOOKUP($B98,$AR$36:$AZ$47,MATCH(AI$2,$AS$2:$BA$2,0)+1,FALSE) -> 0.00622283391 | AJ98: =M98*VLOOKUP($B98,$AR$36:$AZ$47,MATCH(AJ$2,$AS$2:$BA$2,0)+1,FALSE) -> 0.105352345 | AK98: =N98*VLOOKUP($B98,$AR$36:$AZ$47,MATCH(AK$2,$AS$2:$BA$2,0)+1,FALSE) -> 0.06602278253 | AL98: =O98*VLOOKUP($B98,$AR$36:$AZ$47,MATCH(AL$2,$AS$2:$BA$2,0)+1,FALSE) -> 0.05560511984 | AM98: =P98*VLOOKUP($B98,$AR$36:$AZ$47,MATCH(AM$2,$AS$2:$BA$2,0)+1,FALSE) -> 8.576988365e-06 | AN98: =Q98*VLOOKUP($B98,$AR$36:$AZ$47,MATCH(AN$2,$AS$2:$BA$2,0)+1,FALSE) -> 0.001665079838 | AO98: =R98*VLOOKUP($B98,$AR$36:$BA$47,MATCH(AO$2,$AS$2:$BA$2,0)+1,FALSE) -> 0 | AP98: 0.7764779838
A99: 2006 | B99: 1 | C99: 5 | D99: 1 | F99: 2013 | G99: 1 | H99: 5 | I99: 1 | J99: 0.2342915149 | K99: 0.3316933225 | L99: 0.008418087479 | M99: 0.0992885649 | N99: 0.0840233 | O99: 0.061968 | P99: 1.713756668e-05 | Q99: 0.002178785549 | R99: 0 | S99: 0.821878713 | V99: 0.2218165409 | W99: 0.08696305814 | X99: 0.293429137 | Y99: 0.06622689656 | Z99: 0.05712437855 | AA99: 0.004707927806 | AB99: 8.576988365e-06 | AC99: 0.0015925556 | AD99: 0 | AE99: 0.7318690715 | AG99: =J99*VLOOKUP($B99,$AR$36:$AZ$47,MATCH(AG$2,$AS$2:$BA$2,0)+1,FALSE) -> 0.2247904165 | AH99: =K99*VLOOKUP($B99,$AR$36:$AZ$47,MATCH(AH$2,$AS$2:$BA$2,0)+1,FALSE) -> 0.2802621152 | AI99: =L99*VLOOKUP($B99,$AR$36:$AZ$47,MATCH(AI$2,$AS$2:$BA$2,0)+1,FALSE) -> 0.00622283391 | AJ99: =M99*VLOOKUP($B99,$AR$36:$AZ$47,MATCH(AJ$2,$AS$2:$BA$2,0)+1,FALSE) -> 0.08535233848 | AK99: =N99*VLOOKUP($B99,$AR$36:$AZ$47,MATCH(AK$2,$AS$2:$BA$2,0)+1,FALSE) -> 0.06571782687 | AL99: =O99*VLOOKUP($B99,$AR$36:$AZ$47,MATCH(AL$2,$AS$2:$BA$2,0)+1,FALSE) -> 0.05491741148 | AM99: =P99*VLOOKUP($B99,$AR$36:$AZ$47,MATCH(AM$2,$AS$2:$BA$2,0)+1,FALSE) -> 8.576988365e-06 | AN99: =Q99*VLOOKUP($B99,$AR$36:$AZ$47,MATCH(AN$2,$AS$2:$BA$2,0)+1,FALSE) -> 0.001665079838 | AO99: =R99*VLOOKUP($B99,$AR$36:$BA$47,MATCH(AO$2,$AS$2:$BA$2,0)+1,FALSE) -> 0 | AP99: 0.7189365993
A100: 2006 | B100: 1 | C100: 5 | D100: 2 | F100: 2013 | G100: 1 | H100: 5 | I100: 2 | J100: 0.2167567234 | K100: 0.3211028714 | L100: 0.008418087479 | M100: 0.09421765057 | N100: 0.0825609 | O100: 0.061812 | P100: 1.713756668e-05 | Q100: 0.002178785549 | R100: 0 | S100: 0.787064156 | V100: 0.2052153985 | W100: 0.08252163814 | X100: 0.2840604017 | Y100: 0.06507423755 | Z100: 0.05698057202 | AA100: 0.004707927806 | AB100: 8.576988365e-06 | AC100: 0.0015925556 | AD100: 0 | AE100: 0.7001613083 | AG100: =J100*VLOOKUP($B100,$AR$36:$AZ$47,MATCH(AG$2,$AS$2:$BA$2,0)+1,FALSE) -> 0.207966704 | AH100: =K100*VLOOKUP($B100,$AR$36:$AZ$47,MATCH(AH$2,$AS$2:$BA$2,0)+1,FALSE) -> 0.2713137824 | AI100: =L100*VLOOKUP($B100,$AR$36:$AZ$47,MATCH(AI$2,$AS$2:$BA$2,0)+1,FALSE) -> 0.00622283391 | AJ100: =M100*VLOOKUP($B100,$AR$36:$AZ$47,MATCH(AJ$2,$AS$2:$BA$2,0)+1,FALSE) -> 0.08099318195 | AK100: =N100*VLOOKUP($B100,$AR$36:$AZ$47,MATCH(AK$2,$AS$2:$BA$2,0)+1,FALSE) -> 0.06457402806 | AL100: =O100*VLOOKUP($B100,$AR$36:$AZ$47,MATCH(AL$2,$AS$2:$BA$2,0)+1,FALSE) -> 0.05477916083 | AM100: =P100*VLOOKUP($B100,$AR$36:$AZ$47,MATCH(AM$2,$AS$2:$BA$2,0)+1,FALSE) -> 8.576988365e-06 | AN100: =Q100*VLOOKUP($B100,$AR$36:$AZ$47,MATCH(AN$2,$AS$2:$BA$2,0)+1,FALSE) -> 0.001665079838 | AO100: =R100*VLOOKUP($B100,$AR$36:$BA$47,MATCH(AO$2,$AS$2:$BA$2,0)+1,FALSE) -> 0 | AP100: 0.687523348
A101: 2006 | B101: 1 | C101: 5 | D101: 3 | F101: 2013 | G101: 1 | H101: 5 | I101: 3 | J101: 0.2101267951 | K101: 0.3147248471 | L101: 0.008418087479 | M101: 0.09011371427 | N101: 0.0828729 | O101: 0.06206 | P101: 1.713756668e-05 | Q101: 0.002178785549 | R101: 0 | S101: 0.770512267 | V101: 0.1989384842 | W101: 0.07892715723 | X101: 0.2784181471 | Y101: 0.06532015495 | Z101: 0.05720918753 | AA101: 0.004707927806 | AB101: 8.576988365e-06 | AC101: 0.0015925556 | AD101: 0 | AE101: 0.6851221913 | AG101: =J101*VLOOKUP($B101,$AR$36:$AZ$47,MATCH(AG$2,$AS$2:$BA$2,0)+1,FALSE) -> 0.2016056356 | AH101: =K101*VLOOKUP($B101,$AR$36:$AZ$47,MATCH(AH$2,$AS$2:$BA$2,0)+1,FALSE) -> 0.2659247122 | AI101: =L101*VLOOKUP($B101,$AR$36:$AZ$47,MATCH(AI$2,$AS$2:$BA$2,0)+1,FALSE) -> 0.00622283391 | AJ101: =M101*VLOOKUP($B101,$AR$36:$AZ$47,MATCH(AJ$2,$AS$2:$BA$2,0)+1,FALSE) -> 0.07746527759 | AK101: =N101*VLOOKUP($B101,$AR$36:$AZ$47,MATCH(AK$2,$AS$2:$BA$2,0)+1,FALSE) -> 0.06481805516 | AL101: =O101*VLOOKUP($B101,$AR$36:$AZ$47,MATCH(AL$2,$AS$2:$BA$2,0)+1,FALSE) -> 0.05499894392 | AM101: =P101*VLOOKUP($B101,$AR$36:$AZ$47,MATCH(AM$2,$AS$2:$BA$2,0)+1,FALSE) -> 8.576988365e-06 | AN101: =Q101*VLOOKUP($B101,$AR$36:$AZ$47,MATCH(AN$2,$AS$2:$BA$2,0)+1,FALSE) -> 0.001665079838 | AO101: =R101*VLOOKUP($B101,$AR$36:$BA$47,MATCH(AO$2,$AS$2:$BA$2,0)+1,FALSE) -> 0 | AP101: 0.6727091152
A102: 2006 | B102: 1 | C102: 5 | D102: 4 | F102: 2013 | G102: 1 | H102: 5 | I102: 4 | J102: 0.2055822969 | K102: 0.3141980087 | L102: 0.008418087479 | M102: 0.09108939686 | N102: 0.0836149 | O102: 0.061644 | P102: 1.713756668e-05 | Q102: 0.002178785549 | R102: 0 | S102: 0.7667426131 | V102: 0.1946359602 | W102: 0.07978172031 | X102: 0.2779520849 | Y102: 0.06590499698 | Z102: 0.05682570345 | AA102: 0.004707927806 | AB102: 8.576988365e-06 | AC102: 0.0015925556 | AD102: 0 | AE102: 0.6814095262 | AG102: =J102*VLOOKUP($B102,$AR$36:$AZ$47,MATCH(AG$2,$AS$2:$BA$2,0)+1,FALSE) -> 0.197245428 | AH102: =K102*VLOOKUP($B102,$AR$36:$AZ$47,MATCH(AH$2,$AS$2:$BA$2,0)+1,FALSE) -> 0.2654795636 | AI102: =L102*VLOOKUP($B102,$AR$36:$AZ$47,MATCH(AI$2,$AS$2:$BA$2,0)+1,FALSE) -> 0.00622283391 | AJ102: =M102*VLOOKUP($B102,$AR$36:$AZ$47,MATCH(AJ$2,$AS$2:$BA$2,0)+1,FALSE) -> 0.07830401256 | AK102: =N102*VLOOKUP($B102,$AR$36:$AZ$47,MATCH(AK$2,$AS$2:$BA$2,0)+1,FALSE) -> 0.06539840166 | AL102: =O102*VLOOKUP($B102,$AR$36:$AZ$47,MATCH(AL$2,$AS$2:$BA$2,0)+1,FALSE) -> 0.05463027552 | AM102: =P102*VLOOKUP($B102,$AR$36:$AZ$47,MATCH(AM$2,$AS$2:$BA$2,0)+1,FALSE) -> 8.576988365e-06 | AN102: =Q102*VLOOKUP($B102,$AR$36:$AZ$47,MATCH(AN$2,$AS$2:$BA$2,0)+1,FALSE) -> 0.001665079838 | AO102: =R102*VLOOKUP($B102,$AR$36:$BA$47,MATCH(AO$2,$AS$2:$BA$2,0)+1,FALSE) -> 0 | AP102: 0.6689541721
A103: 2006 | B103: 1 | C103: 5 | D103: 5 | F103: 2013 | G103: 1 | H103: 5 | I103: 5 | J103: 0.2080543532 | K103: 0.3135104364 | L103: 0.008418087479 | M103: 0.08746145574 | N103: 0.0837817 | O103: 0.061943 | P103: 1.713756668e-05 | Q103: 0.002178785549 | R103: 0 | S103: 0.7653649559 | V103: 0.1969763905 | W103: 0.07660414538 | X103: 0.277343831 | Y103: 0.06603646821 | Z103: 0.05710133263 | AA103: 0.004707927806 | AB103: 8.576988365e-06 | AC103: 0.0015925556 | AD103: 0 | AE103: 0.6803712281 | AG103: =J103*VLOOKUP($B103,$AR$36:$AZ$47,MATCH(AG$2,$AS$2:$BA$2,0)+1,FALSE) -> 0.1996172363 | AH103: =K103*VLOOKUP($B103,$AR$36:$AZ$47,MATCH(AH$2,$AS$2:$BA$2,0)+1,FALSE) -> 0.2648986038 | AI103: =L103*VLOOKUP($B103,$AR$36:$AZ$47,MATCH(AI$2,$AS$2:$BA$2,0)+1,FALSE) -> 0.00622283391 | AJ103: =M103*VLOOKUP($B103,$AR$36:$AZ$47,MATCH(AJ$2,$AS$2:$BA$2,0)+1,FALSE) -> 0.0751852923 | AK103: =N103*VLOOKUP($B103,$AR$36:$AZ$47,MATCH(AK$2,$AS$2:$BA$2,0)+1,FALSE) -> 0.0655288623 | AL103: =O103*VLOOKUP($B103,$AR$36:$AZ$47,MATCH(AL$2,$AS$2:$BA$2,0)+1,FALSE) -> 0.05489525593 | AM103: =P103*VLOOKUP($B103,$AR$36:$AZ$47,MATCH(AM$2,$AS$2:$BA$2,0)+1,FALSE) -> 8.576988365e-06 | AN103: =Q103*VLOOKUP($B103,$AR$36:$AZ$47,MATCH(AN$2,$AS$2:$BA$2,0)+1,FALSE) -> 0.001665079838 | AO103: =R103*VLOOKUP($B103,$AR$36:$BA$47,MATCH(AO$2,$AS$2:$BA$2,0)+1,FALSE) -> 0 | AP103: 0.6680217414
A104: 2006 | B104: 1 | C104: 5 | D104: 6 | F104: 2013 | G104: 1 | H104: 5 | I104: 6 | J104: 0.2122779711 | K104: 0.3223929802 | L104: 0.008418087479 | M104: 0.08805824405 | N104: 0.084549 | O104: 0.061984 | P104: 1.713756668e-05 | Q104: 0.002178785549 | R104: 0 | S104: 0.779876206 | V104: 0.2009751197 | W104: 0.07712684944 | X104: 0.2852016833 | Y104: 0.06664125162 | Z104: 0.05713912794 | AA104: 0.004707927806 | AB104: 8.576988365e-06 | AC104: 0.0015925556 | AD104: 0 | AE104: 0.6933930925 | AG104: =J104*VLOOKUP($B104,$AR$36:$AZ$47,MATCH(AG$2,$AS$2:$BA$2,0)+1,FALSE) -> 0.2036695762 | AH104: =K104*VLOOKUP($B104,$AR$36:$AZ$47,MATCH(AH$2,$AS$2:$BA$2,0)+1,FALSE) -> 0.2724038514 | AI104: =L104*VLOOKUP($B104,$AR$36:$AZ$47,MATCH(AI$2,$AS$2:$BA$2,0)+1,FALSE) -> 0.00622283391 | AJ104: =M104*VLOOKUP($B104,$AR$36:$AZ$47,MATCH(AJ$2,$AS$2:$BA$2,0)+1,FALSE) -> 0.0756983149 | AK104: =N104*VLOOKUP($B104,$AR$36:$AZ$47,MATCH(AK$2,$AS$2:$BA$2,0)+1,FALSE) -> 0.06612899688 | AL104: =O104*VLOOKUP($B104,$AR$36:$AZ$47,MATCH(AL$2,$AS$2:$BA$2,0)+1,FALSE) -> 0.05493159104 | AM104: =P104*VLOOKUP($B104,$AR$36:$AZ$47,MATCH(AM$2,$AS$2:$BA$2,0)+1,FALSE) -> 8.576988365e-06 | AN104: =Q104*VLOOKUP($B104,$AR$36:$AZ$47,MATCH(AN$2,$AS$2:$BA$2,0)+1,FALSE) -> 0.001665079838 | AO104: =R104*VLOOKUP($B104,$AR$36:$BA$47,MATCH(AO$2,$AS$2:$BA$2,0)+1,FALSE) -> 0 | AP104: 0.6807288211
A105: 2006 | B105: 1 | C105: 5 | D105: 7 | F105: 2013 | G105: 1 | H105: 5 | I105: 7 | J105: 0.241039815 | K105: 0.3305011802 | L105: 0.008418087479 | M105: 0.07993263536 | N105: 0.0863868 | O105: 0.063186 | P105: 1.713756668e-05 | Q105: 0.002178785549 | R105: 0 | S105: 0.8116604412 | V105: 0.2282055242 | W105: 0.07000993944 | X105: 0.2923745204 | Y105: 0.0680897997 | Z105: 0.05824717569 | AA105: 0.004707927806 | AB105: 8.576988365e-06 | AC105: 0.0015925556 | AD105: 0 | AE105: 0.7232360198 | AG105: =J105*VLOOKUP($B105,$AR$36:$AZ$47,MATCH(AG$2,$AS$2:$BA$2,0)+1,FALSE) -> 0.2312650563 | AH105: =K105*VLOOKUP($B105,$AR$36:$AZ$47,MATCH(AH$2,$AS$2:$BA$2,0)+1,FALSE) -> 0.2792548223 | AI105: =L105*VLOOKUP($B105,$AR$36:$AZ$47,MATCH(AI$2,$AS$2:$BA$2,0)+1,FALSE) -> 0.00622283391 | AJ105: =M105*VLOOKUP($B105,$AR$36:$AZ$47,MATCH(AJ$2,$AS$2:$BA$2,0)+1,FALSE) -> 0.06871322348 | AK105: =N105*VLOOKUP($B105,$AR$36:$AZ$47,MATCH(AK$2,$AS$2:$BA$2,0)+1,FALSE) -> 0.06756641034 | AL105: =O105*VLOOKUP($B105,$AR$36:$AZ$47,MATCH(AL$2,$AS$2:$BA$2,0)+1,FALSE) -> 0.05599683001 | AM105: =P105*VLOOKUP($B105,$AR$36:$AZ$47,MATCH(AM$2,$AS$2:$BA$2,0)+1,FALSE) -> 8.576988365e-06 | AN105: =Q105*VLOOKUP($B105,$AR$36:$AZ$47,MATCH(AN$2,$AS$2:$BA$2,0)+1,FALSE) -> 0.001665079838 | AO105: =R105*VLOOKUP($B105,$AR$36:$BA$47,MATCH(AO$2,$AS$2:$BA$2,0)+1,FALSE) -> 0 | AP105: 0.7106928332
A106: 2006 | B106: 1 | C106: 5 | D106: 8 | F106: 2013 | G106: 1 | H106: 5 | I106: 8 | J106: 0.262623538 | K106: 0.3464964978 | L106: 0.005191153945 | M106: 0.08093352479 | N106: 0.0879089 | O106: 0.065066 | P106: 1.056816612e-05 | Q106: 0.00205077351 | R106: 0 | S106: 0.8502809561 | V106: 0.2486400106 | W106: 0.07088658023 | X106: 0.3065246159 | Y106: 0.06928951406 | Z106: 0.05998022875 | AA106: 0.002903222147 | AB106: 5.289142825e-06 | AC106: 0.001498986828 | AD106: 0 | AE106: 0.7597284476 | AG106: =J106*VLOOKUP($B106,$AR$36:$AZ$47,MATCH(AG$2,$AS$2:$BA$2,0)+1,FALSE) -> 0.2519735062 | AH106: =K106*VLOOKUP($B106,$AR$36:$AZ$47,MATCH(AH$2,$AS$2:$BA$2,0)+1,FALSE) -> 0.2927699618 | AI106: =L106*VLOOKUP($B106,$AR$36:$AZ$47,MATCH(AI$2,$AS$2:$BA$2,0)+1,FALSE) -> 0.003837414244 | AJ106: =M106*VLOOKUP($B106,$AR$36:$AZ$47,MATCH(AJ$2,$AS$2:$BA$2,0)+1,FALSE) -> 0.06957362723 | AK106: =N106*VLOOKUP($B106,$AR$36:$AZ$47,MATCH(AK$2,$AS$2:$BA$2,0)+1,FALSE) -> 0.06875690279 | AL106: =O106*VLOOKUP($B106,$AR$36:$AZ$47,MATCH(AL$2,$AS$2:$BA$2,0)+1,FALSE) -> 0.05766292757 | AM106: =P106*VLOOKUP($B106,$AR$36:$AZ$47,MATCH(AM$2,$AS$2:$BA$2,0)+1,FALSE) -> 5.289142825e-06 | AN106: =Q106*VLOOKUP($B106,$AR$36:$AZ$47,MATCH(AN$2,$AS$2:$BA$2,0)+1,FALSE) -> 0.001567249988 | AO106: =R106*VLOOKUP($B106,$AR$36:$BA$47,MATCH(AO$2,$AS$2:$BA$2,0)+1,FALSE) -> 0 | AP106: 0.7461468789
A107: 2006 | B107: 1 | C107: 5 | D107: 9 | F107: 2013 | G107: 1 | H107: 5 | I107: 9 | J107: 0.279961526 | K107: 0.3688533627 | L107: 0 | M107: 0.09268497815 | N107: 0.0896191 | O107: 0.065399 | P107: 0 | Q107: 0.0018448411 | R107: 0 | S107: 0.898362808 | V107: 0.2650548284 | W107: 0.08117922896 | X107: 0.32630239 | Y107: 0.07063748823 | Z107: 0.06028720038 | AA107: 0 | AB107: 0 | AC107: 0.00134846315 | AD107: 0 | AE107: 0.8048095991 | AG107: =J107*VLOOKUP($B107,$AR$36:$AZ$47,MATCH(AG$2,$AS$2:$BA$2,0)+1,FALSE) -> 0.2686083961 | AH107: =K107*VLOOKUP($B107,$AR$36:$AZ$47,MATCH(AH$2,$AS$2:$BA$2,0)+1,FALSE) -> 0.3116602494 | AI107: =L107*VLOOKUP($B107,$AR$36:$AZ$47,MATCH(AI$2,$AS$2:$BA$2,0)+1,FALSE) -> 0 | AJ107: =M107*VLOOKUP($B107,$AR$36:$AZ$47,MATCH(AJ$2,$AS$2:$BA$2,0)+1,FALSE) -> 0.07967563671 | AK107: =N107*VLOOKUP($B107,$AR$36:$AZ$47,MATCH(AK$2,$AS$2:$BA$2,0)+1,FALSE) -> 0.07009451542 | AL107: =O107*VLOOKUP($B107,$AR$36:$AZ$47,MATCH(AL$2,$AS$2:$BA$2,0)+1,FALSE) -> 0.05795803953 | AM107: =P107*VLOOKUP($B107,$AR$36:$AZ$47,MATCH(AM$2,$AS$2:$BA$2,0)+1,FALSE) -> 0 | AN107: =Q107*VLOOKUP($B107,$AR$36:$AZ$47,MATCH(AN$2,$AS$2:$BA$2,0)+1,FALSE) -> 0.001409871532 | AO107: =R107*VLOOKUP($B107,$AR$36:$BA$47,MATCH(AO$2,$AS$2:$BA$2,0)+1,FALSE) -> 0 | AP107: 0.7894067087
A108: 2006 | B108: 1 | C108: 5 | D108: 10 | F108: 2013 | G108: 1 | H108: 5 | I108: 10 | J108: 0.3091916199 | K108: 0.3743421628 | L108: 0 | M108: 0.09141862243 | N108: 0.0894963 | O108: 0.065772 | P108: 0 | Q108: 0.0018448411 | R108: 0 | S108: 0.9320655462 | V108: 0.2927285507 | W108: 0.0800700764 | X108: 0.3311580013 | Y108: 0.07054069767 | Z108: 0.06063104548 | AA108: 0 | AB108: 0 | AC108: 0.00134846315 | AD108: 0 | AE108: 0.8364768347 | AG108: =J108*VLOOKUP($B108,$AR$36:$AZ$47,MATCH(AG$2,$AS$2:$BA$2,0)+1,FALSE) -> 0.2966531376 | AH108: =K108*VLOOKUP($B108,$AR$36:$AZ$47,MATCH(AH$2,$AS$2:$BA$2,0)+1,FALSE) -> 0.3162979753 | AI108: =L108*VLOOKUP($B108,$AR$36:$AZ$47,MATCH(AI$2,$AS$2:$BA$2,0)+1,FALSE) -> 0 | AJ108: =M108*VLOOKUP($B108,$AR$36:$AZ$47,MATCH(AJ$2,$AS$2:$BA$2,0)+1,FALSE) -> 0.07858702774 | AK108: =N108*VLOOKUP($B108,$AR$36:$AZ$47,MATCH(AK$2,$AS$2:$BA$2,0)+1,FALSE) -> 0.06999846886 | AL108: =O108*VLOOKUP($B108,$AR$36:$AZ$47,MATCH(AL$2,$AS$2:$BA$2,0)+1,FALSE) -> 0.05828860037 | AM108: =P108*VLOOKUP($B108,$AR$36:$AZ$47,MATCH(AM$2,$AS$2:$BA$2,0)+1,FALSE) -> 0 | AN108: =Q108*VLOOKUP($B108,$AR$36:$AZ$47,MATCH(AN$2,$AS$2:$BA$2,0)+1,FALSE) -> 0.001409871532 | AO108: =R108*VLOOKUP($B108,$AR$36:$BA$47,MATCH(AO$2,$AS$2:$BA$2,0)+1,FALSE) -> 0 | AP108: 0.8212350814
A109: 2006 | B109: 1 | C109: 5 | D109: 11 | F109: 2013 | G109: 1 | H109: 5 | I109: 11 | J109: 0.3410518242 | K109: 0.3724155992 | L109: 0 | M109: 0.08564766827 | N109: 0.091088 | O109: 0.066045 | P109: 0 | Q109: 0.0018448411 | R109: 0 | S109: 0.9580929327 | V109: 0.3228923417 | W109: 0.07501551828 | X109: 0.3294536864 | Y109: 0.07179527052 | Z109: 0.06088270691 | AA109: 0 | AB109: 0 | AC109: 0.00134846315 | AD109: 0 | AE109: 0.861387987 | AG109: =J109*VLOOKUP($B109,$AR$36:$AZ$47,MATCH(AG$2,$AS$2:$BA$2,0)+1,FALSE) -> 0.3272213321 | AH109: =K109*VLOOKUP($B109,$AR$36:$AZ$47,MATCH(AH$2,$AS$2:$BA$2,0)+1,FALSE) -> 0.314670138 | AI109: =L109*VLOOKUP($B109,$AR$36:$AZ$47,MATCH(AI$2,$AS$2:$BA$2,0)+1,FALSE) -> 0 | AJ109: =M109*VLOOKUP($B109,$AR$36:$AZ$47,MATCH(AJ$2,$AS$2:$BA$2,0)+1,FALSE) -> 0.07362608956 | AK109: =N109*VLOOKUP($B109,$AR$36:$AZ$47,MATCH(AK$2,$AS$2:$BA$2,0)+1,FALSE) -> 0.07124339813 | AL109: =O109*VLOOKUP($B109,$AR$36:$AZ$47,MATCH(AL$2,$AS$2:$BA$2,0)+1,FALSE) -> 0.05853053901 | AM109: =P109*VLOOKUP($B109,$AR$36:$AZ$47,MATCH(AM$2,$AS$2:$BA$2,0)+1,FALSE) -> 0 | AN109: =Q109*VLOOKUP($B109,$AR$36:$AZ$47,MATCH(AN$2,$AS$2:$BA$2,0)+1,FALSE) -> 0.001409871532 | AO109: =R109*VLOOKUP($B109,$AR$36:$BA$47,MATCH(AO$2,$AS$2:$BA$2,0)+1,FALSE) -> 0 | AP109: 0.8467013682
A110: 2006 | B110: 1 | C110: 5 | D110: 12 | F110: 2013 | G110: 1 | H110: 5 | I110: 12 | J110: 0.3134770576 | K110: 0.3894339504 | L110: 0 | M110: 0.1069760782 | N110: 0.0909402 | O110: 0.066418 | P110: 0 | Q110: 0.0018448411 | R110: 0 | S110: 0.9690901272 | V110: 0.296785808 | W110: 0.09369625709 | X110: 0.3445087983 | Y110: 0.07167877503 | Z110: 0.06122655201 | AA110: 0 | AB110: 0 | AC110: 0.00134846315 | AD110: 0 | AE110: 0.8692446536 | AG110: =J110*VLOOKUP($B110,$AR$36:$AZ$47,MATCH(AG$2,$AS$2:$BA$2,0)+1,FALSE) -> 0.3007647903 | AH110: =K110*VLOOKUP($B110,$AR$36:$AZ$47,MATCH(AH$2,$AS$2:$BA$2,0)+1,FALSE) -> 0.329049683 | AI110: =L110*VLOOKUP($B110,$AR$36:$AZ$47,MATCH(AI$2,$AS$2:$BA$2,0)+1,FALSE) -> 0 | AJ110: =M110*VLOOKUP($B110,$AR$36:$AZ$47,MATCH(AJ$2,$AS$2:$BA$2,0)+1,FALSE) -> 0.09196082591 | AK110: =N110*VLOOKUP($B110,$AR$36:$AZ$47,MATCH(AK$2,$AS$2:$BA$2,0)+1,FALSE) -> 0.07112779811 | AL110: =O110*VLOOKUP($B110,$AR$36:$AZ$47,MATCH(AL$2,$AS$2:$BA$2,0)+1,FALSE) -> 0.05886109986 | AM110: =P110*VLOOKUP($B110,$AR$36:$AZ$47,MATCH(AM$2,$AS$2:$BA$2,0)+1,FALSE) -> 0 | AN110: =Q110*VLOOKUP($B110,$AR$36:$AZ$47,MATCH(AN$2,$AS$2:$BA$2,0)+1,FALSE) -> 0.001409871532 | AO110: =R110*VLOOKUP($B110,$AR$36:$BA$47,MATCH(AO$2,$AS$2:$BA$2,0)+1,FALSE) -> 0 | AP110: 0.8531740687
A111: 2006 | B111: 1 | C111: 5 | D111: 13 | F111: 2013 | G111: 1 | H111: 5 | I111: 13 | J111: 0.3211647924 | K111: 0.3809032714 | L111: 0 | M111: 0.1011003982 | N111: 0.0907228 | O111: 0.066716 | P111: 0 | Q111: 0.0018448411 | R111: 0 | S111: 0.9624521031 | V111: 0.3040642054 | W111: 0.08854997361 | X111: 0.3369622196 | Y111: 0.07150742105 | Z111: 0.06150125935 | AA111: 0 | AB111: 0 | AC111: 0.00134846315 | AD111: 0 | AE111: 0.8639335422 | AG111: =J111*VLOOKUP($B111,$AR$36:$AZ$47,MATCH(AG$2,$AS$2:$BA$2,0)+1,FALSE) -> 0.3081407685 | AH111: =K111*VLOOKUP($B111,$AR$36:$AZ$47,MATCH(AH$2,$AS$2:$BA$2,0)+1,FALSE) -> 0.3218417414 | AI111: =L111*VLOOKUP($B111,$AR$36:$AZ$47,MATCH(AI$2,$AS$2:$BA$2,0)+1,FALSE) -> 0 | AJ111: =M111*VLOOKUP($B111,$AR$36:$AZ$47,MATCH(AJ$2,$AS$2:$BA$2,0)+1,FALSE) -> 0.08690986129 | AK111: =N111*VLOOKUP($B111,$AR$36:$AZ$47,MATCH(AK$2,$AS$2:$BA$2,0)+1,FALSE) -> 0.07095776128 | AL111: =O111*VLOOKUP($B111,$AR$36:$AZ$47,MATCH(AL$2,$AS$2:$BA$2,0)+1,FALSE) -> 0.05912519404 | AM111: =P111*VLOOKUP($B111,$AR$36:$AZ$47,MATCH(AM$2,$AS$2:$BA$2,0)+1,FALSE) -> 0 | AN111: =Q111*VLOOKUP($B111,$AR$36:$AZ$47,MATCH(AN$2,$AS$2:$BA$2,0)+1,FALSE) -> 0.001409871532 | AO111: =R111*VLOOKUP($B111,$AR$36:$BA$47,MATCH(AO$2,$AS$2:$BA$2,0)+1,FALSE) -> 0 | AP111: 0.848385198
A112: 2006 | B112: 1 | C112: 5 | D112: 14 | F112: 2013 | G112: 1 | H112: 5 | I112: 14 | J112: 0.2887861313 | K112: 0.3899859091 | L112: 0 | M112: 0.1140010817 | N112: 0.0903688 | O112: 0.066868 | P112: 0 | Q112: 0.0018448411 | R112: 0 | S112: 0.9518547631 | V112: 0.2734095629 | W112: 0.09984918915 | X112: 0.344997083 | Y112: 0.07122839938 | Z112: 0.06164137854 | AA112: 0 | AB112: 0 | AC112: 0.00134846315 | AD112: 0 | AE112: 0.8524740761 | AG112: =J112*VLOOKUP($B112,$AR$36:$AZ$47,MATCH(AG$2,$AS$2:$BA$2,0)+1,FALSE) -> 0.2770751418 | AH112: =K112*VLOOKUP($B112,$AR$36:$AZ$47,MATCH(AH$2,$AS$2:$BA$2,0)+1,FALSE) -> 0.329516057 | AI112: =L112*VLOOKUP($B112,$AR$36:$AZ$47,MATCH(AI$2,$AS$2:$BA$2,0)+1,FALSE) -> 0 | AJ112: =M112*VLOOKUP($B112,$AR$36:$AZ$47,MATCH(AJ$2,$AS$2:$BA$2,0)+1,FALSE) -> 0.09799979407 | AK112: =N112*VLOOKUP($B112,$AR$36:$AZ$47,MATCH(AK$2,$AS$2:$BA$2,0)+1,FALSE) -> 0.07068088438 | AL112: =O112*VLOOKUP($B112,$AR$36:$AZ$47,MATCH(AL$2,$AS$2:$BA$2,0)+1,FALSE) -> 0.0592598998 | AM112: =P112*VLOOKUP($B112,$AR$36:$AZ$47,MATCH(AM$2,$AS$2:$BA$2,0)+1,FALSE) -> 0 | AN112: =Q112*VLOOKUP($B112,$AR$36:$AZ$47,MATCH(AN$2,$AS$2:$BA$2,0)+1,FALSE) -> 0.001409871532 | AO112: =R112*VLOOKUP($B112,$AR$36:$BA$47,MATCH(AO$2,$AS$2:$BA$2,0)+1,FALSE) -> 0 | AP112: 0.8359416486
A113: 2006 | B113: 1 | C113: 5 | D113: 15 | F113: 2013 | G113: 1 | H113: 5 | I113: 15 | J113: 0.3023222001 | K113: 0.3773829677 | L113: 0 | M113: 0.1007688884 | N113: 0.0902476 | O113: 0.067172 | P113: 0 | Q113: 0.0018448411 | R113: 0 | S113: 0.9397384973 | V113: 0.2862248967 | W113: 0.08825961689 | X113: 0.3338480187 | Y113: 0.07113286993 | Z113: 0.0619216169 | AA113: 0 | AB113: 0 | AC113: 0.00134846315 | AD113: 0 | AE113: 0.8427354823 | AG113: =J113*VLOOKUP($B113,$AR$36:$AZ$47,MATCH(AG$2,$AS$2:$BA$2,0)+1,FALSE) -> 0.2900622897 | AH113: =K113*VLOOKUP($B113,$AR$36:$AZ$47,MATCH(AH$2,$AS$2:$BA$2,0)+1,FALSE) -> 0.3188672837 | AI113: =L113*VLOOKUP($B113,$AR$36:$AZ$47,MATCH(AI$2,$AS$2:$BA$2,0)+1,FALSE) -> 0 | AJ113: =M113*VLOOKUP($B113,$AR$36:$AZ$47,MATCH(AJ$2,$AS$2:$BA$2,0)+1,FALSE) -> 0.08662488252 | AK113: =N113*VLOOKUP($B113,$AR$36:$AZ$47,MATCH(AK$2,$AS$2:$BA$2,0)+1,FALSE) -> 0.07058608924 | AL113: =O113*VLOOKUP($B113,$AR$36:$AZ$47,MATCH(AL$2,$AS$2:$BA$2,0)+1,FALSE) -> 0.05952931132 | AM113: =P113*VLOOKUP($B113,$AR$36:$AZ$47,MATCH(AM$2,$AS$2:$BA$2,0)+1,FALSE) -> 0 | AN113: =Q113*VLOOKUP($B113,$AR$36:$AZ$47,MATCH(AN$2,$AS$2:$BA$2,0)+1,FALSE) -> 0.001409871532 | AO113: =R113*VLOOKUP($B113,$AR$36:$BA$47,MATCH(AO$2,$AS$2:$BA$2,0)+1,FALSE) -> 0 | AP113: 0.827079728
A114: 2006 | B114: 1 | C114: 5 | D114: 16 | F114: 2013 | G114: 1 | H114: 5 | I114: 16 | J114: 0.3083937923 | K114: 0.3780202335 | L114: 0 | M114: 0.1019227828 | N114: 0.0901999 | O114: 0.067131 | P114: 0 | Q114: 0.0018448411 | R114: 0 | S114: 0.9475125497 | V114: 0.2919732038 | W114: 0.08927026891 | X114: 0.3344117694 | Y114: 0.07109527294 | Z114: 0.0618838216 | AA114: 0 | AB114: 0 | AC114: 0.00134846315 | AD114: 0 | AE114: 0.8499827998 | AG114: =J114*VLOOKUP($B114,$AR$36:$AZ$47,MATCH(AG$2,$AS$2:$BA$2,0)+1,FALSE) -> 0.2958876638 | AH114: =K114*VLOOKUP($B114,$AR$36:$AZ$47,MATCH(AH$2,$AS$2:$BA$2,0)+1,FALSE) -> 0.3194057373 | AI114: =L114*VLOOKUP($B114,$AR$36:$AZ$47,MATCH(AI$2,$AS$2:$BA$2,0)+1,FALSE) -> 0 | AJ114: =M114*VLOOKUP($B114,$AR$36:$AZ$47,MATCH(AJ$2,$AS$2:$BA$2,0)+1,FALSE) -> 0.08761681536 | AK114: =N114*VLOOKUP($B114,$AR$36:$AZ$47,MATCH(AK$2,$AS$2:$BA$2,0)+1,FALSE) -> 0.07054878125 | AL114: =O114*VLOOKUP($B114,$AR$36:$AZ$47,MATCH(AL$2,$AS$2:$BA$2,0)+1,FALSE) -> 0.05949297622 | AM114: =P114*VLOOKUP($B114,$AR$36:$AZ$47,MATCH(AM$2,$AS$2:$BA$2,0)+1,FALSE) -> 0 | AN114: =Q114*VLOOKUP($B114,$AR$36:$AZ$47,MATCH(AN$2,$AS$2:$BA$2,0)+1,FALSE) -> 0.001409871532 | AO114: =R114*VLOOKUP($B114,$AR$36:$BA$47,MATCH(AO$2,$AS$2:$BA$2,0)+1,FALSE) -> 0 | AP114: 0.8343618455
A115: 2006 | B115: 1 | C115: 5 | D115: 17 | F115: 2013 | G115: 1 | H115: 5 | I115: 17 | J115: 0.3370688193 | K115: 0.3864463497 | L115: 0.002525426244 | M115: 0.1097534298 | N115: 0.0886404 | O115: 0.067141 | P115: 5.141270004e-06 | Q115: 0.001945024434 | R115: 0 | S115: 0.9935255907 | V115: 0.319121414 | W115: 0.09612883319 | X115: 0.3418658477 | Y115: 0.06986608002 | Z115: 0.06189303996 | AA115: 0.001412378342 | AB115: 2.57309651e-06 | AC115: 0.001421690885 | AD115: 0 | AE115: 0.8917118572 | AG115: =J115*VLOOKUP($B115,$AR$36:$AZ$47,MATCH(AG$2,$AS$2:$BA$2,0)+1,FALSE) -> 0.3233998478 | AH115: =K115*VLOOKUP($B115,$AR$36:$AZ$47,MATCH(AH$2,$AS$2:$BA$2,0)+1,FALSE) -> 0.3265253293 | AI115: =L115*VLOOKUP($B115,$AR$36:$AZ$47,MATCH(AI$2,$AS$2:$BA$2,0)+1,FALSE) -> 0.001866850173 | AJ115: =M115*VLOOKUP($B115,$AR$36:$AZ$47,MATCH(AJ$2,$AS$2:$BA$2,0)+1,FALSE) -> 0.09434834612 | AK115: =N115*VLOOKUP($B115,$AR$36:$AZ$47,MATCH(AK$2,$AS$2:$BA$2,0)+1,FALSE) -> 0.06932903684 | AL115: =O115*VLOOKUP($B115,$AR$36:$AZ$47,MATCH(AL$2,$AS$2:$BA$2,0)+1,FALSE) -> 0.05950183844 | AM115: =P115*VLOOKUP($B115,$AR$36:$AZ$47,MATCH(AM$2,$AS$2:$BA$2,0)+1,FALSE) -> 2.57309651e-06 | AN115: =Q115*VLOOKUP($B115,$AR$36:$AZ$47,MATCH(AN$2,$AS$2:$BA$2,0)+1,FALSE) -> 0.001486434024 | AO115: =R115*VLOOKUP($B115,$AR$36:$BA$47,MATCH(AO$2,$AS$2:$BA$2,0)+1,FALSE) -> 0 | AP115: 0.8764602558
A116: 2006 | B116: 1 | C116: 5 | D116: 18 | F116: 2013 | G116: 1 | H116: 5 | I116: 18 | J116: 0.4032940207 | K116: 0.3940036887 | L116: 0.008418087479 | M116: 0.1138569468 | N116: 0.0879132 | O116: 0.067232 | P116: 1.713756668e-05 | Q116: 0.002178785549 | R116: 0 | S116: 1.076913867 | V116: 0.38182042 | W116: 0.09972294689 | X116: 0.348551371 | Y116: 0.0692929033 | Z116: 0.06197692711 | AA116: 0.004707927806 | AB116: 8.576988365e-06 | AC116: 0.0015925556 | AD116: 0 | AE116: 0.9676736287 | AG116: =J116*VLOOKUP($B116,$AR$36:$AZ$47,MATCH(AG$2,$AS$2:$BA$2,0)+1,FALSE) -> 0.3869394541 | AH116: =K116*VLOOKUP($B116,$AR$36:$AZ$47,MATCH(AH$2,$AS$2:$BA$2,0)+1,FALSE) -> 0.3329108537 | AI116: =L116*VLOOKUP($B116,$AR$36:$AZ$47,MATCH(AI$2,$AS$2:$BA$2,0)+1,FALSE) -> 0.00622283391 | AJ116: =M116*VLOOKUP($B116,$AR$36:$AZ$47,MATCH(AJ$2,$AS$2:$BA$2,0)+1,FALSE) -> 0.09787589006 | AK116: =N116*VLOOKUP($B116,$AR$36:$AZ$47,MATCH(AK$2,$AS$2:$BA$2,0)+1,FALSE) -> 0.06876026599 | AL116: =O116*VLOOKUP($B116,$AR$36:$AZ$47,MATCH(AL$2,$AS$2:$BA$2,0)+1,FALSE) -> 0.05958248465 | AM116: =P116*VLOOKUP($B116,$AR$36:$AZ$47,MATCH(AM$2,$AS$2:$BA$2,0)+1,FALSE) -> 8.576988365e-06 | AN116: =Q116*VLOOKUP($B116,$AR$36:$AZ$47,MATCH(AN$2,$AS$2:$BA$2,0)+1,FALSE) -> 0.001665079838 | AO116: =R116*VLOOKUP($B116,$AR$36:$BA$47,MATCH(AO$2,$AS$2:$BA$2,0)+1,FALSE) -> 0 | AP116: 0.9539654392
A117: 2006 | B117: 1 | C117: 5 | D117: 19 | F117: 2013 | G117: 1 | H117: 5 | I117: 19 | J117: 0.4202695714 | K117: 0.3743569463 | L117: 0.008418087479 | M117: 0.09833049612 | N117: 0.0866558 | O117: 0.066406 | P117: 1.713756668e-05 | Q117: 0.002178785549 | R117: 0 | S117: 1.056632824 | V117: 0.3978920986 | W117: 0.08612392231 | X117: 0.3311710794 | Y117: 0.06830182464 | Z117: 0.06121548997 | AA117: 0.004707927806 | AB117: 8.576988365e-06 | AC117: 0.0015925556 | AD117: 0 | AE117: 0.9510134754 | AG117: =J117*VLOOKUP($B117,$AR$36:$AZ$47,MATCH(AG$2,$AS$2:$BA$2,0)+1,FALSE) -> 0.4032266043 | AH117: =K117*VLOOKUP($B117,$AR$36:$AZ$47,MATCH(AH$2,$AS$2:$BA$2,0)+1,FALSE) -> 0.3163104665 | AI117: =L117*VLOOKUP($B117,$AR$36:$AZ$47,MATCH(AI$2,$AS$2:$BA$2,0)+1,FALSE) -> 0.00622283391 | AJ117: =M117*VLOOKUP($B117,$AR$36:$AZ$47,MATCH(AJ$2,$AS$2:$BA$2,0)+1,FALSE) -> 0.08452874503 | AK117: =N117*VLOOKUP($B117,$AR$36:$AZ$47,MATCH(AK$2,$AS$2:$BA$2,0)+1,FALSE) -> 0.0677768055 | AL117: =O117*VLOOKUP($B117,$AR$36:$AZ$47,MATCH(AL$2,$AS$2:$BA$2,0)+1,FALSE) -> 0.05885046519 | AM117: =P117*VLOOKUP($B117,$AR$36:$AZ$47,MATCH(AM$2,$AS$2:$BA$2,0)+1,FALSE) -> 8.576988365e-06 | AN117: =Q117*VLOOKUP($B117,$AR$36:$AZ$47,MATCH(AN$2,$AS$2:$BA$2,0)+1,FALSE) -> 0.001665079838 | AO117: =R117*VLOOKUP($B117,$AR$36:$BA$47,MATCH(AO$2,$AS$2:$BA$2,0)+1,FALSE) -> 0 | AP117: 0.9385895773
A118: 2006 | B118: 1 | C118: 5 | D118: 20 | F118: 2013 | G118: 1 | H118: 5 | I118: 20 | J118: 0.4006783709 | K118: 0.3670799475 | L118: 0.008418087479 | M118: 0.1026154496 | N118: 0.0860448 | O118: 0.066288 | P118: 1.713756668e-05 | Q118: 0.002178785549 | R118: 0 | S118: 1.033320579 | V118: 0.3793440419 | W118: 0.08987694928 | X118: 0.3247335562 | Y118: 0.0678202364 | Z118: 0.06110671323 | AA118: 0.004707927806 | AB118: 8.576988365e-06 | AC118: 0.0015925556 | AD118: 0 | AE118: 0.9291905574 | AG118: =J118*VLOOKUP($B118,$AR$36:$AZ$47,MATCH(AG$2,$AS$2:$BA$2,0)+1,FALSE) -> 0.3844298754 | AH118: =K118*VLOOKUP($B118,$AR$36:$AZ$47,MATCH(AH$2,$AS$2:$BA$2,0)+1,FALSE) -> 0.3101618138 | AI118: =L118*VLOOKUP($B118,$AR$36:$AZ$47,MATCH(AI$2,$AS$2:$BA$2,0)+1,FALSE) -> 0.00622283391 | AJ118: =M118*VLOOKUP($B118,$AR$36:$AZ$47,MATCH(AJ$2,$AS$2:$BA$2,0)+1,FALSE) -> 0.08821225886 | AK118: =N118*VLOOKUP($B118,$AR$36:$AZ$47,MATCH(AK$2,$AS$2:$BA$2,0)+1,FALSE) -> 0.0672989191 | AL118: =O118*VLOOKUP($B118,$AR$36:$AZ$47,MATCH(AL$2,$AS$2:$BA$2,0)+1,FALSE) -> 0.05874589098 | AM118: =P118*VLOOKUP($B118,$AR$36:$AZ$47,MATCH(AM$2,$AS$2:$BA$2,0)+1,FALSE) -> 8.576988365e-06 | AN118: =Q118*VLOOKUP($B118,$AR$36:$AZ$47,MATCH(AN$2,$AS$2:$BA$2,0)+1,FALSE) -> 0.001665079838 | AO118: =R118*VLOOKUP($B118,$AR$36:$BA$47,MATCH(AO$2,$AS$2:$BA$2,0)+1,FALSE) -> 0 | AP118: 0.9167452488
A119: 2006 | B119: 1 | C119: 5 | D119: 21 | F119: 2013 | G119: 1 | H119: 5 | I119: 21 | J119: 0.3720590647 | K119: 0.3661740347 | L119: 0.008418087479 | M119: 0.1108235491 | N119: 0.0855645 | O119: 0.065465 | P119: 1.713756668e-05 | Q119: 0.002178785549 | R119: 0 | S119: 1.010700159 | V119: 0.3522485855 | W119: 0.09706610978 | X119: 0.3239321496 | Y119: 0.06744166547 | Z119: 0.0603480416 | AA119: 0.004707927806 | AB119: 8.576988365e-06 | AC119: 0.0015925556 | AD119: 0 | AE119: 0.9073456124 | AG119: =J119*VLOOKUP($B119,$AR$36:$AZ$47,MATCH(AG$2,$AS$2:$BA$2,0)+1,FALSE) -> 0.3569711525 | AH119: =K119*VLOOKUP($B119,$AR$36:$AZ$47,MATCH(AH$2,$AS$2:$BA$2,0)+1,FALSE) -> 0.3093963686 | AI119: =L119*VLOOKUP($B119,$AR$36:$AZ$47,MATCH(AI$2,$AS$2:$BA$2,0)+1,FALSE) -> 0.00622283391 | AJ119: =M119*VLOOKUP($B119,$AR$36:$AZ$47,MATCH(AJ$2,$AS$2:$BA$2,0)+1,FALSE) -> 0.09526826257 | AK119: =N119*VLOOKUP($B119,$AR$36:$AZ$47,MATCH(AK$2,$AS$2:$BA$2,0)+1,FALSE) -> 0.06692325816 | AL119: =O119*VLOOKUP($B119,$AR$36:$AZ$47,MATCH(AL$2,$AS$2:$BA$2,0)+1,FALSE) -> 0.05801653019 | AM119: =P119*VLOOKUP($B119,$AR$36:$AZ$47,MATCH(AM$2,$AS$2:$BA$2,0)+1,FALSE) -> 8.576988365e-06 | AN119: =Q119*VLOOKUP($B119,$AR$36:$AZ$47,MATCH(AN$2,$AS$2:$BA$2,0)+1,FALSE) -> 0.001665079838 | AO119: =R119*VLOOKUP($B119,$AR$36:$BA$47,MATCH(AO$2,$AS$2:$BA$2,0)+1,FALSE) -> 0 | AP119: 0.8944720628
A120: 2006 | B120: 1 | C120: 5 | D120: 22 | F120: 2013 | G120: 1 | H120: 5 | I120: 22 | J120: 0.3611061577 | K120: 0.35153174 | L120: 0.008418087479 | M120: 0.106262567 | N120: 0.0846656 | O120: 0.064916 | P120: 1.713756668e-05 | Q120: 0.002178785549 | R120: 0 | S120: 0.9790960753 | V120: 0.3418788718 | W120: 0.09307131996 | X120: 0.3109789919 | Y120: 0.06673315536 | Z120: 0.05984195324 | AA120: 0.004707927806 | AB120: 8.576988365e-06 | AC120: 0.0015925556 | AD120: 0 | AE120: 0.8788133527 | AG120: =J120*VLOOKUP($B120,$AR$36:$AZ$47,MATCH(AG$2,$AS$2:$BA$2,0)+1,FALSE) -> 0.346462413 | AH120: =K120*VLOOKUP($B120,$AR$36:$AZ$47,MATCH(AH$2,$AS$2:$BA$2,0)+1,FALSE) -> 0.2970244569 | AI120: =L120*VLOOKUP($B120,$AR$36:$AZ$47,MATCH(AI$2,$AS$2:$BA$2,0)+1,FALSE) -> 0.00622283391 | AJ120: =M120*VLOOKUP($B120,$AR$36:$AZ$47,MATCH(AJ$2,$AS$2:$BA$2,0)+1,FALSE) -> 0.09134746379 | AK120: =N120*VLOOKUP($B120,$AR$36:$AZ$47,MATCH(AK$2,$AS$2:$BA$2,0)+1,FALSE) -> 0.06622019419 | AL120: =O120*VLOOKUP($B120,$AR$36:$AZ$47,MATCH(AL$2,$AS$2:$BA$2,0)+1,FALSE) -> 0.05752999425 | AM120: =P120*VLOOKUP($B120,$AR$36:$AZ$47,MATCH(AM$2,$AS$2:$BA$2,0)+1,FALSE) -> 8.576988365e-06 | AN120: =Q120*VLOOKUP($B120,$AR$36:$AZ$47,MATCH(AN$2,$AS$2:$BA$2,0)+1,FALSE) -> 0.001665079838 | AO120: =R120*VLOOKUP($B120,$AR$36:$BA$47,MATCH(AO$2,$AS$2:$BA$2,0)+1,FALSE) -> 0 | AP120: 0.8664810129
A121: 2006 | B121: 1 | C121: 5 | D121: 23 | F121: 2013 | G121: 1 | H121: 5 | I121: 23 | J121: 0.3393330478 | K121: 0.3290367969 | L121: 0.008418087479 | M121: 0.09228096107 | N121: 0.0837546 | O121: 0.064272 | P121: 1.713756668e-05 | Q121: 0.002178785549 | R121: 0 | S121: 0.9192914164 | V121: 0.3212650825 | W121: 0.08082536584 | X121: 0.2910790685 | Y121: 0.06601510807 | Z121: 0.05924829038 | AA121: 0.004707927806 | AB121: 8.576988365e-06 | AC121: 0.0015925556 | AD121: 0 | AE121: 0.8247419757 | AG121: =J121*VLOOKUP($B121,$AR$36:$AZ$47,MATCH(AG$2,$AS$2:$BA$2,0)+1,FALSE) -> 0.3255722563 | AH121: =K121*VLOOKUP($B121,$AR$36:$AZ$47,MATCH(AH$2,$AS$2:$BA$2,0)+1,FALSE) -> 0.2780175012 | AI121: =L121*VLOOKUP($B121,$AR$36:$AZ$47,MATCH(AI$2,$AS$2:$BA$2,0)+1,FALSE) -> 0.00622283391 | AJ121: =M121*VLOOKUP($B121,$AR$36:$AZ$47,MATCH(AJ$2,$AS$2:$BA$2,0)+1,FALSE) -> 0.07932832781 | AK121: =N121*VLOOKUP($B121,$AR$36:$AZ$47,MATCH(AK$2,$AS$2:$BA$2,0)+1,FALSE) -> 0.06550766635 | AL121: =O121*VLOOKUP($B121,$AR$36:$AZ$47,MATCH(AL$2,$AS$2:$BA$2,0)+1,FALSE) -> 0.05695926721 | AM121: =P121*VLOOKUP($B121,$AR$36:$AZ$47,MATCH(AM$2,$AS$2:$BA$2,0)+1,FALSE) -> 8.576988365e-06 | AN121: =Q121*VLOOKUP($B121,$AR$36:$AZ$47,MATCH(AN$2,$AS$2:$BA$2,0)+1,FALSE) -> 0.001665079838 | AO121: =R121*VLOOKUP($B121,$AR$36:$BA$47,MATCH(AO$2,$AS$2:$BA$2,0)+1,FALSE) -> 0 | AP121: 0.8132815095
A122: 2006 | B122: 1 | C122: 5 | D122: 24 | F122: 2013 | G122: 1 | H122: 5 | I122: 24 | J122: 0.2331309291 | K122: 0.3478809419 | L122: 0.008418087479 | M122: 0.132433957 | N122: 0.0828169 | O122: 0.063363 | P122: 1.713756668e-05 | Q122: 0.002178785549 | R122: 0 | S122: 0.8702397386 | V122: 0.2207177511 | W122: 0.1159938399 | X122: 0.3077493504 | Y122: 0.06527601593 | Z122: 0.05841034079 | AA122: 0.004707927806 | AB122: 8.576988365e-06 | AC122: 0.0015925556 | AD122: 0 | AE122: 0.7744563585 | AG122: =J122*VLOOKUP($B122,$AR$36:$AZ$47,MATCH(AG$2,$AS$2:$BA$2,0)+1,FALSE) -> 0.2236768953 | AH122: =K122*VLOOKUP($B122,$AR$36:$AZ$47,MATCH(AH$2,$AS$2:$BA$2,0)+1,FALSE) -> 0.2939397389 | AI122: =L122*VLOOKUP($B122,$AR$36:$AZ$47,MATCH(AI$2,$AS$2:$BA$2,0)+1,FALSE) -> 0.00622283391 | AJ122: =M122*VLOOKUP($B122,$AR$36:$AZ$47,MATCH(AJ$2,$AS$2:$BA$2,0)+1,FALSE) -> 0.1138454155 | AK122: =N122*VLOOKUP($B122,$AR$36:$AZ$47,MATCH(AK$2,$AS$2:$BA$2,0)+1,FALSE) -> 0.06477425543 | AL122: =O122*VLOOKUP($B122,$AR$36:$AZ$47,MATCH(AL$2,$AS$2:$BA$2,0)+1,FALSE) -> 0.05615369132 | AM122: =P122*VLOOKUP($B122,$AR$36:$AZ$47,MATCH(AM$2,$AS$2:$BA$2,0)+1,FALSE) -> 8.576988365e-06 | AN122: =Q122*VLOOKUP($B122,$AR$36:$AZ$47,MATCH(AN$2,$AS$2:$BA$2,0)+1,FALSE) -> 0.001665079838 | AO122: =R122*VLOOKUP($B122,$AR$36:$BA$47,MATCH(AO$2,$AS$2:$BA$2,0)+1,FALSE) -> 0 | AP122: 0.7602864871
A123: 2006 | B123: 1 | C123: 6 | D123: 1 | F123: 2013 | G123: 1 | H123: 6 | I123: 1 | J123: 0.220167972 | K123: 0.3034424964 | L123: 0.008418087479 | M123: 0.08780046934 | N123: 0.0826475 | O123: 0.063232 | P123: 1.713756668e-05 | Q123: 0.002178785549 | R123: 0 | S123: 0.7679044483 | V123: 0.2084450134 | W123: 0.07690107444 | X123: 0.2684373299 | Y123: 0.06514249539 | Z123: 0.05828958018 | AA123: 0.004707927806 | AB123: 8.576988365e-06 | AC123: 0.0015925556 | AD123: 0 | AE123: 0.6835245537 | AG123: =J123*VLOOKUP($B123,$AR$36:$AZ$47,MATCH(AG$2,$AS$2:$BA$2,0)+1,FALSE) -> 0.211239618 | AH123: =K123*VLOOKUP($B123,$AR$36:$AZ$47,MATCH(AH$2,$AS$2:$BA$2,0)+1,FALSE) -> 0.2563917634 | AI123: =L123*VLOOKUP($B123,$AR$36:$AZ$47,MATCH(AI$2,$AS$2:$BA$2,0)+1,FALSE) -> 0.00622283391 | AJ123: =M123*VLOOKUP($B123,$AR$36:$AZ$47,MATCH(AJ$2,$AS$2:$BA$2,0)+1,FALSE) -> 0.07547672167 | AK123: =N123*VLOOKUP($B123,$AR$36:$AZ$47,MATCH(AK$2,$AS$2:$BA$2,0)+1,FALSE) -> 0.06464176123 | AL123: =O123*VLOOKUP($B123,$AR$36:$AZ$47,MATCH(AL$2,$AS$2:$BA$2,0)+1,FALSE) -> 0.05603759622 | AM123: =P123*VLOOKUP($B123,$AR$36:$AZ$47,MATCH(AM$2,$AS$2:$BA$2,0)+1,FALSE) -> 8.576988365e-06 | AN123: =Q123*VLOOKUP($B123,$AR$36:$AZ$47,MATCH(AN$2,$AS$2:$BA$2,0)+1,FALSE) -> 0.001665079838 | AO123: =R123*VLOOKUP($B123,$AR$36:$BA$47,MATCH(AO$2,$AS$2:$BA$2,0)+1,FALSE) -> 0 | AP123: 0.6716839513
A124: 2006 | B124: 1 | C124: 6 | D124: 2 | F124: 2013 | G124: 1 | H124: 6 | I124: 2 | J124: 0.203134728 | K124: 0.2955195883 | L124: 0.008418087479 | M124: 0.08150228894 | N124: 0.0824577 | O124: 0.063308 | P124: 1.713756668e-05 | Q124: 0.002178785549 | R124: 0 | S124: 0.7365363158 | V124: 0.1923187133 | W124: 0.071384739 | X124: 0.2614284095 | Y124: 0.06499289564 | Z124: 0.05835963977 | AA124: 0.004707927806 | AB124: 8.576988365e-06 | AC124: 0.0015925556 | AD124: 0 | AE124: 0.6547934576 | AG124: =J124*VLOOKUP($B124,$AR$36:$AZ$47,MATCH(AG$2,$AS$2:$BA$2,0)+1,FALSE) -> 0.1948971141 | AH124: =K124*VLOOKUP($B124,$AR$36:$AZ$47,MATCH(AH$2,$AS$2:$BA$2,0)+1,FALSE) -> 0.2496973538 | AI124: =L124*VLOOKUP($B124,$AR$36:$AZ$47,MATCH(AI$2,$AS$2:$BA$2,0)+1,FALSE) -> 0.00622283391 | AJ124: =M124*VLOOKUP($B124,$AR$36:$AZ$47,MATCH(AJ$2,$AS$2:$BA$2,0)+1,FALSE) -> 0.07006255916 | AK124: =N124*VLOOKUP($B124,$AR$36:$AZ$47,MATCH(AK$2,$AS$2:$BA$2,0)+1,FALSE) -> 0.06449331141 | AL124: =O124*VLOOKUP($B124,$AR$36:$AZ$47,MATCH(AL$2,$AS$2:$BA$2,0)+1,FALSE) -> 0.0561049491 | AM124: =P124*VLOOKUP($B124,$AR$36:$AZ$47,MATCH(AM$2,$AS$2:$BA$2,0)+1,FALSE) -> 8.576988365e-06 | AN124: =Q124*VLOOKUP($B124,$AR$36:$AZ$47,MATCH(AN$2,$AS$2:$BA$2,0)+1,FALSE) -> 0.001665079838 | AO124: =R124*VLOOKUP($B124,$AR$36:$BA$47,MATCH(AO$2,$AS$2:$BA$2,0)+1,FALSE) -> 0 | AP124: 0.6431517782
A125: 2006 | B125: 1 | C125: 6 | D125: 3 | F125: 2013 | G125: 1 | H125: 6 | I125: 3 | J125: 0.1890991516 | K125: 0.2925490523 | L125: 0.008418087479 | M125: 0.08096341097 | N125: 0.0825087 | O125: 0.06322 | P125: 1.713756668e-05 | Q125: 0.002178785549 | R125: 0 | S125: 0.7189543255 | V125: 0.1790304686 | W125: 0.07091275639 | X125: 0.2588005549 | Y125: 0.06503309368 | Z125: 0.05827851814 | AA125: 0.004707927806 | AB125: 8.576988365e-06 | AC125: 0.0015925556 | AD125: 0 | AE125: 0.6383644521 | AG125: =J125*VLOOKUP($B125,$AR$36:$AZ$47,MATCH(AG$2,$AS$2:$BA$2,0)+1,FALSE) -> 0.1814307149 | AH125: =K125*VLOOKUP($B125,$AR$36:$AZ$47,MATCH(AH$2,$AS$2:$BA$2,0)+1,FALSE) -> 0.2471874187 | AI125: =L125*VLOOKUP($B125,$AR$36:$AZ$47,MATCH(AI$2,$AS$2:$BA$2,0)+1,FALSE) -> 0.00622283391 | AJ125: =M125*VLOOKUP($B125,$AR$36:$AZ$47,MATCH(AJ$2,$AS$2:$BA$2,0)+1,FALSE) -> 0.06959931856 | AK125: =N125*VLOOKUP($B125,$AR$36:$AZ$47,MATCH(AK$2,$AS$2:$BA$2,0)+1,FALSE) -> 0.06453320045 | AL125: =O125*VLOOKUP($B125,$AR$36:$AZ$47,MATCH(AL$2,$AS$2:$BA$2,0)+1,FALSE) -> 0.05602696156 | AM125: =P125*VLOOKUP($B125,$AR$36:$AZ$47,MATCH(AM$2,$AS$2:$BA$2,0)+1,FALSE) -> 8.576988365e-06 | AN125: =Q125*VLOOKUP($B125,$AR$36:$AZ$47,MATCH(AN$2,$AS$2:$BA$2,0)+1,FALSE) -> 0.001665079838 | AO125: =R125*VLOOKUP($B125,$AR$36:$BA$47,MATCH(AO$2,$AS$2:$BA$2,0)+1,FALSE) -> 0 | AP125: 0.6266741049
A126: 2006 | B126: 1 | C126: 6 | D126: 4 | F126: 2013 | G126: 1 | H126: 6 | I126: 4 | J126: 0.1852556172 | K126: 0.2923933115 | L126: 0.008418087479 | M126: 0.08066392591 | N126: 0.0830696 | O126: 0.062932 | P126: 1.713756668e-05 | Q126: 0.002178785549 | R126: 0 | S126: 0.7149284651 | V126: 0.1753915851 | W126: 0.07065044888 | X126: 0.2586627804 | Y126: 0.06547519326 | Z126: 0.05801302916 | AA126: 0.004707927806 | AB126: 8.576988365e-06 | AC126: 0.0015925556 | AD126: 0 | AE126: 0.6345020972 | AG126: =J126*VLOOKUP($B126,$AR$36:$AZ$47,MATCH(AG$2,$AS$2:$BA$2,0)+1,FALSE) -> 0.1777430453 | AH126: =K126*VLOOKUP($B126,$AR$36:$AZ$47,MATCH(AH$2,$AS$2:$BA$2,0)+1,FALSE) -> 0.2470558265 | AI126: =L126*VLOOKUP($B126,$AR$36:$AZ$47,MATCH(AI$2,$AS$2:$BA$2,0)+1,FALSE) -> 0.00622283391 | AJ126: =M126*VLOOKUP($B126,$AR$36:$AZ$47,MATCH(AJ$2,$AS$2:$BA$2,0)+1,FALSE) -> 0.06934186947 | AK126: =N126*VLOOKUP($B126,$AR$36:$AZ$47,MATCH(AK$2,$AS$2:$BA$2,0)+1,FALSE) -> 0.06497190173 | AL126: =O126*VLOOKUP($B126,$AR$36:$AZ$47,MATCH(AL$2,$AS$2:$BA$2,0)+1,FALSE) -> 0.05577172959 | AM126: =P126*VLOOKUP($B126,$AR$36:$AZ$47,MATCH(AM$2,$AS$2:$BA$2,0)+1,FALSE) -> 8.576988365e-06 | AN126: =Q126*VLOOKUP($B126,$AR$36:$AZ$47,MATCH(AN$2,$AS$2:$BA$2,0)+1,FALSE) -> 0.001665079838 | AO126: =R126*VLOOKUP($B126,$AR$36:$BA$47,MATCH(AO$2,$AS$2:$BA$2,0)+1,FALSE) -> 0 | AP126: 0.6227808633
A127: 2006 | B127: 1 | C127: 6 | D127: 5 | F127: 2013 | G127: 1 | H127: 6 | I127: 5 | J127: 0.186454237 | K127: 0.2921978735 | L127: 0.008418087479 | M127: 0.078394606 | N127: 0.0832216 | O127: 0.063155 | P127: 1.713756668e-05 | Q127: 0.002178785549 | R127: 0 | S127: 0.7140373271 | V127: 0.1765263838 | W127: 0.06866283833 | X127: 0.2584898882 | Y127: 0.06559499918 | Z127: 0.05821859875 | AA127: 0.004707927806 | AB127: 8.576988365e-06 | AC127: 0.0015925556 | AD127: 0 | AE127: 0.6338017686 | AG127: =J127*VLOOKUP($B127,$AR$36:$AZ$47,MATCH(AG$2,$AS$2:$BA$2,0)+1,FALSE) -> 0.1788930581 | AH127: =K127*VLOOKUP($B127,$AR$36:$AZ$47,MATCH(AH$2,$AS$2:$BA$2,0)+1,FALSE) -> 0.2468906924 | AI127: =L127*VLOOKUP($B127,$AR$36:$AZ$47,MATCH(AI$2,$AS$2:$BA$2,0)+1,FALSE) -> 0.00622283391 | AJ127: =M127*VLOOKUP($B127,$AR$36:$AZ$47,MATCH(AJ$2,$AS$2:$BA$2,0)+1,FALSE) -> 0.06739107321 | AK127: =N127*VLOOKUP($B127,$AR$36:$AZ$47,MATCH(AK$2,$AS$2:$BA$2,0)+1,FALSE) -> 0.06509078673 | AL127: =O127*VLOOKUP($B127,$AR$36:$AZ$47,MATCH(AL$2,$AS$2:$BA$2,0)+1,FALSE) -> 0.05596935712 | AM127: =P127*VLOOKUP($B127,$AR$36:$AZ$47,MATCH(AM$2,$AS$2:$BA$2,0)+1,FALSE) -> 8.576988365e-06 | AN127: =Q127*VLOOKUP($B127,$AR$36:$AZ$47,MATCH(AN$2,$AS$2:$BA$2,0)+1,FALSE) -> 0.001665079838 | AO127: =R127*VLOOKUP($B127,$AR$36:$BA$47,MATCH(AO$2,$AS$2:$BA$2,0)+1,FALSE) -> 0 | AP127: 0.6221314583
A128: 2006 | B128: 1 | C128: 6 | D128: 6 | F128: 2013 | G128: 1 | H128: 6 | I128: 6 | J128: 0.1897496035 | K128: 0.2994332486 | L128: 0.008418087479 | M128: 0.07926911845 | N128: 0.0839352 | O128: 0.063517 | P128: 1.713756668e-05 | Q128: 0.002178785549 | R128: 0 | S128: 0.7265181812 | V128: 0.1796462868 | W128: 0.06942879035 | X128: 0.2648905895 | Y128: 0.06615745642 | Z128: 0.05855230365 | AA128: 0.004707927806 | AB128: 8.576988365e-06 | AC128: 0.0015925556 | AD128: 0 | AE128: 0.6449844871 | AG128: =J128*VLOOKUP($B128,$AR$36:$AZ$47,MATCH(AG$2,$AS$2:$BA$2,0)+1,FALSE) -> 0.1820547894 | AH128: =K128*VLOOKUP($B128,$AR$36:$AZ$47,MATCH(AH$2,$AS$2:$BA$2,0)+1,FALSE) -> 0.2530041756 | AI128: =L128*VLOOKUP($B128,$AR$36:$AZ$47,MATCH(AI$2,$AS$2:$BA$2,0)+1,FALSE) -> 0.00622283391 | AJ128: =M128*VLOOKUP($B128,$AR$36:$AZ$47,MATCH(AJ$2,$AS$2:$BA$2,0)+1,FALSE) -> 0.06814283836 | AK128: =N128*VLOOKUP($B128,$AR$36:$AZ$47,MATCH(AK$2,$AS$2:$BA$2,0)+1,FALSE) -> 0.0656489205 | AL128: =O128*VLOOKUP($B128,$AR$36:$AZ$47,MATCH(AL$2,$AS$2:$BA$2,0)+1,FALSE) -> 0.05629016952 | AM128: =P128*VLOOKUP($B128,$AR$36:$AZ$47,MATCH(AM$2,$AS$2:$BA$2,0)+1,FALSE) -> 8.576988365e-06 | AN128: =Q128*VLOOKUP($B128,$AR$36:$AZ$47,MATCH(AN$2,$AS$2:$BA$2,0)+1,FALSE) -> 0.001665079838 | AO128: =R128*VLOOKUP($B128,$AR$36:$BA$47,MATCH(AO$2,$AS$2:$BA$2,0)+1,FALSE) -> 0 | AP128: 0.6330373841
A129: 2006 | B129: 1 | C129: 6 | D129: 7 | F129: 2013 | G129: 1 | H129: 6 | I129: 7 | J129: 0.2017417189 | K129: 0.310158706 | L129: 0.008418087479 | M129: 0.07915821542 | N129: 0.0850369 | O129: 0.064264 | P129: 1.713756668e-05 | Q129: 0.002178785549 | R129: 0 | S129: 0.7509735509 | V129: 0.1909998758 | W129: 0.06933165462 | X129: 0.2743787566 | Y129: 0.06702581284 | Z129: 0.05924091569 | AA129: 0.004707927806 | AB129: 8.576988365e-06 | AC129: 0.0015925556 | AD129: 0 | AE129: 0.667286076 | AG129: =J129*VLOOKUP($B129,$AR$36:$AZ$47,MATCH(AG$2,$AS$2:$BA$2,0)+1,FALSE) -> 0.193560595 | AH129: =K129*VLOOKUP($B129,$AR$36:$AZ$47,MATCH(AH$2,$AS$2:$BA$2,0)+1,FALSE) -> 0.262066581 | AI129: =L129*VLOOKUP($B129,$AR$36:$AZ$47,MATCH(AI$2,$AS$2:$BA$2,0)+1,FALSE) -> 0.00622283391 | AJ129: =M129*VLOOKUP($B129,$AR$36:$AZ$47,MATCH(AJ$2,$AS$2:$BA$2,0)+1,FALSE) -> 0.06804750177 | AK129: =N129*VLOOKUP($B129,$AR$36:$AZ$47,MATCH(AK$2,$AS$2:$BA$2,0)+1,FALSE) -> 0.06651060208 | AL129: =O129*VLOOKUP($B129,$AR$36:$AZ$47,MATCH(AL$2,$AS$2:$BA$2,0)+1,FALSE) -> 0.05695217744 | AM129: =P129*VLOOKUP($B129,$AR$36:$AZ$47,MATCH(AM$2,$AS$2:$BA$2,0)+1,FALSE) -> 8.576988365e-06 | AN129: =Q129*VLOOKUP($B129,$AR$36:$AZ$47,MATCH(AN$2,$AS$2:$BA$2,0)+1,FALSE) -> 0.001665079838 | AO129: =R129*VLOOKUP($B129,$AR$36:$BA$47,MATCH(AO$2,$AS$2:$BA$2,0)+1,FALSE) -> 0 | AP129: 0.655033948
A130: 2006 | B130: 1 | C130: 6 | D130: 8 | F130: 2013 | G130: 1 | H130: 6 | I130: 8 | J130: 0.2261546662 | K130: 0.3211174572 | L130: 0.005191153945 | M130: 0.07888998092 | N130: 0.0860889 | O130: 0.064951 | P130: 1.056816612e-05 | Q130: 0.00205077351 | R130: 0 | S130: 0.7844544999 | V130: 0.2141129429 | W130: 0.06909671828 | X130: 0.2840733049 | Y130: 0.06785499587 | Z130: 0.05987421752 | AA130: 0.002903222147 | AB130: 5.289142825e-06 | AC130: 0.001498986828 | AD130: 0 | AE130: 0.6994196776 | AG130: =J130*VLOOKUP($B130,$AR$36:$AZ$47,MATCH(AG$2,$AS$2:$BA$2,0)+1,FALSE) -> 0.216983537 | AH130: =K130*VLOOKUP($B130,$AR$36:$AZ$47,MATCH(AH$2,$AS$2:$BA$2,0)+1,FALSE) -> 0.2713261066 | AI130: =L130*VLOOKUP($B130,$AR$36:$AZ$47,MATCH(AI$2,$AS$2:$BA$2,0)+1,FALSE) -> 0.003837414244 | AJ130: =M130*VLOOKUP($B130,$AR$36:$AZ$47,MATCH(AJ$2,$AS$2:$BA$2,0)+1,FALSE) -> 0.06781691689 | AK130: =N130*VLOOKUP($B130,$AR$36:$AZ$47,MATCH(AK$2,$AS$2:$BA$2,0)+1,FALSE) -> 0.06733341139 | AL130: =O130*VLOOKUP($B130,$AR$36:$AZ$47,MATCH(AL$2,$AS$2:$BA$2,0)+1,FALSE) -> 0.05756101203 | AM130: =P130*VLOOKUP($B130,$AR$36:$AZ$47,MATCH(AM$2,$AS$2:$BA$2,0)+1,FALSE) -> 5.289142825e-06 | AN130: =Q130*VLOOKUP($B130,$AR$36:$AZ$47,MATCH(AN$2,$AS$2:$BA$2,0)+1,FALSE) -> 0.001567249988 | AO130: =R130*VLOOKUP($B130,$AR$36:$BA$47,MATCH(AO$2,$AS$2:$BA$2,0)+1,FALSE) -> 0 | AP130: 0.6864309373
A131: 2006 | B131: 1 | C131: 6 | D131: 9 | F131: 2013 | G131: 1 | H131: 6 | I131: 9 | J131: 0.2620283764 | K131: 0.3290301798 | L131: 0 | M131: 0.07731053807 | N131: 0.0872029 | O131: 0.064867 | P131: 0 | Q131: 0.0018448411 | R131: 0 | S131: 0.8222838353 | V131: =$J131*$AS$6 -> 0.2480765387 | W131: =$M131*$AV$6 -> 0.06771334466 | X131: =$K131*$AT$6 -> 0.2910732147 | Y131: =$N131*$AW$6 -> 0.06873304711 | Z131: =$O131*$AX$6 -> 0.05979678324 | AA131: =$L131*$AU$6 -> 0 | AB131: =$P131*$AY$6 -> 0 | AC131: =$Q131*$AZ$6 -> 0.00134846315 | AD131: 0 | AE131: =SUM(V131:AD131) -> 0.7367413916 | AG131: =J131*VLOOKUP($B131,$AR$36:$AZ$47,MATCH(AG$2,$AS$2:$BA$2,0)+1,FALSE) -> 0.2514024799 | AH131: =K131*VLOOKUP($B131,$AR$36:$AZ$47,MATCH(AH$2,$AS$2:$BA$2,0)+1,FALSE) -> 0.27801191 | AI131: =L131*VLOOKUP($B131,$AR$36:$AZ$47,MATCH(AI$2,$AS$2:$BA$2,0)+1,FALSE) -> 0 | AJ131: =M131*VLOOKUP($B131,$AR$36:$AZ$47,MATCH(AJ$2,$AS$2:$BA$2,0)+1,FALSE) -> 0.06645916596 | AK131: =N131*VLOOKUP($B131,$AR$36:$AZ$47,MATCH(AK$2,$AS$2:$BA$2,0)+1,FALSE) -> 0.06820471327 | AL131: =O131*VLOOKUP($B131,$AR$36:$AZ$47,MATCH(AL$2,$AS$2:$BA$2,0)+1,FALSE) -> 0.05748656937 | AM131: =P131*VLOOKUP($B131,$AR$36:$AZ$47,MATCH(AM$2,$AS$2:$BA$2,0)+1,FALSE) -> 0 | AN131: =Q131*VLOOKUP($B131,$AR$36:$AZ$47,MATCH(AN$2,$AS$2:$BA$2,0)+1,FALSE) -> 0.001409871532 | AO131: =R131*VLOOKUP($B131,$AR$36:$BA$47,MATCH(AO$2,$AS$2:$BA$2,0)+1,FALSE) -> 0 | AP131: 0.72297471
A132: 2006 | B132: 1 | C132: 6 | D132: 10 | F132: 2013 | G132: 1 | H132: 6 | I132: 10 | J132: 0.3015733848 | K132: 0.3313953827 | L132: 0 | M132: 0.06765175602 | N132: 0.0869866 | O132: 0.06534 | P132: 0 | Q132: 0.0018448411 | R132: 0 | S132: 0.8547919646 | V132: 0.2855159525 | W132: 0.05925358673 | X132: 0.2931655675 | Y132: 0.06856256015 | Z132: 0.06023281201 | AA132: 0 | AB132: 0 | AC132: 0.00134846315 | AD132: =$R132*$BA$6 -> 0 | AE132: 0.768078942 | AG132: =J132*VLOOKUP($B132,$AR$36:$AZ$47,MATCH(AG$2,$AS$2:$BA$2,0)+1,FALSE) -> 0.2893438407 | AH132: =K132*VLOOKUP($B132,$AR$36:$AZ$47,MATCH(AH$2,$AS$2:$BA$2,0)+1,FALSE) -> 0.2800103729 | AI132: =L132*VLOOKUP($B132,$AR$36:$AZ$47,MATCH(AI$2,$AS$2:$BA$2,0)+1,FALSE) -> 0 | AJ132: =M132*VLOOKUP($B132,$AR$36:$AZ$47,MATCH(AJ$2,$AS$2:$BA$2,0)+1,FALSE) -> 0.05815609868 | AK132: =N132*VLOOKUP($B132,$AR$36:$AZ$47,MATCH(AK$2,$AS$2:$BA$2,0)+1,FALSE) -> 0.06803553679 | AL132: =O132*VLOOKUP($B132,$AR$36:$AZ$47,MATCH(AL$2,$AS$2:$BA$2,0)+1,FALSE) -> 0.05790575242 | AM132: =P132*VLOOKUP($B132,$AR$36:$AZ$47,MATCH(AM$2,$AS$2:$BA$2,0)+1,FALSE) -> 0 | AN132: =Q132*VLOOKUP($B132,$AR$36:$AZ$47,MATCH(AN$2,$AS$2:$BA$2,0)+1,FALSE) -> 0.001409871532 | AO132: =R132*VLOOKUP($B132,$AR$36:$BA$47,MATCH(AO$2,$AS$2:$BA$2,0)+1,FALSE) -> 0 | AP132: =SUM(AG132:AO132) -> 0.754861473
A133: 2006 | B133: 1 | C133: 6 | D133: 11 | F133: 2013 | G133: 1 | H133: 6 | I133: 11 | J133: 0.2946583879 | K133: 0.3457658035 | L133: 0 | M133: 0.07751842193 | N133: 0.0888858 | O133: 0.063951 | P133: 0 | Q133: 0.0018448411 | R133: 0 | S133: 0.8726242545 | V133: 0.2789691482 | W133: 0.0678954222 | X133: 0.3058782147 | Y133: 0.07005950352 | Z133: 0.05895238079 | AA133: 0 | AB133: 0 | AC133: 0.00134846315 | AD133: 0 | AE133: 0.7831031325 | AG133: =J133*VLOOKUP($B133,$AR$36:$AZ$47,MATCH(AG$2,$AS$2:$BA$2,0)+1,FALSE) -> 0.282709264 | AH133: =K133*VLOOKUP($B133,$AR$36:$AZ$47,MATCH(AH$2,$AS$2:$BA$2,0)+1,FALSE) -> 0.2921525665 | AI133: =L133*VLOOKUP($B133,$AR$36:$AZ$47,MATCH(AI$2,$AS$2:$BA$2,0)+1,FALSE) -> 0 | AJ133: =M133*VLOOKUP($B133,$AR$36:$AZ$47,MATCH(AJ$2,$AS$2:$BA$2,0)+1,FALSE) -> 0.06663787107 | AK133: =N133*VLOOKUP($B133,$AR$36:$AZ$47,MATCH(AK$2,$AS$2:$BA$2,0)+1,FALSE) -> 0.06952097353 | AL133: =O133*VLOOKUP($B133,$AR$36:$AZ$47,MATCH(AL$2,$AS$2:$BA$2,0)+1,FALSE) -> 0.05667478992 | AM133: =P133*VLOOKUP($B133,$AR$36:$AZ$47,MATCH(AM$2,$AS$2:$BA$2,0)+1,FALSE) -> 0 | AN133: =Q133*VLOOKUP($B133,$AR$36:$AZ$47,MATCH(AN$2,$AS$2:$BA$2,0)+1,FALSE) -> 0.001409871532 | AO133: =R133*VLOOKUP($B133,$AR$36:$BA$47,MATCH(AO$2,$AS$2:$BA$2,0)+1,FALSE) -> 0 | AP133: 0.7691053365
A134: 2006 | B134: 1 | C134: 6 | D134: 12 | F134: 2013 | G134: 1 | H134: 6 | I134: 12 | J134: 0.304047693 | K134: 0.3509219284 | L134: 0 | M134: 0.07839031651 | N134: 0.0891638 | O134: 0.064004 | P134: 0 | Q134: 0.0018448411 | R134: 0 | S134: 0.888372579 | V134: 0.2878585148 | W134: 0.06865908133 | X134: 0.3104395284 | Y134: 0.07027862223 | Z134: 0.05900123814 | AA134: 0 | AB134: 0 | AC134: 0.00134846315 | AD134: 0 | AE134: 0.797585448 | AG134: =J134*VLOOKUP($B134,$AR$36:$AZ$47,MATCH(AG$2,$AS$2:$BA$2,0)+1,FALSE) -> 0.2917178096 | AH134: =K134*VLOOKUP($B134,$AR$36:$AZ$47,MATCH(AH$2,$AS$2:$BA$2,0)+1,FALSE) -> 0.2965092007 | AI134: =L134*VLOOKUP($B134,$AR$36:$AZ$47,MATCH(AI$2,$AS$2:$BA$2,0)+1,FALSE) -> 0 | AJ134: =M134*VLOOKUP($B134,$AR$36:$AZ$47,MATCH(AJ$2,$AS$2:$BA$2,0)+1,FALSE) -> 0.0673873858 | AK134: =N134*VLOOKUP($B134,$AR$36:$AZ$47,MATCH(AK$2,$AS$2:$BA$2,0)+1,FALSE) -> 0.06973840793 | AL134: =O134*VLOOKUP($B134,$AR$36:$AZ$47,MATCH(AL$2,$AS$2:$BA$2,0)+1,FALSE) -> 0.05672175969 | AM134: =P134*VLOOKUP($B134,$AR$36:$AZ$47,MATCH(AM$2,$AS$2:$BA$2,0)+1,FALSE) -> 0 | AN134: =Q134*VLOOKUP($B134,$AR$36:$AZ$47,MATCH(AN$2,$AS$2:$BA$2,0)+1,FALSE) -> 0.001409871532 | AO134: =R134*VLOOKUP($B134,$AR$36:$BA$47,MATCH(AO$2,$AS$2:$BA$2,0)+1,FALSE) -> 0 | AP134: 0.7834844352
A135: 2006 | B135: 1 | C135: 6 | D135: 13 | F135: 2013 | G135: 1 | H135: 6 | I135: 13 | J135: 0.2915886653 | K135: 0.3579008246 | L135: 0 | M135: 0.08919108259 | N135: 0.0891477 | O135: 0.065301 | P135: 0 | Q135: 0.0018448411 | R135: 0 | S135: 0.8949741135 | V135: 0.2760628746 | W135: 0.07811905941 | X135: 0.3166133381 | Y135: 0.07026593226 | Z135: 0.06019686038 | AA135: 0 | AB135: 0 | AC135: 0.00134846315 | AD135: 0 | AE135: 0.8026065279 | AG135: =J135*VLOOKUP($B135,$AR$36:$AZ$47,MATCH(AG$2,$AS$2:$BA$2,0)+1,FALSE) -> 0.2797640262 | AH135: =K135*VLOOKUP($B135,$AR$36:$AZ$47,MATCH(AH$2,$AS$2:$BA$2,0)+1,FALSE) -> 0.3024059735 | AI135: =L135*VLOOKUP($B135,$AR$36:$AZ$47,MATCH(AI$2,$AS$2:$BA$2,0)+1,FALSE) -> 0 | AJ135: =M135*VLOOKUP($B135,$AR$36:$AZ$47,MATCH(AJ$2,$AS$2:$BA$2,0)+1,FALSE) -> 0.07667214727 | AK135: =N135*VLOOKUP($B135,$AR$36:$AZ$47,MATCH(AK$2,$AS$2:$BA$2,0)+1,FALSE) -> 0.06972581551 | AL135: =O135*VLOOKUP($B135,$AR$36:$AZ$47,MATCH(AL$2,$AS$2:$BA$2,0)+1,FALSE) -> 0.05787118976 | AM135: =P135*VLOOKUP($B135,$AR$36:$AZ$47,MATCH(AM$2,$AS$2:$BA$2,0)+1,FALSE) -> 0 | AN135: =Q135*VLOOKUP($B135,$AR$36:$AZ$47,MATCH(AN$2,$AS$2:$BA$2,0)+1,FALSE) -> 0.001409871532 | AO135: =R135*VLOOKUP($B135,$AR$36:$BA$47,MATCH(AO$2,$AS$2:$BA$2,0)+1,FALSE) -> 0 | AP135: 0.7878490238
A136: 2006 | B136: 1 | C136: 6 | D136: 14 | F136: 2013 | G136: 1 | H136: 6 | I136: 14 | J136: 0.2870054772 | K136: 0.3556999146 | L136: 0 | M136: 0.08553579676 | N136: 0.0896729 | O136: 0.065981 | P136: 0 | Q136: 0.0018448411 | R136: 0 | S136: 0.8857399296 | V136: 0.2717237207 | W136: 0.0749175343 | X136: 0.3146663254 | Y136: 0.07067989322 | Z136: 0.06082370935 | AA136: 0 | AB136: 0 | AC136: 0.00134846315 | AD136: 0 | AE136: 0.7941596461 | AG136: =J136*VLOOKUP($B136,$AR$36:$AZ$47,MATCH(AG$2,$AS$2:$BA$2,0)+1,FALSE) -> 0.2753666977 | AH136: =K136*VLOOKUP($B136,$AR$36:$AZ$47,MATCH(AH$2,$AS$2:$BA$2,0)+1,FALSE) -> 0.300546329 | AI136: =L136*VLOOKUP($B136,$AR$36:$AZ$47,MATCH(AI$2,$AS$2:$BA$2,0)+1,FALSE) -> 0 | AJ136: =M136*VLOOKUP($B136,$AR$36:$AZ$47,MATCH(AJ$2,$AS$2:$BA$2,0)+1,FALSE) -> 0.07352992043 | AK136: =N136*VLOOKUP($B136,$AR$36:$AZ$47,MATCH(AK$2,$AS$2:$BA$2,0)+1,FALSE) -> 0.07013659446 | AL136: =O136*VLOOKUP($B136,$AR$36:$AZ$47,MATCH(AL$2,$AS$2:$BA$2,0)+1,FALSE) -> 0.05847382079 | AM136: =P136*VLOOKUP($B136,$AR$36:$AZ$47,MATCH(AM$2,$AS$2:$BA$2,0)+1,FALSE) -> 0 | AN136: =Q136*VLOOKUP($B136,$AR$36:$AZ$47,MATCH(AN$2,$AS$2:$BA$2,0)+1,FALSE) -> 0.001409871532 | AO136: =R136*VLOOKUP($B136,$AR$36:$BA$47,MATCH(AO$2,$AS$2:$BA$2,0)+1,FALSE) -> 0 | AP136: 0.7794632339
A137: 2006 | B137: 1 | C137: 6 | D137: 15 | F137: 2013 | G137: 1 | H137: 6 | I137: 15 | J137: 0.3040711812 | K137: 0.3476489625 | L137: 0 | M137: 0.07193453118 | N137: 0.0901343 | O137: 0.06643 | P137: 0 | Q137: 0.0018448411 | R137: 0 | S137: 0.882063816 | V137: 0.2878807524 | W137: 0.06300470576 | X137: 0.3075441322 | Y137: 0.07104356723 | Z137: 0.06123761405 | AA137: 0 | AB137: 0 | AC137: 0.00134846315 | AD137: 0 | AE137: 0.7920592348 | AG137: =J137*VLOOKUP($B137,$AR$36:$AZ$47,MATCH(AG$2,$AS$2:$BA$2,0)+1,FALSE) -> 0.2917403453 | AH137: =K137*VLOOKUP($B137,$AR$36:$AZ$47,MATCH(AH$2,$AS$2:$BA$2,0)+1,FALSE) -> 0.2937437294 | AI137: =L137*VLOOKUP($B137,$AR$36:$AZ$47,MATCH(AI$2,$AS$2:$BA$2,0)+1,FALSE) -> 0 | AJ137: =M137*VLOOKUP($B137,$AR$36:$AZ$47,MATCH(AJ$2,$AS$2:$BA$2,0)+1,FALSE) -> 0.06183773992 | AK137: =N137*VLOOKUP($B137,$AR$36:$AZ$47,MATCH(AK$2,$AS$2:$BA$2,0)+1,FALSE) -> 0.07049747299 | AL137: =O137*VLOOKUP($B137,$AR$36:$AZ$47,MATCH(AL$2,$AS$2:$BA$2,0)+1,FALSE) -> 0.05887173452 | AM137: =P137*VLOOKUP($B137,$AR$36:$AZ$47,MATCH(AM$2,$AS$2:$BA$2,0)+1,FALSE) -> 0 | AN137: =Q137*VLOOKUP($B137,$AR$36:$AZ$47,MATCH(AN$2,$AS$2:$BA$2,0)+1,FALSE) -> 0.001409871532 | AO137: =R137*VLOOKUP($B137,$AR$36:$BA$47,MATCH(AO$2,$AS$2:$BA$2,0)+1,FALSE) -> 0 | AP137: 0.7781008937
A138: 2006 | B138: 1 | C138: 6 | D138: 16 | F138: 2013 | G138: 1 | H138: 6 | I138: 16 | J138: 0.3143512983 | K138: 0.3515292287 | L138: 0 | M138: 0.07621298214 | N138: 0.0901549 | O138: 0.066351 | P138: 0 | Q138: 0.0018448411 | R138: 0 | S138: 0.9004442502 | V138: 0.2976134993 | W138: 0.06675203739 | X138: 0.3109767703 | Y138: 0.07105980408 | Z138: 0.06116478895 | AA138: 0 | AB138: 0 | AC138: 0.00134846315 | AD138: 0 | AE138: 0.8089153632 | AG138: =J138*VLOOKUP($B138,$AR$36:$AZ$47,MATCH(AG$2,$AS$2:$BA$2,0)+1,FALSE) -> 0.3016035784 | AH138: =K138*VLOOKUP($B138,$AR$36:$AZ$47,MATCH(AH$2,$AS$2:$BA$2,0)+1,FALSE) -> 0.297022335 | AI138: =L138*VLOOKUP($B138,$AR$36:$AZ$47,MATCH(AI$2,$AS$2:$BA$2,0)+1,FALSE) -> 0 | AJ138: =M138*VLOOKUP($B138,$AR$36:$AZ$47,MATCH(AJ$2,$AS$2:$BA$2,0)+1,FALSE) -> 0.06551566391 | AK138: =N138*VLOOKUP($B138,$AR$36:$AZ$47,MATCH(AK$2,$AS$2:$BA$2,0)+1,FALSE) -> 0.07051358504 | AL138: =O138*VLOOKUP($B138,$AR$36:$AZ$47,MATCH(AL$2,$AS$2:$BA$2,0)+1,FALSE) -> 0.05880172297 | AM138: =P138*VLOOKUP($B138,$AR$36:$AZ$47,MATCH(AM$2,$AS$2:$BA$2,0)+1,FALSE) -> 0 | AN138: =Q138*VLOOKUP($B138,$AR$36:$AZ$47,MATCH(AN$2,$AS$2:$BA$2,0)+1,FALSE) -> 0.001409871532 | AO138: =R138*VLOOKUP($B138,$AR$36:$BA$47,MATCH(AO$2,$AS$2:$BA$2,0)+1,FALSE) -> 0 | AP138: 0.7948667568
A139: 2006 | B139: 1 | C139: 6 | D139: 17 | F139: 2013 | G139: 1 | H139: 6 | I139: 17 | J139: 0.359357487 | K139: 0.3535625025 | L139: 0.002385124786 | M139: 0.07513243344 | N139: 0.0891442 | O139: 0.066965 | P139: 4.855643892e-06 | Q139: 0.001939458694 | R139: 0 | S139: 0.948491062 | V139: 0.34022331 | W139: 0.0658056261 | X139: 0.3127754854 | Y139: 0.07026317357 | Z139: 0.0617307967 | AA139: 0.001333912878 | AB139: 2.430146704e-06 | AC139: 0.001417622678 | AD139: 0 | AE139: 0.8535523574 | AG139: =J139*VLOOKUP($B139,$AR$36:$AZ$47,MATCH(AG$2,$AS$2:$BA$2,0)+1,FALSE) -> 0.3447846551 | AH139: =K139*VLOOKUP($B139,$AR$36:$AZ$47,MATCH(AH$2,$AS$2:$BA$2,0)+1,FALSE) -> 0.2987403365 | AI139: =L139*VLOOKUP($B139,$AR$36:$AZ$47,MATCH(AI$2,$AS$2:$BA$2,0)+1,FALSE) -> 0.001763136274 | AJ139: =M139*VLOOKUP($B139,$AR$36:$AZ$47,MATCH(AJ$2,$AS$2:$BA$2,0)+1,FALSE) -> 0.06458678194 | AK139: =N139*VLOOKUP($B139,$AR$36:$AZ$47,MATCH(AK$2,$AS$2:$BA$2,0)+1,FALSE) -> 0.06972307803 | AL139: =O139*VLOOKUP($B139,$AR$36:$AZ$47,MATCH(AL$2,$AS$2:$BA$2,0)+1,FALSE) -> 0.05934586335 | AM139: =P139*VLOOKUP($B139,$AR$36:$AZ$47,MATCH(AM$2,$AS$2:$BA$2,0)+1,FALSE) -> 2.430146704e-06 | AN139: =Q139*VLOOKUP($B139,$AR$36:$AZ$47,MATCH(AN$2,$AS$2:$BA$2,0)+1,FALSE) -> 0.001482180552 | AO139: =R139*VLOOKUP($B139,$AR$36:$BA$47,MATCH(AO$2,$AS$2:$BA$2,0)+1,FALSE) -> 0 | AP139: 0.8404284619
A140: 2006 | B140: 1 | C140: 6 | D140: 18 | F140: 2013 | G140: 1 | H140: 6 | I140: 18 | J140: 0.4216484324 | K140: 0.3521077133 | L140: 0.008418087479 | M140: 0.0738790656 | N140: 0.0884689 | O140: 0.06739 | P140: 1.713756668e-05 | Q140: 0.002178785549 | R140: 0 | S140: 1.014108122 | V140: 0.3991975414 | W140: 0.06470784912 | X140: 0.3114885209 | Y140: 0.06973090427 | Z140: 0.06212257731 | AA140: 0.004707927806 | AB140: 8.576988365e-06 | AC140: 0.0015925556 | AD140: 0 | AE140: 0.9135564534 | AG140: =J140*VLOOKUP($B140,$AR$36:$AZ$47,MATCH(AG$2,$AS$2:$BA$2,0)+1,FALSE) -> 0.4045495491 | AH140: =K140*VLOOKUP($B140,$AR$36:$AZ$47,MATCH(AH$2,$AS$2:$BA$2,0)+1,FALSE) -> 0.2975111219 | AI140: =L140*VLOOKUP($B140,$AR$36:$AZ$47,MATCH(AI$2,$AS$2:$BA$2,0)+1,FALSE) -> 0.00622283391 | AJ140: =M140*VLOOKUP($B140,$AR$36:$AZ$47,MATCH(AJ$2,$AS$2:$BA$2,0)+1,FALSE) -> 0.06350933786 | AK140: =N140*VLOOKUP($B140,$AR$36:$AZ$47,MATCH(AK$2,$AS$2:$BA$2,0)+1,FALSE) -> 0.06919490015 | AL140: =O140*VLOOKUP($B140,$AR$36:$AZ$47,MATCH(AL$2,$AS$2:$BA$2,0)+1,FALSE) -> 0.05972250774 | AM140: =P140*VLOOKUP($B140,$AR$36:$AZ$47,MATCH(AM$2,$AS$2:$BA$2,0)+1,FALSE) -> 8.576988365e-06 | AN140: =Q140*VLOOKUP($B140,$AR$36:$AZ$47,MATCH(AN$2,$AS$2:$BA$2,0)+1,FALSE) -> 0.001665079838 | AO140: =R140*VLOOKUP($B140,$AR$36:$BA$47,MATCH(AO$2,$AS$2:$BA$2,0)+1,FALSE) -> 0 | AP140: 0.9023839075
A141: 2006 | B141: 1 | C141: 6 | D141: 19 | F141: 2013 | G141: 1 | H141: 6 | I141: 19 | J141: 0.4495369977 | K141: 0.3423700438 | L141: 0.008418087479 | M141: 0.07598892446 | N141: 0.0870245 | O141: 0.066475 | P141: 1.713756668e-05 | Q141: 0.002178785549 | R141: 0 | S141: 1.032009477 | V141: 0.4256011656 | W141: 0.06655579383 | X141: 0.3028741903 | Y141: 0.0685924328 | Z141: 0.0612790967 | AA141: 0.004707927806 | AB141: 8.576988365e-06 | AC141: 0.0015925556 | AD141: 0 | AE141: 0.9312117395 | AG141: =J141*VLOOKUP($B141,$AR$36:$AZ$47,MATCH(AG$2,$AS$2:$BA$2,0)+1,FALSE) -> 0.4313071644 | AH141: =K141*VLOOKUP($B141,$AR$36:$AZ$47,MATCH(AH$2,$AS$2:$BA$2,0)+1,FALSE) -> 0.2892833414 | AI141: =L141*VLOOKUP($B141,$AR$36:$AZ$47,MATCH(AI$2,$AS$2:$BA$2,0)+1,FALSE) -> 0.00622283391 | AJ141: =M141*VLOOKUP($B141,$AR$36:$AZ$47,MATCH(AJ$2,$AS$2:$BA$2,0)+1,FALSE) -> 0.06532305515 | AK141: =N141*VLOOKUP($B141,$AR$36:$AZ$47,MATCH(AK$2,$AS$2:$BA$2,0)+1,FALSE) -> 0.06806517983 | AL141: =O141*VLOOKUP($B141,$AR$36:$AZ$47,MATCH(AL$2,$AS$2:$BA$2,0)+1,FALSE) -> 0.05891161452 | AM141: =P141*VLOOKUP($B141,$AR$36:$AZ$47,MATCH(AM$2,$AS$2:$BA$2,0)+1,FALSE) -> 8.576988365e-06 | AN141: =Q141*VLOOKUP($B141,$AR$36:$AZ$47,MATCH(AN$2,$AS$2:$BA$2,0)+1,FALSE) -> 0.001665079838 | AO141: =R141*VLOOKUP($B141,$AR$36:$BA$47,MATCH(AO$2,$AS$2:$BA$2,0)+1,FALSE) -> 0 | AP141: 0.920786846
A142: 2006 | B142: 1 | C142: 6 | D142: 20 | F142: 2013 | G142: 1 | H142: 6 | I142: 20 | J142: 0.4116377451 | K142: 0.3353333304 | L142: 0.008418087479 | M142: 0.08070793788 | N142: 0.0866682 | O142: 0.065981 | P142: 1.713756668e-05 | Q142: 0.002178785549 | R142: 0 | S142: 0.990942224 | V142: 0.3897198785 | W142: 0.07068899728 | X142: 0.296649233 | Y142: 0.06831159828 | Z142: 0.06082370935 | AA142: 0.004707927806 | AB142: 8.576988365e-06 | AC142: 0.0015925556 | AD142: 0 | AE142: 0.8925024768 | AG142: =J142*VLOOKUP($B142,$AR$36:$AZ$47,MATCH(AG$2,$AS$2:$BA$2,0)+1,FALSE) -> 0.3949448199 | AH142: =K142*VLOOKUP($B142,$AR$36:$AZ$47,MATCH(AH$2,$AS$2:$BA$2,0)+1,FALSE) -> 0.2833377161 | AI142: =L142*VLOOKUP($B142,$AR$36:$AZ$47,MATCH(AI$2,$AS$2:$BA$2,0)+1,FALSE) -> 0.00622283391 | AJ142: =M142*VLOOKUP($B142,$AR$36:$AZ$47,MATCH(AJ$2,$AS$2:$BA$2,0)+1,FALSE) -> 0.06937970388 | AK142: =N142*VLOOKUP($B142,$AR$36:$AZ$47,MATCH(AK$2,$AS$2:$BA$2,0)+1,FALSE) -> 0.06778650401 | AL142: =O142*VLOOKUP($B142,$AR$36:$AZ$47,MATCH(AL$2,$AS$2:$BA$2,0)+1,FALSE) -> 0.05847382079 | AM142: =P142*VLOOKUP($B142,$AR$36:$AZ$47,MATCH(AM$2,$AS$2:$BA$2,0)+1,FALSE) -> 8.576988365e-06 | AN142: =Q142*VLOOKUP($B142,$AR$36:$AZ$47,MATCH(AN$2,$AS$2:$BA$2,0)+1,FALSE) -> 0.001665079838 | AO142: =R142*VLOOKUP($B142,$AR$36:$BA$47,MATCH(AO$2,$AS$2:$BA$2,0)+1,FALSE) -> 0 | AP142: 0.8818190555
A143: 2006 | B143: 1 | C143: 6 | D143: 21 | F143: 2013 | G143: 1 | H143: 6 | I143: 21 | J143: 0.3926355274 | K143: 0.3325622636 | L143: 0.008418087479 | M143: 0.08468212643 | N143: 0.0867216 | O143: 0.065334 | P143: 1.713756668e-05 | Q143: 0.002178785549 | R143: 0 | S143: 0.972549528 | V143: 0.3717294437 | W143: 0.07416983709 | X143: 0.2941978369 | Y143: 0.06835368799 | Z143: 0.06022728099 | AA143: 0.004707927806 | AB143: 8.576988365e-06 | AC143: 0.0015925556 | AD143: 0 | AE143: 0.8749871471 | AG143: =J143*VLOOKUP($B143,$AR$36:$AZ$47,MATCH(AG$2,$AS$2:$BA$2,0)+1,FALSE) -> 0.3767131889 | AH143: =K143*VLOOKUP($B143,$AR$36:$AZ$47,MATCH(AH$2,$AS$2:$BA$2,0)+1,FALSE) -> 0.2809963213 | AI143: =L143*VLOOKUP($B143,$AR$36:$AZ$47,MATCH(AI$2,$AS$2:$BA$2,0)+1,FALSE) -> 0.00622283391 | AJ143: =M143*VLOOKUP($B143,$AR$36:$AZ$47,MATCH(AJ$2,$AS$2:$BA$2,0)+1,FALSE) -> 0.07279607199 | AK143: =N143*VLOOKUP($B143,$AR$36:$AZ$47,MATCH(AK$2,$AS$2:$BA$2,0)+1,FALSE) -> 0.06782827019 | AL143: =O143*VLOOKUP($B143,$AR$36:$AZ$47,MATCH(AL$2,$AS$2:$BA$2,0)+1,FALSE) -> 0.05790043509 | AM143: =P143*VLOOKUP($B143,$AR$36:$AZ$47,MATCH(AM$2,$AS$2:$BA$2,0)+1,FALSE) -> 8.576988365e-06 | AN143: =Q143*VLOOKUP($B143,$AR$36:$AZ$47,MATCH(AN$2,$AS$2:$BA$2,0)+1,FALSE) -> 0.001665079838 | AO143: =R143*VLOOKUP($B143,$AR$36:$BA$47,MATCH(AO$2,$AS$2:$BA$2,0)+1,FALSE) -> 0 | AP143: 0.8641307782
A144: 2006 | B144: 1 | C144: 6 | D144: 22 | F144: 2013 | G144: 1 | H144: 6 | I144: 22 | J144: 0.3570468463 | K144: 0.3237079116 | L144: 0.008418087479 | M144: 0.0808457996 | N144: 0.0859914 | O144: 0.065115 | P144: 1.713756668e-05 | Q144: 0.002178785549 | R144: 0 | S144: 0.9233209681 | V144: 0.3380357006 | W144: 0.07080974509 | X144: 0.2863649241 | Y144: 0.06777814669 | Z144: 0.06002539875 | AA144: 0.004707927806 | AB144: 8.576988365e-06 | AC144: 0.0015925556 | AD144: 0 | AE144: 0.8293229756 | AG144: =J144*VLOOKUP($B144,$AR$36:$AZ$47,MATCH(AG$2,$AS$2:$BA$2,0)+1,FALSE) -> 0.3425677167 | AH144: =K144*VLOOKUP($B144,$AR$36:$AZ$47,MATCH(AH$2,$AS$2:$BA$2,0)+1,FALSE) -> 0.2735148942 | AI144: =L144*VLOOKUP($B144,$AR$36:$AZ$47,MATCH(AI$2,$AS$2:$BA$2,0)+1,FALSE) -> 0.00622283391 | AJ144: =M144*VLOOKUP($B144,$AR$36:$AZ$47,MATCH(AJ$2,$AS$2:$BA$2,0)+1,FALSE) -> 0.06949821522 | AK144: =N144*VLOOKUP($B144,$AR$36:$AZ$47,MATCH(AK$2,$AS$2:$BA$2,0)+1,FALSE) -> 0.06725715292 | AL144: =O144*VLOOKUP($B144,$AR$36:$AZ$47,MATCH(AL$2,$AS$2:$BA$2,0)+1,FALSE) -> 0.05770635245 | AM144: =P144*VLOOKUP($B144,$AR$36:$AZ$47,MATCH(AM$2,$AS$2:$BA$2,0)+1,FALSE) -> 8.576988365e-06 | AN144: =Q144*VLOOKUP($B144,$AR$36:$AZ$47,MATCH(AN$2,$AS$2:$BA$2,0)+1,FALSE) -> 0.001665079838 | AO144: =R144*VLOOKUP($B144,$AR$36:$BA$47,MATCH(AO$2,$AS$2:$BA$2,0)+1,FALSE) -> 0 | AP144: 0.8184408222
A145: 2006 | B145: 1 | C145: 6 | D145: 23 | F145: 2013 | G145: 1 | H145: 6 | I145: 23 | J145: 0.2969320644 | K145: 0.3228330362 | L145: 0.008418087479 | M145: 0.08515982425 | N145: 0.0856502 | O145: 0.065319 | P145: 1.713756668e-05 | Q145: 0.002178785549 | R145: 0 | S145: 0.8665081354 | V145: 0.2811217616 | W145: 0.07458823435 | X145: 0.2855909744 | Y145: 0.06750921394 | Z145: 0.06021345344 | AA145: 0.004707927806 | AB145: 8.576988365e-06 | AC145: 0.0015925556 | AD145: 0 | AE145: 0.7753326982 | AG145: =J145*VLOOKUP($B145,$AR$36:$AZ$47,MATCH(AG$2,$AS$2:$BA$2,0)+1,FALSE) -> 0.2848907373 | AH145: =K145*VLOOKUP($B145,$AR$36:$AZ$47,MATCH(AH$2,$AS$2:$BA$2,0)+1,FALSE) -> 0.2727756739 | AI145: =L145*VLOOKUP($B145,$AR$36:$AZ$47,MATCH(AI$2,$AS$2:$BA$2,0)+1,FALSE) -> 0.00622283391 | AJ145: =M145*VLOOKUP($B145,$AR$36:$AZ$47,MATCH(AJ$2,$AS$2:$BA$2,0)+1,FALSE) -> 0.07320671974 | AK145: =N145*VLOOKUP($B145,$AR$36:$AZ$47,MATCH(AK$2,$AS$2:$BA$2,0)+1,FALSE) -> 0.06699028739 | AL145: =O145*VLOOKUP($B145,$AR$36:$AZ$47,MATCH(AL$2,$AS$2:$BA$2,0)+1,FALSE) -> 0.05788714176 | AM145: =P145*VLOOKUP($B145,$AR$36:$AZ$47,MATCH(AM$2,$AS$2:$BA$2,0)+1,FALSE) -> 8.576988365e-06 | AN145: =Q145*VLOOKUP($B145,$AR$36:$AZ$47,MATCH(AN$2,$AS$2:$BA$2,0)+1,FALSE) -> 0.001665079838 | AO145: =R145*VLOOKUP($B145,$AR$36:$BA$47,MATCH(AO$2,$AS$2:$BA$2,0)+1,FALSE) -> 0 | AP145: 0.7636470508
A146: 2006 | B146: 1 | C146: 6 | D146: 24 | F146: 2013 | G146: 1 | H146: 6 | I146: 24 | J146: 0.2048735891 | K146: 0.3315294893 | L146: 0.008418087479 | M146: 0.1073445601 | N146: 0.0852791 | O146: 0.0647 | P146: 1.713756668e-05 | Q146: 0.002178785549 | R146: 0 | S146: 0.8043407491 | V146: 0.1939649879 | W146: 0.09401899635 | X146: 0.2932842036 | Y146: 0.0672167141 | Z146: 0.0596428365 | AA146: 0.004707927806 | AB146: 8.576988365e-06 | AC146: 0.0015925556 | AD146: 0 | AE146: 0.7144367988 | AG146: =J146*VLOOKUP($B146,$AR$36:$AZ$47,MATCH(AG$2,$AS$2:$BA$2,0)+1,FALSE) -> 0.1965654601 | AH146: =K146*VLOOKUP($B146,$AR$36:$AZ$47,MATCH(AH$2,$AS$2:$BA$2,0)+1,FALSE) -> 0.2801236854 | AI146: =L146*VLOOKUP($B146,$AR$36:$AZ$47,MATCH(AI$2,$AS$2:$BA$2,0)+1,FALSE) -> 0.00622283391 | AJ146: =M146*VLOOKUP($B146,$AR$36:$AZ$47,MATCH(AJ$2,$AS$2:$BA$2,0)+1,FALSE) -> 0.09227758742 | AK146: =N146*VLOOKUP($B146,$AR$36:$AZ$47,MATCH(AK$2,$AS$2:$BA$2,0)+1,FALSE) -> 0.06670003593 | AL146: =O146*VLOOKUP($B146,$AR$36:$AZ$47,MATCH(AL$2,$AS$2:$BA$2,0)+1,FALSE) -> 0.05733857028 | AM146: =P146*VLOOKUP($B146,$AR$36:$AZ$47,MATCH(AM$2,$AS$2:$BA$2,0)+1,FALSE) -> 8.576988365e-06 | AN146: =Q146*VLOOKUP($B146,$AR$36:$AZ$47,MATCH(AN$2,$AS$2:$BA$2,0)+1,FALSE) -> 0.001665079838 | AO146: =R146*VLOOKUP($B146,$AR$36:$BA$47,MATCH(AO$2,$AS$2:$BA$2,0)+1,FALSE) -> 0 | AP146: 0.7009018298
A147: 2006 | B147: 1 | C147: 7 | D147: 1 | F147: 2013 | G147: 1 | H147: 7 | I147: 1 | J147: 0.2231791011 | K147: 0.3164264557 | L147: 0.008418087479 | M147: 0.08547903896 | N147: 0.0861619 | O147: 0.064243 | P147: 1.713756668e-05 | Q147: 0.002178785549 | R147: 0 | S147: 0.7861035063 | V147: 0.2112958133 | W147: 0.07486782231 | X147: 0.2799234579 | Y147: 0.06791253424 | Z147: 0.05922155712 | AA147: 0.004707927806 | AB147: 8.576988365e-06 | AC147: 0.0015925556 | AD147: 0 | AE147: 0.6995302453 | AG147: =J147*VLOOKUP($B147,$AR$36:$AZ$47,MATCH(AG$2,$AS$2:$BA$2,0)+1,FALSE) -> 0.2141286384 | AH147: =K147*VLOOKUP($B147,$AR$36:$AZ$47,MATCH(AH$2,$AS$2:$BA$2,0)+1,FALSE) -> 0.2673624754 | AI147: =L147*VLOOKUP($B147,$AR$36:$AZ$47,MATCH(AI$2,$AS$2:$BA$2,0)+1,FALSE) -> 0.00622283391 | AJ147: =M147*VLOOKUP($B147,$AR$36:$AZ$47,MATCH(AJ$2,$AS$2:$BA$2,0)+1,FALSE) -> 0.07348112921 | AK147: =N147*VLOOKUP($B147,$AR$36:$AZ$47,MATCH(AK$2,$AS$2:$BA$2,0)+1,FALSE) -> 0.06739050748 | AL147: =O147*VLOOKUP($B147,$AR$36:$AZ$47,MATCH(AL$2,$AS$2:$BA$2,0)+1,FALSE) -> 0.05693356677 | AM147: =P147*VLOOKUP($B147,$AR$36:$AZ$47,MATCH(AM$2,$AS$2:$BA$2,0)+1,FALSE) -> 8.576988365e-06 | AN147: =Q147*VLOOKUP($B147,$AR$36:$AZ$47,MATCH(AN$2,$AS$2:$BA$2,0)+1,FALSE) -> 0.001665079838 | AO147: =R147*VLOOKUP($B147,$AR$36:$BA$47,MATCH(AO$2,$AS$2:$BA$2,0)+1,FALSE) -> 0 | AP147: 0.687192808
A148: 2006 | B148: 1 | C148: 7 | D148: 2 | F148: 2013 | G148: 1 | H148: 7 | I148: 2 | J148: 0.2085991371 | K148: 0.3102214698 | L148: 0.008418087479 | M148: 0.08240752418 | N148: 0.0860252 | O148: 0.063198 | P148: 1.713756668e-05 | Q148: 0.002178785549 | R148: 0 | S148: 0.7610653417 | V148: 0.1974921672 | W148: 0.07217759994 | X148: 0.27443428 | Y148: 0.06780478774 | Z148: 0.05825823773 | AA148: 0.004707927806 | AB148: 8.576988365e-06 | AC148: 0.0015925556 | AD148: 0 | AE148: 0.6764761329 | AG148: =J148*VLOOKUP($B148,$AR$36:$AZ$47,MATCH(AG$2,$AS$2:$BA$2,0)+1,FALSE) -> 0.2001399279 | AH148: =K148*VLOOKUP($B148,$AR$36:$AZ$47,MATCH(AH$2,$AS$2:$BA$2,0)+1,FALSE) -> 0.2621196129 | AI148: =L148*VLOOKUP($B148,$AR$36:$AZ$47,MATCH(AI$2,$AS$2:$BA$2,0)+1,FALSE) -> 0.00622283391 | AJ148: =M148*VLOOKUP($B148,$AR$36:$AZ$47,MATCH(AJ$2,$AS$2:$BA$2,0)+1,FALSE) -> 0.07084073482 | AK148: =N148*VLOOKUP($B148,$AR$36:$AZ$47,MATCH(AK$2,$AS$2:$BA$2,0)+1,FALSE) -> 0.06728358919 | AL148: =O148*VLOOKUP($B148,$AR$36:$AZ$47,MATCH(AL$2,$AS$2:$BA$2,0)+1,FALSE) -> 0.05600746467 | AM148: =P148*VLOOKUP($B148,$AR$36:$AZ$47,MATCH(AM$2,$AS$2:$BA$2,0)+1,FALSE) -> 8.576988365e-06 | AN148: =Q148*VLOOKUP($B148,$AR$36:$AZ$47,MATCH(AN$2,$AS$2:$BA$2,0)+1,FALSE) -> 0.001665079838 | AO148: =R148*VLOOKUP($B148,$AR$36:$BA$47,MATCH(AO$2,$AS$2:$BA$2,0)+1,FALSE) -> 0 | AP148: 0.6642878202
A149: 2006 | B149: 1 | C149: 7 | D149: 3 | F149: 2013 | G149: 1 | H149: 7 | I149: 3 | J149: 0.2012738104 | K149: 0.3093396494 | L149: 0.008418087479 | M149: 0.08146123322 | N149: 0.0861351 | O149: 0.063246 | P149: 1.713756668e-05 | Q149: 0.002178785549 | R149: 0 | S149: 0.7520698036 | V149: 0.1905568813 | W149: 0.07134877986 | X149: 0.2736541865 | Y149: 0.06789141057 | Z149: 0.0583024859 | AA149: 0.004707927806 | AB149: 8.576988365e-06 | AC149: 0.0015925556 | AD149: 0 | AE149: 0.6680628045 | AG149: =J149*VLOOKUP($B149,$AR$36:$AZ$47,MATCH(AG$2,$AS$2:$BA$2,0)+1,FALSE) -> 0.1931116613 | AH149: =K149*VLOOKUP($B149,$AR$36:$AZ$47,MATCH(AH$2,$AS$2:$BA$2,0)+1,FALSE) -> 0.2613745245 | AI149: =L149*VLOOKUP($B149,$AR$36:$AZ$47,MATCH(AI$2,$AS$2:$BA$2,0)+1,FALSE) -> 0.00622283391 | AJ149: =M149*VLOOKUP($B149,$AR$36:$AZ$47,MATCH(AJ$2,$AS$2:$BA$2,0)+1,FALSE) -> 0.07002726605 | AK149: =N149*VLOOKUP($B149,$AR$36:$AZ$47,MATCH(AK$2,$AS$2:$BA$2,0)+1,FALSE) -> 0.06736954617 | AL149: =O149*VLOOKUP($B149,$AR$36:$AZ$47,MATCH(AL$2,$AS$2:$BA$2,0)+1,FALSE) -> 0.05605000333 | AM149: =P149*VLOOKUP($B149,$AR$36:$AZ$47,MATCH(AM$2,$AS$2:$BA$2,0)+1,FALSE) -> 8.576988365e-06 | AN149: =Q149*VLOOKUP($B149,$AR$36:$AZ$47,MATCH(AN$2,$AS$2:$BA$2,0)+1,FALSE) -> 0.001665079838 | AO149: =R149*VLOOKUP($B149,$AR$36:$BA$47,MATCH(AO$2,$AS$2:$BA$2,0)+1,FALSE) -> 0 | AP149: 0.6558294921
A150: 2006 | B150: 1 | C150: 7 | D150: 4 | F150: 2013 | G150: 1 | H150: 7 | I150: 4 | J150: 0.1969545035 | K150: 0.3130918594 | L150: 0.008418087479 | M150: 0.08483470133 | N150: 0.0867675 | O150: 0.063605 | P150: 1.713756668e-05 | Q150: 0.002178785549 | R150: 0 | S150: 0.7558675748 | V150: 0.1864675582 | W150: 0.07430347162 | X150: 0.2769735411 | Y150: 0.06838986623 | Z150: 0.05863342528 | AA150: 0.004707927806 | AB150: 8.576988365e-06 | AC150: 0.0015925556 | AD150: 0 | AE150: 0.6710769228 | AG150: =J150*VLOOKUP($B150,$AR$36:$AZ$47,MATCH(AG$2,$AS$2:$BA$2,0)+1,FALSE) -> 0.188967513 | AH150: =K150*VLOOKUP($B150,$AR$36:$AZ$47,MATCH(AH$2,$AS$2:$BA$2,0)+1,FALSE) -> 0.2645449299 | AI150: =L150*VLOOKUP($B150,$AR$36:$AZ$47,MATCH(AI$2,$AS$2:$BA$2,0)+1,FALSE) -> 0.00622283391 | AJ150: =M150*VLOOKUP($B150,$AR$36:$AZ$47,MATCH(AJ$2,$AS$2:$BA$2,0)+1,FALSE) -> 0.07292723135 | AK150: =N150*VLOOKUP($B150,$AR$36:$AZ$47,MATCH(AK$2,$AS$2:$BA$2,0)+1,FALSE) -> 0.06786417033 | AL150: =O150*VLOOKUP($B150,$AR$36:$AZ$47,MATCH(AL$2,$AS$2:$BA$2,0)+1,FALSE) -> 0.05636815707 | AM150: =P150*VLOOKUP($B150,$AR$36:$AZ$47,MATCH(AM$2,$AS$2:$BA$2,0)+1,FALSE) -> 8.576988365e-06 | AN150: =Q150*VLOOKUP($B150,$AR$36:$AZ$47,MATCH(AN$2,$AS$2:$BA$2,0)+1,FALSE) -> 0.001665079838 | AO150: =R150*VLOOKUP($B150,$AR$36:$BA$47,MATCH(AO$2,$AS$2:$BA$2,0)+1,FALSE) -> 0 | AP150: 0.6585684923
A151: 2006 | B151: 1 | C151: 7 | D151: 5 | F151: 2013 | G151: 1 | H151: 7 | I151: 5 | J151: 0.2049290604 | K151: 0.3180136081 | L151: 0.008418087479 | M151: 0.08303236753 | N151: 0.0910936 | O151: 0.064518 | P151: 1.713756668e-05 | Q151: 0.002178785549 | R151: 0 | S151: 0.7722006466 | V151: 0.1940175056 | W151: 0.07272487634 | X151: 0.2813275162 | Y151: 0.07179968442 | Z151: 0.05947506222 | AA151: 0.004707927806 | AB151: 8.576988365e-06 | AC151: 0.0015925556 | AD151: 0 | AE151: 0.6856537052 | AG151: =J151*VLOOKUP($B151,$AR$36:$AZ$47,MATCH(AG$2,$AS$2:$BA$2,0)+1,FALSE) -> 0.1966186819 | AH151: =K151*VLOOKUP($B151,$AR$36:$AZ$47,MATCH(AH$2,$AS$2:$BA$2,0)+1,FALSE) -> 0.2687035295 | AI151: =L151*VLOOKUP($B151,$AR$36:$AZ$47,MATCH(AI$2,$AS$2:$BA$2,0)+1,FALSE) -> 0.00622283391 | AJ151: =M151*VLOOKUP($B151,$AR$36:$AZ$47,MATCH(AJ$2,$AS$2:$BA$2,0)+1,FALSE) -> 0.07137787463 | AK151: =N151*VLOOKUP($B151,$AR$36:$AZ$47,MATCH(AK$2,$AS$2:$BA$2,0)+1,FALSE) -> 0.0712477781 | AL151: =O151*VLOOKUP($B151,$AR$36:$AZ$47,MATCH(AL$2,$AS$2:$BA$2,0)+1,FALSE) -> 0.05717727785 | AM151: =P151*VLOOKUP($B151,$AR$36:$AZ$47,MATCH(AM$2,$AS$2:$BA$2,0)+1,FALSE) -> 8.576988365e-06 | AN151: =Q151*VLOOKUP($B151,$AR$36:$AZ$47,MATCH(AN$2,$AS$2:$BA$2,0)+1,FALSE) -> 0.001665079838 | AO151: =R151*VLOOKUP($B151,$AR$36:$BA$47,MATCH(AO$2,$AS$2:$BA$2,0)+1,FALSE) -> 0 | AP151: 0.6730216327
A152: 2006 | B152: 1 | C152: 7 | D152: 6 | F152: 2013 | G152: 1 | H152: 7 | I152: 6 | J152: 0.2247414884 | K152: 0.3349587388 | L152: 0.008418087479 | M152: 0.07930305489 | N152: 0.0945335 | O152: 0.067211 | P152: 1.713756668e-05 | Q152: 0.002178785549 | R152: 0 | S152: 0.8113617926 | V152: 0.2127750105 | W152: 0.06945851397 | X152: 0.2963178544 | Y152: 0.07451100261 | Z152: 0.06195756853 | AA152: 0.004707927806 | AB152: 8.576988365e-06 | AC152: 0.0015925556 | AD152: 0 | AE152: 0.7213290104 | AG152: =J152*VLOOKUP($B152,$AR$36:$AZ$47,MATCH(AG$2,$AS$2:$BA$2,0)+1,FALSE) -> 0.2156276671 | AH152: =K152*VLOOKUP($B152,$AR$36:$AZ$47,MATCH(AH$2,$AS$2:$BA$2,0)+1,FALSE) -> 0.2830212074 | AI152: =L152*VLOOKUP($B152,$AR$36:$AZ$47,MATCH(AI$2,$AS$2:$BA$2,0)+1,FALSE) -> 0.00622283391 | AJ152: =M152*VLOOKUP($B152,$AR$36:$AZ$47,MATCH(AJ$2,$AS$2:$BA$2,0)+1,FALSE) -> 0.06817201145 | AK152: =N152*VLOOKUP($B152,$AR$36:$AZ$47,MATCH(AK$2,$AS$2:$BA$2,0)+1,FALSE) -> 0.07393825506 | AL152: =O152*VLOOKUP($B152,$AR$36:$AZ$47,MATCH(AL$2,$AS$2:$BA$2,0)+1,FALSE) -> 0.05956387399 | AM152: =P152*VLOOKUP($B152,$AR$36:$AZ$47,MATCH(AM$2,$AS$2:$BA$2,0)+1,FALSE) -> 8.576988365e-06 | AN152: =Q152*VLOOKUP($B152,$AR$36:$AZ$47,MATCH(AN$2,$AS$2:$BA$2,0)+1,FALSE) -> 0.001665079838 | AO152: =R152*VLOOKUP($B152,$AR$36:$BA$47,MATCH(AO$2,$AS$2:$BA$2,0)+1,FALSE) -> 0 | AP152: 0.7082195057
A153: 2006 | B153: 1 | C153: 7 | D153: 7 | F153: 2013 | G153: 1 | H153: 7 | I153: 7 | J153: 0.2596074208 | K153: 0.3788349233 | L153: 0.008418087479 | M153: 0.08480376855 | N153: 0.1072323 | O153: 0.072888 | P153: 1.713756668e-05 | Q153: 0.002178785549 | R153: 0 | S153: 0.9139804232 | V153: 0.2457844881 | W153: 0.07427637878 | X153: 0.3351324764 | Y153: 0.08452015619 | Z153: 0.06719083566 | AA153: 0.004707927806 | AB153: 8.576988365e-06 | AC153: 0.0015925556 | AD153: 0 | AE153: 0.8132133955 | AG153: =J153*VLOOKUP($B153,$AR$36:$AZ$47,MATCH(AG$2,$AS$2:$BA$2,0)+1,FALSE) -> 0.2490797 | AH153: =K153*VLOOKUP($B153,$AR$36:$AZ$47,MATCH(AH$2,$AS$2:$BA$2,0)+1,FALSE) -> 0.3200941041 | AI153: =L153*VLOOKUP($B153,$AR$36:$AZ$47,MATCH(AI$2,$AS$2:$BA$2,0)+1,FALSE) -> 0.00622283391 | AJ153: =M153*VLOOKUP($B153,$AR$36:$AZ$47,MATCH(AJ$2,$AS$2:$BA$2,0)+1,FALSE) -> 0.07290064032 | AK153: =N153*VLOOKUP($B153,$AR$36:$AZ$47,MATCH(AK$2,$AS$2:$BA$2,0)+1,FALSE) -> 0.08387047076 | AL153: =O153*VLOOKUP($B153,$AR$36:$AZ$47,MATCH(AL$2,$AS$2:$BA$2,0)+1,FALSE) -> 0.06459495688 | AM153: =P153*VLOOKUP($B153,$AR$36:$AZ$47,MATCH(AM$2,$AS$2:$BA$2,0)+1,FALSE) -> 8.576988365e-06 | AN153: =Q153*VLOOKUP($B153,$AR$36:$AZ$47,MATCH(AN$2,$AS$2:$BA$2,0)+1,FALSE) -> 0.001665079838 | AO153: =R153*VLOOKUP($B153,$AR$36:$BA$47,MATCH(AO$2,$AS$2:$BA$2,0)+1,FALSE) -> 0 | AP153: 0.7984363627
A154: 2006 | B154: 1 | C154: 7 | D154: 8 | F154: 2013 | G154: 1 | H154: 7 | I154: 8 | J154: 0.2765810962 | K154: 0.4379348629 | L154: 0.005191153945 | M154: 0.1072162947 | N154: 0.1151365 | O154: 0.078075 | P154: 1.056816612e-05 | Q154: 0.00205077351 | R154: 0 | S154: 1.022196249 | V154: 0.2618543913 | W154: 0.09390665357 | X154: 0.3874146392 | Y154: 0.09075022137 | Z154: 0.07197240278 | AA154: 0.002903222147 | AB154: 5.289142825e-06 | AC154: 0.001498986828 | AD154: 0 | AE154: 0.9103058063 | AG154: =J154*VLOOKUP($B154,$AR$36:$AZ$47,MATCH(AG$2,$AS$2:$BA$2,0)+1,FALSE) -> 0.265365051 | AH154: =K154*VLOOKUP($B154,$AR$36:$AZ$47,MATCH(AH$2,$AS$2:$BA$2,0)+1,FALSE) -> 0.3700302136 | AI154: =L154*VLOOKUP($B154,$AR$36:$AZ$47,MATCH(AI$2,$AS$2:$BA$2,0)+1,FALSE) -> 0.003837414244 | AJ154: =M154*VLOOKUP($B154,$AR$36:$AZ$47,MATCH(AJ$2,$AS$2:$BA$2,0)+1,FALSE) -> 0.09216732544 | AK154: =N154*VLOOKUP($B154,$AR$36:$AZ$47,MATCH(AK$2,$AS$2:$BA$2,0)+1,FALSE) -> 0.09005264698 | AL154: =O154*VLOOKUP($B154,$AR$36:$AZ$47,MATCH(AL$2,$AS$2:$BA$2,0)+1,FALSE) -> 0.06919179095 | AM154: =P154*VLOOKUP($B154,$AR$36:$AZ$47,MATCH(AM$2,$AS$2:$BA$2,0)+1,FALSE) -> 5.289142825e-06 | AN154: =Q154*VLOOKUP($B154,$AR$36:$AZ$47,MATCH(AN$2,$AS$2:$BA$2,0)+1,FALSE) -> 0.001567249988 | AO154: =R154*VLOOKUP($B154,$AR$36:$BA$47,MATCH(AO$2,$AS$2:$BA$2,0)+1,FALSE) -> 0 | AP154: 0.8922169814
A155: 2006 | B155: 1 | C155: 7 | D155: 9 | F155: 2013 | G155: 1 | H155: 7 | I155: 9 | J155: 0.2582635318 | K155: 0.4657365385 | L155: 0 | M155: 0.1113664879 | N155: 0.1202737 | O155: 0.080991 | P155: 0 | Q155: 0.0018448411 | R155: 0 | S155: 1.038476099 | V155: 0.2445121552 | W155: 0.09754164915 | X155: 0.4120091098 | Y155: 0.09479934599 | Z155: 0.07466047869 | AA155: 0 | AB155: 0 | AC155: 0.00134846315 | AD155: 0 | AE155: 0.9248712019 | AG155: =J155*VLOOKUP($B155,$AR$36:$AZ$47,MATCH(AG$2,$AS$2:$BA$2,0)+1,FALSE) -> 0.247790309 | AH155: =K155*VLOOKUP($B155,$AR$36:$AZ$47,MATCH(AH$2,$AS$2:$BA$2,0)+1,FALSE) -> 0.3935210585 | AI155: =L155*VLOOKUP($B155,$AR$36:$AZ$47,MATCH(AI$2,$AS$2:$BA$2,0)+1,FALSE) -> 0 | AJ155: =M155*VLOOKUP($B155,$AR$36:$AZ$47,MATCH(AJ$2,$AS$2:$BA$2,0)+1,FALSE) -> 0.09573499406 | AK155: =N155*VLOOKUP($B155,$AR$36:$AZ$47,MATCH(AK$2,$AS$2:$BA$2,0)+1,FALSE) -> 0.09407064699 | AL155: =O155*VLOOKUP($B155,$AR$36:$AZ$47,MATCH(AL$2,$AS$2:$BA$2,0)+1,FALSE) -> 0.07177601461 | AM155: =P155*VLOOKUP($B155,$AR$36:$AZ$47,MATCH(AM$2,$AS$2:$BA$2,0)+1,FALSE) -> 0 | AN155: =Q155*VLOOKUP($B155,$AR$36:$AZ$47,MATCH(AN$2,$AS$2:$BA$2,0)+1,FALSE) -> 0.001409871532 | AO155: =R155*VLOOKUP($B155,$AR$36:$BA$47,MATCH(AO$2,$AS$2:$BA$2,0)+1,FALSE) -> 0 | AP155: 0.9043028947
A156: 2006 | B156: 1 | C156: 7 | D156: 10 | F156: 2013 | G156: 1 | H156: 7 | I156: 10 | J156: 0.2545146052 | K156: 0.475236903 | L156: 0 | M156: 0.107484335 | N156: 0.12267 | O156: 0.083523 | P156: 0 | Q156: 0.0018448411 | R156: 0 | S156: 1.045273684 | V156: 0.2409628422 | W156: 0.09414141983 | X156: 0.420413511 | Y156: 0.096688102 | Z156: 0.07699456929 | AA156: 0 | AB156: 0 | AC156: 0.00134846315 | AD156: 0 | AE156: 0.9305489075 | AG156: =J156*VLOOKUP($B156,$AR$36:$AZ$47,MATCH(AG$2,$AS$2:$BA$2,0)+1,FALSE) -> 0.2441934106 | AH156: =K156*VLOOKUP($B156,$AR$36:$AZ$47,MATCH(AH$2,$AS$2:$BA$2,0)+1,FALSE) -> 0.4015483298 | AI156: =L156*VLOOKUP($B156,$AR$36:$AZ$47,MATCH(AI$2,$AS$2:$BA$2,0)+1,FALSE) -> 0 | AJ156: =M156*VLOOKUP($B156,$AR$36:$AZ$47,MATCH(AJ$2,$AS$2:$BA$2,0)+1,FALSE) -> 0.09239774339 | AK156: =N156*VLOOKUP($B156,$AR$36:$AZ$47,MATCH(AK$2,$AS$2:$BA$2,0)+1,FALSE) -> 0.0959448846 | AL156: =O156*VLOOKUP($B156,$AR$36:$AZ$47,MATCH(AL$2,$AS$2:$BA$2,0)+1,FALSE) -> 0.07401992898 | AM156: =P156*VLOOKUP($B156,$AR$36:$AZ$47,MATCH(AM$2,$AS$2:$BA$2,0)+1,FALSE) -> 0 | AN156: =Q156*VLOOKUP($B156,$AR$36:$AZ$47,MATCH(AN$2,$AS$2:$BA$2,0)+1,FALSE) -> 0.001409871532 | AO156: =R156*VLOOKUP($B156,$AR$36:$BA$47,MATCH(AO$2,$AS$2:$BA$2,0)+1,FALSE) -> 0 | AP156: 0.9095141689
A157: 2006 | B157: 1 | C157: 7 | D157: 11 | F157: 2013 | G157: 1 | H157: 7 | I157: 11 | J157: 0.2491936918 | K157: 0.4822602608 | L157: 0 | M157: 0.1121061956 | N157: 0.1230521 | O157: 0.083978 | P157: 0 | Q157: 0.0018448411 | R157: 0 | S157: 1.052435089 | V157: 0.2359252435 | W157: 0.09818953082 | X157: 0.4266266533 | Y157: 0.096989272 | Z157: 0.077414005 | AA157: 0 | AB157: 0 | AC157: 0.00134846315 | AD157: 0 | AE157: 0.9364931678 | AG157: =J157*VLOOKUP($B157,$AR$36:$AZ$47,MATCH(AG$2,$AS$2:$BA$2,0)+1,FALSE) -> 0.2390882733 | AH157: =K157*VLOOKUP($B157,$AR$36:$AZ$47,MATCH(AH$2,$AS$2:$BA$2,0)+1,FALSE) -> 0.4074826702 | AI157: =L157*VLOOKUP($B157,$AR$36:$AZ$47,MATCH(AI$2,$AS$2:$BA$2,0)+1,FALSE) -> 0 | AJ157: =M157*VLOOKUP($B157,$AR$36:$AZ$47,MATCH(AJ$2,$AS$2:$BA$2,0)+1,FALSE) -> 0.09637087574 | AK157: =N157*VLOOKUP($B157,$AR$36:$AZ$47,MATCH(AK$2,$AS$2:$BA$2,0)+1,FALSE) -> 0.09624373958 | AL157: =O157*VLOOKUP($B157,$AR$36:$AZ$47,MATCH(AL$2,$AS$2:$BA$2,0)+1,FALSE) -> 0.07442316004 | AM157: =P157*VLOOKUP($B157,$AR$36:$AZ$47,MATCH(AM$2,$AS$2:$BA$2,0)+1,FALSE) -> 0 | AN157: =Q157*VLOOKUP($B157,$AR$36:$AZ$47,MATCH(AN$2,$AS$2:$BA$2,0)+1,FALSE) -> 0.001409871532 | AO157: =R157*VLOOKUP($B157,$AR$36:$BA$47,MATCH(AO$2,$AS$2:$BA$2,0)+1,FALSE) -> 0 | AP157: 0.9150185904
A158: 2006 | B158: 1 | C158: 7 | D158: 12 | F158: 2013 | G158: 1 | H158: 7 | I158: 12 | J158: 0.2566049143 | K158: 0.4737261393 | L158: 0 | M158: 0.1022034983 | N158: 0.122088 | O158: 0.083748 | P158: 0 | Q158: 0.0018448411 | R158: 0 | S158: 1.040215393 | V158: 0.2429418517 | W158: 0.08951613687 | X158: 0.4190770292 | Y158: 0.09622937146 | Z158: 0.07720198256 | AA158: 0 | AB158: 0 | AC158: 0.00134846315 | AD158: 0 | AE158: 0.9263148349 | AG158: =J158*VLOOKUP($B158,$AR$36:$AZ$47,MATCH(AG$2,$AS$2:$BA$2,0)+1,FALSE) -> 0.2461989525 | AH158: =K158*VLOOKUP($B158,$AR$36:$AZ$47,MATCH(AH$2,$AS$2:$BA$2,0)+1,FALSE) -> 0.4002718198 | AI158: =L158*VLOOKUP($B158,$AR$36:$AZ$47,MATCH(AI$2,$AS$2:$BA$2,0)+1,FALSE) -> 0 | AJ158: =M158*VLOOKUP($B158,$AR$36:$AZ$47,MATCH(AJ$2,$AS$2:$BA$2,0)+1,FALSE) -> 0.08785812938 | AK158: =N158*VLOOKUP($B158,$AR$36:$AZ$47,MATCH(AK$2,$AS$2:$BA$2,0)+1,FALSE) -> 0.0954896802 | AL158: =O158*VLOOKUP($B158,$AR$36:$AZ$47,MATCH(AL$2,$AS$2:$BA$2,0)+1,FALSE) -> 0.07421932896 | AM158: =P158*VLOOKUP($B158,$AR$36:$AZ$47,MATCH(AM$2,$AS$2:$BA$2,0)+1,FALSE) -> 0 | AN158: =Q158*VLOOKUP($B158,$AR$36:$AZ$47,MATCH(AN$2,$AS$2:$BA$2,0)+1,FALSE) -> 0.001409871532 | AO158: =R158*VLOOKUP($B158,$AR$36:$BA$47,MATCH(AO$2,$AS$2:$BA$2,0)+1,FALSE) -> 0 | AP158: 0.9054477824
A159: 2006 | B159: 1 | C159: 7 | D159: 13 | F159: 2013 | G159: 1 | H159: 7 | I159: 13 | J159: 0.2611215853 | K159: 0.4673112461 | L159: 0 | M159: 0.09531483008 | N159: 0.1222894 | O159: 0.083687 | P159: 0 | Q159: 0.0018448411 | R159: 0 | S159: 1.031568903 | V159: 0.2472180302 | W159: 0.08348261572 | X159: 0.4134021589 | Y159: 0.09638811429 | Z159: 0.07714575052 | AA159: 0 | AB159: 0 | AC159: 0.00134846315 | AD159: 0 | AE159: 0.9189851327 | AG159: =J159*VLOOKUP($B159,$AR$36:$AZ$47,MATCH(AG$2,$AS$2:$BA$2,0)+1,FALSE) -> 0.2505324614 | AH159: =K159*VLOOKUP($B159,$AR$36:$AZ$47,MATCH(AH$2,$AS$2:$BA$2,0)+1,FALSE) -> 0.3948515975 | AI159: =L159*VLOOKUP($B159,$AR$36:$AZ$47,MATCH(AI$2,$AS$2:$BA$2,0)+1,FALSE) -> 0 | AJ159: =M159*VLOOKUP($B159,$AR$36:$AZ$47,MATCH(AJ$2,$AS$2:$BA$2,0)+1,FALSE) -> 0.08193636041 | AK159: =N159*VLOOKUP($B159,$AR$36:$AZ$47,MATCH(AK$2,$AS$2:$BA$2,0)+1,FALSE) -> 0.09564720282 | AL159: =O159*VLOOKUP($B159,$AR$36:$AZ$47,MATCH(AL$2,$AS$2:$BA$2,0)+1,FALSE) -> 0.07416526941 | AM159: =P159*VLOOKUP($B159,$AR$36:$AZ$47,MATCH(AM$2,$AS$2:$BA$2,0)+1,FALSE) -> 0 | AN159: =Q159*VLOOKUP($B159,$AR$36:$AZ$47,MATCH(AN$2,$AS$2:$BA$2,0)+1,FALSE) -> 0.001409871532 | AO159: =R159*VLOOKUP($B159,$AR$36:$BA$47,MATCH(AO$2,$AS$2:$BA$2,0)+1,FALSE) -> 0 | AP159: 0.898542763
A160: 2006 | B160: 1 | C160: 7 | D160: 14 | F160: 2013 | G160: 1 | H160: 7 | I160: 14 | J160: 0.2593369166 | K160: 0.4640170657 | L160: 0 | M160: 0.09071396931 | N160: 0.1215665 | O160: 0.083987 | P160: 0 | Q160: 0.0018448411 | R160: 0 | S160: 1.021466293 | V160: 0.2455283871 | W160: 0.07945289767 | X160: 0.4104879956 | Y160: 0.09581832682 | Z160: 0.07742230153 | AA160: 0 | AB160: 0 | AC160: 0.00134846315 | AD160: 0 | AE160: 0.9100583718 | AG160: =J160*VLOOKUP($B160,$AR$36:$AZ$47,MATCH(AG$2,$AS$2:$BA$2,0)+1,FALSE) -> 0.2488201654 | AH160: =K160*VLOOKUP($B160,$AR$36:$AZ$47,MATCH(AH$2,$AS$2:$BA$2,0)+1,FALSE) -> 0.3920682012 | AI160: =L160*VLOOKUP($B160,$AR$36:$AZ$47,MATCH(AI$2,$AS$2:$BA$2,0)+1,FALSE) -> 0 | AJ160: =M160*VLOOKUP($B160,$AR$36:$AZ$47,MATCH(AJ$2,$AS$2:$BA$2,0)+1,FALSE) -> 0.07798128033 | AK160: =N160*VLOOKUP($B160,$AR$36:$AZ$47,MATCH(AK$2,$AS$2:$BA$2,0)+1,FALSE) -> 0.09508179517 | AL160: =O160*VLOOKUP($B160,$AR$36:$AZ$47,MATCH(AL$2,$AS$2:$BA$2,0)+1,FALSE) -> 0.07443113604 | AM160: =P160*VLOOKUP($B160,$AR$36:$AZ$47,MATCH(AM$2,$AS$2:$BA$2,0)+1,FALSE) -> 0 | AN160: =Q160*VLOOKUP($B160,$AR$36:$AZ$47,MATCH(AN$2,$AS$2:$BA$2,0)+1,FALSE) -> 0.001409871532 | AO160: =R160*VLOOKUP($B160,$AR$36:$BA$47,MATCH(AO$2,$AS$2:$BA$2,0)+1,FALSE) -> 0 | AP160: 0.8897924496
A161: 2006 | B161: 1 | C161: 7 | D161: 15 | F161: 2013 | G161: 1 | H161: 7 | I161: 15 | J161: 0.2608990798 | K161: 0.4500186187 | L161: 0 | M161: 0.07609591204 | N161: 0.1206802 | O161: 0.083565 | P161: 0 | Q161: 0.0018448411 | R161: 0 | S161: 0.9931036517 | V161: 0.2470073721 | W161: 0.06664950016 | X161: 0.3981044113 | Y161: 0.09511974799 | Z161: 0.07703328643 | AA161: 0 | AB161: 0 | AC161: 0.00134846315 | AD161: 0 | AE161: 0.8852627812 | AG161: =J161*VLOOKUP($B161,$AR$36:$AZ$47,MATCH(AG$2,$AS$2:$BA$2,0)+1,FALSE) -> 0.2503189791 | AH161: =K161*VLOOKUP($B161,$AR$36:$AZ$47,MATCH(AH$2,$AS$2:$BA$2,0)+1,FALSE) -> 0.3802403045 | AI161: =L161*VLOOKUP($B161,$AR$36:$AZ$47,MATCH(AI$2,$AS$2:$BA$2,0)+1,FALSE) -> 0 | AJ161: =M161*VLOOKUP($B161,$AR$36:$AZ$47,MATCH(AJ$2,$AS$2:$BA$2,0)+1,FALSE) -> 0.06541502587 | AK161: =N161*VLOOKUP($B161,$AR$36:$AZ$47,MATCH(AK$2,$AS$2:$BA$2,0)+1,FALSE) -> 0.09438858614 | AL161: =O161*VLOOKUP($B161,$AR$36:$AZ$47,MATCH(AL$2,$AS$2:$BA$2,0)+1,FALSE) -> 0.07405715031 | AM161: =P161*VLOOKUP($B161,$AR$36:$AZ$47,MATCH(AM$2,$AS$2:$BA$2,0)+1,FALSE) -> 0 | AN161: =Q161*VLOOKUP($B161,$AR$36:$AZ$47,MATCH(AN$2,$AS$2:$BA$2,0)+1,FALSE) -> 0.001409871532 | AO161: =R161*VLOOKUP($B161,$AR$36:$BA$47,MATCH(AO$2,$AS$2:$BA$2,0)+1,FALSE) -> 0 | AP161: 0.8658299174
A162: 2006 | B162: 1 | C162: 7 | D162: 16 | F162: 2013 | G162: 1 | H162: 7 | I162: 16 | J162: 0.2803388359 | K162: 0.454421712 | L162: 0 | M162: 0.0879091904 | N162: 0.119566 | O162: 0.082385 | P162: 0 | Q162: 0.0018448411 | R162: 0 | S162: 1.026465579 | V162: 0.2654120483 | W162: 0.07699629905 | X162: 0.4019995631 | Y162: 0.09424153912 | Z162: 0.07594551909 | AA162: 0 | AB162: 0 | AC162: 0.00134846315 | AD162: 0 | AE162: 0.9159434318 | AG162: =J162*VLOOKUP($B162,$AR$36:$AZ$47,MATCH(AG$2,$AS$2:$BA$2,0)+1,FALSE) -> 0.2689704052 | AH162: =K162*VLOOKUP($B162,$AR$36:$AZ$47,MATCH(AH$2,$AS$2:$BA$2,0)+1,FALSE) -> 0.3839606695 | AI162: =L162*VLOOKUP($B162,$AR$36:$AZ$47,MATCH(AI$2,$AS$2:$BA$2,0)+1,FALSE) -> 0 | AJ162: =M162*VLOOKUP($B162,$AR$36:$AZ$47,MATCH(AJ$2,$AS$2:$BA$2,0)+1,FALSE) -> 0.07557018255 | AK162: =N162*VLOOKUP($B162,$AR$36:$AZ$47,MATCH(AK$2,$AS$2:$BA$2,0)+1,FALSE) -> 0.09351712784 | AL162: =O162*VLOOKUP($B162,$AR$36:$AZ$47,MATCH(AL$2,$AS$2:$BA$2,0)+1,FALSE) -> 0.07301140823 | AM162: =P162*VLOOKUP($B162,$AR$36:$AZ$47,MATCH(AM$2,$AS$2:$BA$2,0)+1,FALSE) -> 0 | AN162: =Q162*VLOOKUP($B162,$AR$36:$AZ$47,MATCH(AN$2,$AS$2:$BA$2,0)+1,FALSE) -> 0.001409871532 | AO162: =R162*VLOOKUP($B162,$AR$36:$BA$47,MATCH(AO$2,$AS$2:$BA$2,0)+1,FALSE) -> 0 | AP162: 0.8964396648
A163: 2006 | B163: 1 | C163: 7 | D163: 17 | F163: 2013 | G163: 1 | H163: 7 | I163: 17 | J163: 0.3292463792 | K163: 0.4523714391 | L163: 0.002244823328 | M163: 0.08925852641 | N163: 0.1177997 | O163: 0.080842 | P163: 4.570017781e-06 | Q163: 0.001933892953 | R163: 0 | S163: 1.073701331 | V163: 0.3117154839 | W163: 0.07817813087 | X163: 0.40018581 | Y163: 0.0928493471 | Z163: 0.07452312502 | AA163: 0.001255447415 | AB163: 2.287196897e-06 | AC163: 0.00141355447 | AD163: 0 | AE163: 0.960123186 | AG163: =J163*VLOOKUP($B163,$AR$36:$AZ$47,MATCH(AG$2,$AS$2:$BA$2,0)+1,FALSE) -> 0.315894627 | AH163: =K163*VLOOKUP($B163,$AR$36:$AZ$47,MATCH(AH$2,$AS$2:$BA$2,0)+1,FALSE) -> 0.3822283048 | AI163: =L163*VLOOKUP($B163,$AR$36:$AZ$47,MATCH(AI$2,$AS$2:$BA$2,0)+1,FALSE) -> 0.001659422376 | AJ163: =M163*VLOOKUP($B163,$AR$36:$AZ$47,MATCH(AJ$2,$AS$2:$BA$2,0)+1,FALSE) -> 0.07673012462 | AK163: =N163*VLOOKUP($B163,$AR$36:$AZ$47,MATCH(AK$2,$AS$2:$BA$2,0)+1,FALSE) -> 0.09213563725 | AL163: =O163*VLOOKUP($B163,$AR$36:$AZ$47,MATCH(AL$2,$AS$2:$BA$2,0)+1,FALSE) -> 0.07164396752 | AM163: =P163*VLOOKUP($B163,$AR$36:$AZ$47,MATCH(AM$2,$AS$2:$BA$2,0)+1,FALSE) -> 2.287196897e-06 | AN163: =Q163*VLOOKUP($B163,$AR$36:$AZ$47,MATCH(AN$2,$AS$2:$BA$2,0)+1,FALSE) -> 0.00147792708 | AO163: =R163*VLOOKUP($B163,$AR$36:$BA$47,MATCH(AO$2,$AS$2:$BA$2,0)+1,FALSE) -> 0 | AP163: 0.9417722978
A164: 2006 | B164: 1 | C164: 7 | D164: 18 | F164: 2013 | G164: 1 | H164: 7 | I164: 18 | J164: 0.4207190407 | K164: 0.4420002141 | L164: 0.008418087479 | M164: 0.08373263377 | N164: 0.114961 | O164: 0.07933 | P164: 1.713756668e-05 | Q164: 0.002178785549 | R164: 0 | S164: 1.151356899 | V164: 0.3983176357 | W164: 0.07333821278 | X164: 0.3910110109 | Y164: 0.09061189283 | Z164: 0.07312930788 | AA164: 0.004707927806 | AB164: 8.576988365e-06 | AC164: 0.0015925556 | AD164: 0 | AE164: 1.032717121 | AG164: =J164*VLOOKUP($B164,$AR$36:$AZ$47,MATCH(AG$2,$AS$2:$BA$2,0)+1,FALSE) -> 0.4036578466 | AH164: =K164*VLOOKUP($B164,$AR$36:$AZ$47,MATCH(AH$2,$AS$2:$BA$2,0)+1,FALSE) -> 0.3734652056 | AI164: =L164*VLOOKUP($B164,$AR$36:$AZ$47,MATCH(AI$2,$AS$2:$BA$2,0)+1,FALSE) -> 0.00622283391 | AJ164: =M164*VLOOKUP($B164,$AR$36:$AZ$47,MATCH(AJ$2,$AS$2:$BA$2,0)+1,FALSE) -> 0.07197985092 | AK164: =N164*VLOOKUP($B164,$AR$36:$AZ$47,MATCH(AK$2,$AS$2:$BA$2,0)+1,FALSE) -> 0.08991538174 | AL164: =O164*VLOOKUP($B164,$AR$36:$AZ$47,MATCH(AL$2,$AS$2:$BA$2,0)+1,FALSE) -> 0.07030399969 | AM164: =P164*VLOOKUP($B164,$AR$36:$AZ$47,MATCH(AM$2,$AS$2:$BA$2,0)+1,FALSE) -> 8.576988365e-06 | AN164: =Q164*VLOOKUP($B164,$AR$36:$AZ$47,MATCH(AN$2,$AS$2:$BA$2,0)+1,FALSE) -> 0.001665079838 | AO164: =R164*VLOOKUP($B164,$AR$36:$BA$47,MATCH(AO$2,$AS$2:$BA$2,0)+1,FALSE) -> 0 | AP164: 1.017218775
A165: 2006 | B165: 1 | C165: 7 | D165: 19 | F165: 2013 | G165: 1 | H165: 7 | I165: 19 | J165: 0.4571171358 | K165: 0.414891118 | L165: 0.008418087479 | M165: 0.07090352686 | N165: 0.1036706 | O165: 0.074009 | P165: 1.713756668e-05 | Q165: 0.002178785549 | R165: 0 | S165: 1.131205391 | V165: 0.4327776953 | W165: 0.06210168849 | X165: 0.3670292238 | Y165: 0.08171283563 | Z165: 0.06822421463 | AA165: 0.004707927806 | AB165: 8.576988365e-06 | AC165: 0.0015925556 | AD165: 0 | AE165: 1.018154718 | AG165: =J165*VLOOKUP($B165,$AR$36:$AZ$47,MATCH(AG$2,$AS$2:$BA$2,0)+1,FALSE) -> 0.4385799093 | AH165: =K165*VLOOKUP($B165,$AR$36:$AZ$47,MATCH(AH$2,$AS$2:$BA$2,0)+1,FALSE) -> 0.3505595513 | AI165: =L165*VLOOKUP($B165,$AR$36:$AZ$47,MATCH(AI$2,$AS$2:$BA$2,0)+1,FALSE) -> 0.00622283391 | AJ165: =M165*VLOOKUP($B165,$AR$36:$AZ$47,MATCH(AJ$2,$AS$2:$BA$2,0)+1,FALSE) -> 0.06095144824 | AK165: =N165*VLOOKUP($B165,$AR$36:$AZ$47,MATCH(AK$2,$AS$2:$BA$2,0)+1,FALSE) -> 0.08108472938 | AL165: =O165*VLOOKUP($B165,$AR$36:$AZ$47,MATCH(AL$2,$AS$2:$BA$2,0)+1,FALSE) -> 0.06558841186 | AM165: =P165*VLOOKUP($B165,$AR$36:$AZ$47,MATCH(AM$2,$AS$2:$BA$2,0)+1,FALSE) -> 8.576988365e-06 | AN165: =Q165*VLOOKUP($B165,$AR$36:$AZ$47,MATCH(AN$2,$AS$2:$BA$2,0)+1,FALSE) -> 0.001665079838 | AO165: =R165*VLOOKUP($B165,$AR$36:$BA$47,MATCH(AO$2,$AS$2:$BA$2,0)+1,FALSE) -> 0 | AP165: 1.004660541
A166: 2006 | B166: 1 | C166: 7 | D166: 20 | F166: 2013 | G166: 1 | H166: 7 | I166: 20 | J166: 0.4329823546 | K166: 0.4079301627 | L166: 0.008418087479 | M166: 0.07896801483 | N166: 0.0982856 | O166: 0.071385 | P166: 1.713756668e-05 | Q166: 0.002178785549 | R166: 0 | S166: 1.100165143 | V166: 0.409927983 | W166: 0.0691650652 | X166: 0.3608712851 | Y166: 0.07746839584 | Z166: 0.06580531505 | AA166: 0.004707927806 | AB166: 8.576988365e-06 | AC166: 0.0015925556 | AD166: 0 | AE166: 0.9895471047 | AG166: =J166*VLOOKUP($B166,$AR$36:$AZ$47,MATCH(AG$2,$AS$2:$BA$2,0)+1,FALSE) -> 0.4154238529 | AH166: =K166*VLOOKUP($B166,$AR$36:$AZ$47,MATCH(AH$2,$AS$2:$BA$2,0)+1,FALSE) -> 0.3446779373 | AI166: =L166*VLOOKUP($B166,$AR$36:$AZ$47,MATCH(AI$2,$AS$2:$BA$2,0)+1,FALSE) -> 0.00622283391 | AJ166: =M166*VLOOKUP($B166,$AR$36:$AZ$47,MATCH(AJ$2,$AS$2:$BA$2,0)+1,FALSE) -> 0.0678839979 | AK166: =N166*VLOOKUP($B166,$AR$36:$AZ$47,MATCH(AK$2,$AS$2:$BA$2,0)+1,FALSE) -> 0.07687291554 | AL166: =O166*VLOOKUP($B166,$AR$36:$AZ$47,MATCH(AL$2,$AS$2:$BA$2,0)+1,FALSE) -> 0.06326296506 | AM166: =P166*VLOOKUP($B166,$AR$36:$AZ$47,MATCH(AM$2,$AS$2:$BA$2,0)+1,FALSE) -> 8.576988365e-06 | AN166: =Q166*VLOOKUP($B166,$AR$36:$AZ$47,MATCH(AN$2,$AS$2:$BA$2,0)+1,FALSE) -> 0.001665079838 | AO166: =R166*VLOOKUP($B166,$AR$36:$BA$47,MATCH(AO$2,$AS$2:$BA$2,0)+1,FALSE) -> 0 | AP166: 0.9760181594
A167: 2006 | B167: 1 | C167: 7 | D167: 21 | F167: 2013 | G167: 1 | H167: 7 | I167: 21 | J167: 0.4062464775 | K167: 0.4068279607 | L167: 0.008418087479 | M167: 0.0914182754 | N167: 0.0961747 | O167: 0.069885 | P167: 1.713756668e-05 | Q167: 0.002178785549 | R167: 0 | S167: 1.081166424 | V167: 0.3846156717 | W167: 0.08006977245 | X167: 0.3598962333 | Y167: 0.0758045912 | Z167: 0.06442255995 | AA167: 0.004707927806 | AB167: 8.576988365e-06 | AC167: 0.0015925556 | AD167: 0 | AE167: 0.971117889 | AG167: =J167*VLOOKUP($B167,$AR$36:$AZ$47,MATCH(AG$2,$AS$2:$BA$2,0)+1,FALSE) -> 0.3897721815 | AH167: =K167*VLOOKUP($B167,$AR$36:$AZ$47,MATCH(AH$2,$AS$2:$BA$2,0)+1,FALSE) -> 0.3437466389 | AI167: =L167*VLOOKUP($B167,$AR$36:$AZ$47,MATCH(AI$2,$AS$2:$BA$2,0)+1,FALSE) -> 0.00622283391 | AJ167: =M167*VLOOKUP($B167,$AR$36:$AZ$47,MATCH(AJ$2,$AS$2:$BA$2,0)+1,FALSE) -> 0.07858672942 | AK167: =N167*VLOOKUP($B167,$AR$36:$AZ$47,MATCH(AK$2,$AS$2:$BA$2,0)+1,FALSE) -> 0.07522190016 | AL167: =O167*VLOOKUP($B167,$AR$36:$AZ$47,MATCH(AL$2,$AS$2:$BA$2,0)+1,FALSE) -> 0.0619336319 | AM167: =P167*VLOOKUP($B167,$AR$36:$AZ$47,MATCH(AM$2,$AS$2:$BA$2,0)+1,FALSE) -> 8.576988365e-06 | AN167: =Q167*VLOOKUP($B167,$AR$36:$AZ$47,MATCH(AN$2,$AS$2:$BA$2,0)+1,FALSE) -> 0.001665079838 | AO167: =R167*VLOOKUP($B167,$AR$36:$BA$47,MATCH(AO$2,$AS$2:$BA$2,0)+1,FALSE) -> 0 | AP167: 0.9571575726
A168: 2006 | B168: 1 | C168: 7 | D168: 22 | F168: 2013 | G168: 1 | H168: 7 | I168: 22 | J168: 0.3718188113 | K168: 0.37955484 | L168: 0.008418087479 | M168: 0.08296436333 | N168: 0.0929343 | O168: 0.068263 | P168: 1.713756668e-05 | Q168: 0.002178785549 | R168: 0 | S168: 1.006149325 | V168: 0.3520211245 | W168: 0.07266531407 | X168: 0.3357693434 | Y168: 0.07325051828 | Z168: 0.06292734077 | AA168: 0.004707927806 | AB168: 8.576988365e-06 | AC168: 0.0015925556 | AD168: 0 | AE168: 0.9029427015 | AG168: =J168*VLOOKUP($B168,$AR$36:$AZ$47,MATCH(AG$2,$AS$2:$BA$2,0)+1,FALSE) -> 0.356740642 | AH168: =K168*VLOOKUP($B168,$AR$36:$AZ$47,MATCH(AH$2,$AS$2:$BA$2,0)+1,FALSE) -> 0.320702393 | AI168: =L168*VLOOKUP($B168,$AR$36:$AZ$47,MATCH(AI$2,$AS$2:$BA$2,0)+1,FALSE) -> 0.00622283391 | AJ168: =M168*VLOOKUP($B168,$AR$36:$AZ$47,MATCH(AJ$2,$AS$2:$BA$2,0)+1,FALSE) -> 0.07131941556 | AK168: =N168*VLOOKUP($B168,$AR$36:$AZ$47,MATCH(AK$2,$AS$2:$BA$2,0)+1,FALSE) -> 0.07268745976 | AL168: =O168*VLOOKUP($B168,$AR$36:$AZ$47,MATCH(AL$2,$AS$2:$BA$2,0)+1,FALSE) -> 0.06049617964 | AM168: =P168*VLOOKUP($B168,$AR$36:$AZ$47,MATCH(AM$2,$AS$2:$BA$2,0)+1,FALSE) -> 8.576988365e-06 | AN168: =Q168*VLOOKUP($B168,$AR$36:$AZ$47,MATCH(AN$2,$AS$2:$BA$2,0)+1,FALSE) -> 0.001665079838 | AO168: =R168*VLOOKUP($B168,$AR$36:$BA$47,MATCH(AO$2,$AS$2:$BA$2,0)+1,FALSE) -> 0 | AP168: 0.8898425807
A169: 2006 | B169: 1 | C169: 7 | D169: 23 | F169: 2013 | G169: 1 | H169: 7 | I169: 23 | J169: 0.3202883161 | K169: 0.3633368686 | L169: 0.008418087479 | M169: 0.09138349121 | N169: 0.0895156 | O169: 0.066363 | P169: 1.713756668e-05 | Q169: 0.002178785549 | R169: 0 | S169: 0.9415012865 | V169: 0.3032343975 | W169: 0.08003930631 | X169: 0.3214222793 | Y169: 0.07055590986 | Z169: 0.06117585099 | AA169: 0.004707927806 | AB169: 8.576988365e-06 | AC169: 0.0015925556 | AD169: 0 | AE169: 0.8427368044 | AG169: =J169*VLOOKUP($B169,$AR$36:$AZ$47,MATCH(AG$2,$AS$2:$BA$2,0)+1,FALSE) -> 0.3072998354 | AH169: =K169*VLOOKUP($B169,$AR$36:$AZ$47,MATCH(AH$2,$AS$2:$BA$2,0)+1,FALSE) -> 0.3069991236 | AI169: =L169*VLOOKUP($B169,$AR$36:$AZ$47,MATCH(AI$2,$AS$2:$BA$2,0)+1,FALSE) -> 0.00622283391 | AJ169: =M169*VLOOKUP($B169,$AR$36:$AZ$47,MATCH(AJ$2,$AS$2:$BA$2,0)+1,FALSE) -> 0.07855682757 | AK169: =N169*VLOOKUP($B169,$AR$36:$AZ$47,MATCH(AK$2,$AS$2:$BA$2,0)+1,FALSE) -> 0.07001356413 | AL169: =O169*VLOOKUP($B169,$AR$36:$AZ$47,MATCH(AL$2,$AS$2:$BA$2,0)+1,FALSE) -> 0.05881235764 | AM169: =P169*VLOOKUP($B169,$AR$36:$AZ$47,MATCH(AM$2,$AS$2:$BA$2,0)+1,FALSE) -> 8.576988365e-06 | AN169: =Q169*VLOOKUP($B169,$AR$36:$AZ$47,MATCH(AN$2,$AS$2:$BA$2,0)+1,FALSE) -> 0.001665079838 | AO169: =R169*VLOOKUP($B169,$AR$36:$BA$47,MATCH(AO$2,$AS$2:$BA$2,0)+1,FALSE) -> 0 | AP169: 0.8295781991
A170: 2006 | B170: 1 | C170: 7 | D170: 24 | F170: 2013 | G170: 1 | H170: 7 | I170: 24 | J170: 0.2247720435 | K170: 0.3573308998 | L170: 0.008418087479 | M170: 0.1071178544 | N170: 0.0875092 | O170: 0.065092 | P170: 1.713756668e-05 | Q170: 0.002178785549 | R170: 0 | S170: 0.8524360083 | V170: 0.2128039387 | W170: 0.09382043348 | X170: 0.3161091599 | Y170: 0.0689744718 | Z170: 0.0600041965 | AA170: 0.004707927806 | AB170: 8.576988365e-06 | AC170: 0.0015925556 | AD170: 0 | AE170: 0.7580212608 | AG170: =J170*VLOOKUP($B170,$AR$36:$AZ$47,MATCH(AG$2,$AS$2:$BA$2,0)+1,FALSE) -> 0.2156569831 | AH170: =K170*VLOOKUP($B170,$AR$36:$AZ$47,MATCH(AH$2,$AS$2:$BA$2,0)+1,FALSE) -> 0.3019244193 | AI170: =L170*VLOOKUP($B170,$AR$36:$AZ$47,MATCH(AI$2,$AS$2:$BA$2,0)+1,FALSE) -> 0.00622283391 | AJ170: =M170*VLOOKUP($B170,$AR$36:$AZ$47,MATCH(AJ$2,$AS$2:$BA$2,0)+1,FALSE) -> 0.09208270231 | AK170: =N170*VLOOKUP($B170,$AR$36:$AZ$47,MATCH(AK$2,$AS$2:$BA$2,0)+1,FALSE) -> 0.06844428218 | AL170: =O170*VLOOKUP($B170,$AR$36:$AZ$47,MATCH(AL$2,$AS$2:$BA$2,0)+1,FALSE) -> 0.05768596934 | AM170: =P170*VLOOKUP($B170,$AR$36:$AZ$47,MATCH(AM$2,$AS$2:$BA$2,0)+1,FALSE) -> 8.576988365e-06 | AN170: =Q170*VLOOKUP($B170,$AR$36:$AZ$47,MATCH(AN$2,$AS$2:$BA$2,0)+1,FALSE) -> 0.001665079838 | AO170: =R170*VLOOKUP($B170,$AR$36:$BA$47,MATCH(AO$2,$AS$2:$BA$2,0)+1,FALSE) -> 0 | AP170: 0.743690847
A171: 2006 | B171: 1 | C171: 8 | D171: 1 | F171: 2013 | G171: 1 | H171: 8 | I171: 1 | J171: 0.2402961247 | K171: 0.3555821798 | L171: 0.008418087479 | M171: 0.09436158351 | N171: 0.086929 | O171: 0.06453 | P171: 1.713756668e-05 | Q171: 0.002178785549 | R171: 0 | S171: 0.8523128986 | V171: 0.2275014321 | W171: 0.0826477035 | X171: 0.3145621725 | Y171: 0.06851716001 | Z171: 0.05948612426 | AA171: 0.004707927806 | AB171: 8.576988365e-06 | AC171: 0.0015925556 | AD171: 0 | AE171: 0.7590236527 | AG171: =J171*VLOOKUP($B171,$AR$36:$AZ$47,MATCH(AG$2,$AS$2:$BA$2,0)+1,FALSE) -> 0.2305515245 | AH171: =K171*VLOOKUP($B171,$AR$36:$AZ$47,MATCH(AH$2,$AS$2:$BA$2,0)+1,FALSE) -> 0.3004468497 | AI171: =L171*VLOOKUP($B171,$AR$36:$AZ$47,MATCH(AI$2,$AS$2:$BA$2,0)+1,FALSE) -> 0.00622283391 | AJ171: =M171*VLOOKUP($B171,$AR$36:$AZ$47,MATCH(AJ$2,$AS$2:$BA$2,0)+1,FALSE) -> 0.08111691234 | AK171: =N171*VLOOKUP($B171,$AR$36:$AZ$47,MATCH(AK$2,$AS$2:$BA$2,0)+1,FALSE) -> 0.06799048564 | AL171: =O171*VLOOKUP($B171,$AR$36:$AZ$47,MATCH(AL$2,$AS$2:$BA$2,0)+1,FALSE) -> 0.05718791252 | AM171: =P171*VLOOKUP($B171,$AR$36:$AZ$47,MATCH(AM$2,$AS$2:$BA$2,0)+1,FALSE) -> 8.576988365e-06 | AN171: =Q171*VLOOKUP($B171,$AR$36:$AZ$47,MATCH(AN$2,$AS$2:$BA$2,0)+1,FALSE) -> 0.001665079838 | AO171: =R171*VLOOKUP($B171,$AR$36:$BA$47,MATCH(AO$2,$AS$2:$BA$2,0)+1,FALSE) -> 0 | AP171: 0.7451901755
A172: 2006 | B172: 1 | C172: 8 | D172: 2 | F172: 2013 | G172: 1 | H172: 8 | I172: 2 | J172: 0.2284271129 | K172: 0.3451238315 | L172: 0.008418087479 | M172: 0.08714293812 | N172: 0.0862305 | O172: 0.064062 | P172: 1.713756668e-05 | Q172: 0.002178785549 | R172: 0 | S172: 0.8216003931 | V172: 0.216264392 | W172: 0.07632516798 | X172: 0.3053103007 | Y172: 0.06796660454 | Z172: 0.05905470467 | AA172: 0.004707927806 | AB172: 8.576988365e-06 | AC172: 0.0015925556 | AD172: 0 | AE172: 0.7312302303 | AG172: =J172*VLOOKUP($B172,$AR$36:$AZ$47,MATCH(AG$2,$AS$2:$BA$2,0)+1,FALSE) -> 0.2191638304 | AH172: =K172*VLOOKUP($B172,$AR$36:$AZ$47,MATCH(AH$2,$AS$2:$BA$2,0)+1,FALSE) -> 0.2916101364 | AI172: =L172*VLOOKUP($B172,$AR$36:$AZ$47,MATCH(AI$2,$AS$2:$BA$2,0)+1,FALSE) -> 0.00622283391 | AJ172: =M172*VLOOKUP($B172,$AR$36:$AZ$47,MATCH(AJ$2,$AS$2:$BA$2,0)+1,FALSE) -> 0.07491148208 | AK172: =N172*VLOOKUP($B172,$AR$36:$AZ$47,MATCH(AK$2,$AS$2:$BA$2,0)+1,FALSE) -> 0.06744416215 | AL172: =O172*VLOOKUP($B172,$AR$36:$AZ$47,MATCH(AL$2,$AS$2:$BA$2,0)+1,FALSE) -> 0.05677316057 | AM172: =P172*VLOOKUP($B172,$AR$36:$AZ$47,MATCH(AM$2,$AS$2:$BA$2,0)+1,FALSE) -> 8.576988365e-06 | AN172: =Q172*VLOOKUP($B172,$AR$36:$AZ$47,MATCH(AN$2,$AS$2:$BA$2,0)+1,FALSE) -> 0.001665079838 | AO172: =R172*VLOOKUP($B172,$AR$36:$BA$47,MATCH(AO$2,$AS$2:$BA$2,0)+1,FALSE) -> 0 | AP172: 0.7177992624
A173: 2006 | B173: 1 | C173: 8 | D173: 3 | F173: 2013 | G173: 1 | H173: 8 | I173: 3 | J173: 0.2233277419 | K173: 0.3422019386 | L173: 0.008418087479 | M173: 0.08840920233 | N173: 0.0852352 | O173: 0.063277 | P173: 1.713756668e-05 | Q173: 0.002178785549 | R173: 0 | S173: 0.8130650934 | V173: 0.2114365397 | W173: 0.07743424038 | X173: 0.3027254777 | Y173: 0.06718211226 | Z173: 0.05833106283 | AA173: 0.004707927806 | AB173: 8.576988365e-06 | AC173: 0.0015925556 | AD173: 0 | AE173: 0.7234184932 | AG173: =J173*VLOOKUP($B173,$AR$36:$AZ$47,MATCH(AG$2,$AS$2:$BA$2,0)+1,FALSE) -> 0.2142712515 | AH173: =K173*VLOOKUP($B173,$AR$36:$AZ$47,MATCH(AH$2,$AS$2:$BA$2,0)+1,FALSE) -> 0.2891413019 | AI173: =L173*VLOOKUP($B173,$AR$36:$AZ$47,MATCH(AI$2,$AS$2:$BA$2,0)+1,FALSE) -> 0.00622283391 | AJ173: =M173*VLOOKUP($B173,$AR$36:$AZ$47,MATCH(AJ$2,$AS$2:$BA$2,0)+1,FALSE) -> 0.07600001238 | AK173: =N173*VLOOKUP($B173,$AR$36:$AZ$47,MATCH(AK$2,$AS$2:$BA$2,0)+1,FALSE) -> 0.06666570007 | AL173: =O173*VLOOKUP($B173,$AR$36:$AZ$47,MATCH(AL$2,$AS$2:$BA$2,0)+1,FALSE) -> 0.05607747622 | AM173: =P173*VLOOKUP($B173,$AR$36:$AZ$47,MATCH(AM$2,$AS$2:$BA$2,0)+1,FALSE) -> 8.576988365e-06 | AN173: =Q173*VLOOKUP($B173,$AR$36:$AZ$47,MATCH(AN$2,$AS$2:$BA$2,0)+1,FALSE) -> 0.001665079838 | AO173: =R173*VLOOKUP($B173,$AR$36:$BA$47,MATCH(AO$2,$AS$2:$BA$2,0)+1,FALSE) -> 0 | AP173: 0.7100522328
A174: 2006 | B174: 1 | C174: 8 | D174: 4 | F174: 2013 | G174: 1 | H174: 8 | I174: 4 | J174: 0.2241026056 | K174: 0.3411153831 | L174: 0.008418087479 | M174: 0.08619138989 | N174: 0.0847404 | O174: 0.062902 | P174: 1.713756668e-05 | Q174: 0.002178785549 | R174: 0 | S174: 0.8096657892 | V174: 0.2121701454 | W174: 0.07549174326 | X174: 0.3017642674 | Y174: 0.06679211248 | Z174: 0.05798537406 | AA174: 0.004707927806 | AB174: 8.576988365e-06 | AC174: 0.0015925556 | AD174: 0 | AE174: 0.7205127029 | AG174: =J174*VLOOKUP($B174,$AR$36:$AZ$47,MATCH(AG$2,$AS$2:$BA$2,0)+1,FALSE) -> 0.2150146926 | AH174: =K174*VLOOKUP($B174,$AR$36:$AZ$47,MATCH(AH$2,$AS$2:$BA$2,0)+1,FALSE) -> 0.2882232239 | AI174: =L174*VLOOKUP($B174,$AR$36:$AZ$47,MATCH(AI$2,$AS$2:$BA$2,0)+1,FALSE) -> 0.00622283391 | AJ174: =M174*VLOOKUP($B174,$AR$36:$AZ$47,MATCH(AJ$2,$AS$2:$BA$2,0)+1,FALSE) -> 0.07409349396 | AK174: =N174*VLOOKUP($B174,$AR$36:$AZ$47,MATCH(AK$2,$AS$2:$BA$2,0)+1,FALSE) -> 0.06627869812 | AL174: =O174*VLOOKUP($B174,$AR$36:$AZ$47,MATCH(AL$2,$AS$2:$BA$2,0)+1,FALSE) -> 0.05574514293 | AM174: =P174*VLOOKUP($B174,$AR$36:$AZ$47,MATCH(AM$2,$AS$2:$BA$2,0)+1,FALSE) -> 8.576988365e-06 | AN174: =Q174*VLOOKUP($B174,$AR$36:$AZ$47,MATCH(AN$2,$AS$2:$BA$2,0)+1,FALSE) -> 0.001665079838 | AO174: =R174*VLOOKUP($B174,$AR$36:$BA$47,MATCH(AO$2,$AS$2:$BA$2,0)+1,FALSE) -> 0 | AP174: 0.7072517423
A175: 2006 | B175: 1 | C175: 8 | D175: 5 | F175: 2013 | G175: 1 | H175: 8 | I175: 5 | J175: 0.2337532879 | K175: 0.3465337388 | L175: 0.008418087479 | M175: 0.08584105202 | N175: 0.0869258 | O175: 0.063258 | P175: 1.713756668e-05 | Q175: 0.002178785549 | R175: 0 | S175: 0.8269258893 | V175: 0.221306972 | W175: 0.07518489571 | X175: 0.3065575609 | Y175: 0.06851463778 | Z175: 0.05831354794 | AA175: 0.004707927806 | AB175: 8.576988365e-06 | AC175: 0.0015925556 | AD175: 0 | AE175: 0.7361866747 | AG175: =J175*VLOOKUP($B175,$AR$36:$AZ$47,MATCH(AG$2,$AS$2:$BA$2,0)+1,FALSE) -> 0.2242740159 | AH175: =K175*VLOOKUP($B175,$AR$36:$AZ$47,MATCH(AH$2,$AS$2:$BA$2,0)+1,FALSE) -> 0.2928014284 | AI175: =L175*VLOOKUP($B175,$AR$36:$AZ$47,MATCH(AI$2,$AS$2:$BA$2,0)+1,FALSE) -> 0.00622283391 | AJ175: =M175*VLOOKUP($B175,$AR$36:$AZ$47,MATCH(AJ$2,$AS$2:$BA$2,0)+1,FALSE) -> 0.07379232981 | AK175: =N175*VLOOKUP($B175,$AR$36:$AZ$47,MATCH(AK$2,$AS$2:$BA$2,0)+1,FALSE) -> 0.0679879828 | AL175: =O175*VLOOKUP($B175,$AR$36:$AZ$47,MATCH(AL$2,$AS$2:$BA$2,0)+1,FALSE) -> 0.056060638 | AM175: =P175*VLOOKUP($B175,$AR$36:$AZ$47,MATCH(AM$2,$AS$2:$BA$2,0)+1,FALSE) -> 8.576988365e-06 | AN175: =Q175*VLOOKUP($B175,$AR$36:$AZ$47,MATCH(AN$2,$AS$2:$BA$2,0)+1,FALSE) -> 0.001665079838 | AO175: =R175*VLOOKUP($B175,$AR$36:$BA$47,MATCH(AO$2,$AS$2:$BA$2,0)+1,FALSE) -> 0 | AP175: 0.7228128856
A176: 2006 | B176: 1 | C176: 8 | D176: 6 | F176: 2013 | G176: 1 | H176: 8 | I176: 6 | J176: 0.2552599617 | K176: 0.3661339888 | L176: 0.008418087479 | M176: 0.08453099456 | N176: 0.0917361 | O176: 0.066142 | P176: 1.713756668e-05 | Q176: 0.002178785549 | R176: 0 | S176: 0.8744170557 | V176: 0.2416685118 | W176: 0.07403746647 | X176: 0.3238967234 | Y176: 0.07230610087 | Z176: 0.06097212507 | AA176: 0.004707927806 | AB176: 8.576988365e-06 | AC176: 0.0015925556 | AD176: 0 | AE176: 0.779189988 | AG176: =J176*VLOOKUP($B176,$AR$36:$AZ$47,MATCH(AG$2,$AS$2:$BA$2,0)+1,FALSE) -> 0.2449085411 | AH176: =K176*VLOOKUP($B176,$AR$36:$AZ$47,MATCH(AH$2,$AS$2:$BA$2,0)+1,FALSE) -> 0.3093625321 | AI176: =L176*VLOOKUP($B176,$AR$36:$AZ$47,MATCH(AI$2,$AS$2:$BA$2,0)+1,FALSE) -> 0.00622283391 | AJ176: =M176*VLOOKUP($B176,$AR$36:$AZ$47,MATCH(AJ$2,$AS$2:$BA$2,0)+1,FALSE) -> 0.07266615312 | AK176: =N176*VLOOKUP($B176,$AR$36:$AZ$47,MATCH(AK$2,$AS$2:$BA$2,0)+1,FALSE) -> 0.07175030185 | AL176: =O176*VLOOKUP($B176,$AR$36:$AZ$47,MATCH(AL$2,$AS$2:$BA$2,0)+1,FALSE) -> 0.05861650255 | AM176: =P176*VLOOKUP($B176,$AR$36:$AZ$47,MATCH(AM$2,$AS$2:$BA$2,0)+1,FALSE) -> 8.576988365e-06 | AN176: =Q176*VLOOKUP($B176,$AR$36:$AZ$47,MATCH(AN$2,$AS$2:$BA$2,0)+1,FALSE) -> 0.001665079838 | AO176: =R176*VLOOKUP($B176,$AR$36:$BA$47,MATCH(AO$2,$AS$2:$BA$2,0)+1,FALSE) -> 0 | AP176: 0.7652005214
A177: 2006 | B177: 1 | C177: 8 | D177: 7 | F177: 2013 | G177: 1 | H177: 8 | I177: 7 | J177: 0.2949391928 | K177: 0.4140876931 | L177: 0.008418087479 | M177: 0.09243814492 | N177: 0.1040492 | O177: 0.072286 | P177: 1.713756668e-05 | Q177: 0.002178785549 | R177: 0 | S177: 0.9884142414 | V177: 0.2792350015 | W177: 0.08096303717 | X177: 0.3663184821 | Y177: 0.08201124694 | Z177: 0.06663588994 | AA177: 0.004707927806 | AB177: 8.576988365e-06 | AC177: 0.0015925556 | AD177: 0 | AE177: 0.881472718 | AG177: =J177*VLOOKUP($B177,$AR$36:$AZ$47,MATCH(AG$2,$AS$2:$BA$2,0)+1,FALSE) -> 0.2829786815 | AH177: =K177*VLOOKUP($B177,$AR$36:$AZ$47,MATCH(AH$2,$AS$2:$BA$2,0)+1,FALSE) -> 0.3498807026 | AI177: =L177*VLOOKUP($B177,$AR$36:$AZ$47,MATCH(AI$2,$AS$2:$BA$2,0)+1,FALSE) -> 0.00622283391 | AJ177: =M177*VLOOKUP($B177,$AR$36:$AZ$47,MATCH(AJ$2,$AS$2:$BA$2,0)+1,FALSE) -> 0.0794634492 | AK177: =N177*VLOOKUP($B177,$AR$36:$AZ$47,MATCH(AK$2,$AS$2:$BA$2,0)+1,FALSE) -> 0.08138084688 | AL177: =O177*VLOOKUP($B177,$AR$36:$AZ$47,MATCH(AL$2,$AS$2:$BA$2,0)+1,FALSE) -> 0.06406145117 | AM177: =P177*VLOOKUP($B177,$AR$36:$AZ$47,MATCH(AM$2,$AS$2:$BA$2,0)+1,FALSE) -> 8.576988365e-06 | AN177: =Q177*VLOOKUP($B177,$AR$36:$AZ$47,MATCH(AN$2,$AS$2:$BA$2,0)+1,FALSE) -> 0.001665079838 | AO177: =R177*VLOOKUP($B177,$AR$36:$BA$47,MATCH(AO$2,$AS$2:$BA$2,0)+1,FALSE) -> 0 | AP177: 0.8656616222
A178: 2006 | B178: 1 | C178: 8 | D178: 8 | F178: 2013 | G178: 1 | H178: 8 | I178: 8 | J178: 0.3338962608 | K178: 0.4678133631 | L178: 0.005191153945 | M178: 0.1092339188 | N178: 0.1123518 | O178: 0.077871 | P178: 1.056816612e-05 | Q178: 0.00205077351 | R178: 0 | S178: 1.108418838 | V178: 0.3161177801 | W178: 0.09567381339 | X178: 0.4138463516 | Y178: 0.08855532973 | Z178: 0.07178434809 | AA178: 0.002903222147 | AB178: 5.289142825e-06 | AC178: 0.001498986828 | AD178: 0 | AE178: 0.990385121 | AG178: =J178*VLOOKUP($B178,$AR$36:$AZ$47,MATCH(AG$2,$AS$2:$BA$2,0)+1,FALSE) -> 0.3203559444 | AH178: =K178*VLOOKUP($B178,$AR$36:$AZ$47,MATCH(AH$2,$AS$2:$BA$2,0)+1,FALSE) -> 0.395275858 | AI178: =L178*VLOOKUP($B178,$AR$36:$AZ$47,MATCH(AI$2,$AS$2:$BA$2,0)+1,FALSE) -> 0.003837414244 | AJ178: =M178*VLOOKUP($B178,$AR$36:$AZ$47,MATCH(AJ$2,$AS$2:$BA$2,0)+1,FALSE) -> 0.09390175413 | AK178: =N178*VLOOKUP($B178,$AR$36:$AZ$47,MATCH(AK$2,$AS$2:$BA$2,0)+1,FALSE) -> 0.08787462693 | AL178: =O178*VLOOKUP($B178,$AR$36:$AZ$47,MATCH(AL$2,$AS$2:$BA$2,0)+1,FALSE) -> 0.06901100164 | AM178: =P178*VLOOKUP($B178,$AR$36:$AZ$47,MATCH(AM$2,$AS$2:$BA$2,0)+1,FALSE) -> 5.289142825e-06 | AN178: =Q178*VLOOKUP($B178,$AR$36:$AZ$47,MATCH(AN$2,$AS$2:$BA$2,0)+1,FALSE) -> 0.001567249988 | AO178: =R178*VLOOKUP($B178,$AR$36:$BA$47,MATCH(AO$2,$AS$2:$BA$2,0)+1,FALSE) -> 0 | AP178: 0.9718291385
A179: 2006 | B179: 1 | C179: 8 | D179: 9 | F179: 2013 | G179: 1 | H179: 8 | I179: 9 | J179: 0.2998483974 | K179: 0.5026134329 | L179: 0 | M179: 0.122209275 | N179: 0.1164788 | O179: 0.080378 | P179: 0 | Q179: 0.0018448411 | R179: 0 | S179: 1.123372746 | V179: 0.2838828129 | W179: 0.1070384318 | X179: 0.4446318808 | Y179: 0.09180821794 | Z179: 0.07409539277 | AA179: 0 | AB179: 0 | AC179: 0.00134846315 | AD179: 0 | AE179: 1.002805199 | AG179: =J179*VLOOKUP($B179,$AR$36:$AZ$47,MATCH(AG$2,$AS$2:$BA$2,0)+1,FALSE) -> 0.2876888058 | AH179: =K179*VLOOKUP($B179,$AR$36:$AZ$47,MATCH(AH$2,$AS$2:$BA$2,0)+1,FALSE) -> 0.4246799506 | AI179: =L179*VLOOKUP($B179,$AR$36:$AZ$47,MATCH(AI$2,$AS$2:$BA$2,0)+1,FALSE) -> 0 | AJ179: =M179*VLOOKUP($B179,$AR$36:$AZ$47,MATCH(AJ$2,$AS$2:$BA$2,0)+1,FALSE) -> 0.1050558784 | AK179: =N179*VLOOKUP($B179,$AR$36:$AZ$47,MATCH(AK$2,$AS$2:$BA$2,0)+1,FALSE) -> 0.091102511 | AL179: =O179*VLOOKUP($B179,$AR$36:$AZ$47,MATCH(AL$2,$AS$2:$BA$2,0)+1,FALSE) -> 0.07123276046 | AM179: =P179*VLOOKUP($B179,$AR$36:$AZ$47,MATCH(AM$2,$AS$2:$BA$2,0)+1,FALSE) -> 0 | AN179: =Q179*VLOOKUP($B179,$AR$36:$AZ$47,MATCH(AN$2,$AS$2:$BA$2,0)+1,FALSE) -> 0.001409871532 | AO179: =R179*VLOOKUP($B179,$AR$36:$BA$47,MATCH(AO$2,$AS$2:$BA$2,0)+1,FALSE) -> 0 | AP179: 0.9811697778
A180: 2006 | B180: 1 | C180: 8 | D180: 10 | F180: 2013 | G180: 1 | H180: 8 | I180: 10 | J180: 0.2820616598 | K180: 0.517613346 | L180: 0 | M180: 0.1261515592 | N180: 0.119668 | O180: 0.08236 | P180: 0 | Q180: 0.0018448411 | R180: 0 | S180: 1.129699406 | V180: 0.2670431394 | W180: 0.1104913279 | X180: 0.4579014019 | Y180: 0.09432193519 | Z180: 0.07592247317 | AA180: 0 | AB180: 0 | AC180: 0.00134846315 | AD180: 0 | AE180: 1.007028741 | AG180: =J180*VLOOKUP($B180,$AR$36:$AZ$47,MATCH(AG$2,$AS$2:$BA$2,0)+1,FALSE) -> 0.2706233642 | AH180: =K180*VLOOKUP($B180,$AR$36:$AZ$47,MATCH(AH$2,$AS$2:$BA$2,0)+1,FALSE) -> 0.4373540296 | AI180: =L180*VLOOKUP($B180,$AR$36:$AZ$47,MATCH(AI$2,$AS$2:$BA$2,0)+1,FALSE) -> 0 | AJ180: =M180*VLOOKUP($B180,$AR$36:$AZ$47,MATCH(AJ$2,$AS$2:$BA$2,0)+1,FALSE) -> 0.1084448203 | AK180: =N180*VLOOKUP($B180,$AR$36:$AZ$47,MATCH(AK$2,$AS$2:$BA$2,0)+1,FALSE) -> 0.09359690593 | AL180: =O180*VLOOKUP($B180,$AR$36:$AZ$47,MATCH(AL$2,$AS$2:$BA$2,0)+1,FALSE) -> 0.07298925267 | AM180: =P180*VLOOKUP($B180,$AR$36:$AZ$47,MATCH(AM$2,$AS$2:$BA$2,0)+1,FALSE) -> 0 | AN180: =Q180*VLOOKUP($B180,$AR$36:$AZ$47,MATCH(AN$2,$AS$2:$BA$2,0)+1,FALSE) -> 0.001409871532 | AO180: =R180*VLOOKUP($B180,$AR$36:$BA$47,MATCH(AO$2,$AS$2:$BA$2,0)+1,FALSE) -> 0 | AP180: 0.9844182442
A181: 2006 | B181: 1 | C181: 8 | D181: 11 | F181: 2013 | G181: 1 | H181: 8 | I181: 11 | J181: 0.2718937466 | K181: 0.5164148607 | L181: 0 | M181: 0.1240177789 | N181: 0.1201569 | O181: 0.083022 | P181: 0 | Q181: 0.0018448411 | R181: 0 | S181: 1.117350127 | V181: 0.2574166221 | W181: 0.1086224313 | X181: 0.456841174 | Y181: 0.09470728461 | Z181: 0.07653272909 | AA181: 0 | AB181: 0 | AC181: 0.00134846315 | AD181: 0 | AE181: 0.9954687042 | AG181: =J181*VLOOKUP($B181,$AR$36:$AZ$47,MATCH(AG$2,$AS$2:$BA$2,0)+1,FALSE) -> 0.260867785 | AH181: =K181*VLOOKUP($B181,$AR$36:$AZ$47,MATCH(AH$2,$AS$2:$BA$2,0)+1,FALSE) -> 0.4363413772 | AI181: =L181*VLOOKUP($B181,$AR$36:$AZ$47,MATCH(AI$2,$AS$2:$BA$2,0)+1,FALSE) -> 0 | AJ181: =M181*VLOOKUP($B181,$AR$36:$AZ$47,MATCH(AJ$2,$AS$2:$BA$2,0)+1,FALSE) -> 0.1066105392 | AK181: =N181*VLOOKUP($B181,$AR$36:$AZ$47,MATCH(AK$2,$AS$2:$BA$2,0)+1,FALSE) -> 0.09397929326 | AL181: =O181*VLOOKUP($B181,$AR$36:$AZ$47,MATCH(AL$2,$AS$2:$BA$2,0)+1,FALSE) -> 0.07357593171 | AM181: =P181*VLOOKUP($B181,$AR$36:$AZ$47,MATCH(AM$2,$AS$2:$BA$2,0)+1,FALSE) -> 0 | AN181: =Q181*VLOOKUP($B181,$AR$36:$AZ$47,MATCH(AN$2,$AS$2:$BA$2,0)+1,FALSE) -> 0.001409871532 | AO181: =R181*VLOOKUP($B181,$AR$36:$BA$47,MATCH(AO$2,$AS$2:$BA$2,0)+1,FALSE) -> 0 | AP181: 0.9727847979
A182: 2006 | B182: 1 | C182: 8 | D182: 12 | F182: 2013 | G182: 1 | H182: 8 | I182: 12 | J182: 0.2763152897 | K182: 0.5121522693 | L182: 0 | M182: 0.1197493752 | N182: 0.1203782 | O182: 0.083531 | P182: 0 | Q182: 0.0018448411 | R182: 0 | S182: 1.113970975 | V182: 0.2616027379 | W182: 0.1048838997 | X182: 0.4530703158 | Y182: 0.09488171256 | Z182: 0.07700194399 | AA182: 0 | AB182: 0 | AC182: 0.00134846315 | AD182: 0 | AE182: 0.992789073 | AG182: =J182*VLOOKUP($B182,$AR$36:$AZ$47,MATCH(AG$2,$AS$2:$BA$2,0)+1,FALSE) -> 0.2651100237 | AH182: =K182*VLOOKUP($B182,$AR$36:$AZ$47,MATCH(AH$2,$AS$2:$BA$2,0)+1,FALSE) -> 0.4327397284 | AI182: =L182*VLOOKUP($B182,$AR$36:$AZ$47,MATCH(AI$2,$AS$2:$BA$2,0)+1,FALSE) -> 0 | AJ182: =M182*VLOOKUP($B182,$AR$36:$AZ$47,MATCH(AJ$2,$AS$2:$BA$2,0)+1,FALSE) -> 0.1029412523 | AK182: =N182*VLOOKUP($B182,$AR$36:$AZ$47,MATCH(AK$2,$AS$2:$BA$2,0)+1,FALSE) -> 0.09415238043 | AL182: =O182*VLOOKUP($B182,$AR$36:$AZ$47,MATCH(AL$2,$AS$2:$BA$2,0)+1,FALSE) -> 0.07402701876 | AM182: =P182*VLOOKUP($B182,$AR$36:$AZ$47,MATCH(AM$2,$AS$2:$BA$2,0)+1,FALSE) -> 0 | AN182: =Q182*VLOOKUP($B182,$AR$36:$AZ$47,MATCH(AN$2,$AS$2:$BA$2,0)+1,FALSE) -> 0.001409871532 | AO182: =R182*VLOOKUP($B182,$AR$36:$BA$47,MATCH(AO$2,$AS$2:$BA$2,0)+1,FALSE) -> 0 | AP182: 0.970380275
A183: 2006 | B183: 1 | C183: 8 | D183: 13 | F183: 2013 | G183: 1 | H183: 8 | I183: 13 | J183: 0.2755963299 | K183: 0.5092572441 | L183: 0 | M183: 0.1195570831 | N183: 0.1198531 | O183: 0.083535 | P183: 0 | Q183: 0.0018448411 | R183: 0 | S183: 1.109643598 | V183: 0.2609220595 | W183: 0.1047154783 | X183: 0.4505092611 | Y183: 0.09446783042 | Z183: 0.07700563133 | AA183: 0 | AB183: 0 | AC183: 0.00134846315 | AD183: 0 | AE183: 0.9889687238 | AG183: =J183*VLOOKUP($B183,$AR$36:$AZ$47,MATCH(AG$2,$AS$2:$BA$2,0)+1,FALSE) -> 0.2644202195 | AH183: =K183*VLOOKUP($B183,$AR$36:$AZ$47,MATCH(AH$2,$AS$2:$BA$2,0)+1,FALSE) -> 0.4302935957 | AI183: =L183*VLOOKUP($B183,$AR$36:$AZ$47,MATCH(AI$2,$AS$2:$BA$2,0)+1,FALSE) -> 0 | AJ183: =M183*VLOOKUP($B183,$AR$36:$AZ$47,MATCH(AJ$2,$AS$2:$BA$2,0)+1,FALSE) -> 0.1027759504 | AK183: =N183*VLOOKUP($B183,$AR$36:$AZ$47,MATCH(AK$2,$AS$2:$BA$2,0)+1,FALSE) -> 0.09374167969 | AL183: =O183*VLOOKUP($B183,$AR$36:$AZ$47,MATCH(AL$2,$AS$2:$BA$2,0)+1,FALSE) -> 0.07403056365 | AM183: =P183*VLOOKUP($B183,$AR$36:$AZ$47,MATCH(AM$2,$AS$2:$BA$2,0)+1,FALSE) -> 0 | AN183: =Q183*VLOOKUP($B183,$AR$36:$AZ$47,MATCH(AN$2,$AS$2:$BA$2,0)+1,FALSE) -> 0.001409871532 | AO183: =R183*VLOOKUP($B183,$AR$36:$BA$47,MATCH(AO$2,$AS$2:$BA$2,0)+1,FALSE) -> 0 | AP183: 0.9666718804
A184: 2006 | B184: 1 | C184: 8 | D184: 14 | F184: 2013 | G184: 1 | H184: 8 | I184: 14 | J184: 0.2738960101 | K184: 0.5024923999 | L184: 0 | M184: 0.111155214 | N184: 0.1199543 | O184: 0.082858 | P184: 0 | Q184: 0.0018448411 | R184: 0 | S184: 1.092200765 | V184: 0.2593122741 | W184: 0.09735660243 | X184: 0.4445248102 | Y184: 0.09454759593 | Z184: 0.07638154787 | AA184: 0 | AB184: 0 | AC184: 0.00134846315 | AD184: 0 | AE184: 0.9734712937 | AG184: =J184*VLOOKUP($B184,$AR$36:$AZ$47,MATCH(AG$2,$AS$2:$BA$2,0)+1,FALSE) -> 0.2627888518 | AH184: =K184*VLOOKUP($B184,$AR$36:$AZ$47,MATCH(AH$2,$AS$2:$BA$2,0)+1,FALSE) -> 0.4245776846 | AI184: =L184*VLOOKUP($B184,$AR$36:$AZ$47,MATCH(AI$2,$AS$2:$BA$2,0)+1,FALSE) -> 0 | AJ184: =M184*VLOOKUP($B184,$AR$36:$AZ$47,MATCH(AJ$2,$AS$2:$BA$2,0)+1,FALSE) -> 0.09555337475 | AK184: =N184*VLOOKUP($B184,$AR$36:$AZ$47,MATCH(AK$2,$AS$2:$BA$2,0)+1,FALSE) -> 0.09382083207 | AL184: =O184*VLOOKUP($B184,$AR$36:$AZ$47,MATCH(AL$2,$AS$2:$BA$2,0)+1,FALSE) -> 0.07343059128 | AM184: =P184*VLOOKUP($B184,$AR$36:$AZ$47,MATCH(AM$2,$AS$2:$BA$2,0)+1,FALSE) -> 0 | AN184: =Q184*VLOOKUP($B184,$AR$36:$AZ$47,MATCH(AN$2,$AS$2:$BA$2,0)+1,FALSE) -> 0.001409871532 | AO184: =R184*VLOOKUP($B184,$AR$36:$BA$47,MATCH(AO$2,$AS$2:$BA$2,0)+1,FALSE) -> 0 | AP184: 0.951581206
A185: 2006 | B185: 1 | C185: 8 | D185: 15 | F185: 2013 | G185: 1 | H185: 8 | I185: 15 | J185: 0.2783020158 | K185: 0.4910021811 | L185: 0 | M185: 0.1020169797 | N185: 0.1194261 | O185: 0.082169 | P185: 0 | Q185: 0.0018448411 | R185: 0 | S185: 1.074761118 | V185: 0.2634836797 | W185: 0.08935277238 | X185: 0.4343601046 | Y185: 0.09413127038 | Z185: 0.07574640236 | AA185: 0 | AB185: 0 | AC185: 0.00134846315 | AD185: 0 | AE185: 0.9584226925 | AG185: =J185*VLOOKUP($B185,$AR$36:$AZ$47,MATCH(AG$2,$AS$2:$BA$2,0)+1,FALSE) -> 0.2670161831 | AH185: =K185*VLOOKUP($B185,$AR$36:$AZ$47,MATCH(AH$2,$AS$2:$BA$2,0)+1,FALSE) -> 0.4148690989 | AI185: =L185*VLOOKUP($B185,$AR$36:$AZ$47,MATCH(AI$2,$AS$2:$BA$2,0)+1,FALSE) -> 0 | AJ185: =M185*VLOOKUP($B185,$AR$36:$AZ$47,MATCH(AJ$2,$AS$2:$BA$2,0)+1,FALSE) -> 0.08769779071 | AK185: =N185*VLOOKUP($B185,$AR$36:$AZ$47,MATCH(AK$2,$AS$2:$BA$2,0)+1,FALSE) -> 0.09340770671 | AL185: =O185*VLOOKUP($B185,$AR$36:$AZ$47,MATCH(AL$2,$AS$2:$BA$2,0)+1,FALSE) -> 0.07281998425 | AM185: =P185*VLOOKUP($B185,$AR$36:$AZ$47,MATCH(AM$2,$AS$2:$BA$2,0)+1,FALSE) -> 0 | AN185: =Q185*VLOOKUP($B185,$AR$36:$AZ$47,MATCH(AN$2,$AS$2:$BA$2,0)+1,FALSE) -> 0.001409871532 | AO185: =R185*VLOOKUP($B185,$AR$36:$BA$47,MATCH(AO$2,$AS$2:$BA$2,0)+1,FALSE) -> 0 | AP185: 0.9372206353
A186: 2006 | B186: 1 | C186: 8 | D186: 16 | F186: 2013 | G186: 1 | H186: 8 | I186: 16 | J186: 0.306963078 | K186: 0.4879971282 | L186: 0 | M186: 0.103105482 | N186: 0.1175916 | O186: 0.081032 | P186: 0 | Q186: 0.0018448411 | R186: 0 | S186: 1.098534129 | V186: 0.2906186686 | W186: 0.09030614994 | X186: 0.4317017149 | Y186: 0.09268532334 | Z186: 0.07469827399 | AA186: 0 | AB186: 0 | AC186: 0.00134846315 | AD186: 0 | AE186: 0.981358594 | AG186: =J186*VLOOKUP($B186,$AR$36:$AZ$47,MATCH(AG$2,$AS$2:$BA$2,0)+1,FALSE) -> 0.2945149685 | AH186: =K186*VLOOKUP($B186,$AR$36:$AZ$47,MATCH(AH$2,$AS$2:$BA$2,0)+1,FALSE) -> 0.412329999 | AI186: =L186*VLOOKUP($B186,$AR$36:$AZ$47,MATCH(AI$2,$AS$2:$BA$2,0)+1,FALSE) -> 0 | AJ186: =M186*VLOOKUP($B186,$AR$36:$AZ$47,MATCH(AJ$2,$AS$2:$BA$2,0)+1,FALSE) -> 0.08863350992 | AK186: =N186*VLOOKUP($B186,$AR$36:$AZ$47,MATCH(AK$2,$AS$2:$BA$2,0)+1,FALSE) -> 0.09197287431 | AL186: =O186*VLOOKUP($B186,$AR$36:$AZ$47,MATCH(AL$2,$AS$2:$BA$2,0)+1,FALSE) -> 0.07181234972 | AM186: =P186*VLOOKUP($B186,$AR$36:$AZ$47,MATCH(AM$2,$AS$2:$BA$2,0)+1,FALSE) -> 0 | AN186: =Q186*VLOOKUP($B186,$AR$36:$AZ$47,MATCH(AN$2,$AS$2:$BA$2,0)+1,FALSE) -> 0.001409871532 | AO186: =R186*VLOOKUP($B186,$AR$36:$BA$47,MATCH(AO$2,$AS$2:$BA$2,0)+1,FALSE) -> 0 | AP186: 0.960673573
A187: 2006 | B187: 1 | C187: 8 | D187: 17 | F187: 2013 | G187: 1 | H187: 8 | I187: 17 | J187: 0.3540743905 | K187: 0.4897609286 | L187: 0.002244823328 | M187: 0.1071170195 | N187: 0.1147633 | O187: 0.079301 | P187: 4.570017781e-06 | Q187: 0.001933892953 | R187: 0 | S187: 1.149199925 | V187: 0.3352215147 | W187: 0.09381970221 | X187: 0.4332620431 | Y187: 0.09045606632 | Z187: 0.07310257461 | AA187: 0.001255447415 | AB187: 2.287196897e-06 | AC187: 0.00141355447 | AD187: 0 | AE187: 1.02853319 | AG187: =J187*VLOOKUP($B187,$AR$36:$AZ$47,MATCH(AG$2,$AS$2:$BA$2,0)+1,FALSE) -> 0.3397158012 | AH187: =K187*VLOOKUP($B187,$AR$36:$AZ$47,MATCH(AH$2,$AS$2:$BA$2,0)+1,FALSE) -> 0.4138203107 | AI187: =L187*VLOOKUP($B187,$AR$36:$AZ$47,MATCH(AI$2,$AS$2:$BA$2,0)+1,FALSE) -> 0.001659422376 | AJ187: =M187*VLOOKUP($B187,$AR$36:$AZ$47,MATCH(AJ$2,$AS$2:$BA$2,0)+1,FALSE) -> 0.09208198459 | AK187: =N187*VLOOKUP($B187,$AR$36:$AZ$47,MATCH(AK$2,$AS$2:$BA$2,0)+1,FALSE) -> 0.08976075303 | AL187: =O187*VLOOKUP($B187,$AR$36:$AZ$47,MATCH(AL$2,$AS$2:$BA$2,0)+1,FALSE) -> 0.07027829925 | AM187: =P187*VLOOKUP($B187,$AR$36:$AZ$47,MATCH(AM$2,$AS$2:$BA$2,0)+1,FALSE) -> 2.287196897e-06 | AN187: =Q187*VLOOKUP($B187,$AR$36:$AZ$47,MATCH(AN$2,$AS$2:$BA$2,0)+1,FALSE) -> 0.00147792708 | AO187: =R187*VLOOKUP($B187,$AR$36:$BA$47,MATCH(AO$2,$AS$2:$BA$2,0)+1,FALSE) -> 0 | AP187: 1.008796785
A188: 2006 | B188: 1 | C188: 8 | D188: 18 | F188: 2013 | G188: 1 | H188: 8 | I188: 18 | J188: 0.4238991816 | K188: 0.4947297846 | L188: 0.008418087479 | M188: 0.1213522075 | N188: 0.1110213 | O188: 0.077555 | P188: 1.713756668e-05 | Q188: 0.002178785549 | R188: 0 | S188: 1.239171484 | V188: 0.4013284484 | W188: 0.1062877592 | X188: 0.4376576912 | Y188: 0.08750663388 | Z188: 0.07149304768 | AA188: 0.004707927806 | AB188: 8.576988365e-06 | AC188: 0.0015925556 | AD188: 0 | AE188: 1.110582641 | AG188: =J188*VLOOKUP($B188,$AR$36:$AZ$47,MATCH(AG$2,$AS$2:$BA$2,0)+1,FALSE) -> 0.406709025 | AH188: =K188*VLOOKUP($B188,$AR$36:$AZ$47,MATCH(AH$2,$AS$2:$BA$2,0)+1,FALSE) -> 0.4180187133 | AI188: =L188*VLOOKUP($B188,$AR$36:$AZ$47,MATCH(AI$2,$AS$2:$BA$2,0)+1,FALSE) -> 0.00622283391 | AJ188: =M188*VLOOKUP($B188,$AR$36:$AZ$47,MATCH(AJ$2,$AS$2:$BA$2,0)+1,FALSE) -> 0.1043191097 | AK188: =N188*VLOOKUP($B188,$AR$36:$AZ$47,MATCH(AK$2,$AS$2:$BA$2,0)+1,FALSE) -> 0.08683399214 | AL188: =O188*VLOOKUP($B188,$AR$36:$AZ$47,MATCH(AL$2,$AS$2:$BA$2,0)+1,FALSE) -> 0.06873095545 | AM188: =P188*VLOOKUP($B188,$AR$36:$AZ$47,MATCH(AM$2,$AS$2:$BA$2,0)+1,FALSE) -> 8.576988365e-06 | AN188: =Q188*VLOOKUP($B188,$AR$36:$AZ$47,MATCH(AN$2,$AS$2:$BA$2,0)+1,FALSE) -> 0.001665079838 | AO188: =R188*VLOOKUP($B188,$AR$36:$BA$47,MATCH(AO$2,$AS$2:$BA$2,0)+1,FALSE) -> 0 | AP188: 1.092508286
A189: 2006 | B189: 1 | C189: 8 | D189: 19 | F189: 2013 | G189: 1 | H189: 8 | I189: 19 | J189: 0.4683534623 | K189: 0.4626559028 | L189: 0.008418087479 | M189: 0.1020867986 | N189: 0.1006866 | O189: 0.072926 | P189: 1.713756668e-05 | Q189: 0.002178785549 | R189: 0 | S189: 1.217322774 | V189: 0.4434157377 | W189: 0.08941392401 | X189: 0.4092838567 | Y189: 0.07936085637 | Z189: 0.06722586545 | AA189: 0.004707927806 | AB189: 8.576988365e-06 | AC189: 0.0015925556 | AD189: 0 | AE189: 1.095009301 | AG189: =J189*VLOOKUP($B189,$AR$36:$AZ$47,MATCH(AG$2,$AS$2:$BA$2,0)+1,FALSE) -> 0.449360575 | AH189: =K189*VLOOKUP($B189,$AR$36:$AZ$47,MATCH(AH$2,$AS$2:$BA$2,0)+1,FALSE) -> 0.3909180955 | AI189: =L189*VLOOKUP($B189,$AR$36:$AZ$47,MATCH(AI$2,$AS$2:$BA$2,0)+1,FALSE) -> 0.00622283391 | AJ189: =M189*VLOOKUP($B189,$AR$36:$AZ$47,MATCH(AJ$2,$AS$2:$BA$2,0)+1,FALSE) -> 0.0877578097 | AK189: =N189*VLOOKUP($B189,$AR$36:$AZ$47,MATCH(AK$2,$AS$2:$BA$2,0)+1,FALSE) -> 0.0787508292 | AL189: =O189*VLOOKUP($B189,$AR$36:$AZ$47,MATCH(AL$2,$AS$2:$BA$2,0)+1,FALSE) -> 0.06462863332 | AM189: =P189*VLOOKUP($B189,$AR$36:$AZ$47,MATCH(AM$2,$AS$2:$BA$2,0)+1,FALSE) -> 8.576988365e-06 | AN189: =Q189*VLOOKUP($B189,$AR$36:$AZ$47,MATCH(AN$2,$AS$2:$BA$2,0)+1,FALSE) -> 0.001665079838 | AO189: =R189*VLOOKUP($B189,$AR$36:$BA$47,MATCH(AO$2,$AS$2:$BA$2,0)+1,FALSE) -> 0 | AP189: 1.079312433
A190: 2006 | B190: 1 | C190: 8 | D190: 20 | F190: 2013 | G190: 1 | H190: 8 | I190: 20 | J190: 0.4693012247 | K190: 0.4456882504 | L190: 0.008418087479 | M190: 0.09569622848 | N190: 0.0962028 | O190: 0.071095 | P190: 1.713756668e-05 | Q190: 0.002178785549 | R190: 0 | S190: 1.188597514 | V190: 0.4443130359 | W190: 0.083816668 | X190: 0.3942735949 | Y190: 0.07582673953 | Z190: 0.0655379824 | AA190: 0.004707927806 | AB190: 8.576988365e-06 | AC190: 0.0015925556 | AD190: 0 | AE190: 1.070077081 | AG190: =J190*VLOOKUP($B190,$AR$36:$AZ$47,MATCH(AG$2,$AS$2:$BA$2,0)+1,FALSE) -> 0.4502699033 | AH190: =K190*VLOOKUP($B190,$AR$36:$AZ$47,MATCH(AH$2,$AS$2:$BA$2,0)+1,FALSE) -> 0.3765813879 | AI190: =L190*VLOOKUP($B190,$AR$36:$AZ$47,MATCH(AI$2,$AS$2:$BA$2,0)+1,FALSE) -> 0.00622283391 | AJ190: =M190*VLOOKUP($B190,$AR$36:$AZ$47,MATCH(AJ$2,$AS$2:$BA$2,0)+1,FALSE) -> 0.08226422541 | AK190: =N190*VLOOKUP($B190,$AR$36:$AZ$47,MATCH(AK$2,$AS$2:$BA$2,0)+1,FALSE) -> 0.07524387824 | AL190: =O190*VLOOKUP($B190,$AR$36:$AZ$47,MATCH(AL$2,$AS$2:$BA$2,0)+1,FALSE) -> 0.06300596065 | AM190: =P190*VLOOKUP($B190,$AR$36:$AZ$47,MATCH(AM$2,$AS$2:$BA$2,0)+1,FALSE) -> 8.576988365e-06 | AN190: =Q190*VLOOKUP($B190,$AR$36:$AZ$47,MATCH(AN$2,$AS$2:$BA$2,0)+1,FALSE) -> 0.001665079838 | AO190: =R190*VLOOKUP($B190,$AR$36:$BA$47,MATCH(AO$2,$AS$2:$BA$2,0)+1,FALSE) -> 0 | AP190: 1.055261846
A191: 2006 | B191: 1 | C191: 8 | D191: 21 | F191: 2013 | G191: 1 | H191: 8 | I191: 21 | J191: 0.437030843 | K191: 0.4444933172 | L191: 0.008418087479 | M191: 0.1102455864 | N191: 0.0941914 | O191: 0.069864 | P191: 1.713756668e-05 | Q191: 0.002178785549 | R191: 0 | S191: 1.166439157 | V191: 0.4137609076 | W191: 0.0965598944 | X191: 0.3932165093 | Y191: 0.07424136048 | Z191: 0.06440320138 | AA191: 0.004707927806 | AB191: 8.576988365e-06 | AC191: 0.0015925556 | AD191: 0 | AE191: 1.048490934 | AG191: =J191*VLOOKUP($B191,$AR$36:$AZ$47,MATCH(AG$2,$AS$2:$BA$2,0)+1,FALSE) -> 0.4193081651 | AH191: =K191*VLOOKUP($B191,$AR$36:$AZ$47,MATCH(AH$2,$AS$2:$BA$2,0)+1,FALSE) -> 0.3755717369 | AI191: =L191*VLOOKUP($B191,$AR$36:$AZ$47,MATCH(AI$2,$AS$2:$BA$2,0)+1,FALSE) -> 0.00622283391 | AJ191: =M191*VLOOKUP($B191,$AR$36:$AZ$47,MATCH(AJ$2,$AS$2:$BA$2,0)+1,FALSE) -> 0.09477142325 | AK191: =N191*VLOOKUP($B191,$AR$36:$AZ$47,MATCH(AK$2,$AS$2:$BA$2,0)+1,FALSE) -> 0.0736706856 | AL191: =O191*VLOOKUP($B191,$AR$36:$AZ$47,MATCH(AL$2,$AS$2:$BA$2,0)+1,FALSE) -> 0.06191502123 | AM191: =P191*VLOOKUP($B191,$AR$36:$AZ$47,MATCH(AM$2,$AS$2:$BA$2,0)+1,FALSE) -> 8.576988365e-06 | AN191: =Q191*VLOOKUP($B191,$AR$36:$AZ$47,MATCH(AN$2,$AS$2:$BA$2,0)+1,FALSE) -> 0.001665079838 | AO191: =R191*VLOOKUP($B191,$AR$36:$BA$47,MATCH(AO$2,$AS$2:$BA$2,0)+1,FALSE) -> 0 | AP191: 1.033133523
A192: 2006 | B192: 1 | C192: 8 | D192: 22 | F192: 2013 | G192: 1 | H192: 8 | I192: 22 | J192: 0.3874822375 | K192: 0.4208804944 | L192: 0.008418087479 | M192: 0.1071901175 | N192: 0.0910682 | O192: 0.068534 | P192: 1.713756668e-05 | Q192: 0.002178785549 | R192: 0 | S192: 1.08576906 | V192: 0.3668505435 | W192: 0.093883726 | X192: 0.3723276649 | Y192: 0.07177966422 | Z192: 0.06317715853 | AA192: 0.004707927806 | AB192: 8.576988365e-06 | AC192: 0.0015925556 | AD192: 0 | AE192: 0.9743278175 | AG192: =J192*VLOOKUP($B192,$AR$36:$AZ$47,MATCH(AG$2,$AS$2:$BA$2,0)+1,FALSE) -> 0.3717688777 | AH192: =K192*VLOOKUP($B192,$AR$36:$AZ$47,MATCH(AH$2,$AS$2:$BA$2,0)+1,FALSE) -> 0.3556202359 | AI192: =L192*VLOOKUP($B192,$AR$36:$AZ$47,MATCH(AI$2,$AS$2:$BA$2,0)+1,FALSE) -> 0.00622283391 | AJ192: =M192*VLOOKUP($B192,$AR$36:$AZ$47,MATCH(AJ$2,$AS$2:$BA$2,0)+1,FALSE) -> 0.09214482253 | AK192: =N192*VLOOKUP($B192,$AR$36:$AZ$47,MATCH(AK$2,$AS$2:$BA$2,0)+1,FALSE) -> 0.07122791179 | AL192: =O192*VLOOKUP($B192,$AR$36:$AZ$47,MATCH(AL$2,$AS$2:$BA$2,0)+1,FALSE) -> 0.06073634583 | AM192: =P192*VLOOKUP($B192,$AR$36:$AZ$47,MATCH(AM$2,$AS$2:$BA$2,0)+1,FALSE) -> 8.576988365e-06 | AN192: =Q192*VLOOKUP($B192,$AR$36:$AZ$47,MATCH(AN$2,$AS$2:$BA$2,0)+1,FALSE) -> 0.001665079838 | AO192: =R192*VLOOKUP($B192,$AR$36:$BA$47,MATCH(AO$2,$AS$2:$BA$2,0)+1,FALSE) -> 0 | AP192: 0.9593946845
A193: 2006 | B193: 1 | C193: 8 | D193: 23 | F193: 2013 | G193: 1 | H193: 8 | I193: 23 | J193: 0.3441189973 | K193: 0.3978431016 | L193: 0.008418087479 | M193: 0.108757561 | N193: 0.0868726 | O193: 0.066364 | P193: 1.713756668e-05 | Q193: 0.002178785549 | R193: 0 | S193: 1.014570271 | V193: 0.3257962016 | W193: 0.09525658985 | X193: 0.3519478688 | Y193: 0.06847270571 | Z193: 0.06117677282 | AA193: 0.004707927806 | AB193: 8.576988365e-06 | AC193: 0.0015925556 | AD193: 0 | AE193: 0.9089591991 | AG193: =J193*VLOOKUP($B193,$AR$36:$AZ$47,MATCH(AG$2,$AS$2:$BA$2,0)+1,FALSE) -> 0.3301641237 | AH193: =K193*VLOOKUP($B193,$AR$36:$AZ$47,MATCH(AH$2,$AS$2:$BA$2,0)+1,FALSE) -> 0.3361549407 | AI193: =L193*VLOOKUP($B193,$AR$36:$AZ$47,MATCH(AI$2,$AS$2:$BA$2,0)+1,FALSE) -> 0.00622283391 | AJ193: =M193*VLOOKUP($B193,$AR$36:$AZ$47,MATCH(AJ$2,$AS$2:$BA$2,0)+1,FALSE) -> 0.09349225836 | AK193: =N193*VLOOKUP($B193,$AR$36:$AZ$47,MATCH(AK$2,$AS$2:$BA$2,0)+1,FALSE) -> 0.06794637305 | AL193: =O193*VLOOKUP($B193,$AR$36:$AZ$47,MATCH(AL$2,$AS$2:$BA$2,0)+1,FALSE) -> 0.05881324386 | AM193: =P193*VLOOKUP($B193,$AR$36:$AZ$47,MATCH(AM$2,$AS$2:$BA$2,0)+1,FALSE) -> 8.576988365e-06 | AN193: =Q193*VLOOKUP($B193,$AR$36:$AZ$47,MATCH(AN$2,$AS$2:$BA$2,0)+1,FALSE) -> 0.001665079838 | AO193: =R193*VLOOKUP($B193,$AR$36:$BA$47,MATCH(AO$2,$AS$2:$BA$2,0)+1,FALSE) -> 0 | AP193: 0.8944674304
A194: 2006 | B194: 1 | C194: 8 | D194: 24 | F194: 2013 | G194: 1 | H194: 8 | I194: 24 | J194: 0.2432312483 | K194: 0.3908051527 | L194: 0.008418087479 | M194: 0.1221702509 | N194: 0.0851433 | O194: 0.063982 | P194: 1.713756668e-05 | Q194: 0.002178785549 | R194: 0 | S194: 0.9159459625 | V194: 0.2302802735 | W194: 0.1070042521 | X194: 0.3457218186 | Y194: 0.06710967698 | Z194: 0.05898095773 | AA194: 0.004707927806 | AB194: 8.576988365e-06 | AC194: 0.0015925556 | AD194: 0 | AE194: 0.8154060394 | AG194: =J194*VLOOKUP($B194,$AR$36:$AZ$47,MATCH(AG$2,$AS$2:$BA$2,0)+1,FALSE) -> 0.2333676217 | AH194: =K194*VLOOKUP($B194,$AR$36:$AZ$47,MATCH(AH$2,$AS$2:$BA$2,0)+1,FALSE) -> 0.3302082716 | AI194: =L194*VLOOKUP($B194,$AR$36:$AZ$47,MATCH(AI$2,$AS$2:$BA$2,0)+1,FALSE) -> 0.00622283391 | AJ194: =M194*VLOOKUP($B194,$AR$36:$AZ$47,MATCH(AJ$2,$AS$2:$BA$2,0)+1,FALSE) -> 0.1050223318 | AK194: =N194*VLOOKUP($B194,$AR$36:$AZ$47,MATCH(AK$2,$AS$2:$BA$2,0)+1,FALSE) -> 0.06659382158 | AL194: =O194*VLOOKUP($B194,$AR$36:$AZ$47,MATCH(AL$2,$AS$2:$BA$2,0)+1,FALSE) -> 0.0567022628 | AM194: =P194*VLOOKUP($B194,$AR$36:$AZ$47,MATCH(AM$2,$AS$2:$BA$2,0)+1,FALSE) -> 8.576988365e-06 | AN194: =Q194*VLOOKUP($B194,$AR$36:$AZ$47,MATCH(AN$2,$AS$2:$BA$2,0)+1,FALSE) -> 0.001665079838 | AO194: =R194*VLOOKUP($B194,$AR$36:$BA$47,MATCH(AO$2,$AS$2:$BA$2,0)+1,FALSE) -> 0 | AP194: 0.7997908002
A195: 2006 | B195: 1 | C195: 9 | D195: 1 | F195: 2013 | G195: 1 | H195: 9 | I195: 1 | J195: 0.2430458777 | K195: 0.3617126669 | L195: 0.008418087479 | M195: 0.09595625355 | N195: 0.0843703 | O195: 0.063605 | P195: 1.713756668e-05 | Q195: 0.002178785549 | R195: 0 | S195: 0.8593041087 | V195: =$J195*$AS$6 -> 0.230104773 | W195: =$M195*$AV$6 -> 0.08404441402 | X195: =$K195*$AT$6 -> 0.3199854458 | Y195: =$N195*$AW$6 -> 0.06650040085 | Z195: =$O195*$AX$6 -> 0.05863342528 | AA195: =$L195*$AU$6 -> 0.004707927806 | AB195: =$P195*$AY$6 -> 8.576988365e-06 | AC195: =$Q195*$AZ$6 -> 0.0015925556 | AD195: 0 | AE195: =SUM(V195:AD195) -> 0.7655775193 | AG195: =J195*VLOOKUP($B195,$AR$36:$AZ$47,MATCH(AG$2,$AS$2:$BA$2,0)+1,FALSE) -> 0.2331897683 | AH195: =K195*VLOOKUP($B195,$AR$36:$AZ$47,MATCH(AH$2,$AS$2:$BA$2,0)+1,FALSE) -> 0.3056267649 | AI195: =L195*VLOOKUP($B195,$AR$36:$AZ$47,MATCH(AI$2,$AS$2:$BA$2,0)+1,FALSE) -> 0.00622283391 | AJ195: =M195*VLOOKUP($B195,$AR$36:$AZ$47,MATCH(AJ$2,$AS$2:$BA$2,0)+1,FALSE) -> 0.08248775315 | AK195: =N195*VLOOKUP($B195,$AR$36:$AZ$47,MATCH(AK$2,$AS$2:$BA$2,0)+1,FALSE) -> 0.0659892288 | AL195: =O195*VLOOKUP($B195,$AR$36:$AZ$47,MATCH(AL$2,$AS$2:$BA$2,0)+1,FALSE) -> 0.05636815707 | AM195: =P195*VLOOKUP($B195,$AR$36:$AZ$47,MATCH(AM$2,$AS$2:$BA$2,0)+1,FALSE) -> 8.576988365e-06 | AN195: =Q195*VLOOKUP($B195,$AR$36:$AZ$47,MATCH(AN$2,$AS$2:$BA$2,0)+1,FALSE) -> 0.001665079838 | AO195: =R195*VLOOKUP($B195,$AR$36:$BA$47,MATCH(AO$2,$AS$2:$BA$2,0)+1,FALSE) -> 0 | AP195: 0.7515581629
A196: 2006 | B196: 1 | C196: 9 | D196: 2 | F196: 2013 | G196: 1 | H196: 9 | I196: 2 | J196: 0.2312273031 | K196: 0.351093048 | L196: 0.008418087479 | M196: 0.08844375948 | N196: 0.0834933 | O196: 0.063332 | P196: 1.713756668e-05 | Q196: 0.002178785549 | R196: 0 | S196: 0.8282034212 | V196: 0.2189154846 | W196: 0.07746450768 | X196: 0.3105909075 | Y196: 0.06580915225 | Z196: 0.05838176385 | AA196: 0.004707927806 | AB196: 8.576988365e-06 | AC196: 0.0015925556 | AD196: =$R196*$BA$6 -> 0 | AE196: 0.7374708763 | AG196: =J196*VLOOKUP($B196,$AR$36:$AZ$47,MATCH(AG$2,$AS$2:$BA$2,0)+1,FALSE) -> 0.221850466 | AH196: =K196*VLOOKUP($B196,$AR$36:$AZ$47,MATCH(AH$2,$AS$2:$BA$2,0)+1,FALSE) -> 0.296653787 | AI196: =L196*VLOOKUP($B196,$AR$36:$AZ$47,MATCH(AI$2,$AS$2:$BA$2,0)+1,FALSE) -> 0.00622283391 | AJ196: =M196*VLOOKUP($B196,$AR$36:$AZ$47,MATCH(AJ$2,$AS$2:$BA$2,0)+1,FALSE) -> 0.07602971906 | AK196: =N196*VLOOKUP($B196,$AR$36:$AZ$47,MATCH(AK$2,$AS$2:$BA$2,0)+1,FALSE) -> 0.06530329366 | AL196: =O196*VLOOKUP($B196,$AR$36:$AZ$47,MATCH(AL$2,$AS$2:$BA$2,0)+1,FALSE) -> 0.05612621844 | AM196: =P196*VLOOKUP($B196,$AR$36:$AZ$47,MATCH(AM$2,$AS$2:$BA$2,0)+1,FALSE) -> 8.576988365e-06 | AN196: =Q196*VLOOKUP($B196,$AR$36:$AZ$47,MATCH(AN$2,$AS$2:$BA$2,0)+1,FALSE) -> 0.001665079838 | AO196: =R196*VLOOKUP($B196,$AR$36:$BA$47,MATCH(AO$2,$AS$2:$BA$2,0)+1,FALSE) -> 0 | AP196: =SUM(AG196:AO196) -> 0.7238599749
A197: 2006 | B197: 1 | C197: 9 | D197: 3 | F197: 2013 | G197: 1 | H197: 9 | I197: 3 | J197: 0.22541074 | K197: 0.3484898401 | L197: 0.008418087479 | M197: 0.09000927796 | N197: 0.0831025 | O197: 0.062803 | P197: 1.713756668e-05 | Q197: 0.002178785549 | R197: 0 | S197: 0.8204293686 | V197: 0.2134086274 | W197: 0.07883568546 | X197: 0.308288006 | Y197: 0.06550112494 | Z197: 0.05789411222 | AA197: 0.004707927806 | AB197: 8.576988365e-06 | AC197: 0.0015925556 | AD197: 0 | AE197: 0.7302366164 | AG197: =J197*VLOOKUP($B197,$AR$36:$AZ$47,MATCH(AG$2,$AS$2:$BA$2,0)+1,FALSE) -> 0.2162697789 | AH197: =K197*VLOOKUP($B197,$AR$36:$AZ$47,MATCH(AH$2,$AS$2:$BA$2,0)+1,FALSE) -> 0.2944542234 | AI197: =L197*VLOOKUP($B197,$AR$36:$AZ$47,MATCH(AI$2,$AS$2:$BA$2,0)+1,FALSE) -> 0.00622283391 | AJ197: =M197*VLOOKUP($B197,$AR$36:$AZ$47,MATCH(AJ$2,$AS$2:$BA$2,0)+1,FALSE) -> 0.07737550005 | AK197: =N197*VLOOKUP($B197,$AR$36:$AZ$47,MATCH(AK$2,$AS$2:$BA$2,0)+1,FALSE) -> 0.06499763408 | AL197: =O197*VLOOKUP($B197,$AR$36:$AZ$47,MATCH(AL$2,$AS$2:$BA$2,0)+1,FALSE) -> 0.05565740694 | AM197: =P197*VLOOKUP($B197,$AR$36:$AZ$47,MATCH(AM$2,$AS$2:$BA$2,0)+1,FALSE) -> 8.576988365e-06 | AN197: =Q197*VLOOKUP($B197,$AR$36:$AZ$47,MATCH(AN$2,$AS$2:$BA$2,0)+1,FALSE) -> 0.001665079838 | AO197: =R197*VLOOKUP($B197,$AR$36:$BA$47,MATCH(AO$2,$AS$2:$BA$2,0)+1,FALSE) -> 0 | AP197: 0.7166510341
A198: 2006 | B198: 1 | C198: 9 | D198: 4 | F198: 2013 | G198: 1 | H198: 9 | I198: 4 | J198: 0.2267870332 | K198: 0.3470904661 | L198: 0.008418087479 | M198: 0.08747000516 | N198: 0.0833171 | O198: 0.062717 | P198: 1.713756668e-05 | Q198: 0.002178785549 | R198: 0 | S198: 0.8179956151 | V198: 0.2147116392 | W198: 0.07661163349 | X198: 0.307050064 | Y198: 0.06567027197 | Z198: 0.05781483426 | AA198: 0.004707927806 | AB198: 8.576988365e-06 | AC198: 0.0015925556 | AD198: 0 | AE198: 0.7281675034 | AG198: =J198*VLOOKUP($B198,$AR$36:$AZ$47,MATCH(AG$2,$AS$2:$BA$2,0)+1,FALSE) -> 0.21759026 | AH198: =K198*VLOOKUP($B198,$AR$36:$AZ$47,MATCH(AH$2,$AS$2:$BA$2,0)+1,FALSE) -> 0.2932718315 | AI198: =L198*VLOOKUP($B198,$AR$36:$AZ$47,MATCH(AI$2,$AS$2:$BA$2,0)+1,FALSE) -> 0.00622283391 | AJ198: =M198*VLOOKUP($B198,$AR$36:$AZ$47,MATCH(AJ$2,$AS$2:$BA$2,0)+1,FALSE) -> 0.07519264171 | AK198: =N198*VLOOKUP($B198,$AR$36:$AZ$47,MATCH(AK$2,$AS$2:$BA$2,0)+1,FALSE) -> 0.06516548092 | AL198: =O198*VLOOKUP($B198,$AR$36:$AZ$47,MATCH(AL$2,$AS$2:$BA$2,0)+1,FALSE) -> 0.05558119184 | AM198: =P198*VLOOKUP($B198,$AR$36:$AZ$47,MATCH(AM$2,$AS$2:$BA$2,0)+1,FALSE) -> 8.576988365e-06 | AN198: =Q198*VLOOKUP($B198,$AR$36:$AZ$47,MATCH(AN$2,$AS$2:$BA$2,0)+1,FALSE) -> 0.001665079838 | AO198: =R198*VLOOKUP($B198,$AR$36:$BA$47,MATCH(AO$2,$AS$2:$BA$2,0)+1,FALSE) -> 0 | AP198: 0.7146978968
A199: 2006 | B199: 1 | C199: 9 | D199: 5 | F199: 2013 | G199: 1 | H199: 9 | I199: 5 | J199: 0.2369706268 | K199: 0.3523672165 | L199: 0.008418087479 | M199: 0.08693452246 | N199: 0.085764 | O199: 0.063171 | P199: 1.713756668e-05 | Q199: 0.002178785549 | R199: 0 | S199: 0.8358213763 | V199: 0.224353002 | W199: 0.07614262467 | X199: 0.3117180877 | Y199: 0.06759891073 | Z199: 0.05823334814 | AA199: 0.004707927806 | AB199: 8.576988365e-06 | AC199: 0.0015925556 | AD199: 0 | AE199: 0.7443550337 | AG199: =J199*VLOOKUP($B199,$AR$36:$AZ$47,MATCH(AG$2,$AS$2:$BA$2,0)+1,FALSE) -> 0.2273608838 | AH199: =K199*VLOOKUP($B199,$AR$36:$AZ$47,MATCH(AH$2,$AS$2:$BA$2,0)+1,FALSE) -> 0.2977303874 | AI199: =L199*VLOOKUP($B199,$AR$36:$AZ$47,MATCH(AI$2,$AS$2:$BA$2,0)+1,FALSE) -> 0.00622283391 | AJ199: =M199*VLOOKUP($B199,$AR$36:$AZ$47,MATCH(AJ$2,$AS$2:$BA$2,0)+1,FALSE) -> 0.07473231982 | AK199: =N199*VLOOKUP($B199,$AR$36:$AZ$47,MATCH(AK$2,$AS$2:$BA$2,0)+1,FALSE) -> 0.06707929471 | AL199: =O199*VLOOKUP($B199,$AR$36:$AZ$47,MATCH(AL$2,$AS$2:$BA$2,0)+1,FALSE) -> 0.05598353668 | AM199: =P199*VLOOKUP($B199,$AR$36:$AZ$47,MATCH(AM$2,$AS$2:$BA$2,0)+1,FALSE) -> 8.576988365e-06 | AN199: =Q199*VLOOKUP($B199,$AR$36:$AZ$47,MATCH(AN$2,$AS$2:$BA$2,0)+1,FALSE) -> 0.001665079838 | AO199: =R199*VLOOKUP($B199,$AR$36:$BA$47,MATCH(AO$2,$AS$2:$BA$2,0)+1,FALSE) -> 0 | AP199: 0.7307829131
A200: 2006 | B200: 1 | C200: 9 | D200: 6 | F200: 2013 | G200: 1 | H200: 9 | I200: 6 | J200: 0.2586078592 | K200: 0.3722095361 | L200: 0.008418087479 | M200: 0.08582610913 | N200: 0.0915604 | O200: 0.066193 | P200: 1.713756668e-05 | Q200: 0.002178785549 | R200: 0 | S200: 0.885010915 | V200: 0.2448381488 | W200: 0.0751718078 | X200: 0.3292713947 | Y200: 0.07216761469 | Z200: 0.06101913874 | AA200: 0.004707927806 | AB200: 8.576988365e-06 | AC200: 0.0015925556 | AD200: 0 | AE200: 0.7887771651 | AG200: =J200*VLOOKUP($B200,$AR$36:$AZ$47,MATCH(AG$2,$AS$2:$BA$2,0)+1,FALSE) -> 0.2481206731 | AH200: =K200*VLOOKUP($B200,$AR$36:$AZ$47,MATCH(AH$2,$AS$2:$BA$2,0)+1,FALSE) -> 0.3144960262 | AI200: =L200*VLOOKUP($B200,$AR$36:$AZ$47,MATCH(AI$2,$AS$2:$BA$2,0)+1,FALSE) -> 0.00622283391 | AJ200: =M200*VLOOKUP($B200,$AR$36:$AZ$47,MATCH(AJ$2,$AS$2:$BA$2,0)+1,FALSE) -> 0.07377948431 | AK200: =N200*VLOOKUP($B200,$AR$36:$AZ$47,MATCH(AK$2,$AS$2:$BA$2,0)+1,FALSE) -> 0.07161288018 | AL200: =O200*VLOOKUP($B200,$AR$36:$AZ$47,MATCH(AL$2,$AS$2:$BA$2,0)+1,FALSE) -> 0.05866169988 | AM200: =P200*VLOOKUP($B200,$AR$36:$AZ$47,MATCH(AM$2,$AS$2:$BA$2,0)+1,FALSE) -> 8.576988365e-06 | AN200: =Q200*VLOOKUP($B200,$AR$36:$AZ$47,MATCH(AN$2,$AS$2:$BA$2,0)+1,FALSE) -> 0.001665079838 | AO200: =R200*VLOOKUP($B200,$AR$36:$BA$47,MATCH(AO$2,$AS$2:$BA$2,0)+1,FALSE) -> 0 | AP200: 0.7745672545
... 2049 more rows

Sheet 2021 (Monthly Scaling)
B2: *Monthly Scaling Used in CA Model
B4: Day | C4: Hour | D4: Residential | E4: GS < 50 kW | F4: GS > 50 < 1500 | G4: GS > 1500 < 5000 | I4: LU | J4: Street Lighting | K4: Sentinel Lighting | L4: USL | O4: standby | P4: TOTAL LDC sales | R4: Range Start | S4: Range End
A6: NCP
A8: Jan | D8: =_xlfn.MAXIFS('Hourly load shapes by class'!AG:AG,'Hourly load shapes by class'!$B:$B,$V8)*1000000 -> 512327.9549 | E8: =_xlfn.MAXIFS('Hourly load shapes by class'!AJ:AJ,'Hourly load shapes by class'!$B:$B,$V8)*1000000 -> 133267.1123 | F8: =_xlfn.MAXIFS('Hourly load shapes by class'!AH:AH,'Hourly load shapes by class'!$B:$B,$V8)*1000000 -> 467892.4901 | G8: =_xlfn.MAXIFS('Hourly load shapes by class'!AK:AK,'Hourly load shapes by class'!$B:$B,$V8)*1000000 -> 100282.2316 | I8: =_xlfn.MAXIFS('Hourly load shapes by class'!AL:AL,'Hourly load shapes by class'!$B:$B,$V8)*1000000 -> 77181.08324 | J8: =_xlfn.MAXIFS('Hourly load shapes by class'!AI:AI,'Hourly load shapes by class'!$B:$B,$V8)*1000000 -> 6443.865297 | K8: =_xlfn.MAXIFS('Hourly load shapes by class'!AM:AM,'Hourly load shapes by class'!$B:$B,$V8)*1000000 -> 10.15065254 | L8: =_xlfn.MAXIFS('Hourly load shapes by class'!AN:AN,'Hourly load shapes by class'!$B:$B,$V8)*1000000 -> 1868.550769 | O8: =_xlfn.MAXIFS('Hourly load shapes by class'!AO:AO,'Hourly load shapes by class'!$B:$B,$V8)*1000000 -> 705.92 | P8: =_xlfn.MAXIFS('Hourly load shapes by class'!AP:AP,'Hourly load shapes by class'!$B:$B,$V8)*1000000 -> 1182134.762 | R8: 3 | S8: 746 | V8: 1
A9: Feb | D9: =_xlfn.MAXIFS('Hourly load shapes by class'!AG:AG,'Hourly load shapes by class'!$B:$B,$V9)*1000000 -> 495404.5166 | E9: =_xlfn.MAXIFS('Hourly load shapes by class'!AJ:AJ,'Hourly load shapes by class'!$B:$B,$V9)*1000000 -> 135003.289 | F9: =_xlfn.MAXIFS('Hourly load shapes by class'!AH:AH,'Hourly load shapes by class'!$B:$B,$V9)*1000000 -> 478603.2429 | G9: =_xlfn.MAXIFS('Hourly load shapes by class'!AK:AK,'Hourly load shapes by class'!$B:$B,$V9)*1000000 -> 99434.92081 | I9: =_xlfn.MAXIFS('Hourly load shapes by class'!AL:AL,'Hourly load shapes by class'!$B:$B,$V9)*1000000 -> 76343.58345 | J9: =_xlfn.MAXIFS('Hourly load shapes by class'!AI:AI,'Hourly load shapes by class'!$B:$B,$V9)*1000000 -> 6101.722777 | K9: =_xlfn.MAXIFS('Hourly load shapes by class'!AM:AM,'Hourly load shapes by class'!$B:$B,$V9)*1000000 -> 10.28255417 | L9: =_xlfn.MAXIFS('Hourly load shapes by class'!AN:AN,'Hourly load shapes by class'!$B:$B,$V9)*1000000 -> 1885.790226 | O9: =_xlfn.MAXIFS('Hourly load shapes by class'!AO:AO,'Hourly load shapes by class'!$B:$B,$V9)*1000000 -> 80 | P9: =_xlfn.MAXIFS('Hourly load shapes by class'!AP:AP,'Hourly load shapes by class'!$B:$B,$V9)*1000000 -> 1166039.765 | R9: 747 | S9: 1442 | T9: =R9-S8 -> 1 | V9: 2
A10: Mar | D10: =_xlfn.MAXIFS('Hourly load shapes by class'!AG:AG,'Hourly load shapes by class'!$B:$B,$V10)*1000000 -> 450897.6097 | E10: =_xlfn.MAXIFS('Hourly load shapes by class'!AJ:AJ,'Hourly load shapes by class'!$B:$B,$V10)*1000000 -> 131046.8872 | F10: =_xlfn.MAXIFS('Hourly load shapes by class'!AH:AH,'Hourly load shapes by class'!$B:$B,$V10)*1000000 -> 465157.9661 | G10: =_xlfn.MAXIFS('Hourly load shapes by class'!AK:AK,'Hourly load shapes by class'!$B:$B,$V10)*1000000 -> 97360.66918 | I10: =_xlfn.MAXIFS('Hourly load shapes by class'!AL:AL,'Hourly load shapes by class'!$B:$B,$V10)*1000000 -> 77453.49345 | J10: =_xlfn.MAXIFS('Hourly load shapes by class'!AI:AI,'Hourly load shapes by class'!$B:$B,$V10)*1000000 -> 5642.311401 | K10: =_xlfn.MAXIFS('Hourly load shapes by class'!AM:AM,'Hourly load shapes by class'!$B:$B,$V10)*1000000 -> 12.50428615 | L10: =_xlfn.MAXIFS('Hourly load shapes by class'!AN:AN,'Hourly load shapes by class'!$B:$B,$V10)*1000000 -> 1662.716321 | O10: =_xlfn.MAXIFS('Hourly load shapes by class'!AO:AO,'Hourly load shapes by class'!$B:$B,$V10)*1000000 -> 543.04 | P10: =_xlfn.MAXIFS('Hourly load shapes by class'!AP:AP,'Hourly load shapes by class'!$B:$B,$V10)*1000000 -> 1082011.562 | R10: 1443 | S10: 2186 | T10: =R10-S9 -> 1 | V10: 3
A11: Apr | D11: =_xlfn.MAXIFS('Hourly load shapes by class'!AG:AG,'Hourly load shapes by class'!$B:$B,$V11)*1000000 -> 367684.5042 | E11: =_xlfn.MAXIFS('Hourly load shapes by class'!AJ:AJ,'Hourly load shapes by class'!$B:$B,$V11)*1000000 -> 111117.1486 | F11: =_xlfn.MAXIFS('Hourly load shapes by class'!AH:AH,'Hourly load shapes by class'!$B:$B,$V11)*1000000 -> 410396.1094 | G11: =_xlfn.MAXIFS('Hourly load shapes by class'!AK:AK,'Hourly load shapes by class'!$B:$B,$V11)*1000000 -> 98160.09867 | I11: =_xlfn.MAXIFS('Hourly load shapes by class'!AL:AL,'Hourly load shapes by class'!$B:$B,$V11)*1000000 -> 77654.80747 | J11: =_xlfn.MAXIFS('Hourly load shapes by class'!AI:AI,'Hourly load shapes by class'!$B:$B,$V11)*1000000 -> 5574.462203 | K11: =_xlfn.MAXIFS('Hourly load shapes by class'!AM:AM,'Hourly load shapes by class'!$B:$B,$V11)*1000000 -> 13.76467484 | L11: =_xlfn.MAXIFS('Hourly load shapes by class'!AN:AN,'Hourly load shapes by class'!$B:$B,$V11)*1000000 -> 1827.34245 | O11: =_xlfn.MAXIFS('Hourly load shapes by class'!AO:AO,'Hourly load shapes by class'!$B:$B,$V11)*1000000 -> 604.48 | P11: =_xlfn.MAXIFS('Hourly load shapes by class'!AP:AP,'Hourly load shapes by class'!$B:$B,$V11)*1000000 -> 956545.4927 | R11: 2187 | S11: 2906 | T11: 1 | V11: 4
A12: May | D12: =_xlfn.MAXIFS('Hourly load shapes by class'!AG:AG,'Hourly load shapes by class'!$B:$B,$V12)*1000000 -> 355536.7144 | E12: =_xlfn.MAXIFS('Hourly load shapes by class'!AJ:AJ,'Hourly load shapes by class'!$B:$B,$V12)*1000000 -> 125623.9701 | F12: =_xlfn.MAXIFS('Hourly load shapes by class'!AH:AH,'Hourly load shapes by class'!$B:$B,$V12)*1000000 -> 461387.3242 | G12: =_xlfn.MAXIFS('Hourly load shapes by class'!AK:AK,'Hourly load shapes by class'!$B:$B,$V12)*1000000 -> 112072.761 | I12: =_xlfn.MAXIFS('Hourly load shapes by class'!AL:AL,'Hourly load shapes by class'!$B:$B,$V12)*1000000 -> 89288.05392 | J12: =_xlfn.MAXIFS('Hourly load shapes by class'!AI:AI,'Hourly load shapes by class'!$B:$B,$V12)*1000000 -> 4575.291686 | K12: =_xlfn.MAXIFS('Hourly load shapes by class'!AM:AM,'Hourly load shapes by class'!$B:$B,$V12)*1000000 -> 15.09041083 | L12: =_xlfn.MAXIFS('Hourly load shapes by class'!AN:AN,'Hourly load shapes by class'!$B:$B,$V12)*1000000 -> 1841.300472 | O12: =_xlfn.MAXIFS('Hourly load shapes by class'!AO:AO,'Hourly load shapes by class'!$B:$B,$V12)*1000000 -> 595.52 | P12: =_xlfn.MAXIFS('Hourly load shapes by class'!AP:AP,'Hourly load shapes by class'!$B:$B,$V12)*1000000 -> 1071163.565 | R12: 2907 | S12: 3650 | T12: 1 | V12: 5
A13: Jun | D13: =_xlfn.MAXIFS('Hourly load shapes by class'!AG:AG,'Hourly load shapes by class'!$B:$B,$V13)*1000000 -> 466978.8403 | E13: =_xlfn.MAXIFS('Hourly load shapes by class'!AJ:AJ,'Hourly load shapes by class'!$B:$B,$V13)*1000000 -> 141960.7517 | F13: =_xlfn.MAXIFS('Hourly load shapes by class'!AH:AH,'Hourly load shapes by class'!$B:$B,$V13)*1000000 -> 494658.2621 | G13: =_xlfn.MAXIFS('Hourly load shapes by class'!AK:AK,'Hourly load shapes by class'!$B:$B,$V13)*1000000 -> 122925.9689 | I13: =_xlfn.MAXIFS('Hourly load shapes by class'!AL:AL,'Hourly load shapes by class'!$B:$B,$V13)*1000000 -> 93586.53095 | J13: =_xlfn.MAXIFS('Hourly load shapes by class'!AI:AI,'Hourly load shapes by class'!$B:$B,$V13)*1000000 -> 3787.712824 | K13: =_xlfn.MAXIFS('Hourly load shapes by class'!AM:AM,'Hourly load shapes by class'!$B:$B,$V13)*1000000 -> 15.09041083 | L13: =_xlfn.MAXIFS('Hourly load shapes by class'!AN:AN,'Hourly load shapes by class'!$B:$B,$V13)*1000000 -> 1896.188748 | O13: =_xlfn.MAXIFS('Hourly load shapes by class'!AO:AO,'Hourly load shapes by class'!$B:$B,$V13)*1000000 -> 935.36 | P13: =_xlfn.MAXIFS('Hourly load shapes by class'!AP:AP,'Hourly load shapes by class'!$B:$B,$V13)*1000000 -> 1221658.725 | R13: 3651 | S13: 4370 | T13: 1 | V13: 6
A14: Jul | D14: =_xlfn.MAXIFS('Hourly load shapes by class'!AG:AG,'Hourly load shapes by class'!$B:$B,$V14)*1000000 -> 575660.2603 | E14: =_xlfn.MAXIFS('Hourly load shapes by class'!AJ:AJ,'Hourly load shapes by class'!$B:$B,$V14)*1000000 -> 145496.2031 | F14: =_xlfn.MAXIFS('Hourly load shapes by class'!AH:AH,'Hourly load shapes by class'!$B:$B,$V14)*1000000 -> 498153.4509 | G14: =_xlfn.MAXIFS('Hourly load shapes by class'!AK:AK,'Hourly load shapes by class'!$B:$B,$V14)*1000000 -> 125654.3803 | I14: =_xlfn.MAXIFS('Hourly load shapes by class'!AL:AL,'Hourly load shapes by class'!$B:$B,$V14)*1000000 -> 95229.08061 | J14: =_xlfn.MAXIFS('Hourly load shapes by class'!AI:AI,'Hourly load shapes by class'!$B:$B,$V14)*1000000 -> 4001.793898 | K14: =_xlfn.MAXIFS('Hourly load shapes by class'!AM:AM,'Hourly load shapes by class'!$B:$B,$V14)*1000000 -> 14.24351868 | L14: =_xlfn.MAXIFS('Hourly load shapes by class'!AN:AN,'Hourly load shapes by class'!$B:$B,$V14)*1000000 -> 1798.346164 | O14: =_xlfn.MAXIFS('Hourly load shapes by class'!AO:AO,'Hourly load shapes by class'!$B:$B,$V14)*1000000 -> 1152 | P14: =_xlfn.MAXIFS('Hourly load shapes by class'!AP:AP,'Hourly load shapes by class'!$B:$B,$V14)*1000000 -> 1277018.653 | R14: 4371 | S14: 5114 | T14: 1 | V14: 7
A15: Aug | D15: =_xlfn.MAXIFS('Hourly load shapes by class'!AG:AG,'Hourly load shapes by class'!$B:$B,$V15)*1000000 -> 540028.3816 | E15: =_xlfn.MAXIFS('Hourly load shapes by class'!AJ:AJ,'Hourly load shapes by class'!$B:$B,$V15)*1000000 -> 139183.4313 | F15: =_xlfn.MAXIFS('Hourly load shapes by class'!AH:AH,'Hourly load shapes by class'!$B:$B,$V15)*1000000 -> 495716.3847 | G15: =_xlfn.MAXIFS('Hourly load shapes by class'!AK:AK,'Hourly load shapes by class'!$B:$B,$V15)*1000000 -> 119831.3634 | I15: =_xlfn.MAXIFS('Hourly load shapes by class'!AL:AL,'Hourly load shapes by class'!$B:$B,$V15)*1000000 -> 91697.33126 | J15: =_xlfn.MAXIFS('Hourly load shapes by class'!AI:AI,'Hourly load shapes by class'!$B:$B,$V15)*1000000 -> 4434.042498 | K15: =_xlfn.MAXIFS('Hourly load shapes by class'!AM:AM,'Hourly load shapes by class'!$B:$B,$V15)*1000000 -> 12.83199881 | L15: =_xlfn.MAXIFS('Hourly load shapes by class'!AN:AN,'Hourly load shapes by class'!$B:$B,$V15)*1000000 -> 1742.681652 | O15: =_xlfn.MAXIFS('Hourly load shapes by class'!AO:AO,'Hourly load shapes by class'!$B:$B,$V15)*1000000 -> 965.76 | P15: =_xlfn.MAXIFS('Hourly load shapes by class'!AP:AP,'Hourly load shapes by class'!$B:$B,$V15)*1000000 -> 1269874.505 | R15: 5115 | S15: 5858 | T15: 1 | V15: 8
A16: Sep | D16: =_xlfn.MAXIFS('Hourly load shapes by class'!AG:AG,'Hourly load shapes by class'!$B:$B,$V16)*1000000 -> 443884.4078 | E16: =_xlfn.MAXIFS('Hourly load shapes by class'!AJ:AJ,'Hourly load shapes by class'!$B:$B,$V16)*1000000 -> 121511.3294 | F16: =_xlfn.MAXIFS('Hourly load shapes by class'!AH:AH,'Hourly load shapes by class'!$B:$B,$V16)*1000000 -> 454320.8362 | G16: =_xlfn.MAXIFS('Hourly load shapes by class'!AK:AK,'Hourly load shapes by class'!$B:$B,$V16)*1000000 -> 118129.55 | I16: =_xlfn.MAXIFS('Hourly load shapes by class'!AL:AL,'Hourly load shapes by class'!$B:$B,$V16)*1000000 -> 94150.81079 | J16: =_xlfn.MAXIFS('Hourly load shapes by class'!AI:AI,'Hourly load shapes by class'!$B:$B,$V16)*1000000 -> 4880.505977 | K16: =_xlfn.MAXIFS('Hourly load shapes by class'!AM:AM,'Hourly load shapes by class'!$B:$B,$V16)*1000000 -> 11.34530814 | L16: =_xlfn.MAXIFS('Hourly load shapes by class'!AN:AN,'Hourly load shapes by class'!$B:$B,$V16)*1000000 -> 1721.416718 | O16: =_xlfn.MAXIFS('Hourly load shapes by class'!AO:AO,'Hourly load shapes by class'!$B:$B,$V16)*1000000 -> 606.08 | P16: =_xlfn.MAXIFS('Hourly load shapes by class'!AP:AP,'Hourly load shapes by class'!$B:$B,$V16)*1000000 -> 994773.457 | R16: 5859 | S16: 6578 | T16: 1 | V16: 9
A17: Oct | D17: =_xlfn.MAXIFS('Hourly load shapes by class'!AG:AG,'Hourly load shapes by class'!$B:$B,$V17)*1000000 -> 393900.9689 | E17: =_xlfn.MAXIFS('Hourly load shapes by class'!AJ:AJ,'Hourly load shapes by class'!$B:$B,$V17)*1000000 -> 104695.3288 | F17: =_xlfn.MAXIFS('Hourly load shapes by class'!AH:AH,'Hourly load shapes by class'!$B:$B,$V17)*1000000 -> 392199.3553 | G17: =_xlfn.MAXIFS('Hourly load shapes by class'!AK:AK,'Hourly load shapes by class'!$B:$B,$V17)*1000000 -> 105317.8603 | I17: =_xlfn.MAXIFS('Hourly load shapes by class'!AL:AL,'Hourly load shapes by class'!$B:$B,$V17)*1000000 -> 84815.12191 | J17: =_xlfn.MAXIFS('Hourly load shapes by class'!AI:AI,'Hourly load shapes by class'!$B:$B,$V17)*1000000 -> 5234.362909 | K17: =_xlfn.MAXIFS('Hourly load shapes by class'!AM:AM,'Hourly load shapes by class'!$B:$B,$V17)*1000000 -> 9.483035072 | L17: =_xlfn.MAXIFS('Hourly load shapes by class'!AN:AN,'Hourly load shapes by class'!$B:$B,$V17)*1000000 -> 1665.161049 | O17: =_xlfn.MAXIFS('Hourly load shapes by class'!AO:AO,'Hourly load shapes by class'!$B:$B,$V17)*1000000 -> 782.72 | P17: =_xlfn.MAXIFS('Hourly load shapes by class'!AP:AP,'Hourly load shapes by class'!$B:$B,$V17)*1000000 -> 966686.574 | R17: 6579 | S17: 7322 | T17: 1 | V17: 10
A18: Nov | D18: =_xlfn.MAXIFS('Hourly load shapes by class'!AG:AG,'Hourly load shapes by class'!$B:$B,$V18)*1000000 -> 401404.8493 | E18: =_xlfn.MAXIFS('Hourly load shapes by class'!AJ:AJ,'Hourly load shapes by class'!$B:$B,$V18)*1000000 -> 117627.3204 | F18: =_xlfn.MAXIFS('Hourly load shapes by class'!AH:AH,'Hourly load shapes by class'!$B:$B,$V18)*1000000 -> 425843.1088 | G18: =_xlfn.MAXIFS('Hourly load shapes by class'!AK:AK,'Hourly load shapes by class'!$B:$B,$V18)*1000000 -> 97020.44417 | I18: =_xlfn.MAXIFS('Hourly load shapes by class'!AL:AL,'Hourly load shapes by class'!$B:$B,$V18)*1000000 -> 76632.96537 | J18: =_xlfn.MAXIFS('Hourly load shapes by class'!AI:AI,'Hourly load shapes by class'!$B:$B,$V18)*1000000 -> 5809.997932 | K18: =_xlfn.MAXIFS('Hourly load shapes by class'!AM:AM,'Hourly load shapes by class'!$B:$B,$V18)*1000000 -> 8.987649937 | L18: =_xlfn.MAXIFS('Hourly load shapes by class'!AN:AN,'Hourly load shapes by class'!$B:$B,$V18)*1000000 -> 1639.221172 | O18: =_xlfn.MAXIFS('Hourly load shapes by class'!AO:AO,'Hourly load shapes by class'!$B:$B,$V18)*1000000 -> 0 | P18: =_xlfn.MAXIFS('Hourly load shapes by class'!AP:AP,'Hourly load shapes by class'!$B:$B,$V18)*1000000 -> 1029387.938 | R18: 7323 | S18: 8042 | T18: 1 | V18: 11
A19: Dec | D19: =_xlfn.MAXIFS('Hourly load shapes by class'!AG:AG,'Hourly load shapes by class'!$B:$B,$V19)*1000000 -> 505270.4415 | E19: =_xlfn.MAXIFS('Hourly load shapes by class'!AJ:AJ,'Hourly load shapes by class'!$B:$B,$V19)*1000000 -> 124760.6331 | F19: =_xlfn.MAXIFS('Hourly load shapes by class'!AH:AH,'Hourly load shapes by class'!$B:$B,$V19)*1000000 -> 464200.3116 | G19: =_xlfn.MAXIFS('Hourly load shapes by class'!AK:AK,'Hourly load shapes by class'!$B:$B,$V19)*1000000 -> 99741.43134 | I19: =_xlfn.MAXIFS('Hourly load shapes by class'!AL:AL,'Hourly load shapes by class'!$B:$B,$V19)*1000000 -> 78750.28955 | J19: =_xlfn.MAXIFS('Hourly load shapes by class'!AI:AI,'Hourly load shapes by class'!$B:$B,$V19)*1000000 -> 5641.925777 | K19: =_xlfn.MAXIFS('Hourly load shapes by class'!AM:AM,'Hourly load shapes by class'!$B:$B,$V19)*1000000 -> 8.423586315 | L19: =_xlfn.MAXIFS('Hourly load shapes by class'!AN:AN,'Hourly load shapes by class'!$B:$B,$V19)*1000000 -> 1612.703214 | O19: =_xlfn.MAXIFS('Hourly load shapes by class'!AO:AO,'Hourly load shapes by class'!$B:$B,$V19)*1000000 -> 686.08 | P19: =_xlfn.MAXIFS('Hourly load shapes by class'!AP:AP,'Hourly load shapes by class'!$B:$B,$V19)*1000000 -> 1150374.797 | R19: 8043 | S19: 8786 | T19: 1 | V19: 12
A21: 1NCP | D21: =LARGE(D8:D19,1) -> 575660.2603 | E21: =LARGE(E8:E19,1) -> 145496.2031 | F21: =LARGE(F8:F19,1) -> 498153.4509 | G21: 125654.3803 | I21: 95229.08061 | J21: =LARGE(J8:J19,1) -> 6443.865297 | K21: =LARGE(K8:K19,1) -> 15.09041083 | L21: =LARGE(L8:L19,1) -> 1896.188748 | O21: =LARGE(O8:O19,1) -> 1152 | P21: =SUM(D21:O21) -> 1449700.52
A22: 4NCP | D22: =LARGE(D8:D19,1)+ LARGE(D8:D19,2)+ LARGE(D8:D19,3)+ LARGE(D8:D19,4) -> 2133287.038 | E22: =LARGE(E8:E19,1)+ LARGE(E8:E19,2)+ LARGE(E8:E19,3)+ LARGE(E8:E19,4) -> 561643.6751 | F22: =LARGE(F8:F19,1)+ LARGE(F8:F19,2)+ LARGE(F8:F19,3)+ LARGE(F8:F19,4) -> 1967131.341 | G22: 486541.2626 | I22: 374663.7536 | J22: =LARGE(J8:J19,1)+ LARGE(J8:J19,2)+ LARGE(J8:J19,3)+ LARGE(J8:J19,4) -> 23997.89741 | K22: =LARGE(K8:K19,1)+ LARGE(K8:K19,2)+ LARGE(K8:K19,3)+ LARGE(K8:K19,4) -> 58.18901517 | L22: =LARGE(L8:L19,1)+ LARGE(L8:L19,2)+ LARGE(L8:L19,3)+ LARGE(L8:L19,4) -> 7491.830214 | O22: =LARGE(O8:O19,1)+ LARGE(O8:O19,2)+ LARGE(O8:O19,3)+ LARGE(O8:O19,4) -> 3835.84 | P22: =SUM(D22:O22) -> 5558650.827
A23: 12NCP | D23: =SUM(D8:D19) -> 5508979.449 | E23: =SUM(E8:E19) -> 1531293.405 | F23: =SUM(F8:F19) -> 5508528.842 | G23: 1295931.68 | I23: 1012783.152 | J23: =SUM(J8:J19) -> 62127.99518 | K23: =SUM(K8:K19) -> 142.1980863 | L23: =SUM(L8:L19) -> 21161.41895 | O23: =SUM(O8:O19) -> 7656.96 | P23: =SUM(D8:O19) -> 14948605.1
A25: CP
A27: Jan | B27: =SUMIF('Hourly load shapes by class'!$AP:$AP,'2021 (Monthly Scaling)'!$P27/1000000,'Hourly load shapes by class'!C:C) -> 28 | C27: =SUMIF('Hourly load shapes by class'!$AP:$AP,'2021 (Monthly Scaling)'!$P27/1000000,'Hourly load shapes by class'!D:D) -> 18 | D27: =SUMIF('Hourly load shapes by class'!$AP:$AP,'2021 (Monthly Scaling)'!$P8/1000000,'Hourly load shapes by class'!AG:AG)*1000000 -> 473532.8273 | E27: =SUMIF('Hourly load shapes by class'!$AP:$AP,'2021 (Monthly Scaling)'!$P8/1000000,'Hourly load shapes by class'!AJ:AJ)*1000000 -> 105120.8379 | F27: =SUMIF('Hourly load shapes by class'!$AP:$AP,'2021 (Monthly Scaling)'!$P8/1000000,'Hourly load shapes by class'!AH:AH)*1000000 -> 432975.312 | G27: =SUMIF('Hourly load shapes by class'!$AP:$AP,'2021 (Monthly Scaling)'!$P8/1000000,'Hourly load shapes by class'!AK:AK)*1000000 -> 90360.88762 | I27: =SUMIF('Hourly load shapes by class'!$AP:$AP,'2021 (Monthly Scaling)'!$P8/1000000,'Hourly load shapes by class'!AL:AL)*1000000 -> 72680.84738 | J27: =SUMIF('Hourly load shapes by class'!$AP:$AP,'2021 (Monthly Scaling)'!$P8/1000000,'Hourly load shapes by class'!AI:AI)*1000000 -> 5807.978316 | K27: =SUMIF('Hourly load shapes by class'!$AP:$AP,'2021 (Monthly Scaling)'!$P8/1000000,'Hourly load shapes by class'!AM:AM)*1000000 -> 8.005189141 | L27: =SUMIF('Hourly load shapes by class'!$AP:$AP,'2021 (Monthly Scaling)'!$P8/1000000,'Hourly load shapes by class'!AN:AN)*1000000 -> 1648.065951 | O27: =SUMIF('Hourly load shapes by class'!$AP:$AP,'2021 (Monthly Scaling)'!$P8/1000000,'Hourly load shapes by class'!AO:AO)*1000000 -> 0 | P27: =SUM(D27:O27) -> 1182134.762 | Q27: =OR(P27=LARGE(P$27:P$38,1), P27=LARGE(P$27:P$38,2), P27=LARGE(P$27:P$38,3), P27=LARGE(P$27:P$38,4)) -> TRUE
A28: Feb | B28: =SUMIF('Hourly load shapes by class'!$AP:$AP,'2021 (Monthly Scaling)'!$P28/1000000,'Hourly load shapes by class'!C:C) -> 14 | C28: =SUMIF('Hourly load shapes by class'!$AP:$AP,'2021 (Monthly Scaling)'!$P28/1000000,'Hourly load shapes by class'!D:D) -> 18 | D28: =SUMIF('Hourly load shapes by class'!$AP:$AP,'2021 (Monthly Scaling)'!$P9/1000000,'Hourly load shapes by class'!AG:AG)*1000000 -> 427565.7804 | E28: =SUMIF('Hourly load shapes by class'!$AP:$AP,'2021 (Monthly Scaling)'!$P9/1000000,'Hourly load shapes by class'!AJ:AJ)*1000000 -> 118568.1238 | F28: =SUMIF('Hourly load shapes by class'!$AP:$AP,'2021 (Monthly Scaling)'!$P9/1000000,'Hourly load shapes by class'!AH:AH)*1000000 -> 458102.8882 | G28: =SUMIF('Hourly load shapes by class'!$AP:$AP,'2021 (Monthly Scaling)'!$P9/1000000,'Hourly load shapes by class'!AK:AK)*1000000 -> 88741.64722 | I28: =SUMIF('Hourly load shapes by class'!$AP:$AP,'2021 (Monthly Scaling)'!$P9/1000000,'Hourly load shapes by class'!AL:AL)*1000000 -> 68251.1179 | J28: =SUMIF('Hourly load shapes by class'!$AP:$AP,'2021 (Monthly Scaling)'!$P9/1000000,'Hourly load shapes by class'!AI:AI)*1000000 -> 3066.943949 | K28: =SUMIF('Hourly load shapes by class'!$AP:$AP,'2021 (Monthly Scaling)'!$P9/1000000,'Hourly load shapes by class'!AM:AM)*1000000 -> 5.244503811 | L28: =SUMIF('Hourly load shapes by class'!$AP:$AP,'2021 (Monthly Scaling)'!$P9/1000000,'Hourly load shapes by class'!AN:AN)*1000000 -> 1738.018922 | O28: =SUMIF('Hourly load shapes by class'!$AP:$AP,'2021 (Monthly Scaling)'!$P9/1000000,'Hourly load shapes by class'!AO:AO)*1000000 -> 0 | P28: 1166039.765 | Q28: =OR(P28=LARGE(P$27:P$38,1), P28=LARGE(P$27:P$38,2), P28=LARGE(P$27:P$38,3), P28=LARGE(P$27:P$38,4)) -> FALSE
